Workbook

Sheet Front Sheet
C2: Macros for use with PLAN | O2: NOTES
D4: GO TO | H4: PRINT | K4: School Code: | L4: A0547
K6: =IF(L4="","",Summary!H1) -> Queen Mary Infant School
K8: 3 YEAR BUDGET PLAN
K10: =+M17 -> 2026/2027
K15: YEAR | L15: LEAP YR | M15: PERIOD | O15: Period Start | P15: Period End | Q15: Financial Yr
K16: OUTTURN | L16: Y | M16: 2025/2026 | O16: 2025-04-01 | P16: 2026-03-31 | Q16: 2025 | U16: =+M16 -> 2025/2026 | V16: =+Q16 -> 2025
K17: CURRENT | L17: N | M17: 2026/2027 | O17: 2026-04-01 | P17: 2027-03-31 | Q17: 2026 | T17: =+L17 -> N | U17: =+M17 -> 2026/2027 | V17: =+Q17 -> 2026
K18: NEXT YEAR | L18: N | M18: 2027/2028 | O18: 2027-04-01 | P18: 2028-03-31 | Q18: 2027 | T18: =+L18 -> N | U18: =+M18 -> 2027/2028 | V18: =+Q18 -> 2027
K19: YEAR AFTER | L19: Y | M19: 2028/2029 | O19: 2028-04-01 | P19: 2029-03-31 | Q19: 2028 | T19: Y | U19: 2028/2029 | V19: 2028
K20: YEAR AFTER | L20: N | T20: N | U20: 0 | V20: 0
K21: YEAR AFTER | L21: 0 | T21: 0 | U21: 0 | V21: 0
K22: YEAR AFTER | T22: 0 | U22: 0 | V22: 0
K23: YEAR AFTER | T23: 0 | U23: 0 | V23: 0
K24: YEAR AFTER | T24: 0 | U24: 0 | V24: 0
T25: 0 | U25: 0 | V25: 0
O26: 2006 | U26: 0
C27: Enter data in 'blue' coloured cells only | K27: Clear Down Macro

Sheet Funding
A1: PUPIL FORECAST | D1: =NOW() -> 2026-05-07T16:22:22.300 | H1: =+'Front Sheet'!L4 -> A0547
A3: NOTES | D3: =+Summary!H1 -> Queen Mary Infant School
A4: Enter data in 'blue' coloured cells only
E8: Actual | F8: Indicative PLASC | G8: Indicative PLASC
E9: Oct | F9: Oct | G9: Oct
E10: 2025 | F10: 2026 | G10: 2027
A11: PRIMARY
A12: Child Ages | B12: < 5 | D12: Reception | E12: 80 | F12: 65 | G12: 65
B13: 5 + | D13: Y1 | E13: 65 | F13: 78 | G13: =F12 -> 65
B14: 6 + | D14: Y2 | E14: 72 | F14: 64 | G14: =F13 -> 78
B15: 7 + | D15: Y3 | E15: 0 | F15: 0 | G15: 0
B16: 8 + | D16: Y4 | E16: 0 | F16: 0 | G16: 0
B17: 9 + | D17: Y5 | E17: 0 | F17: 0 | G17: 0
B18: 10 + | D18: Y6 | E18: 0 | F18: 0 | G18: 0
E19: =SUM(E12:E18) -> 217 | F19: =SUM(F12:F18) -> 207 | G19: =SUM(G12:G18) -> 208
A21: SECONDARY
B22: 11 + | E22: 0 | F22: 0 | G22: 0
B23: 12 + | E23: 0 | F23: =+E22 -> 0 | G23: =+F22 -> 0
B24: 13 + | E24: 0 | F24: =+E23 -> 0 | G24: =+F23 -> 0
B25: 14 + | E25: 0 | F25: 0 | G25: 0
B26: 15 + | E26: 0 | F26: 0 | G26: 0
B27: 16 + | E27: 0 | F27: 0 | G27: 0
B28: 17 + | E28: 0 | F28: 0 | G28: 0
E29: =SUM(E22:E28) -> 0 | F29: =SUM(F22:F28) -> 0 | G29: =SUM(G22:G28) -> 0
A31: TOTAL AWPU Reception to Yr 13 | E31: =SUM(E19+E29) -> 217 | F31: =SUM(F19+F29) -> 207 | G31: =SUM(G19+G29) -> 208 | I31: =SUM(#REF!+I19+I29) ->  | J31: =SUM(#REF!+J19+J29) -> 
A34: FUNDING
A36: A.W.P.U. | E36: =+'Front Sheet'!U17 -> 2026/2027 | F36: =+'Front Sheet'!U18 -> 2027/2028 | G36: =+'Front Sheet'!U19 -> 2028/2029
A39: MAINSTREAM | B39: <5 | E39: =(E12)*VLOOKUP($B39,[1]PAYDATA!$A$109:$D$124,2,FALSE) -> 322640 | F39: =(F12)*VLOOKUP($B39,[1]PAYDATA!$A$109:$D$124,3,FALSE) -> 270009.35 | G39: =(G12)*VLOOKUP($B39,[1]PAYDATA!$A$109:$D$124,4,FALSE) -> 278109.6305
B40: 5 | C40: + | E40: =(E13)*VLOOKUP($B40,[1]PAYDATA!$A$109:$D$124,2,FALSE) -> 262145 | F40: =(F13)*VLOOKUP($B40,[1]PAYDATA!$A$109:$D$124,3,FALSE) -> 324011.22 | G40: =(G13)*VLOOKUP($B40,[1]PAYDATA!$A$109:$D$124,4,FALSE) -> 278109.6305
B41: 6 | C41: + | E41: =(E14)*VLOOKUP($B41,[1]PAYDATA!$A$109:$D$124,2,FALSE) -> 290376 | F41: =(F14)*VLOOKUP($B41,[1]PAYDATA!$A$109:$D$124,3,FALSE) -> 265855.36 | G41: =(G14)*VLOOKUP($B41,[1]PAYDATA!$A$109:$D$124,4,FALSE) -> 333731.5566
B42: 7 | C42: + | E42: =(E15)*VLOOKUP($B42,[1]PAYDATA!$A$109:$D$124,2,FALSE) -> 0 | F42: =(F15)*VLOOKUP($B42,[1]PAYDATA!$A$109:$D$124,3,FALSE) -> 0 | G42: =(G15)*VLOOKUP($B42,[1]PAYDATA!$A$109:$D$124,4,FALSE) -> 0
B43: 8 | C43: + | E43: =(E16)*VLOOKUP($B43,[1]PAYDATA!$A$109:$D$124,2,FALSE) -> 0 | F43: =(F16)*VLOOKUP($B43,[1]PAYDATA!$A$109:$D$124,3,FALSE) -> 0 | G43: =(G16)*VLOOKUP($B43,[1]PAYDATA!$A$109:$D$124,4,FALSE) -> 0
B44: 9 | C44: + | E44: =(E17)*VLOOKUP($B44,[1]PAYDATA!$A$109:$D$124,2,FALSE) -> 0 | F44: =(F17)*VLOOKUP($B44,[1]PAYDATA!$A$109:$D$124,3,FALSE) -> 0 | G44: =(G17)*VLOOKUP($B44,[1]PAYDATA!$A$109:$D$124,4,FALSE) -> 0
B45: 10 | C45: + | E45: =(E18)*VLOOKUP($B45,[1]PAYDATA!$A$109:$D$124,2,FALSE) -> 0 | F45: =(F18)*VLOOKUP($B45,[1]PAYDATA!$A$109:$D$124,3,FALSE) -> 0 | G45: =(G18)*VLOOKUP($B45,[1]PAYDATA!$A$109:$D$124,4,FALSE) -> 0
B46: 11 | C46: + | E46: =(E19)*VLOOKUP($B46,[1]PAYDATA!$A$109:$D$124,2,FALSE) -> 0 | F46: =(F22)*VLOOKUP($B46,[1]PAYDATA!$A$109:$D$124,2,FALSE) -> 0 | G46: =(G22)*VLOOKUP($B46,[1]PAYDATA!$A$109:$D$124,2,FALSE) -> 0 | I46: 0 | J46: 0
B47: 12 | C47: + | E47: =(E20)*VLOOKUP($B47,[1]PAYDATA!$A$109:$D$124,2,FALSE) -> 0 | F47: =(F23)*VLOOKUP($B47,[1]PAYDATA!$A$109:$D$124,2,FALSE) -> 0 | G47: =(G23)*VLOOKUP($B47,[1]PAYDATA!$A$109:$D$124,2,FALSE) -> 0
B48: 13 | C48: + | E48: =(E21)*VLOOKUP($B48,[1]PAYDATA!$A$109:$D$124,2,FALSE) -> 0 | F48: =(F24)*VLOOKUP($B48,[1]PAYDATA!$A$109:$D$124,2,FALSE) -> 0 | G48: =(G24)*VLOOKUP($B48,[1]PAYDATA!$A$109:$D$124,2,FALSE) -> 0
B49: 14 | C49: + | E49: =(E22)*VLOOKUP($B49,[1]PAYDATA!$A$109:$D$124,2,FALSE) -> 0 | F49: =(F25)*VLOOKUP($B49,[1]PAYDATA!$A$109:$D$124,2,FALSE) -> 0 | G49: =(G25)*VLOOKUP($B49,[1]PAYDATA!$A$109:$D$124,2,FALSE) -> 0
B50: 15 | C50: + | E50: =(E23)*VLOOKUP($B50,[1]PAYDATA!$A$109:$D$124,2,FALSE) -> 0 | F50: =(F26)*VLOOKUP($B50,[1]PAYDATA!$A$109:$D$124,2,FALSE) -> 0 | G50: =(G26)*VLOOKUP($B50,[1]PAYDATA!$A$109:$D$124,2,FALSE) -> 0
B51: 16 | C51: + | E51: =(E24)*VLOOKUP($B51,[1]PAYDATA!$A$109:$D$124,2,FALSE) -> 0 | F51: =(F27)*VLOOKUP($B51,[1]PAYDATA!$A$109:$D$124,2,FALSE) -> 0 | G51: =(G27)*VLOOKUP($B51,[1]PAYDATA!$A$109:$D$124,2,FALSE) -> 0
B52: 17 | C52: + | E52: =(E25)*VLOOKUP($B52,[1]PAYDATA!$A$109:$D$124,2,FALSE) -> 0 | F52: =(F28)*VLOOKUP($B52,[1]PAYDATA!$A$109:$D$124,2,FALSE) -> 0 | G52: =(G28)*VLOOKUP($B52,[1]PAYDATA!$A$109:$D$124,2,FALSE) -> 0
E53: =SUM(E39:E52) -> 875161 | F53: =SUM(F39:F52) -> 859875.93 | G53: =SUM(G39:G52) -> 889950.8176
A56: TOP UP PUPILS | E56: =E36 -> 2026/2027 | F56: =F36 -> 2027/2028 | G56: =G36 -> 2028/2029
A57: PUPIL NAME | B57: BAND | D57: Year Group April 26 | E57: Number of days
A59: Andrew-Joshua Johnson-Gittens | B59: 6 | D59: 0 | E59: 365 | F59: 365 | G59: 153
A60: Bow Lee-Hodges | B60: 8 | D60: 1 | E60: 365 | F60: 153 | G60: 0
A61: Charlie Taylor | B61: 6 | D61: 2 | E61: 153 | F61: 0 | G61: 0
A62: Connie Leigh-Huddleston | B62: 9 | D62: 0 | E62: 365 | F62: 365 | G62: 153
A63: David Obasuyi | B63: 6 | D63: 0 | E63: 365 | F63: 365 | G63: 153
A64: Effie Cole | B64: 7 | D64: 1 | E64: 153 | F64: 0 | G64: 0
A65: Ethan Gardner | B65: 7 | D65: 1 | E65: 365 | F65: 153 | G65: 0
A66: Finn Dennis | B66: 9 | D66: 0 | E66: 365 | F66: 365 | G66: 153
A67: Harley-Jay Lyall | B67: 8 | D67: 1 | E67: 365 | F67: 153 | G67: 0
A68: Hunter Rodgers | B68: 6 | D68: 1 | E68: 365 | F68: 153 | G68: 0
A69: Jude Crancher | B69: 7 | D69: 2 | E69: 153 | F69: 0 | G69: 0
A70: Keegan Lee McKean | B70: 7 | D70: 0 | E70: 365 | F70: 365 | G70: 153
A71: Lyla Horracks | B71: 6 | D71: 0 | E71: 365 | F71: 365 | G71: 153
A72: Millie Hess | B72: 7 | D72: 0 | E72: 365 | F72: 365 | G72: 153
A73: Sami Zekri | B73: 8 | D73: 1 | E73: 365 | F73: 153 | G73: 0
A74: Mason Fytch | B74: 7 | D74: -1 | E74: 212 | F74: 365 | G74: 365
A75: Arlo Jake Harris | B75: 7 | D75: -1 | E75: 89 | F75: 365 | G75: 365
A76: Jack Melbourne | B76: 7 | D76: -1 | E76: 89 | F76: 365 | G76: 365
A77: Jacob John-Taylor | B77: 7 | D77: -1 | E77: 89 | F77: 365 | G77: 365
A78: Roman Williams | B78: 7 | D78: -1 | E78: 89 | F78: 365 | G78: 365
A79: Liam Hutton | B79: 6 | D79: -1 | E79: 212 | F79: 365 | G79: 365
A80: Teddy Fountain-Gray | B80: 6 | D80: 1 | E80: 365 | F80: 153 | G80: 0
A81: Teddy Lee-Hodges | B81: 8 | D81: 2 | E81: 153 | F81: 0 | G81: 0
A82: Carter Thomas | B82: 8 | D82: 0 | E82: 365 | F82: 365 | G82: 153
A83: Tommy Lee Preston | B83: 6 | D83: 0 | E83: 365 | F83: 365 | G83: 153
A84: Winter Russell | B84: 7 | D84: 1 | E84: 365 | F84: 153 | G84: 0
A85: Zac Dennis | B85: 7 | D85: 0 | E85: 365 | F85: 365 | G85: 153
A86: Albie Charlton | B86: 7 | D86: -1 | E86: 212 | F86: 365 | G86: 365
A87: Hudson Gibson | B87: 7 | D87: -1 | E87: 89 | F87: 365 | G87: 365
A88: Leylan Wilkinson | B88: 7 | D88: -1 | E88: 89 | F88: 365 | G88: 365
E89: 0 | F89: 0 | G89: 0
D90: No. OF DAYS REQUIRED | E90: =SUM(E58:E89) -> 7987 | F90: =SUM(F58:F89) -> 8006 | G90: =SUM(G58:G89) -> 4815
A92: TOP UP PUPIL FUNDING | B92: 2025/2026 (Split) | E92: =+E56 -> 2026/2027 | F92: =+F56 -> 2027/2028 | G92: =+G56 -> 2028/2029
B93: Apr - Aug | C93: Sep- Mar
A94: =A59 -> Andrew-Joshua Johnson-Gittens | B94: 153 | C94: 212 | E94: =IF(A59="",0,(IF(E59=0,0,VLOOKUP($B59,[1]!SEN_STATEMENTING,2,FALSE)/IF('Front Sheet'!$T$17="Y",365,365)*E59)*B94/E59)+(IF(E59=0,0,VLOOKUP($B59,[1]!SEN_STATEMENTING,3,FALSE)/IF('Front Sheet'!$T$17="Y",365,365)*E59)*C94/E59)) -> 7373.276493 | F94: =IF(F59=0,0,VLOOKUP($B59,[1]!SEN_STATEMENTING,4,FALSE)/IF('Front Sheet'!$T$17="Y",365,365)*F59) -> 7464.41 | G94: =IF(G59=0,0,VLOOKUP($B59,[1]!SEN_STATEMENTING,5,FALSE)/IF('Front Sheet'!$T$17="Y",365,365)*G59) -> 3222.784581
A95: Bow Lee-Hodges | B95: 153 | C95: 212 | E95: =IF(A60="",0,(IF(E60=0,0,VLOOKUP($B60,[1]!SEN_STATEMENTING,2,FALSE)/IF('Front Sheet'!$T$17="Y",365,365)*E60)*B95/E60)+(IF(E60=0,0,VLOOKUP($B60,[1]!SEN_STATEMENTING,3,FALSE)/IF('Front Sheet'!$T$17="Y",365,365)*E60)*C95/E60)) -> 13572.44493 | F95: =IF(F60=0,0,VLOOKUP($B60,[1]!SEN_STATEMENTING,4,FALSE)/IF('Front Sheet'!$T$17="Y",365,365)*F60) -> 5759.590685 | G95: =IF(G60=0,0,VLOOKUP($B60,[1]!SEN_STATEMENTING,5,FALSE)/IF('Front Sheet'!$T$17="Y",365,365)*G60) -> 0
A96: Charlie Taylor | B96: 153 | C96: 0 | E96: =IF(A61="",0,(IF(E61=0,0,VLOOKUP($B61,[1]!SEN_STATEMENTING,2,FALSE)/IF('Front Sheet'!$T$17="Y",365,365)*E61)*B96/E61)+(IF(E61=0,0,VLOOKUP($B61,[1]!SEN_STATEMENTING,3,FALSE)/IF('Front Sheet'!$T$17="Y",365,365)*E61)*C96/E61)) -> 3037.783562 | F96: =IF(F61=0,0,VLOOKUP($B61,[1]!SEN_STATEMENTING,4,FALSE)/IF('Front Sheet'!$T$17="Y",365,365)*F61) -> 0 | G96: =IF(G61=0,0,VLOOKUP($B61,[1]!SEN_STATEMENTING,5,FALSE)/IF('Front Sheet'!$T$17="Y",365,365)*G61) -> 0
A97: Connie Leigh-Huddleston | B97: 153 | C97: 212 | E97: =IF(A62="",0,(IF(E62=0,0,VLOOKUP($B62,[1]!SEN_STATEMENTING,2,FALSE)/IF('Front Sheet'!$T$17="Y",365,365)*E62)*B97/E62)+(IF(E62=0,0,VLOOKUP($B62,[1]!SEN_STATEMENTING,3,FALSE)/IF('Front Sheet'!$T$17="Y",365,365)*E62)*C97/E62)) -> 18544.59923 | F97: =IF(F62=0,0,VLOOKUP($B62,[1]!SEN_STATEMENTING,4,FALSE)/IF('Front Sheet'!$T$17="Y",365,365)*F62) -> 18773.81 | G97: =IF(G62=0,0,VLOOKUP($B62,[1]!SEN_STATEMENTING,5,FALSE)/IF('Front Sheet'!$T$17="Y",365,365)*G62) -> 8105.656761
A98: David Obasuyi | B98: 153 | C98: 212 | E98: =IF(A63="",0,(IF(E63=0,0,VLOOKUP($B63,[1]!SEN_STATEMENTING,2,FALSE)/IF('Front Sheet'!$T$17="Y",365,365)*E63)*B98/E63)+(IF(E63=0,0,VLOOKUP($B63,[1]!SEN_STATEMENTING,3,FALSE)/IF('Front Sheet'!$T$17="Y",365,365)*E63)*C98/E63)) -> 7373.276493 | F98: =IF(F63=0,0,VLOOKUP($B63,[1]!SEN_STATEMENTING,4,FALSE)/IF('Front Sheet'!$T$17="Y",365,365)*F63) -> 7464.41 | G98: =IF(G63=0,0,VLOOKUP($B63,[1]!SEN_STATEMENTING,5,FALSE)/IF('Front Sheet'!$T$17="Y",365,365)*G63) -> 3222.784581
A99: Effie Cole | B99: 153 | C99: 0 | E99: =IF(A64="",0,(IF(E64=0,0,VLOOKUP($B64,[1]!SEN_STATEMENTING,2,FALSE)/IF('Front Sheet'!$T$17="Y",365,365)*E64)*B99/E64)+(IF(E64=0,0,VLOOKUP($B64,[1]!SEN_STATEMENTING,3,FALSE)/IF('Front Sheet'!$T$17="Y",365,365)*E64)*C99/E64)) -> 3817.454795 | F99: =IF(F64=0,0,VLOOKUP($B64,[1]!SEN_STATEMENTING,4,FALSE)/IF('Front Sheet'!$T$17="Y",365,365)*F64) -> 0 | G99: =IF(G64=0,0,VLOOKUP($B64,[1]!SEN_STATEMENTING,5,FALSE)/IF('Front Sheet'!$T$17="Y",365,365)*G64) -> 0
A100: Ethan Gardner | B100: 153 | C100: 212 | E100: =IF(A65="",0,(IF(E65=0,0,VLOOKUP($B65,[1]!SEN_STATEMENTING,2,FALSE)/IF('Front Sheet'!$T$17="Y",365,365)*E65)*B100/E65)+(IF(E65=0,0,VLOOKUP($B65,[1]!SEN_STATEMENTING,3,FALSE)/IF('Front Sheet'!$T$17="Y",365,365)*E65)*C100/E65)) -> 9265.686356 | F100: =IF(F65=0,0,VLOOKUP($B65,[1]!SEN_STATEMENTING,4,FALSE)/IF('Front Sheet'!$T$17="Y",365,365)*F65) -> 3931.978438 | G100: =IF(G65=0,0,VLOOKUP($B65,[1]!SEN_STATEMENTING,5,FALSE)/IF('Front Sheet'!$T$17="Y",365,365)*G65) -> 0
A101: Finn Dennis | B101: 153 | C101: 212 | E101: =IF(A66="",0,(IF(E66=0,0,VLOOKUP($B66,[1]!SEN_STATEMENTING,2,FALSE)/IF('Front Sheet'!$T$17="Y",365,365)*E66)*B101/E66)+(IF(E66=0,0,VLOOKUP($B66,[1]!SEN_STATEMENTING,3,FALSE)/IF('Front Sheet'!$T$17="Y",365,365)*E66)*C101/E66)) -> 18544.59923 | F101: =IF(F66=0,0,VLOOKUP($B66,[1]!SEN_STATEMENTING,4,FALSE)/IF('Front Sheet'!$T$17="Y",365,365)*F66) -> 18773.81 | G101: =IF(G66=0,0,VLOOKUP($B66,[1]!SEN_STATEMENTING,5,FALSE)/IF('Front Sheet'!$T$17="Y",365,365)*G66) -> 8105.656761
A102: Harley-Jay Lyall | B102: 153 | C102: 212 | E102: =IF(A67="",0,(IF(E67=0,0,VLOOKUP($B67,[1]!SEN_STATEMENTING,2,FALSE)/IF('Front Sheet'!$T$17="Y",365,365)*E67)*B102/E67)+(IF(E67=0,0,VLOOKUP($B67,[1]!SEN_STATEMENTING,3,FALSE)/IF('Front Sheet'!$T$17="Y",365,365)*E67)*C102/E67)) -> 13572.44493 | F102: =IF(F67=0,0,VLOOKUP($B67,[1]!SEN_STATEMENTING,4,FALSE)/IF('Front Sheet'!$T$17="Y",365,365)*F67) -> 5759.590685 | G102: =IF(G67=0,0,VLOOKUP($B67,[1]!SEN_STATEMENTING,5,FALSE)/IF('Front Sheet'!$T$17="Y",365,365)*G67) -> 0
A103: Hunter Rodgers | B103: 153 | C103: 212 | E103: =IF(A68="",0,(IF(E68=0,0,VLOOKUP($B68,[1]!SEN_STATEMENTING,2,FALSE)/IF('Front Sheet'!$T$17="Y",365,365)*E68)*B103/E68)+(IF(E68=0,0,VLOOKUP($B68,[1]!SEN_STATEMENTING,3,FALSE)/IF('Front Sheet'!$T$17="Y",365,365)*E68)*C103/E68)) -> 7373.276493 | F103: =IF(F68=0,0,VLOOKUP($B68,[1]!SEN_STATEMENTING,4,FALSE)/IF('Front Sheet'!$T$17="Y",365,365)*F68) -> 3128.917068 | G103: =IF(G68=0,0,VLOOKUP($B68,[1]!SEN_STATEMENTING,5,FALSE)/IF('Front Sheet'!$T$17="Y",365,365)*G68) -> 0
A104: Jude Crancher | B104: 153 | C104: 0 | E104: =IF(A69="",0,(IF(E69=0,0,VLOOKUP($B69,[1]!SEN_STATEMENTING,2,FALSE)/IF('Front Sheet'!$T$17="Y",365,365)*E69)*B104/E69)+(IF(E69=0,0,VLOOKUP($B69,[1]!SEN_STATEMENTING,3,FALSE)/IF('Front Sheet'!$T$17="Y",365,365)*E69)*C104/E69)) -> 3817.454795 | F104: =IF(F69=0,0,VLOOKUP($B69,[1]!SEN_STATEMENTING,4,FALSE)/IF('Front Sheet'!$T$17="Y",365,365)*F69) -> 0 | G104: =IF(G69=0,0,VLOOKUP($B69,[1]!SEN_STATEMENTING,5,FALSE)/IF('Front Sheet'!$T$17="Y",365,365)*G69) -> 0
A105: Keegan Lee McKean | B105: 153 | C105: 212 | E105: =IF(A70="",0,(IF(E70=0,0,VLOOKUP($B70,[1]!SEN_STATEMENTING,2,FALSE)/IF('Front Sheet'!$T$17="Y",365,365)*E70)*B105/E70)+(IF(E70=0,0,VLOOKUP($B70,[1]!SEN_STATEMENTING,3,FALSE)/IF('Front Sheet'!$T$17="Y",365,365)*E70)*C105/E70)) -> 9265.686356 | F105: =IF(F70=0,0,VLOOKUP($B70,[1]!SEN_STATEMENTING,4,FALSE)/IF('Front Sheet'!$T$17="Y",365,365)*F70) -> 9380.21 | G105: =IF(G70=0,0,VLOOKUP($B70,[1]!SEN_STATEMENTING,5,FALSE)/IF('Front Sheet'!$T$17="Y",365,365)*G70) -> 4049.937792
A106: Lyla Horracks | B106: 153 | C106: 212 | E106: =IF(A71="",0,(IF(E71=0,0,VLOOKUP($B71,[1]!SEN_STATEMENTING,2,FALSE)/IF('Front Sheet'!$T$17="Y",365,365)*E71)*B106/E71)+(IF(E71=0,0,VLOOKUP($B71,[1]!SEN_STATEMENTING,3,FALSE)/IF('Front Sheet'!$T$17="Y",365,365)*E71)*C106/E71)) -> 7373.276493 | F106: =IF(F71=0,0,VLOOKUP($B71,[1]!SEN_STATEMENTING,4,FALSE)/IF('Front Sheet'!$T$17="Y",365,365)*F71) -> 7464.41 | G106: =IF(G71=0,0,VLOOKUP($B71,[1]!SEN_STATEMENTING,5,FALSE)/IF('Front Sheet'!$T$17="Y",365,365)*G71) -> 3222.784581
A107: Millie Hess | B107: 153 | C107: 212 | E107: =IF(A72="",0,(IF(E72=0,0,VLOOKUP($B72,[1]!SEN_STATEMENTING,2,FALSE)/IF('Front Sheet'!$T$17="Y",365,365)*E72)*B107/E72)+(IF(E72=0,0,VLOOKUP($B72,[1]!SEN_STATEMENTING,3,FALSE)/IF('Front Sheet'!$T$17="Y",365,365)*E72)*C107/E72)) -> 9265.686356 | F107: =IF(F72=0,0,VLOOKUP($B72,[1]!SEN_STATEMENTING,4,FALSE)/IF('Front Sheet'!$T$17="Y",365,365)*F72) -> 9380.21 | G107: =IF(G72=0,0,VLOOKUP($B72,[1]!SEN_STATEMENTING,5,FALSE)/IF('Front Sheet'!$T$17="Y",365,365)*G72) -> 4049.937792
A108: Sami Zekri | B108: 153 | C108: 212 | E108: =IF(A73="",0,(IF(E73=0,0,VLOOKUP($B73,[1]!SEN_STATEMENTING,2,FALSE)/IF('Front Sheet'!$T$17="Y",365,365)*E73)*B108/E73)+(IF(E73=0,0,VLOOKUP($B73,[1]!SEN_STATEMENTING,3,FALSE)/IF('Front Sheet'!$T$17="Y",365,365)*E73)*C108/E73)) -> 13572.44493 | F108: =IF(F73=0,0,VLOOKUP($B73,[1]!SEN_STATEMENTING,4,FALSE)/IF('Front Sheet'!$T$17="Y",365,365)*F73) -> 5759.590685 | G108: =IF(G73=0,0,VLOOKUP($B73,[1]!SEN_STATEMENTING,5,FALSE)/IF('Front Sheet'!$T$17="Y",365,365)*G73) -> 0
A109: =A74 -> Mason Fytch | B109: 0 | C109: 212 | E109: =IF(A74="",0,(IF(E74=0,0,VLOOKUP($B74,[1]!SEN_STATEMENTING,2,FALSE)/IF('Front Sheet'!$T$17="Y",365,365)*E74)*B109/E74)+(IF(E74=0,0,VLOOKUP($B74,[1]!SEN_STATEMENTING,3,FALSE)/IF('Front Sheet'!$T$17="Y",365,365)*E74)*C109/E74)) -> 5448.231562 | F109: =IF(F74=0,0,VLOOKUP($B74,[1]!SEN_STATEMENTING,4,FALSE)/IF('Front Sheet'!$T$17="Y",365,365)*F74) -> 9380.21 | G109: =IF(G74=0,0,VLOOKUP($B74,[1]!SEN_STATEMENTING,5,FALSE)/IF('Front Sheet'!$T$17="Y",365,365)*G74) -> 9661.6163
A110: Arlo Jake Harris | B110: 0 | C110: 89 | E110: =IF(A75="",0,(IF(E75=0,0,VLOOKUP($B75,[1]!SEN_STATEMENTING,2,FALSE)/IF('Front Sheet'!$T$17="Y",365,365)*E75)*B110/E75)+(IF(E75=0,0,VLOOKUP($B75,[1]!SEN_STATEMENTING,3,FALSE)/IF('Front Sheet'!$T$17="Y",365,365)*E75)*C110/E75)) -> 2287.229288 | F110: =IF(F75=0,0,VLOOKUP($B75,[1]!SEN_STATEMENTING,4,FALSE)/IF('Front Sheet'!$T$17="Y",365,365)*F75) -> 9380.21 | G110: =IF(G75=0,0,VLOOKUP($B75,[1]!SEN_STATEMENTING,5,FALSE)/IF('Front Sheet'!$T$17="Y",365,365)*G75) -> 9661.6163
A111: Jack Melbourne | B111: 0 | C111: 89 | E111: =IF(A76="",0,(IF(E76=0,0,VLOOKUP($B76,[1]!SEN_STATEMENTING,2,FALSE)/IF('Front Sheet'!$T$17="Y",365,365)*E76)*B111/E76)+(IF(E76=0,0,VLOOKUP($B76,[1]!SEN_STATEMENTING,3,FALSE)/IF('Front Sheet'!$T$17="Y",365,365)*E76)*C111/E76)) -> 2287.229288 | F111: =IF(F76=0,0,VLOOKUP($B76,[1]!SEN_STATEMENTING,4,FALSE)/IF('Front Sheet'!$T$17="Y",365,365)*F76) -> 9380.21 | G111: =IF(G76=0,0,VLOOKUP($B76,[1]!SEN_STATEMENTING,5,FALSE)/IF('Front Sheet'!$T$17="Y",365,365)*G76) -> 9661.6163
A112: Jacob John-Taylor | B112: 0 | C112: 89 | E112: =IF(A77="",0,(IF(E77=0,0,VLOOKUP($B77,[1]!SEN_STATEMENTING,2,FALSE)/IF('Front Sheet'!$T$17="Y",365,365)*E77)*B112/E77)+(IF(E77=0,0,VLOOKUP($B77,[1]!SEN_STATEMENTING,3,FALSE)/IF('Front Sheet'!$T$17="Y",365,365)*E77)*C112/E77)) -> 2287.229288 | F112: =IF(F77=0,0,VLOOKUP($B77,[1]!SEN_STATEMENTING,4,FALSE)/IF('Front Sheet'!$T$17="Y",365,365)*F77) -> 9380.21 | G112: =IF(G77=0,0,VLOOKUP($B77,[1]!SEN_STATEMENTING,5,FALSE)/IF('Front Sheet'!$T$17="Y",365,365)*G77) -> 9661.6163
A113: Roman Williams | B113: 0 | C113: 89 | E113: =IF(A78="",0,(IF(E78=0,0,VLOOKUP($B78,[1]!SEN_STATEMENTING,2,FALSE)/IF('Front Sheet'!$T$17="Y",365,365)*E78)*B113/E78)+(IF(E78=0,0,VLOOKUP($B78,[1]!SEN_STATEMENTING,3,FALSE)/IF('Front Sheet'!$T$17="Y",365,365)*E78)*C113/E78)) -> 2287.229288 | F113: =IF(F78=0,0,VLOOKUP($B78,[1]!SEN_STATEMENTING,4,FALSE)/IF('Front Sheet'!$T$17="Y",365,365)*F78) -> 9380.21 | G113: =IF(G78=0,0,VLOOKUP($B78,[1]!SEN_STATEMENTING,5,FALSE)/IF('Front Sheet'!$T$17="Y",365,365)*G78) -> 9661.6163
A114: Liam Hutton | B114: 0 | C114: 212 | E114: =IF(A79="",0,(IF(E79=0,0,VLOOKUP($B79,[1]!SEN_STATEMENTING,2,FALSE)/IF('Front Sheet'!$T$17="Y",365,365)*E79)*B114/E79)+(IF(E79=0,0,VLOOKUP($B79,[1]!SEN_STATEMENTING,3,FALSE)/IF('Front Sheet'!$T$17="Y",365,365)*E79)*C114/E79)) -> 4335.492932 | F114: =IF(F79=0,0,VLOOKUP($B79,[1]!SEN_STATEMENTING,4,FALSE)/IF('Front Sheet'!$T$17="Y",365,365)*F79) -> 7464.41 | G114: =IF(G79=0,0,VLOOKUP($B79,[1]!SEN_STATEMENTING,5,FALSE)/IF('Front Sheet'!$T$17="Y",365,365)*G79) -> 7688.3423
A115: =A80 -> Teddy Fountain-Gray | B115: 153 | C115: 212 | E115: =IF(A80="",0,(IF(E80=0,0,VLOOKUP($B80,[1]!SEN_STATEMENTING,2,FALSE)/IF('Front Sheet'!$T$17="Y",365,365)*E80)*B115/E80)+(IF(E80=0,0,VLOOKUP($B80,[1]!SEN_STATEMENTING,3,FALSE)/IF('Front Sheet'!$T$17="Y",365,365)*E80)*C115/E80)) -> 7373.276493 | F115: =IF(F80=0,0,VLOOKUP($B80,[1]!SEN_STATEMENTING,4,FALSE)/IF('Front Sheet'!$T$17="Y",365,365)*F80) -> 3128.917068 | G115: =IF(G80=0,0,VLOOKUP($B80,[1]!SEN_STATEMENTING,5,FALSE)/IF('Front Sheet'!$T$17="Y",365,365)*G80) -> 0
A116: Teddy Lee-Hodges | B116: 153 | C116: 0 | E116: =IF(A81="",0,(IF(E81=0,0,VLOOKUP($B81,[1]!SEN_STATEMENTING,2,FALSE)/IF('Front Sheet'!$T$17="Y",365,365)*E81)*B116/E81)+(IF(E81=0,0,VLOOKUP($B81,[1]!SEN_STATEMENTING,3,FALSE)/IF('Front Sheet'!$T$17="Y",365,365)*E81)*C116/E81)) -> 5591.835616 | F116: =IF(F81=0,0,VLOOKUP($B81,[1]!SEN_STATEMENTING,4,FALSE)/IF('Front Sheet'!$T$17="Y",365,365)*F81) -> 0 | G116: =IF(G81=0,0,VLOOKUP($B81,[1]!SEN_STATEMENTING,5,FALSE)/IF('Front Sheet'!$T$17="Y",365,365)*G81) -> 0
A117: Carter Thomas | B117: 153 | C117: 212 | E117: =IF(A82="",0,(IF(E82=0,0,VLOOKUP($B82,[1]!SEN_STATEMENTING,2,FALSE)/IF('Front Sheet'!$T$17="Y",365,365)*E82)*B117/E82)+(IF(E82=0,0,VLOOKUP($B82,[1]!SEN_STATEMENTING,3,FALSE)/IF('Front Sheet'!$T$17="Y",365,365)*E82)*C117/E82)) -> 13572.44493 | F117: =IF(F82=0,0,VLOOKUP($B82,[1]!SEN_STATEMENTING,4,FALSE)/IF('Front Sheet'!$T$17="Y",365,365)*F82) -> 13740.2 | G117: =IF(G82=0,0,VLOOKUP($B82,[1]!SEN_STATEMENTING,5,FALSE)/IF('Front Sheet'!$T$17="Y",365,365)*G82) -> 5932.378405
A118: Tommy Lee Preston | B118: 153 | C118: 212 | E118: =IF(A83="",0,(IF(E83=0,0,VLOOKUP($B83,[1]!SEN_STATEMENTING,2,FALSE)/IF('Front Sheet'!$T$17="Y",365,365)*E83)*B118/E83)+(IF(E83=0,0,VLOOKUP($B83,[1]!SEN_STATEMENTING,3,FALSE)/IF('Front Sheet'!$T$17="Y",365,365)*E83)*C118/E83)) -> 7373.276493 | F118: =IF(F83=0,0,VLOOKUP($B83,[1]!SEN_STATEMENTING,4,FALSE)/IF('Front Sheet'!$T$17="Y",365,365)*F83) -> 7464.41 | G118: =IF(G83=0,0,VLOOKUP($B83,[1]!SEN_STATEMENTING,5,FALSE)/IF('Front Sheet'!$T$17="Y",365,365)*G83) -> 3222.784581
A119: Winter Russell | B119: 153 | C119: 212 | E119: =IF(A84="",0,(IF(E84=0,0,VLOOKUP($B84,[1]!SEN_STATEMENTING,2,FALSE)/IF('Front Sheet'!$T$17="Y",365,365)*E84)*B119/E84)+(IF(E84=0,0,VLOOKUP($B84,[1]!SEN_STATEMENTING,3,FALSE)/IF('Front Sheet'!$T$17="Y",365,365)*E84)*C119/E84)) -> 9265.686356 | F119: =IF(F84=0,0,VLOOKUP($B84,[1]!SEN_STATEMENTING,4,FALSE)/IF('Front Sheet'!$T$17="Y",365,365)*F84) -> 3931.978438 | G119: =IF(G84=0,0,VLOOKUP($B84,[1]!SEN_STATEMENTING,5,FALSE)/IF('Front Sheet'!$T$17="Y",365,365)*G84) -> 0
A120: Zac Dennis | B120: 153 | C120: 212 | E120: =IF(A85="",0,(IF(E85=0,0,VLOOKUP($B85,[1]!SEN_STATEMENTING,2,FALSE)/IF('Front Sheet'!$T$17="Y",365,365)*E85)*B120/E85)+(IF(E85=0,0,VLOOKUP($B85,[1]!SEN_STATEMENTING,3,FALSE)/IF('Front Sheet'!$T$17="Y",365,365)*E85)*C120/E85)) -> 9265.686356 | F120: =IF(F85=0,0,VLOOKUP($B85,[1]!SEN_STATEMENTING,4,FALSE)/IF('Front Sheet'!$T$17="Y",365,365)*F85) -> 9380.21 | G120: =IF(G85=0,0,VLOOKUP($B85,[1]!SEN_STATEMENTING,5,FALSE)/IF('Front Sheet'!$T$17="Y",365,365)*G85) -> 4049.937792
A121: Albie Charlton | B121: 0 | C121: 212 | E121: =IF(A86="",0,(IF(E86=0,0,VLOOKUP($B86,[1]!SEN_STATEMENTING,2,FALSE)/IF('Front Sheet'!$T$17="Y",365,365)*E86)*B121/E86)+(IF(E86=0,0,VLOOKUP($B86,[1]!SEN_STATEMENTING,3,FALSE)/IF('Front Sheet'!$T$17="Y",365,365)*E86)*C121/E86)) -> 5448.231562 | F121: =IF(F86=0,0,VLOOKUP($B86,[1]!SEN_STATEMENTING,4,FALSE)/IF('Front Sheet'!$T$17="Y",365,365)*F86) -> 9380.21 | G121: =IF(G86=0,0,VLOOKUP($B86,[1]!SEN_STATEMENTING,5,FALSE)/IF('Front Sheet'!$T$17="Y",365,365)*G86) -> 9661.6163
A122: Hudson Gibson | C122: 89 | E122: =IF(A87="",0,(IF(E87=0,0,VLOOKUP($B87,[1]!SEN_STATEMENTING,2,FALSE)/IF('Front Sheet'!$T$17="Y",365,365)*E87)*B122/E87)+(IF(E87=0,0,VLOOKUP($B87,[1]!SEN_STATEMENTING,3,FALSE)/IF('Front Sheet'!$T$17="Y",365,365)*E87)*C122/E87)) -> 2287.229288 | F122: =IF(F87=0,0,VLOOKUP($B87,[1]!SEN_STATEMENTING,4,FALSE)/IF('Front Sheet'!$T$17="Y",365,365)*F87) -> 9380.21 | G122: =IF(G87=0,0,VLOOKUP($B87,[1]!SEN_STATEMENTING,5,FALSE)/IF('Front Sheet'!$T$17="Y",365,365)*G87) -> 9661.6163
A123: Leylan Wilkinson | B123: 0 | C123: 89 | E123: =IF(A88="",0,(IF(E88=0,0,VLOOKUP($B88,[1]!SEN_STATEMENTING,2,FALSE)/IF('Front Sheet'!$T$17="Y",365,365)*E88)*B123/E88)+(IF(E88=0,0,VLOOKUP($B88,[1]!SEN_STATEMENTING,3,FALSE)/IF('Front Sheet'!$T$17="Y",365,365)*E88)*C123/E88)) -> 2287.229288 | F123: =IF(F88=0,0,VLOOKUP($B88,[1]!SEN_STATEMENTING,4,FALSE)/IF('Front Sheet'!$T$17="Y",365,365)*F88) -> 9380.21 | G123: =IF(G88=0,0,VLOOKUP($B88,[1]!SEN_STATEMENTING,5,FALSE)/IF('Front Sheet'!$T$17="Y",365,365)*G88) -> 9661.6163
A124: 0 | E124: =IF(A89="",0,(IF(E89=0,0,VLOOKUP($B89,[1]!SEN_STATEMENTING,2,FALSE)/IF('Front Sheet'!$T$17="Y",365,365)*E89)*B124/E89)+(IF(E89=0,0,VLOOKUP($B89,[1]!SEN_STATEMENTING,3,FALSE)/IF('Front Sheet'!$T$17="Y",365,365)*E89)*C124/E89)) -> 0 | F124: =IF(F89=0,0,VLOOKUP($B89,[1]!SEN_STATEMENTING,4,FALSE)/IF('Front Sheet'!$T$17="Y",365,365)*F89) -> 0 | G124: =IF(G89=0,0,VLOOKUP($B89,[1]!SEN_STATEMENTING,5,FALSE)/IF('Front Sheet'!$T$17="Y",365,365)*G89) -> 0
B125: TOP UP FUNDING | E125: =SUM(E93:E124) -> 227166.9295 | F125: =SUM(F93:F124) -> 223192.7431 | G125: =SUM(G93:G124) -> 132165.9163
E127: =+E56 -> 2026/2027 | F127: =+F56 -> 2027/2028 | G127: =+G56 -> 2028/2029
A129: PUPIL FUNDING TOTAL | E129: =SUM(E53+E125) -> 1102327.929 | F129: =SUM(F53+F125) -> 1083068.673 | G129: =SUM(G53+G125) -> 1022116.734
A131: SINGLE FUNDING FORMULA
A132: ORIGINAL FUNDING | E132: 228098 | F132: =E132 -> 228098 | G132: =E132 -> 228098
A134: SUMMER TERM ADJUSTMENT | E134: =30643-3408.6 -> 27234.4 | F134: =E134 -> 27234.4 | G134: =F134 -> 27234.4
A136: AUTUMN TERM ADJUSTMENT | E136: -101499 | F136: =E136 -> -101499 | G136: =F136 -> -101499
A138: SPRING TERM ADJUSTMENT | E138: 6907 | F138: =E138 -> 6907 | G138: =F138 -> 6907
A140: LUMP SUM | E140: 152700 | F140: =E140*1.03 -> 157281 | G140: =F140*1.03 -> 161999.43
B141: no of pupils | C141: £ per pupil / unit amount
A143: EAL | B143: =E143/C143 -> 17.42295082 | C143: 610 | E143: 10628 | F143: =($E143/$E$31*$F$31)*1.03 -> 10442.37733 | G143: =($F143/$F$31*$G$31)*1.03 -> 10807.6083
A145: MOBILITY - PUPILS STARTING SCHOOL OUTSIDE NORMAL ENTRY DATES | B145: 0 | C145: 985 | E145: 0 | F145: =($E145/$E$31*$F$31)*1.03 -> 0 | G145: =($F145/$F$31*$G$31)*1.03 -> 0
A147: LOW PRIOR ATTAINMENT | B147: =E147/C147 -> 89.73666667 | C147: 1200 | E147: 107684 | F147: =($E147/$E$31*$F$31)*1.03 -> 105803.2518 | G147: =($F147/$F$31*$G$31)*1.03 -> 109503.81
A149: DEPRIVATION
A150: IDACI BAND F | B150: =E150/C150 -> 12 | C150: 240 | E150: 2880 | F150: =($E150/$E$31*$F$31)*1.03 -> 2829.699539 | G150: =($F150/$F$31*$G$31)*1.03 -> 2928.670673
A152: IDACI BAND E | B152: =E152/C152 -> 26 | C152: 290 | E152: 7540 | F152: =($E152/$E$31*$F$31)*1.03 -> 7408.310599 | G152: =($F152/$F$31*$G$31)*1.03 -> 7667.422525
A154: IDACI BAND D | B154: =E154/C154 -> 16 | C154: 455 | E154: 7280 | F154: =($E154/$E$31*$F$31)*1.03 -> 7152.851613 | G154: =($F154/$F$31*$G$31)*1.03 -> 7403.028645
A156: IDACI BAND C | B156: =E156/C156 -> 1 | C156: 500 | E156: 500 | F156: =($E156/$E$31*$F$31)*1.03 -> 491.2672811 | G156: =($F156/$F$31*$G$31)*1.03 -> 508.4497696
A158: IDACI BAND B | B158: =E158/C158 -> 52 | C158: 530 | E158: 27560 | F158: =($E158/$E$31*$F$31)*1.03 -> 27078.65253 | G158: =($F158/$F$31*$G$31)*1.03 -> 28025.7513
A160: IDACI BAND A | B160: =E160/C160 -> 105 | C160: 700 | E160: 73500 | F160: =($E160/$E$31*$F$31)*1.03 -> 72216.29032 | G160: =($F160/$F$31*$G$31)*1.03 -> 74742.11613
A162: FSM EVER 6 | B162: =E162/C162 -> 118 | C162: 1210 | E162: 142780 | F162: =($E162/$E$31*$F$31)*1.03 -> 140286.2848 | G162: =($F162/$F$31*$G$31)*1.03 -> 145192.9162
A164: FSM | B164: =E164/C164 -> 117 | C164: 505 | E164: 59085 | F164: =($E164/$E$31*$F$31)*1.03 -> 58053.05461 | G164: =($F164/$F$31*$G$31)*1.03 -> 60083.50927
A166: MFG ADJUSTMENT | E166: 0 | F166: =($E166/$E$31*$F$31)*1.03 -> 0 | G166: =($F166/$F$31*$G$31)*1.03 -> 0
A173: TOTAL FUNDING | E173: =SUM(E129:E172) -> 1855205.329 | F173: =SUM(F129:F172) -> 1832852.113 | G173: =SUM(G129:G172) -> 1791719.847 | I173: =SUM(I154:I172) -> 0 | J173: =SUM(J154:J172) -> 0
A176: FOR FINANCE USE:
A177: RECONCILIATION
A178: TOTAL FUNDING | E178: =E173 -> 1855205.329
A179: CARRY FORWARD | E179: =Outturn!E86 -> 99100.95
A180: Less any funding adj not on Unit 4)
A181: UNIT 4 TOTAL | E181: =SUM(E178:E180) -> 1954306.279 | F181: =SUM(F178:F180) -> 0 | G181: =SUM(G178:G180) -> 0
A184: Notional SEN Budget (this is part of your total schools block funding above) | E184: =E36 -> 2026/2027
E185: £
C186: 5% AWPU | E186: =E53*5% -> 43758.05
C187: 50% FSM | E187: =E164*50% -> 29542.5
C188: 50% FSM Ever 6 | E188: =E162*50% -> 71390
C189: 50% IDACI | E189: =(E150+E152+E154+E156+E158+E160)*50% -> 59630
C190: 50% EAL | E190: =E143*50% -> 5314
C191: 100% ATTAINMENT | E191: =E147 -> 107684
A192: Total Notional SEN Budget | E192: =SUM(E186:E191) -> 317318.55

Sheet Staffing
A1: STAFFING COSTS | D1: NOTES | H1: =NOW() -> 2026-05-07T16:22:22.300 | Z1: hidden | AU1: TOTAL STAFFING COSTS | AV1: =AV57+AV162+AV184+AV207+AV251 -> 1831155.871 | AW1: Based on present September SCALE | AX1: Allowances | AY1: Sept monthly pay | AZ1: Months | BD1: =AF4+1 -> 2027-04-01 | BE1: to | BF1: =BD1+364 -> 2028-03-30 | BG1: Based on last September SCALE | BH1: Allowances | BI1: Sept monthly pay | BJ1: Months | BN1: =BF2+1 -> 2028-03-31 | BO1: to | BP1: =BN1+364 -> 2029-03-30
A2: Enter data in 'blue' coloured cells only | T2: =+#REF! ->  | BD2: =BD1 -> 2027-04-01 | BE2: to | BF2: =BD2+364 -> 2028-03-30 | BN2: =+BN1 -> 2028-03-31 | BO2: to | BP2: =+BP1 -> 2029-03-30
A3: TEACHERS | F3: =+'Front Sheet'!O17 -> 2026-04-01 | G3: to | H3: ='Front Sheet'!P19 -> 2029-03-31 | U3: =F3 -> 2026-04-01 | V3: =U3+U5 -> 2026-05-01 | W3: 2026-06-01 | X3: 2026-07-01 | Y3: 2026-08-01 | Z3: 2026-09-01 | AA3: 2026-10-01 | AB3: 2026-11-01 | AC3: 2026-12-01 | AD3: 2027-01-01 | AE3: 2027-02-01 | AF3: 2027-03-01 | BA3: Pay Rises | BD3: =+BF5 -> 2027/2028 | BK3: Pay Rises | BN3: =+BP5 -> 2028/2029
L4: ALLOWANCE | U4: =U3+U5-1 -> 2026-04-30 | V4: 2026-05-31 | W4: 2026-06-30 | X4: 2026-07-31 | Y4: 2026-08-31 | Z4: 2026-09-30 | AA4: 2026-10-31 | AB4: 2026-11-30 | AC4: 2026-12-31 | AD4: 2027-01-31 | AE4: =AF3-1 -> 2027-02-28 | AF4: =+AF3+AF5 -> 2027-03-31 | BA4: 0 | BD4: April | BK4: 0 | BN4: April
D5: FTE | E5: PAY | H5: APRIL | I5: SEPT | L5: POINTS | S5: DAYS IN YEAR | T5: =SUM(U5:AF5) -> 364 | U5: 30 | V5: 31 | W5: 30 | X5: 31 | Y5: 31 | Z5: 30 | AA5: 31 | AB5: 30 | AC5: 31 | AD5: 31 | AE5: =IF('Front Sheet'!T17="y",29,28) -> 28 | AF5: 30 | AG5: =+'Front Sheet'!U17 -> 2026/2027 | AU5: 0.2868 | AV5: =AG5 -> 2026/2027 | BA5: 0.02 | BD5: Sept | BE5: 0.2868 | BF5: =+'Front Sheet'!U18 -> 2027/2028 | BK5: 0.02 | BN5: Sept | BO5: 0.2868 | BP5: =+'Front Sheet'!U19 -> 2028/2029
A6: SUBJECT | B6: NAME | C6: CODE | E6: TYPE | F6: START | G6: FINISH | H6: SCALE | J6: MAN | K6: a | L6: SEN | M6: b | N6: RR | O6: c | P6: ALLOWANCES | Q6: SUP'N | R6: APRIL | S6: SEPT | T6: months | U6: APRIL | V6: MAY | W6: JUNE | X6: JULY | Y6: AUGUST | Z6: SEPT | AA6: OCT | AB6: NOV | AC6: DEC | AD6: JAN | AE6: FEB | AF6: MAR | AG6: PAY | AH6: 1 | AI6: 2 | AJ6: 3 | AK6: 4 | AL6: 5 | AM6: 6 | AN6: 7 | AO6: 8 | AP6: 9 | AQ6: 10 | AR6: 11 | AS6: 12 | AT6: N.I. | AU6: SUP'N | AV6: TOTAL | BA6: PAY | BD6: N.I. | BE6: SUP'N | BF6: TOTAL | BK6: PAY | BN6: N.I. | BO6: SUP'N | BP6: TOTAL
A7: x
A8: x | B8: Head teacher | C8: A01001 | D8: 0 | E8: LEADER | F8: =$F$3 -> 2026-04-01 | G8: =+$H$3 -> 2029-03-31 | H8: 5 | I8: 5 | Q8: Y | R8: =IF($E8="LEADER",VLOOKUP(H8,[1]PAYDATA!$A$4:$C$54,3),IF($E8="TEACHER",VLOOKUP(H8,[1]PAYDATA!$A$70:$C$80,3),IF($E8="ADVANCED",VLOOKUP(H8,[1]PAYDATA!$A$141:$C$159,3),IF($E8="UNQUAL",VLOOKUP(H8,[1]PAYDATA!$A$57:$C$63,3),0))))*$D8+($K8/T8)+($M8/T8)+($O8/T8)+($P8/T8) -> 0 | S8: =IF($E8="LEADER",VLOOKUP(I8,[1]!LEADERSHIP,5),IF($E8="TEACHER",VLOOKUP(I8,[1]!TEACHER,5),IF($E8="ADVANCED",VLOOKUP(I8,[1]PAYDATA!$A$141:$E$159,5),IF($E8="UNQUAL",VLOOKUP(I8,[1]!UNQUALIFIED_TEACHER,5),0))))*$D8+($K8/T8)+($M8/T8)+($O8/T8)+($P8/T8) -> 0 | T8: =IF(G8-F8>11.99999,12,MONTH(G8)-MONTH(F8)) -> 12 | U8: =NumberOfDaysWorked($F8,$G8,U$3,U$4)*$R8 -> 0 | V8: 0 | W8: 0 | X8: 0 | Y8: 0 | Z8: =NumberOfDaysWorked($F8,$G8,Z$3,Z$4)*$S8 -> 0 | AA8: 0 | AB8: 0 | AC8: 0 | AD8: 0 | AE8: 0 | AF8: 0 | AG8: =SUM(U8:AF8) -> 0 | AH8: =IF($Q8="N",IF(U8>[1]!NIUPPLIMA,((U8-[1]!NIUPPLIMA)*[1]!NIUPPERA)+([1]!NIUPPLIMA-[1]!NILOWLIMA)*[1]!NILOWA,IF(U8>[1]!NILOWLIMA,(U8-[1]!NILOWLIMA)*[1]!NILOWA,0)))+IF($Q8="Y",IF(U8>[1]!NIUPPLIMA,((U8-[1]!NIUPPLIMA)*[1]!NIUPPERA)+(([1]!NIUPPLIMA-[1]!NILOWLIMA)*[1]!NISUPNA),IF(U8>[1]!NILOWLIMA,(U8-[1]!NILOWLIMA)*[1]!NISUPNA,0)))+IF(U8>[1]!NILOWLIMA,-[1]!NICREBATEA,0) -> 0 | AI8: =IF($Q8="N",IF(V8>[1]!NIUPPLIMA,((V8-[1]!NIUPPLIMA)*[1]!NIUPPERA)+([1]!NIUPPLIMA-[1]!NILOWLIMA)*[1]!NILOWA,IF(V8>[1]!NILOWLIMA,(V8-[1]!NILOWLIMA)*[1]!NILOWA,0)))+IF($Q8="Y",IF(V8>[1]!NIUPPLIMA,((V8-[1]!NIUPPLIMA)*[1]!NIUPPERA)+(([1]!NIUPPLIMA-[1]!NILOWLIMA)*[1]!NISUPNA),IF(V8>[1]!NILOWLIMA,(V8-[1]!NILOWLIMA)*[1]!NISUPNA,0)))+IF(V8>[1]!NILOWLIMA,-[1]!NICREBATEA,0) -> 0 | AJ8: =IF($Q8="N",IF(W8>[1]!NIUPPLIMA,((W8-[1]!NIUPPLIMA)*[1]!NIUPPERA)+([1]!NIUPPLIMA-[1]!NILOWLIMA)*[1]!NILOWA,IF(W8>[1]!NILOWLIMA,(W8-[1]!NILOWLIMA)*[1]!NILOWA,0)))+IF($Q8="Y",IF(W8>[1]!NIUPPLIMA,((W8-[1]!NIUPPLIMA)*[1]!NIUPPERA)+(([1]!NIUPPLIMA-[1]!NILOWLIMA)*[1]!NISUPNA),IF(W8>[1]!NILOWLIMA,(W8-[1]!NILOWLIMA)*[1]!NISUPNA,0)))+IF(W8>[1]!NILOWLIMA,-[1]!NICREBATEA,0) -> 0 | AK8: =IF($Q8="N",IF(X8>[1]!NIUPPLIMA,((X8-[1]!NIUPPLIMA)*[1]!NIUPPERA)+([1]!NIUPPLIMA-[1]!NILOWLIMA)*[1]!NILOWA,IF(X8>[1]!NILOWLIMA,(X8-[1]!NILOWLIMA)*[1]!NILOWA,0)))+IF($Q8="Y",IF(X8>[1]!NIUPPLIMA,((X8-[1]!NIUPPLIMA)*[1]!NIUPPERA)+(([1]!NIUPPLIMA-[1]!NILOWLIMA)*[1]!NISUPNA),IF(X8>[1]!NILOWLIMA,(X8-[1]!NILOWLIMA)*[1]!NISUPNA,0)))+IF(X8>[1]!NILOWLIMA,-[1]!NICREBATEA,0) -> 0 | AL8: =IF($Q8="N",IF(Y8>[1]!NIUPPLIMA,((Y8-[1]!NIUPPLIMA)*[1]!NIUPPERA)+([1]!NIUPPLIMA-[1]!NILOWLIMA)*[1]!NILOWA,IF(Y8>[1]!NILOWLIMA,(Y8-[1]!NILOWLIMA)*[1]!NILOWA,0)))+IF($Q8="Y",IF(Y8>[1]!NIUPPLIMA,((Y8-[1]!NIUPPLIMA)*[1]!NIUPPERA)+(([1]!NIUPPLIMA-[1]!NILOWLIMA)*[1]!NISUPNA),IF(Y8>[1]!NILOWLIMA,(Y8-[1]!NILOWLIMA)*[1]!NISUPNA,0)))+IF(Y8>[1]!NILOWLIMA,-[1]!NICREBATEA,0) -> 0 | AM8: =IF($Q8="N",IF(Z8>[1]!NIUPPLIMA,((Z8-[1]!NIUPPLIMA)*[1]!NIUPPERA)+([1]!NIUPPLIMA-[1]!NILOWLIMA)*[1]!NILOWA,IF(Z8>[1]!NILOWLIMA,(Z8-[1]!NILOWLIMA)*[1]!NILOWA,0)))+IF($Q8="Y",IF(Z8>[1]!NIUPPLIMA,((Z8-[1]!NIUPPLIMA)*[1]!NIUPPERA)+(([1]!NIUPPLIMA-[1]!NILOWLIMA)*[1]!NISUPNA),IF(Z8>[1]!NILOWLIMA,(Z8-[1]!NILOWLIMA)*[1]!NISUPNA,0)))+IF(Z8>[1]!NILOWLIMA,-[1]!NICREBATEA,0) -> 0 | AN8: =IF($Q8="N",IF(AA8>[1]!NIUPPLIMA,((AA8-[1]!NIUPPLIMA)*[1]!NIUPPERA)+([1]!NIUPPLIMA-[1]!NILOWLIMA)*[1]!NILOWA,IF(AA8>[1]!NILOWLIMA,(AA8-[1]!NILOWLIMA)*[1]!NILOWA,0)))+IF($Q8="Y",IF(AA8>[1]!NIUPPLIMA,((AA8-[1]!NIUPPLIMA)*[1]!NIUPPERA)+(([1]!NIUPPLIMA-[1]!NILOWLIMA)*[1]!NISUPNA),IF(AA8>[1]!NILOWLIMA,(AA8-[1]!NILOWLIMA)*[1]!NISUPNA,0)))+IF(AA8>[1]!NILOWLIMA,-[1]!NICREBATEA,0) -> 0 | AO8: =IF($Q8="N",IF(AB8>[1]!NIUPPLIMA,((AB8-[1]!NIUPPLIMA)*[1]!NIUPPERA)+([1]!NIUPPLIMA-[1]!NILOWLIMA)*[1]!NILOWA,IF(AB8>[1]!NILOWLIMA,(AB8-[1]!NILOWLIMA)*[1]!NILOWA,0)))+IF($Q8="Y",IF(AB8>[1]!NIUPPLIMA,((AB8-[1]!NIUPPLIMA)*[1]!NIUPPERA)+(([1]!NIUPPLIMA-[1]!NILOWLIMA)*[1]!NISUPNA),IF(AB8>[1]!NILOWLIMA,(AB8-[1]!NILOWLIMA)*[1]!NISUPNA,0)))+IF(AB8>[1]!NILOWLIMA,-[1]!NICREBATEA,0) -> 0 | AP8: =IF($Q8="N",IF(AC8>[1]!NIUPPLIMA,((AC8-[1]!NIUPPLIMA)*[1]!NIUPPERA)+([1]!NIUPPLIMA-[1]!NILOWLIMA)*[1]!NILOWA,IF(AC8>[1]!NILOWLIMA,(AC8-[1]!NILOWLIMA)*[1]!NILOWA,0)))+IF($Q8="Y",IF(AC8>[1]!NIUPPLIMA,((AC8-[1]!NIUPPLIMA)*[1]!NIUPPERA)+(([1]!NIUPPLIMA-[1]!NILOWLIMA)*[1]!NISUPNA),IF(AC8>[1]!NILOWLIMA,(AC8-[1]!NILOWLIMA)*[1]!NISUPNA,0)))+IF(AC8>[1]!NILOWLIMA,-[1]!NICREBATEA,0) -> 0 | AQ8: =IF($Q8="N",IF(AD8>[1]!NIUPPLIMA,((AD8-[1]!NIUPPLIMA)*[1]!NIUPPERA)+([1]!NIUPPLIMA-[1]!NILOWLIMA)*[1]!NILOWA,IF(AD8>[1]!NILOWLIMA,(AD8-[1]!NILOWLIMA)*[1]!NILOWA,0)))+IF($Q8="Y",IF(AD8>[1]!NIUPPLIMA,((AD8-[1]!NIUPPLIMA)*[1]!NIUPPERA)+(([1]!NIUPPLIMA-[1]!NILOWLIMA)*[1]!NISUPNA),IF(AD8>[1]!NILOWLIMA,(AD8-[1]!NILOWLIMA)*[1]!NISUPNA,0)))+IF(AD8>[1]!NILOWLIMA,-[1]!NICREBATEA,0) -> 0 | AR8: =IF($Q8="N",IF(AE8>[1]!NIUPPLIMA,((AE8-[1]!NIUPPLIMA)*[1]!NIUPPERA)+([1]!NIUPPLIMA-[1]!NILOWLIMA)*[1]!NILOWA,IF(AE8>[1]!NILOWLIMA,(AE8-[1]!NILOWLIMA)*[1]!NILOWA,0)))+IF($Q8="Y",IF(AE8>[1]!NIUPPLIMA,((AE8-[1]!NIUPPLIMA)*[1]!NIUPPERA)+(([1]!NIUPPLIMA-[1]!NILOWLIMA)*[1]!NISUPNA),IF(AE8>[1]!NILOWLIMA,(AE8-[1]!NILOWLIMA)*[1]!NISUPNA,0)))+IF(AE8>[1]!NILOWLIMA,-[1]!NICREBATEA,0) -> 0 | AS8: =IF($Q8="N",IF(AF8>[1]!NIUPPLIMA,((AF8-[1]!NIUPPLIMA)*[1]!NIUPPERA)+([1]!NIUPPLIMA-[1]!NILOWLIMA)*[1]!NILOWA,IF(AF8>[1]!NILOWLIMA,(AF8-[1]!NILOWLIMA)*[1]!NILOWA,0)))+IF($Q8="Y",IF(AF8>[1]!NIUPPLIMA,((AF8-[1]!NIUPPLIMA)*[1]!NIUPPERA)+(([1]!NIUPPLIMA-[1]!NILOWLIMA)*[1]!NISUPNA),IF(AF8>[1]!NILOWLIMA,(AF8-[1]!NILOWLIMA)*[1]!NISUPNA,0)))+IF(AF8>[1]!NILOWLIMA,-[1]!NICREBATEA,0) -> 0 | AT8: =SUM(AH8:AS8) -> 0 | AU8: =IF($Q8="N",0,((AG8*$AU$5))) -> 0 | AV8: =AG8+AT8+AU8 -> 0 | AW8: =IF($E8="TEACHER",IF($I8<6,$I8+1,IF(LEFT($I8,1)="U",$I8,6)),IF($E8="LEADER",+I8,IF($E8="UNQUAL",IF($I8<10,$I8+1,10),IF($E8="ADVANCED",IF($I8<27,$I8+1,27))))) -> 5 | AX8: =(K8+M8+O8+P8) -> 0 | AY8: =IF($E8="LEADER",VLOOKUP(AW8,[1]!LEADERSHIP,5),IF($E8="TEACHER",VLOOKUP(AW8,[1]!TEACHER,5),IF($E8="ADVANCED",VLOOKUP($AW8,[1]!ADVANCED_SKILLS_TEACHERS,5),IF($E8="UNQUAL",VLOOKUP($AW8,[1]!UNQUALIFIED_TEACHER,5),0))))*D8*(1+BA$4)*(1+BA$5)+(AX8/AZ8) -> 0 | AZ8: =IF(G8-F8>11.99999,12,MONTH(G8)-MONTH(F8)) -> 12 | BA8: =NumberOfDaysWorked($F8,$G8,BD$1,BF$1)*(($S8*(1+BA$4))*5)+NumberOfDaysWorked($F8,$G8,BD$1,BF$1)*($AY8*7) -> 0 | BD8: =(IF($Q8="N",IF(AY8>[1]!NIUPPLIMB,((AY8-[1]!NIUPPLIMB)*[1]!NIUPPERB)+([1]!NIUPPLIMB-[1]!NILOWLIMB)*[1]!NILOWB,IF(AY8>[1]!NILOWLIMB,(AY8-[1]!NILOWLIMB)*[1]!NILOWB,0)))+IF($Q8="Y",IF(AY8>[1]!NIUPPLIMB,((AY8-[1]!NIUPPLIMB)*[1]!NIUPPERB)+(([1]!NIUPPLIMB-[1]!NILOWLIMB)*[1]!NISUPNB),IF(AY8>[1]!NILOWLIMB,(AY8-[1]!NILOWLIMB)*[1]!NISUPNB,0))))*((NumberOfDaysWorked($F8,$G8,BD$1,BF$1)*5)+(NumberOfDaysWorked($F8,$G8,BD$1,BF$1)*7)) -> 0 | BE8: =IF($Q8="N",0,(BA8*$BE$5)) -> 0 | BF8: =SUM(BA8:BE8) -> 0 | BG8: =IF($E8="TEACHER",IF(AW8<6,AW8+1,IF(LEFT(AW8,1)="U",AW8,6)),IF($E8="LEADER",+I8,IF($E8="UNQUAL",IF(AW8<10,AW8+1,10),IF($E8="ADVANCED",IF(AW8<27,AW8+1,27))))) -> 5 | BH8: =(K8+M8+O8+P8) -> 0 | BI8: =IF($E8="LEADER",VLOOKUP(BG8,[1]!LEADERSHIP,5),IF($E8="TEACHER",VLOOKUP(BG8,[1]!TEACHER,5),IF($E8="ADVANCED",VLOOKUP($AW8,[1]!ADVANCED_SKILLS_TEACHERS,5),IF($E8="UNQUAL",VLOOKUP($AW8,[1]!UNQUALIFIED_TEACHER,5),0))))*D8*(1+BA$4)*(1+BA$5)*(1+BK$4)*(1+BK$5)+(BH8/BJ8) -> 0 | BJ8: =IF(G8-F8>11.99999,12,MONTH(G8)-MONTH(F8)) -> 12 | BK8: =NumberOfDaysWorked($F8,$G8,BN$1,BP$1)*(($AY8*(1+BK$4))*5)+NumberOfDaysWorked($F8,$G8,BN$1,BP$1)*($BI8*7) -> 0 | BN8: =(IF($Q8="N",IF(BI8>[1]!NIUPPLIMC,((BI8-[1]!NIUPPLIMC)*[1]!NIUPPERC)+([1]!NIUPPLIMC-[1]!NILOWLIMC)*[1]!NILOWC,IF(BI8>[1]!NILOWLIMC,(BI8-[1]!NILOWLIMC)*[1]!NILOWC,0)))+IF($Q8="Y",IF(BI8>[1]!NIUPPLIMC,((BI8-[1]!NIUPPLIMC)*[1]!NIUPPERC)+(([1]!NIUPPLIMC-[1]!NILOWLIMC)*[1]!NISUPNC),IF(BI8>[1]!NILOWLIMC,(BI8-[1]!NILOWLIMC)*[1]!NISUPNC,0))))*((NumberOfDaysWorked($F8,$G8,BN$1,BP$1)*5)+(NumberOfDaysWorked($F8,$G8,BN$1,BP$1)*7)) -> 0 | BO8: =IF($Q8="N",0,(BK8*$BO$5)) -> 0 | BP8: =SUM(BK8:BO8) -> 0
A9: x | B9: CASTLE MEL | C9: A01001 | D9: 1 | E9: LEADER | F9: 2026-04-01 | G9: 2029-03-31 | H9: 20 | I9: 20 | Q9: Y | R9: =IF($E9="LEADER",VLOOKUP(H9,[1]PAYDATA!$A$4:$C$54,3),IF($E9="TEACHER",VLOOKUP(H9,[1]PAYDATA!$A$70:$C$80,3),IF($E9="ADVANCED",VLOOKUP(H9,[1]PAYDATA!$A$141:$C$159,3),IF($E9="UNQUAL",VLOOKUP(H9,[1]PAYDATA!$A$57:$C$63,3),0))))*$D9+($K9/T9)+($M9/T9)+($O9/T9)+($P9/T9) -> 6887.833333 | S9: =IF($E9="LEADER",VLOOKUP(I9,[1]!LEADERSHIP,5),IF($E9="TEACHER",VLOOKUP(I9,[1]!TEACHER,5),IF($E9="ADVANCED",VLOOKUP(I9,[1]PAYDATA!$A$141:$E$159,5),IF($E9="UNQUAL",VLOOKUP(I9,[1]!UNQUALIFIED_TEACHER,5),0))))*$D9+($K9/T9)+($M9/T9)+($O9/T9)+($P9/T9) -> 7025.59 | T9: 12 | U9: 6887.833333 | V9: 6887.833333 | W9: 6887.833333 | X9: 6887.833333 | Y9: 6887.833333 | Z9: 7025.59 | AA9: 7025.59 | AB9: 7025.59 | AC9: 7025.59 | AD9: 7025.59 | AE9: 7025.59 | AF9: 7025.59 | AG9: 83618.29667 | AH9: =IF($Q9="N",IF(U9>[1]!NIUPPLIMA,((U9-[1]!NIUPPLIMA)*[1]!NIUPPERA)+([1]!NIUPPLIMA-[1]!NILOWLIMA)*[1]!NILOWA,IF(U9>[1]!NILOWLIMA,(U9-[1]!NILOWLIMA)*[1]!NILOWA,0)))+IF($Q9="Y",IF(U9>[1]!NIUPPLIMA,((U9-[1]!NIUPPLIMA)*[1]!NIUPPERA)+(([1]!NIUPPLIMA-[1]!NILOWLIMA)*[1]!NISUPNA),IF(U9>[1]!NILOWLIMA,(U9-[1]!NILOWLIMA)*[1]!NISUPNA,0)))+IF(U9>[1]!NILOWLIMA,-[1]!NICREBATEA,0) -> 970.625 | AI9: =IF($Q9="N",IF(V9>[1]!NIUPPLIMA,((V9-[1]!NIUPPLIMA)*[1]!NIUPPERA)+([1]!NIUPPLIMA-[1]!NILOWLIMA)*[1]!NILOWA,IF(V9>[1]!NILOWLIMA,(V9-[1]!NILOWLIMA)*[1]!NILOWA,0)))+IF($Q9="Y",IF(V9>[1]!NIUPPLIMA,((V9-[1]!NIUPPLIMA)*[1]!NIUPPERA)+(([1]!NIUPPLIMA-[1]!NILOWLIMA)*[1]!NISUPNA),IF(V9>[1]!NILOWLIMA,(V9-[1]!NILOWLIMA)*[1]!NISUPNA,0)))+IF(V9>[1]!NILOWLIMA,-[1]!NICREBATEA,0) -> 970.625 | AJ9: =IF($Q9="N",IF(W9>[1]!NIUPPLIMA,((W9-[1]!NIUPPLIMA)*[1]!NIUPPERA)+([1]!NIUPPLIMA-[1]!NILOWLIMA)*[1]!NILOWA,IF(W9>[1]!NILOWLIMA,(W9-[1]!NILOWLIMA)*[1]!NILOWA,0)))+IF($Q9="Y",IF(W9>[1]!NIUPPLIMA,((W9-[1]!NIUPPLIMA)*[1]!NIUPPERA)+(([1]!NIUPPLIMA-[1]!NILOWLIMA)*[1]!NISUPNA),IF(W9>[1]!NILOWLIMA,(W9-[1]!NILOWLIMA)*[1]!NISUPNA,0)))+IF(W9>[1]!NILOWLIMA,-[1]!NICREBATEA,0) -> 970.625 | AK9: =IF($Q9="N",IF(X9>[1]!NIUPPLIMA,((X9-[1]!NIUPPLIMA)*[1]!NIUPPERA)+([1]!NIUPPLIMA-[1]!NILOWLIMA)*[1]!NILOWA,IF(X9>[1]!NILOWLIMA,(X9-[1]!NILOWLIMA)*[1]!NILOWA,0)))+IF($Q9="Y",IF(X9>[1]!NIUPPLIMA,((X9-[1]!NIUPPLIMA)*[1]!NIUPPERA)+(([1]!NIUPPLIMA-[1]!NILOWLIMA)*[1]!NISUPNA),IF(X9>[1]!NILOWLIMA,(X9-[1]!NILOWLIMA)*[1]!NISUPNA,0)))+IF(X9>[1]!NILOWLIMA,-[1]!NICREBATEA,0) -> 970.625 | AL9: =IF($Q9="N",IF(Y9>[1]!NIUPPLIMA,((Y9-[1]!NIUPPLIMA)*[1]!NIUPPERA)+([1]!NIUPPLIMA-[1]!NILOWLIMA)*[1]!NILOWA,IF(Y9>[1]!NILOWLIMA,(Y9-[1]!NILOWLIMA)*[1]!NILOWA,0)))+IF($Q9="Y",IF(Y9>[1]!NIUPPLIMA,((Y9-[1]!NIUPPLIMA)*[1]!NIUPPERA)+(([1]!NIUPPLIMA-[1]!NILOWLIMA)*[1]!NISUPNA),IF(Y9>[1]!NILOWLIMA,(Y9-[1]!NILOWLIMA)*[1]!NISUPNA,0)))+IF(Y9>[1]!NILOWLIMA,-[1]!NICREBATEA,0) -> 970.625 | AM9: =IF($Q9="N",IF(Z9>[1]!NIUPPLIMA,((Z9-[1]!NIUPPLIMA)*[1]!NIUPPERA)+([1]!NIUPPLIMA-[1]!NILOWLIMA)*[1]!NILOWA,IF(Z9>[1]!NILOWLIMA,(Z9-[1]!NILOWLIMA)*[1]!NILOWA,0)))+IF($Q9="Y",IF(Z9>[1]!NIUPPLIMA,((Z9-[1]!NIUPPLIMA)*[1]!NIUPPERA)+(([1]!NIUPPLIMA-[1]!NILOWLIMA)*[1]!NISUPNA),IF(Z9>[1]!NILOWLIMA,(Z9-[1]!NILOWLIMA)*[1]!NISUPNA,0)))+IF(Z9>[1]!NILOWLIMA,-[1]!NICREBATEA,0) -> 991.2885 | AN9: =IF($Q9="N",IF(AA9>[1]!NIUPPLIMA,((AA9-[1]!NIUPPLIMA)*[1]!NIUPPERA)+([1]!NIUPPLIMA-[1]!NILOWLIMA)*[1]!NILOWA,IF(AA9>[1]!NILOWLIMA,(AA9-[1]!NILOWLIMA)*[1]!NILOWA,0)))+IF($Q9="Y",IF(AA9>[1]!NIUPPLIMA,((AA9-[1]!NIUPPLIMA)*[1]!NIUPPERA)+(([1]!NIUPPLIMA-[1]!NILOWLIMA)*[1]!NISUPNA),IF(AA9>[1]!NILOWLIMA,(AA9-[1]!NILOWLIMA)*[1]!NISUPNA,0)))+IF(AA9>[1]!NILOWLIMA,-[1]!NICREBATEA,0) -> 991.2885 | AO9: =IF($Q9="N",IF(AB9>[1]!NIUPPLIMA,((AB9-[1]!NIUPPLIMA)*[1]!NIUPPERA)+([1]!NIUPPLIMA-[1]!NILOWLIMA)*[1]!NILOWA,IF(AB9>[1]!NILOWLIMA,(AB9-[1]!NILOWLIMA)*[1]!NILOWA,0)))+IF($Q9="Y",IF(AB9>[1]!NIUPPLIMA,((AB9-[1]!NIUPPLIMA)*[1]!NIUPPERA)+(([1]!NIUPPLIMA-[1]!NILOWLIMA)*[1]!NISUPNA),IF(AB9>[1]!NILOWLIMA,(AB9-[1]!NILOWLIMA)*[1]!NISUPNA,0)))+IF(AB9>[1]!NILOWLIMA,-[1]!NICREBATEA,0) -> 991.2885 | AP9: =IF($Q9="N",IF(AC9>[1]!NIUPPLIMA,((AC9-[1]!NIUPPLIMA)*[1]!NIUPPERA)+([1]!NIUPPLIMA-[1]!NILOWLIMA)*[1]!NILOWA,IF(AC9>[1]!NILOWLIMA,(AC9-[1]!NILOWLIMA)*[1]!NILOWA,0)))+IF($Q9="Y",IF(AC9>[1]!NIUPPLIMA,((AC9-[1]!NIUPPLIMA)*[1]!NIUPPERA)+(([1]!NIUPPLIMA-[1]!NILOWLIMA)*[1]!NISUPNA),IF(AC9>[1]!NILOWLIMA,(AC9-[1]!NILOWLIMA)*[1]!NISUPNA,0)))+IF(AC9>[1]!NILOWLIMA,-[1]!NICREBATEA,0) -> 991.2885 | AQ9: =IF($Q9="N",IF(AD9>[1]!NIUPPLIMA,((AD9-[1]!NIUPPLIMA)*[1]!NIUPPERA)+([1]!NIUPPLIMA-[1]!NILOWLIMA)*[1]!NILOWA,IF(AD9>[1]!NILOWLIMA,(AD9-[1]!NILOWLIMA)*[1]!NILOWA,0)))+IF($Q9="Y",IF(AD9>[1]!NIUPPLIMA,((AD9-[1]!NIUPPLIMA)*[1]!NIUPPERA)+(([1]!NIUPPLIMA-[1]!NILOWLIMA)*[1]!NISUPNA),IF(AD9>[1]!NILOWLIMA,(AD9-[1]!NILOWLIMA)*[1]!NISUPNA,0)))+IF(AD9>[1]!NILOWLIMA,-[1]!NICREBATEA,0) -> 991.2885 | AR9: =IF($Q9="N",IF(AE9>[1]!NIUPPLIMA,((AE9-[1]!NIUPPLIMA)*[1]!NIUPPERA)+([1]!NIUPPLIMA-[1]!NILOWLIMA)*[1]!NILOWA,IF(AE9>[1]!NILOWLIMA,(AE9-[1]!NILOWLIMA)*[1]!NILOWA,0)))+IF($Q9="Y",IF(AE9>[1]!NIUPPLIMA,((AE9-[1]!NIUPPLIMA)*[1]!NIUPPERA)+(([1]!NIUPPLIMA-[1]!NILOWLIMA)*[1]!NISUPNA),IF(AE9>[1]!NILOWLIMA,(AE9-[1]!NILOWLIMA)*[1]!NISUPNA,0)))+IF(AE9>[1]!NILOWLIMA,-[1]!NICREBATEA,0) -> 991.2885 | AS9: =IF($Q9="N",IF(AF9>[1]!NIUPPLIMA,((AF9-[1]!NIUPPLIMA)*[1]!NIUPPERA)+([1]!NIUPPLIMA-[1]!NILOWLIMA)*[1]!NILOWA,IF(AF9>[1]!NILOWLIMA,(AF9-[1]!NILOWLIMA)*[1]!NILOWA,0)))+IF($Q9="Y",IF(AF9>[1]!NIUPPLIMA,((AF9-[1]!NIUPPLIMA)*[1]!NIUPPERA)+(([1]!NIUPPLIMA-[1]!NILOWLIMA)*[1]!NISUPNA),IF(AF9>[1]!NILOWLIMA,(AF9-[1]!NILOWLIMA)*[1]!NISUPNA,0)))+IF(AF9>[1]!NILOWLIMA,-[1]!NICREBATEA,0) -> 991.2885 | AT9: 11792.1445 | AU9: 23981.72748 | AV9: 119392.1687 | AW9: 20 | AX9: 0 | AY9: =IF($E9="LEADER",VLOOKUP(AW9,[1]!LEADERSHIP,5),IF($E9="TEACHER",VLOOKUP(AW9,[1]!TEACHER,5),IF($E9="ADVANCED",VLOOKUP($AW9,[1]!ADVANCED_SKILLS_TEACHERS,5),IF($E9="UNQUAL",VLOOKUP($AW9,[1]!UNQUALIFIED_TEACHER,5),0))))*D9*(1+BA$4)*(1+BA$5)+(AX9/AZ9) -> 7166.1018 | AZ9: 12 | BA9: 85290.6626 | BD9: =(IF($Q9="N",IF(AY9>[1]!NIUPPLIMB,((AY9-[1]!NIUPPLIMB)*[1]!NIUPPERB)+([1]!NIUPPLIMB-[1]!NILOWLIMB)*[1]!NILOWB,IF(AY9>[1]!NILOWLIMB,(AY9-[1]!NILOWLIMB)*[1]!NILOWB,0)))+IF($Q9="Y",IF(AY9>[1]!NIUPPLIMB,((AY9-[1]!NIUPPLIMB)*[1]!NIUPPERB)+(([1]!NIUPPLIMB-[1]!NILOWLIMB)*[1]!NISUPNB),IF(AY9>[1]!NILOWLIMB,(AY9-[1]!NILOWLIMB)*[1]!NISUPNB,0))))*((NumberOfDaysWorked($F9,$G9,BD$1,BF$1)*5)+(NumberOfDaysWorked($F9,$G9,BD$1,BF$1)*7)) -> 12148.38324 | BE9: 24461.36203 | BF9: 121900.4079 | BG9: 20 | BH9: 0 | BI9: =IF($E9="LEADER",VLOOKUP(BG9,[1]!LEADERSHIP,5),IF($E9="TEACHER",VLOOKUP(BG9,[1]!TEACHER,5),IF($E9="ADVANCED",VLOOKUP($AW9,[1]!ADVANCED_SKILLS_TEACHERS,5),IF($E9="UNQUAL",VLOOKUP($AW9,[1]!UNQUALIFIED_TEACHER,5),0))))*D9*(1+BA$4)*(1+BA$5)*(1+BK$4)*(1+BK$5)+(BH9/BJ9) -> 7309.423836 | BJ9: 12 | BK9: 86996.47585 | BN9: =(IF($Q9="N",IF(BI9>[1]!NIUPPLIMC,((BI9-[1]!NIUPPLIMC)*[1]!NIUPPERC)+([1]!NIUPPLIMC-[1]!NILOWLIMC)*[1]!NILOWC,IF(BI9>[1]!NILOWLIMC,(BI9-[1]!NILOWLIMC)*[1]!NILOWC,0)))+IF($Q9="Y",IF(BI9>[1]!NIUPPLIMC,((BI9-[1]!NIUPPLIMC)*[1]!NIUPPERC)+(([1]!NIUPPLIMC-[1]!NILOWLIMC)*[1]!NISUPNC),IF(BI9>[1]!NILOWLIMC,(BI9-[1]!NILOWLIMC)*[1]!NISUPNC,0))))*((NumberOfDaysWorked($F9,$G9,BN$1,BP$1)*5)+(NumberOfDaysWorked($F9,$G9,BN$1,BP$1)*7)) -> 12406.3629 | BO9: 24950.58927 | BP9: 124353.428
A10: x | C10: A01001 | D10: 0 | E10: LEADER | F10: 2026-04-01 | G10: 2029-03-31 | H10: 18 | I10: 18 | Q10: Y | R10: =IF($E10="LEADER",VLOOKUP(H10,[1]PAYDATA!$A$4:$C$54,3),IF($E10="TEACHER",VLOOKUP(H10,[1]PAYDATA!$A$70:$C$80,3),IF($E10="ADVANCED",VLOOKUP(H10,[1]PAYDATA!$A$141:$C$159,3),IF($E10="UNQUAL",VLOOKUP(H10,[1]PAYDATA!$A$57:$C$63,3),0))))*$D10+($K10/T10)+($M10/T10)+($O10/T10)+($P10/T10) -> 0 | S10: =IF($E10="LEADER",VLOOKUP(I10,[1]!LEADERSHIP,5),IF($E10="TEACHER",VLOOKUP(I10,[1]!TEACHER,5),IF($E10="ADVANCED",VLOOKUP(I10,[1]PAYDATA!$A$141:$E$159,5),IF($E10="UNQUAL",VLOOKUP(I10,[1]!UNQUALIFIED_TEACHER,5),0))))*$D10+($K10/T10)+($M10/T10)+($O10/T10)+($P10/T10) -> 0 | T10: =IF(G10-F10>11.99999,12,MONTH(G10)-MONTH(F10)) -> 12 | U10: 0 | V10: 0 | W10: 0 | X10: 0 | Y10: 0 | Z10: 0 | AA10: 0 | AB10: 0 | AC10: 0 | AD10: 0 | AE10: 0 | AF10: 0 | AG10: 0 | AH10: =IF($Q10="N",IF(U10>[1]!NIUPPLIMA,((U10-[1]!NIUPPLIMA)*[1]!NIUPPERA)+([1]!NIUPPLIMA-[1]!NILOWLIMA)*[1]!NILOWA,IF(U10>[1]!NILOWLIMA,(U10-[1]!NILOWLIMA)*[1]!NILOWA,0)))+IF($Q10="Y",IF(U10>[1]!NIUPPLIMA,((U10-[1]!NIUPPLIMA)*[1]!NIUPPERA)+(([1]!NIUPPLIMA-[1]!NILOWLIMA)*[1]!NISUPNA),IF(U10>[1]!NILOWLIMA,(U10-[1]!NILOWLIMA)*[1]!NISUPNA,0)))+IF(U10>[1]!NILOWLIMA,-[1]!NICREBATEA,0) -> 0 | AI10: =IF($Q10="N",IF(V10>[1]!NIUPPLIMA,((V10-[1]!NIUPPLIMA)*[1]!NIUPPERA)+([1]!NIUPPLIMA-[1]!NILOWLIMA)*[1]!NILOWA,IF(V10>[1]!NILOWLIMA,(V10-[1]!NILOWLIMA)*[1]!NILOWA,0)))+IF($Q10="Y",IF(V10>[1]!NIUPPLIMA,((V10-[1]!NIUPPLIMA)*[1]!NIUPPERA)+(([1]!NIUPPLIMA-[1]!NILOWLIMA)*[1]!NISUPNA),IF(V10>[1]!NILOWLIMA,(V10-[1]!NILOWLIMA)*[1]!NISUPNA,0)))+IF(V10>[1]!NILOWLIMA,-[1]!NICREBATEA,0) -> 0 | AJ10: =IF($Q10="N",IF(W10>[1]!NIUPPLIMA,((W10-[1]!NIUPPLIMA)*[1]!NIUPPERA)+([1]!NIUPPLIMA-[1]!NILOWLIMA)*[1]!NILOWA,IF(W10>[1]!NILOWLIMA,(W10-[1]!NILOWLIMA)*[1]!NILOWA,0)))+IF($Q10="Y",IF(W10>[1]!NIUPPLIMA,((W10-[1]!NIUPPLIMA)*[1]!NIUPPERA)+(([1]!NIUPPLIMA-[1]!NILOWLIMA)*[1]!NISUPNA),IF(W10>[1]!NILOWLIMA,(W10-[1]!NILOWLIMA)*[1]!NISUPNA,0)))+IF(W10>[1]!NILOWLIMA,-[1]!NICREBATEA,0) -> 0 | AK10: =IF($Q10="N",IF(X10>[1]!NIUPPLIMA,((X10-[1]!NIUPPLIMA)*[1]!NIUPPERA)+([1]!NIUPPLIMA-[1]!NILOWLIMA)*[1]!NILOWA,IF(X10>[1]!NILOWLIMA,(X10-[1]!NILOWLIMA)*[1]!NILOWA,0)))+IF($Q10="Y",IF(X10>[1]!NIUPPLIMA,((X10-[1]!NIUPPLIMA)*[1]!NIUPPERA)+(([1]!NIUPPLIMA-[1]!NILOWLIMA)*[1]!NISUPNA),IF(X10>[1]!NILOWLIMA,(X10-[1]!NILOWLIMA)*[1]!NISUPNA,0)))+IF(X10>[1]!NILOWLIMA,-[1]!NICREBATEA,0) -> 0 | AL10: =IF($Q10="N",IF(Y10>[1]!NIUPPLIMA,((Y10-[1]!NIUPPLIMA)*[1]!NIUPPERA)+([1]!NIUPPLIMA-[1]!NILOWLIMA)*[1]!NILOWA,IF(Y10>[1]!NILOWLIMA,(Y10-[1]!NILOWLIMA)*[1]!NILOWA,0)))+IF($Q10="Y",IF(Y10>[1]!NIUPPLIMA,((Y10-[1]!NIUPPLIMA)*[1]!NIUPPERA)+(([1]!NIUPPLIMA-[1]!NILOWLIMA)*[1]!NISUPNA),IF(Y10>[1]!NILOWLIMA,(Y10-[1]!NILOWLIMA)*[1]!NISUPNA,0)))+IF(Y10>[1]!NILOWLIMA,-[1]!NICREBATEA,0) -> 0 | AM10: =IF($Q10="N",IF(Z10>[1]!NIUPPLIMA,((Z10-[1]!NIUPPLIMA)*[1]!NIUPPERA)+([1]!NIUPPLIMA-[1]!NILOWLIMA)*[1]!NILOWA,IF(Z10>[1]!NILOWLIMA,(Z10-[1]!NILOWLIMA)*[1]!NILOWA,0)))+IF($Q10="Y",IF(Z10>[1]!NIUPPLIMA,((Z10-[1]!NIUPPLIMA)*[1]!NIUPPERA)+(([1]!NIUPPLIMA-[1]!NILOWLIMA)*[1]!NISUPNA),IF(Z10>[1]!NILOWLIMA,(Z10-[1]!NILOWLIMA)*[1]!NISUPNA,0)))+IF(Z10>[1]!NILOWLIMA,-[1]!NICREBATEA,0) -> 0 | AN10: =IF($Q10="N",IF(AA10>[1]!NIUPPLIMA,((AA10-[1]!NIUPPLIMA)*[1]!NIUPPERA)+([1]!NIUPPLIMA-[1]!NILOWLIMA)*[1]!NILOWA,IF(AA10>[1]!NILOWLIMA,(AA10-[1]!NILOWLIMA)*[1]!NILOWA,0)))+IF($Q10="Y",IF(AA10>[1]!NIUPPLIMA,((AA10-[1]!NIUPPLIMA)*[1]!NIUPPERA)+(([1]!NIUPPLIMA-[1]!NILOWLIMA)*[1]!NISUPNA),IF(AA10>[1]!NILOWLIMA,(AA10-[1]!NILOWLIMA)*[1]!NISUPNA,0)))+IF(AA10>[1]!NILOWLIMA,-[1]!NICREBATEA,0) -> 0 | AO10: =IF($Q10="N",IF(AB10>[1]!NIUPPLIMA,((AB10-[1]!NIUPPLIMA)*[1]!NIUPPERA)+([1]!NIUPPLIMA-[1]!NILOWLIMA)*[1]!NILOWA,IF(AB10>[1]!NILOWLIMA,(AB10-[1]!NILOWLIMA)*[1]!NILOWA,0)))+IF($Q10="Y",IF(AB10>[1]!NIUPPLIMA,((AB10-[1]!NIUPPLIMA)*[1]!NIUPPERA)+(([1]!NIUPPLIMA-[1]!NILOWLIMA)*[1]!NISUPNA),IF(AB10>[1]!NILOWLIMA,(AB10-[1]!NILOWLIMA)*[1]!NISUPNA,0)))+IF(AB10>[1]!NILOWLIMA,-[1]!NICREBATEA,0) -> 0 | AP10: =IF($Q10="N",IF(AC10>[1]!NIUPPLIMA,((AC10-[1]!NIUPPLIMA)*[1]!NIUPPERA)+([1]!NIUPPLIMA-[1]!NILOWLIMA)*[1]!NILOWA,IF(AC10>[1]!NILOWLIMA,(AC10-[1]!NILOWLIMA)*[1]!NILOWA,0)))+IF($Q10="Y",IF(AC10>[1]!NIUPPLIMA,((AC10-[1]!NIUPPLIMA)*[1]!NIUPPERA)+(([1]!NIUPPLIMA-[1]!NILOWLIMA)*[1]!NISUPNA),IF(AC10>[1]!NILOWLIMA,(AC10-[1]!NILOWLIMA)*[1]!NISUPNA,0)))+IF(AC10>[1]!NILOWLIMA,-[1]!NICREBATEA,0) -> 0 | AQ10: =IF($Q10="N",IF(AD10>[1]!NIUPPLIMA,((AD10-[1]!NIUPPLIMA)*[1]!NIUPPERA)+([1]!NIUPPLIMA-[1]!NILOWLIMA)*[1]!NILOWA,IF(AD10>[1]!NILOWLIMA,(AD10-[1]!NILOWLIMA)*[1]!NILOWA,0)))+IF($Q10="Y",IF(AD10>[1]!NIUPPLIMA,((AD10-[1]!NIUPPLIMA)*[1]!NIUPPERA)+(([1]!NIUPPLIMA-[1]!NILOWLIMA)*[1]!NISUPNA),IF(AD10>[1]!NILOWLIMA,(AD10-[1]!NILOWLIMA)*[1]!NISUPNA,0)))+IF(AD10>[1]!NILOWLIMA,-[1]!NICREBATEA,0) -> 0 | AR10: =IF($Q10="N",IF(AE10>[1]!NIUPPLIMA,((AE10-[1]!NIUPPLIMA)*[1]!NIUPPERA)+([1]!NIUPPLIMA-[1]!NILOWLIMA)*[1]!NILOWA,IF(AE10>[1]!NILOWLIMA,(AE10-[1]!NILOWLIMA)*[1]!NILOWA,0)))+IF($Q10="Y",IF(AE10>[1]!NIUPPLIMA,((AE10-[1]!NIUPPLIMA)*[1]!NIUPPERA)+(([1]!NIUPPLIMA-[1]!NILOWLIMA)*[1]!NISUPNA),IF(AE10>[1]!NILOWLIMA,(AE10-[1]!NILOWLIMA)*[1]!NISUPNA,0)))+IF(AE10>[1]!NILOWLIMA,-[1]!NICREBATEA,0) -> 0 | AS10: =IF($Q10="N",IF(AF10>[1]!NIUPPLIMA,((AF10-[1]!NIUPPLIMA)*[1]!NIUPPERA)+([1]!NIUPPLIMA-[1]!NILOWLIMA)*[1]!NILOWA,IF(AF10>[1]!NILOWLIMA,(AF10-[1]!NILOWLIMA)*[1]!NILOWA,0)))+IF($Q10="Y",IF(AF10>[1]!NIUPPLIMA,((AF10-[1]!NIUPPLIMA)*[1]!NIUPPERA)+(([1]!NIUPPLIMA-[1]!NILOWLIMA)*[1]!NISUPNA),IF(AF10>[1]!NILOWLIMA,(AF10-[1]!NILOWLIMA)*[1]!NISUPNA,0)))+IF(AF10>[1]!NILOWLIMA,-[1]!NICREBATEA,0) -> 0 | AT10: 0 | AU10: 0 | AV10: 0 | AW10: =IF($E10="TEACHER",IF($I10<6,$I10+1,IF(LEFT($I10,1)="U",$I10,6)),IF($E10="LEADER",+I10,IF($E10="UNQUAL",IF($I10<10,$I10+1,10),IF($E10="ADVANCED",IF($I10<27,$I10+1,27))))) -> 18 | AX10: =(K10+M10+O10+P10) -> 0 | AY10: =IF($E10="LEADER",VLOOKUP(AW10,[1]!LEADERSHIP,5),IF($E10="TEACHER",VLOOKUP(AW10,[1]!TEACHER,5),IF($E10="ADVANCED",VLOOKUP($AW10,[1]!ADVANCED_SKILLS_TEACHERS,5),IF($E10="UNQUAL",VLOOKUP($AW10,[1]!UNQUALIFIED_TEACHER,5),0))))*D10*(1+BA$4)*(1+BA$5)+(AX10/AZ10) -> 0 | AZ10: =IF(G10-F10>11.99999,12,MONTH(G10)-MONTH(F10)) -> 12 | BA10: =NumberOfDaysWorked($F10,$G10,BD$1,BF$1)*(($S10*(1+BA$4))*5)+NumberOfDaysWorked($F10,$G10,BD$1,BF$1)*($AY10*7) -> 0 | BD10: =(IF($Q10="N",IF(AY10>[1]!NIUPPLIMB,((AY10-[1]!NIUPPLIMB)*[1]!NIUPPERB)+([1]!NIUPPLIMB-[1]!NILOWLIMB)*[1]!NILOWB,IF(AY10>[1]!NILOWLIMB,(AY10-[1]!NILOWLIMB)*[1]!NILOWB,0)))+IF($Q10="Y",IF(AY10>[1]!NIUPPLIMB,((AY10-[1]!NIUPPLIMB)*[1]!NIUPPERB)+(([1]!NIUPPLIMB-[1]!NILOWLIMB)*[1]!NISUPNB),IF(AY10>[1]!NILOWLIMB,(AY10-[1]!NILOWLIMB)*[1]!NISUPNB,0))))*((NumberOfDaysWorked($F10,$G10,BD$1,BF$1)*5)+(NumberOfDaysWorked($F10,$G10,BD$1,BF$1)*7)) -> 0 | BE10: =IF($Q10="N",0,(BA10*$BE$5)) -> 0 | BF10: =SUM(BA10:BE10) -> 0 | BG10: =IF($E10="TEACHER",IF(AW10<6,AW10+1,IF(LEFT(AW10,1)="U",AW10,6)),IF($E10="LEADER",+I10,IF($E10="UNQUAL",IF(AW10<10,AW10+1,10),IF($E10="ADVANCED",IF(AW10<27,AW10+1,27))))) -> 18 | BH10: =(K10+M10+O10+P10) -> 0 | BI10: =IF($E10="LEADER",VLOOKUP(BG10,[1]!LEADERSHIP,5),IF($E10="TEACHER",VLOOKUP(BG10,[1]!TEACHER,5),IF($E10="ADVANCED",VLOOKUP($AW10,[1]!ADVANCED_SKILLS_TEACHERS,5),IF($E10="UNQUAL",VLOOKUP($AW10,[1]!UNQUALIFIED_TEACHER,5),0))))*D10*(1+BA$4)*(1+BA$5)*(1+BK$4)*(1+BK$5)+(BH10/BJ10) -> 0 | BJ10: =IF(G10-F10>11.99999,12,MONTH(G10)-MONTH(F10)) -> 12 | BK10: =NumberOfDaysWorked($F10,$G10,BN$1,BP$1)*(($AY10*(1+BK$4))*5)+NumberOfDaysWorked($F10,$G10,BN$1,BP$1)*($BI10*7) -> 0 | BN10: =(IF($Q10="N",IF(BI10>[1]!NIUPPLIMC,((BI10-[1]!NIUPPLIMC)*[1]!NIUPPERC)+([1]!NIUPPLIMC-[1]!NILOWLIMC)*[1]!NILOWC,IF(BI10>[1]!NILOWLIMC,(BI10-[1]!NILOWLIMC)*[1]!NILOWC,0)))+IF($Q10="Y",IF(BI10>[1]!NIUPPLIMC,((BI10-[1]!NIUPPLIMC)*[1]!NIUPPERC)+(([1]!NIUPPLIMC-[1]!NILOWLIMC)*[1]!NISUPNC),IF(BI10>[1]!NILOWLIMC,(BI10-[1]!NILOWLIMC)*[1]!NISUPNC,0))))*((NumberOfDaysWorked($F10,$G10,BN$1,BP$1)*5)+(NumberOfDaysWorked($F10,$G10,BN$1,BP$1)*7)) -> 0 | BO10: =IF($Q10="N",0,(BK10*$BO$5)) -> 0 | BP10: =SUM(BK10:BO10) -> 0
A11: x | C11: A01001 | D11: 0 | E11: LEADER | F11: 2026-04-01 | G11: 2029-03-31 | H11: 18 | I11: 18 | Q11: Y | R11: =IF($E11="LEADER",VLOOKUP(H11,[1]PAYDATA!$A$4:$C$54,3),IF($E11="TEACHER",VLOOKUP(H11,[1]PAYDATA!$A$70:$C$80,3),IF($E11="ADVANCED",VLOOKUP(H11,[1]PAYDATA!$A$141:$C$159,3),IF($E11="UNQUAL",VLOOKUP(H11,[1]PAYDATA!$A$57:$C$63,3),0))))*$D11+($K11/T11)+($M11/T11)+($O11/T11)+($P11/T11) -> 0 | S11: =IF($E11="LEADER",VLOOKUP(I11,[1]!LEADERSHIP,5),IF($E11="TEACHER",VLOOKUP(I11,[1]!TEACHER,5),IF($E11="ADVANCED",VLOOKUP(I11,[1]PAYDATA!$A$141:$E$159,5),IF($E11="UNQUAL",VLOOKUP(I11,[1]!UNQUALIFIED_TEACHER,5),0))))*$D11+($K11/T11)+($M11/T11)+($O11/T11)+($P11/T11) -> 0 | T11: =IF(G11-F11>11.99999,12,MONTH(G11)-MONTH(F11)) -> 12 | U11: 0 | V11: 0 | W11: 0 | X11: 0 | Y11: 0 | Z11: 0 | AA11: 0 | AB11: 0 | AC11: 0 | AD11: 0 | AE11: 0 | AF11: 0 | AG11: 0 | AH11: =IF($Q11="N",IF(U11>[1]!NIUPPLIMA,((U11-[1]!NIUPPLIMA)*[1]!NIUPPERA)+([1]!NIUPPLIMA-[1]!NILOWLIMA)*[1]!NILOWA,IF(U11>[1]!NILOWLIMA,(U11-[1]!NILOWLIMA)*[1]!NILOWA,0)))+IF($Q11="Y",IF(U11>[1]!NIUPPLIMA,((U11-[1]!NIUPPLIMA)*[1]!NIUPPERA)+(([1]!NIUPPLIMA-[1]!NILOWLIMA)*[1]!NISUPNA),IF(U11>[1]!NILOWLIMA,(U11-[1]!NILOWLIMA)*[1]!NISUPNA,0)))+IF(U11>[1]!NILOWLIMA,-[1]!NICREBATEA,0) -> 0 | AI11: =IF($Q11="N",IF(V11>[1]!NIUPPLIMA,((V11-[1]!NIUPPLIMA)*[1]!NIUPPERA)+([1]!NIUPPLIMA-[1]!NILOWLIMA)*[1]!NILOWA,IF(V11>[1]!NILOWLIMA,(V11-[1]!NILOWLIMA)*[1]!NILOWA,0)))+IF($Q11="Y",IF(V11>[1]!NIUPPLIMA,((V11-[1]!NIUPPLIMA)*[1]!NIUPPERA)+(([1]!NIUPPLIMA-[1]!NILOWLIMA)*[1]!NISUPNA),IF(V11>[1]!NILOWLIMA,(V11-[1]!NILOWLIMA)*[1]!NISUPNA,0)))+IF(V11>[1]!NILOWLIMA,-[1]!NICREBATEA,0) -> 0 | AJ11: =IF($Q11="N",IF(W11>[1]!NIUPPLIMA,((W11-[1]!NIUPPLIMA)*[1]!NIUPPERA)+([1]!NIUPPLIMA-[1]!NILOWLIMA)*[1]!NILOWA,IF(W11>[1]!NILOWLIMA,(W11-[1]!NILOWLIMA)*[1]!NILOWA,0)))+IF($Q11="Y",IF(W11>[1]!NIUPPLIMA,((W11-[1]!NIUPPLIMA)*[1]!NIUPPERA)+(([1]!NIUPPLIMA-[1]!NILOWLIMA)*[1]!NISUPNA),IF(W11>[1]!NILOWLIMA,(W11-[1]!NILOWLIMA)*[1]!NISUPNA,0)))+IF(W11>[1]!NILOWLIMA,-[1]!NICREBATEA,0) -> 0 | AK11: =IF($Q11="N",IF(X11>[1]!NIUPPLIMA,((X11-[1]!NIUPPLIMA)*[1]!NIUPPERA)+([1]!NIUPPLIMA-[1]!NILOWLIMA)*[1]!NILOWA,IF(X11>[1]!NILOWLIMA,(X11-[1]!NILOWLIMA)*[1]!NILOWA,0)))+IF($Q11="Y",IF(X11>[1]!NIUPPLIMA,((X11-[1]!NIUPPLIMA)*[1]!NIUPPERA)+(([1]!NIUPPLIMA-[1]!NILOWLIMA)*[1]!NISUPNA),IF(X11>[1]!NILOWLIMA,(X11-[1]!NILOWLIMA)*[1]!NISUPNA,0)))+IF(X11>[1]!NILOWLIMA,-[1]!NICREBATEA,0) -> 0 | AL11: =IF($Q11="N",IF(Y11>[1]!NIUPPLIMA,((Y11-[1]!NIUPPLIMA)*[1]!NIUPPERA)+([1]!NIUPPLIMA-[1]!NILOWLIMA)*[1]!NILOWA,IF(Y11>[1]!NILOWLIMA,(Y11-[1]!NILOWLIMA)*[1]!NILOWA,0)))+IF($Q11="Y",IF(Y11>[1]!NIUPPLIMA,((Y11-[1]!NIUPPLIMA)*[1]!NIUPPERA)+(([1]!NIUPPLIMA-[1]!NILOWLIMA)*[1]!NISUPNA),IF(Y11>[1]!NILOWLIMA,(Y11-[1]!NILOWLIMA)*[1]!NISUPNA,0)))+IF(Y11>[1]!NILOWLIMA,-[1]!NICREBATEA,0) -> 0 | AM11: =IF($Q11="N",IF(Z11>[1]!NIUPPLIMA,((Z11-[1]!NIUPPLIMA)*[1]!NIUPPERA)+([1]!NIUPPLIMA-[1]!NILOWLIMA)*[1]!NILOWA,IF(Z11>[1]!NILOWLIMA,(Z11-[1]!NILOWLIMA)*[1]!NILOWA,0)))+IF($Q11="Y",IF(Z11>[1]!NIUPPLIMA,((Z11-[1]!NIUPPLIMA)*[1]!NIUPPERA)+(([1]!NIUPPLIMA-[1]!NILOWLIMA)*[1]!NISUPNA),IF(Z11>[1]!NILOWLIMA,(Z11-[1]!NILOWLIMA)*[1]!NISUPNA,0)))+IF(Z11>[1]!NILOWLIMA,-[1]!NICREBATEA,0) -> 0 | AN11: =IF($Q11="N",IF(AA11>[1]!NIUPPLIMA,((AA11-[1]!NIUPPLIMA)*[1]!NIUPPERA)+([1]!NIUPPLIMA-[1]!NILOWLIMA)*[1]!NILOWA,IF(AA11>[1]!NILOWLIMA,(AA11-[1]!NILOWLIMA)*[1]!NILOWA,0)))+IF($Q11="Y",IF(AA11>[1]!NIUPPLIMA,((AA11-[1]!NIUPPLIMA)*[1]!NIUPPERA)+(([1]!NIUPPLIMA-[1]!NILOWLIMA)*[1]!NISUPNA),IF(AA11>[1]!NILOWLIMA,(AA11-[1]!NILOWLIMA)*[1]!NISUPNA,0)))+IF(AA11>[1]!NILOWLIMA,-[1]!NICREBATEA,0) -> 0 | AO11: =IF($Q11="N",IF(AB11>[1]!NIUPPLIMA,((AB11-[1]!NIUPPLIMA)*[1]!NIUPPERA)+([1]!NIUPPLIMA-[1]!NILOWLIMA)*[1]!NILOWA,IF(AB11>[1]!NILOWLIMA,(AB11-[1]!NILOWLIMA)*[1]!NILOWA,0)))+IF($Q11="Y",IF(AB11>[1]!NIUPPLIMA,((AB11-[1]!NIUPPLIMA)*[1]!NIUPPERA)+(([1]!NIUPPLIMA-[1]!NILOWLIMA)*[1]!NISUPNA),IF(AB11>[1]!NILOWLIMA,(AB11-[1]!NILOWLIMA)*[1]!NISUPNA,0)))+IF(AB11>[1]!NILOWLIMA,-[1]!NICREBATEA,0) -> 0 | AP11: =IF($Q11="N",IF(AC11>[1]!NIUPPLIMA,((AC11-[1]!NIUPPLIMA)*[1]!NIUPPERA)+([1]!NIUPPLIMA-[1]!NILOWLIMA)*[1]!NILOWA,IF(AC11>[1]!NILOWLIMA,(AC11-[1]!NILOWLIMA)*[1]!NILOWA,0)))+IF($Q11="Y",IF(AC11>[1]!NIUPPLIMA,((AC11-[1]!NIUPPLIMA)*[1]!NIUPPERA)+(([1]!NIUPPLIMA-[1]!NILOWLIMA)*[1]!NISUPNA),IF(AC11>[1]!NILOWLIMA,(AC11-[1]!NILOWLIMA)*[1]!NISUPNA,0)))+IF(AC11>[1]!NILOWLIMA,-[1]!NICREBATEA,0) -> 0 | AQ11: =IF($Q11="N",IF(AD11>[1]!NIUPPLIMA,((AD11-[1]!NIUPPLIMA)*[1]!NIUPPERA)+([1]!NIUPPLIMA-[1]!NILOWLIMA)*[1]!NILOWA,IF(AD11>[1]!NILOWLIMA,(AD11-[1]!NILOWLIMA)*[1]!NILOWA,0)))+IF($Q11="Y",IF(AD11>[1]!NIUPPLIMA,((AD11-[1]!NIUPPLIMA)*[1]!NIUPPERA)+(([1]!NIUPPLIMA-[1]!NILOWLIMA)*[1]!NISUPNA),IF(AD11>[1]!NILOWLIMA,(AD11-[1]!NILOWLIMA)*[1]!NISUPNA,0)))+IF(AD11>[1]!NILOWLIMA,-[1]!NICREBATEA,0) -> 0 | AR11: =IF($Q11="N",IF(AE11>[1]!NIUPPLIMA,((AE11-[1]!NIUPPLIMA)*[1]!NIUPPERA)+([1]!NIUPPLIMA-[1]!NILOWLIMA)*[1]!NILOWA,IF(AE11>[1]!NILOWLIMA,(AE11-[1]!NILOWLIMA)*[1]!NILOWA,0)))+IF($Q11="Y",IF(AE11>[1]!NIUPPLIMA,((AE11-[1]!NIUPPLIMA)*[1]!NIUPPERA)+(([1]!NIUPPLIMA-[1]!NILOWLIMA)*[1]!NISUPNA),IF(AE11>[1]!NILOWLIMA,(AE11-[1]!NILOWLIMA)*[1]!NISUPNA,0)))+IF(AE11>[1]!NILOWLIMA,-[1]!NICREBATEA,0) -> 0 | AS11: =IF($Q11="N",IF(AF11>[1]!NIUPPLIMA,((AF11-[1]!NIUPPLIMA)*[1]!NIUPPERA)+([1]!NIUPPLIMA-[1]!NILOWLIMA)*[1]!NILOWA,IF(AF11>[1]!NILOWLIMA,(AF11-[1]!NILOWLIMA)*[1]!NILOWA,0)))+IF($Q11="Y",IF(AF11>[1]!NIUPPLIMA,((AF11-[1]!NIUPPLIMA)*[1]!NIUPPERA)+(([1]!NIUPPLIMA-[1]!NILOWLIMA)*[1]!NISUPNA),IF(AF11>[1]!NILOWLIMA,(AF11-[1]!NILOWLIMA)*[1]!NISUPNA,0)))+IF(AF11>[1]!NILOWLIMA,-[1]!NICREBATEA,0) -> 0 | AT11: 0 | AU11: 0 | AV11: 0 | AW11: =IF($E11="TEACHER",IF($I11<6,$I11+1,IF(LEFT($I11,1)="U",$I11,6)),IF($E11="LEADER",+I11,IF($E11="UNQUAL",IF($I11<10,$I11+1,10),IF($E11="ADVANCED",IF($I11<27,$I11+1,27))))) -> 18 | AX11: =(K11+M11+O11+P11) -> 0 | AY11: =IF($E11="LEADER",VLOOKUP(AW11,[1]!LEADERSHIP,5),IF($E11="TEACHER",VLOOKUP(AW11,[1]!TEACHER,5),IF($E11="ADVANCED",VLOOKUP($AW11,[1]!ADVANCED_SKILLS_TEACHERS,5),IF($E11="UNQUAL",VLOOKUP($AW11,[1]!UNQUALIFIED_TEACHER,5),0))))*D11*(1+BA$4)*(1+BA$5)+(AX11/AZ11) -> 0 | AZ11: =IF(G11-F11>11.99999,12,MONTH(G11)-MONTH(F11)) -> 12 | BA11: =NumberOfDaysWorked($F11,$G11,BD$1,BF$1)*(($S11*(1+BA$4))*5)+NumberOfDaysWorked($F11,$G11,BD$1,BF$1)*($AY11*7) -> 0 | BD11: =(IF($Q11="N",IF(AY11>[1]!NIUPPLIMB,((AY11-[1]!NIUPPLIMB)*[1]!NIUPPERB)+([1]!NIUPPLIMB-[1]!NILOWLIMB)*[1]!NILOWB,IF(AY11>[1]!NILOWLIMB,(AY11-[1]!NILOWLIMB)*[1]!NILOWB,0)))+IF($Q11="Y",IF(AY11>[1]!NIUPPLIMB,((AY11-[1]!NIUPPLIMB)*[1]!NIUPPERB)+(([1]!NIUPPLIMB-[1]!NILOWLIMB)*[1]!NISUPNB),IF(AY11>[1]!NILOWLIMB,(AY11-[1]!NILOWLIMB)*[1]!NISUPNB,0))))*((NumberOfDaysWorked($F11,$G11,BD$1,BF$1)*5)+(NumberOfDaysWorked($F11,$G11,BD$1,BF$1)*7)) -> 0 | BE11: =IF($Q11="N",0,(BA11*$BE$5)) -> 0 | BF11: =SUM(BA11:BE11) -> 0 | BG11: =IF($E11="TEACHER",IF(AW11<6,AW11+1,IF(LEFT(AW11,1)="U",AW11,6)),IF($E11="LEADER",+I11,IF($E11="UNQUAL",IF(AW11<10,AW11+1,10),IF($E11="ADVANCED",IF(AW11<27,AW11+1,27))))) -> 18 | BH11: =(K11+M11+O11+P11) -> 0 | BI11: =IF($E11="LEADER",VLOOKUP(BG11,[1]!LEADERSHIP,5),IF($E11="TEACHER",VLOOKUP(BG11,[1]!TEACHER,5),IF($E11="ADVANCED",VLOOKUP($AW11,[1]!ADVANCED_SKILLS_TEACHERS,5),IF($E11="UNQUAL",VLOOKUP($AW11,[1]!UNQUALIFIED_TEACHER,5),0))))*D11*(1+BA$4)*(1+BA$5)*(1+BK$4)*(1+BK$5)+(BH11/BJ11) -> 0 | BJ11: =IF(G11-F11>11.99999,12,MONTH(G11)-MONTH(F11)) -> 12 | BK11: =NumberOfDaysWorked($F11,$G11,BN$1,BP$1)*(($AY11*(1+BK$4))*5)+NumberOfDaysWorked($F11,$G11,BN$1,BP$1)*($BI11*7) -> 0 | BN11: =(IF($Q11="N",IF(BI11>[1]!NIUPPLIMC,((BI11-[1]!NIUPPLIMC)*[1]!NIUPPERC)+([1]!NIUPPLIMC-[1]!NILOWLIMC)*[1]!NILOWC,IF(BI11>[1]!NILOWLIMC,(BI11-[1]!NILOWLIMC)*[1]!NILOWC,0)))+IF($Q11="Y",IF(BI11>[1]!NIUPPLIMC,((BI11-[1]!NIUPPLIMC)*[1]!NIUPPERC)+(([1]!NIUPPLIMC-[1]!NILOWLIMC)*[1]!NISUPNC),IF(BI11>[1]!NILOWLIMC,(BI11-[1]!NILOWLIMC)*[1]!NISUPNC,0))))*((NumberOfDaysWorked($F11,$G11,BN$1,BP$1)*5)+(NumberOfDaysWorked($F11,$G11,BN$1,BP$1)*7)) -> 0 | BO11: =IF($Q11="N",0,(BK11*$BO$5)) -> 0 | BP11: =SUM(BK11:BO11) -> 0
A12: x | C12: A01001 | D12: 0 | E12: LEADER | F12: 2026-04-01 | G12: 2029-03-31 | H12: 5 | I12: 5 | Q12: Y | R12: =IF($E12="LEADER",VLOOKUP(H12,[1]PAYDATA!$A$4:$C$54,3),IF($E12="TEACHER",VLOOKUP(H12,[1]PAYDATA!$A$70:$C$80,3),IF($E12="ADVANCED",VLOOKUP(H12,[1]PAYDATA!$A$141:$C$159,3),IF($E12="UNQUAL",VLOOKUP(H12,[1]PAYDATA!$A$57:$C$63,3),0))))*$D12+($K12/T12)+($M12/T12)+($O12/T12)+($P12/T12) -> 0 | S12: =IF($E12="LEADER",VLOOKUP(I12,[1]!LEADERSHIP,5),IF($E12="TEACHER",VLOOKUP(I12,[1]!TEACHER,5),IF($E12="ADVANCED",VLOOKUP(I12,[1]PAYDATA!$A$141:$E$159,5),IF($E12="UNQUAL",VLOOKUP(I12,[1]!UNQUALIFIED_TEACHER,5),0))))*$D12+($K12/T12)+($M12/T12)+($O12/T12)+($P12/T12) -> 0 | T12: 12 | U12: 0 | V12: 0 | W12: 0 | X12: 0 | Y12: 0 | Z12: 0 | AA12: 0 | AB12: 0 | AC12: 0 | AD12: 0 | AE12: 0 | AF12: 0 | AG12: 0 | AH12: =IF($Q12="N",IF(U12>[1]!NIUPPLIMA,((U12-[1]!NIUPPLIMA)*[1]!NIUPPERA)+([1]!NIUPPLIMA-[1]!NILOWLIMA)*[1]!NILOWA,IF(U12>[1]!NILOWLIMA,(U12-[1]!NILOWLIMA)*[1]!NILOWA,0)))+IF($Q12="Y",IF(U12>[1]!NIUPPLIMA,((U12-[1]!NIUPPLIMA)*[1]!NIUPPERA)+(([1]!NIUPPLIMA-[1]!NILOWLIMA)*[1]!NISUPNA),IF(U12>[1]!NILOWLIMA,(U12-[1]!NILOWLIMA)*[1]!NISUPNA,0)))+IF(U12>[1]!NILOWLIMA,-[1]!NICREBATEA,0) -> 0 | AI12: =IF($Q12="N",IF(V12>[1]!NIUPPLIMA,((V12-[1]!NIUPPLIMA)*[1]!NIUPPERA)+([1]!NIUPPLIMA-[1]!NILOWLIMA)*[1]!NILOWA,IF(V12>[1]!NILOWLIMA,(V12-[1]!NILOWLIMA)*[1]!NILOWA,0)))+IF($Q12="Y",IF(V12>[1]!NIUPPLIMA,((V12-[1]!NIUPPLIMA)*[1]!NIUPPERA)+(([1]!NIUPPLIMA-[1]!NILOWLIMA)*[1]!NISUPNA),IF(V12>[1]!NILOWLIMA,(V12-[1]!NILOWLIMA)*[1]!NISUPNA,0)))+IF(V12>[1]!NILOWLIMA,-[1]!NICREBATEA,0) -> 0 | AJ12: =IF($Q12="N",IF(W12>[1]!NIUPPLIMA,((W12-[1]!NIUPPLIMA)*[1]!NIUPPERA)+([1]!NIUPPLIMA-[1]!NILOWLIMA)*[1]!NILOWA,IF(W12>[1]!NILOWLIMA,(W12-[1]!NILOWLIMA)*[1]!NILOWA,0)))+IF($Q12="Y",IF(W12>[1]!NIUPPLIMA,((W12-[1]!NIUPPLIMA)*[1]!NIUPPERA)+(([1]!NIUPPLIMA-[1]!NILOWLIMA)*[1]!NISUPNA),IF(W12>[1]!NILOWLIMA,(W12-[1]!NILOWLIMA)*[1]!NISUPNA,0)))+IF(W12>[1]!NILOWLIMA,-[1]!NICREBATEA,0) -> 0 | AK12: =IF($Q12="N",IF(X12>[1]!NIUPPLIMA,((X12-[1]!NIUPPLIMA)*[1]!NIUPPERA)+([1]!NIUPPLIMA-[1]!NILOWLIMA)*[1]!NILOWA,IF(X12>[1]!NILOWLIMA,(X12-[1]!NILOWLIMA)*[1]!NILOWA,0)))+IF($Q12="Y",IF(X12>[1]!NIUPPLIMA,((X12-[1]!NIUPPLIMA)*[1]!NIUPPERA)+(([1]!NIUPPLIMA-[1]!NILOWLIMA)*[1]!NISUPNA),IF(X12>[1]!NILOWLIMA,(X12-[1]!NILOWLIMA)*[1]!NISUPNA,0)))+IF(X12>[1]!NILOWLIMA,-[1]!NICREBATEA,0) -> 0 | AL12: =IF($Q12="N",IF(Y12>[1]!NIUPPLIMA,((Y12-[1]!NIUPPLIMA)*[1]!NIUPPERA)+([1]!NIUPPLIMA-[1]!NILOWLIMA)*[1]!NILOWA,IF(Y12>[1]!NILOWLIMA,(Y12-[1]!NILOWLIMA)*[1]!NILOWA,0)))+IF($Q12="Y",IF(Y12>[1]!NIUPPLIMA,((Y12-[1]!NIUPPLIMA)*[1]!NIUPPERA)+(([1]!NIUPPLIMA-[1]!NILOWLIMA)*[1]!NISUPNA),IF(Y12>[1]!NILOWLIMA,(Y12-[1]!NILOWLIMA)*[1]!NISUPNA,0)))+IF(Y12>[1]!NILOWLIMA,-[1]!NICREBATEA,0) -> 0 | AM12: =IF($Q12="N",IF(Z12>[1]!NIUPPLIMA,((Z12-[1]!NIUPPLIMA)*[1]!NIUPPERA)+([1]!NIUPPLIMA-[1]!NILOWLIMA)*[1]!NILOWA,IF(Z12>[1]!NILOWLIMA,(Z12-[1]!NILOWLIMA)*[1]!NILOWA,0)))+IF($Q12="Y",IF(Z12>[1]!NIUPPLIMA,((Z12-[1]!NIUPPLIMA)*[1]!NIUPPERA)+(([1]!NIUPPLIMA-[1]!NILOWLIMA)*[1]!NISUPNA),IF(Z12>[1]!NILOWLIMA,(Z12-[1]!NILOWLIMA)*[1]!NISUPNA,0)))+IF(Z12>[1]!NILOWLIMA,-[1]!NICREBATEA,0) -> 0 | AN12: =IF($Q12="N",IF(AA12>[1]!NIUPPLIMA,((AA12-[1]!NIUPPLIMA)*[1]!NIUPPERA)+([1]!NIUPPLIMA-[1]!NILOWLIMA)*[1]!NILOWA,IF(AA12>[1]!NILOWLIMA,(AA12-[1]!NILOWLIMA)*[1]!NILOWA,0)))+IF($Q12="Y",IF(AA12>[1]!NIUPPLIMA,((AA12-[1]!NIUPPLIMA)*[1]!NIUPPERA)+(([1]!NIUPPLIMA-[1]!NILOWLIMA)*[1]!NISUPNA),IF(AA12>[1]!NILOWLIMA,(AA12-[1]!NILOWLIMA)*[1]!NISUPNA,0)))+IF(AA12>[1]!NILOWLIMA,-[1]!NICREBATEA,0) -> 0 | AO12: =IF($Q12="N",IF(AB12>[1]!NIUPPLIMA,((AB12-[1]!NIUPPLIMA)*[1]!NIUPPERA)+([1]!NIUPPLIMA-[1]!NILOWLIMA)*[1]!NILOWA,IF(AB12>[1]!NILOWLIMA,(AB12-[1]!NILOWLIMA)*[1]!NILOWA,0)))+IF($Q12="Y",IF(AB12>[1]!NIUPPLIMA,((AB12-[1]!NIUPPLIMA)*[1]!NIUPPERA)+(([1]!NIUPPLIMA-[1]!NILOWLIMA)*[1]!NISUPNA),IF(AB12>[1]!NILOWLIMA,(AB12-[1]!NILOWLIMA)*[1]!NISUPNA,0)))+IF(AB12>[1]!NILOWLIMA,-[1]!NICREBATEA,0) -> 0 | AP12: =IF($Q12="N",IF(AC12>[1]!NIUPPLIMA,((AC12-[1]!NIUPPLIMA)*[1]!NIUPPERA)+([1]!NIUPPLIMA-[1]!NILOWLIMA)*[1]!NILOWA,IF(AC12>[1]!NILOWLIMA,(AC12-[1]!NILOWLIMA)*[1]!NILOWA,0)))+IF($Q12="Y",IF(AC12>[1]!NIUPPLIMA,((AC12-[1]!NIUPPLIMA)*[1]!NIUPPERA)+(([1]!NIUPPLIMA-[1]!NILOWLIMA)*[1]!NISUPNA),IF(AC12>[1]!NILOWLIMA,(AC12-[1]!NILOWLIMA)*[1]!NISUPNA,0)))+IF(AC12>[1]!NILOWLIMA,-[1]!NICREBATEA,0) -> 0 | AQ12: =IF($Q12="N",IF(AD12>[1]!NIUPPLIMA,((AD12-[1]!NIUPPLIMA)*[1]!NIUPPERA)+([1]!NIUPPLIMA-[1]!NILOWLIMA)*[1]!NILOWA,IF(AD12>[1]!NILOWLIMA,(AD12-[1]!NILOWLIMA)*[1]!NILOWA,0)))+IF($Q12="Y",IF(AD12>[1]!NIUPPLIMA,((AD12-[1]!NIUPPLIMA)*[1]!NIUPPERA)+(([1]!NIUPPLIMA-[1]!NILOWLIMA)*[1]!NISUPNA),IF(AD12>[1]!NILOWLIMA,(AD12-[1]!NILOWLIMA)*[1]!NISUPNA,0)))+IF(AD12>[1]!NILOWLIMA,-[1]!NICREBATEA,0) -> 0 | AR12: =IF($Q12="N",IF(AE12>[1]!NIUPPLIMA,((AE12-[1]!NIUPPLIMA)*[1]!NIUPPERA)+([1]!NIUPPLIMA-[1]!NILOWLIMA)*[1]!NILOWA,IF(AE12>[1]!NILOWLIMA,(AE12-[1]!NILOWLIMA)*[1]!NILOWA,0)))+IF($Q12="Y",IF(AE12>[1]!NIUPPLIMA,((AE12-[1]!NIUPPLIMA)*[1]!NIUPPERA)+(([1]!NIUPPLIMA-[1]!NILOWLIMA)*[1]!NISUPNA),IF(AE12>[1]!NILOWLIMA,(AE12-[1]!NILOWLIMA)*[1]!NISUPNA,0)))+IF(AE12>[1]!NILOWLIMA,-[1]!NICREBATEA,0) -> 0 | AS12: =IF($Q12="N",IF(AF12>[1]!NIUPPLIMA,((AF12-[1]!NIUPPLIMA)*[1]!NIUPPERA)+([1]!NIUPPLIMA-[1]!NILOWLIMA)*[1]!NILOWA,IF(AF12>[1]!NILOWLIMA,(AF12-[1]!NILOWLIMA)*[1]!NILOWA,0)))+IF($Q12="Y",IF(AF12>[1]!NIUPPLIMA,((AF12-[1]!NIUPPLIMA)*[1]!NIUPPERA)+(([1]!NIUPPLIMA-[1]!NILOWLIMA)*[1]!NISUPNA),IF(AF12>[1]!NILOWLIMA,(AF12-[1]!NILOWLIMA)*[1]!NISUPNA,0)))+IF(AF12>[1]!NILOWLIMA,-[1]!NICREBATEA,0) -> 0 | AT12: 0 | AU12: 0 | AV12: 0 | AW12: 5 | AX12: 0 | AY12: =IF($E12="LEADER",VLOOKUP(AW12,[1]!LEADERSHIP,5),IF($E12="TEACHER",VLOOKUP(AW12,[1]!TEACHER,5),IF($E12="ADVANCED",VLOOKUP($AW12,[1]!ADVANCED_SKILLS_TEACHERS,5),IF($E12="UNQUAL",VLOOKUP($AW12,[1]!UNQUALIFIED_TEACHER,5),0))))*D12*(1+BA$4)*(1+BA$5)+(AX12/AZ12) -> 0 | AZ12: 12 | BA12: 0 | BD12: =(IF($Q12="N",IF(AY12>[1]!NIUPPLIMB,((AY12-[1]!NIUPPLIMB)*[1]!NIUPPERB)+([1]!NIUPPLIMB-[1]!NILOWLIMB)*[1]!NILOWB,IF(AY12>[1]!NILOWLIMB,(AY12-[1]!NILOWLIMB)*[1]!NILOWB,0)))+IF($Q12="Y",IF(AY12>[1]!NIUPPLIMB,((AY12-[1]!NIUPPLIMB)*[1]!NIUPPERB)+(([1]!NIUPPLIMB-[1]!NILOWLIMB)*[1]!NISUPNB),IF(AY12>[1]!NILOWLIMB,(AY12-[1]!NILOWLIMB)*[1]!NISUPNB,0))))*((NumberOfDaysWorked($F12,$G12,BD$1,BF$1)*5)+(NumberOfDaysWorked($F12,$G12,BD$1,BF$1)*7)) -> 0 | BE12: 0 | BF12: 0 | BG12: 5 | BH12: 0 | BI12: =IF($E12="LEADER",VLOOKUP(BG12,[1]!LEADERSHIP,5),IF($E12="TEACHER",VLOOKUP(BG12,[1]!TEACHER,5),IF($E12="ADVANCED",VLOOKUP($AW12,[1]!ADVANCED_SKILLS_TEACHERS,5),IF($E12="UNQUAL",VLOOKUP($AW12,[1]!UNQUALIFIED_TEACHER,5),0))))*D12*(1+BA$4)*(1+BA$5)*(1+BK$4)*(1+BK$5)+(BH12/BJ12) -> 0 | BJ12: 12 | BK12: 0 | BN12: =(IF($Q12="N",IF(BI12>[1]!NIUPPLIMC,((BI12-[1]!NIUPPLIMC)*[1]!NIUPPERC)+([1]!NIUPPLIMC-[1]!NILOWLIMC)*[1]!NILOWC,IF(BI12>[1]!NILOWLIMC,(BI12-[1]!NILOWLIMC)*[1]!NILOWC,0)))+IF($Q12="Y",IF(BI12>[1]!NIUPPLIMC,((BI12-[1]!NIUPPLIMC)*[1]!NIUPPERC)+(([1]!NIUPPLIMC-[1]!NILOWLIMC)*[1]!NISUPNC),IF(BI12>[1]!NILOWLIMC,(BI12-[1]!NILOWLIMC)*[1]!NISUPNC,0))))*((NumberOfDaysWorked($F12,$G12,BN$1,BP$1)*5)+(NumberOfDaysWorked($F12,$G12,BN$1,BP$1)*7)) -> 0 | BO12: 0 | BP12: 0
A13: x | B13: Deputy Head | C13: A01001 | D13: 0 | E13: LEADER | F13: 2026-04-01 | G13: 2029-03-31 | H13: 5 | I13: 5 | Q13: Y | R13: =IF($E13="LEADER",VLOOKUP(H13,[1]PAYDATA!$A$4:$C$54,3),IF($E13="TEACHER",VLOOKUP(H13,[1]PAYDATA!$A$70:$C$80,3),IF($E13="ADVANCED",VLOOKUP(H13,[1]PAYDATA!$A$141:$C$159,3),IF($E13="UNQUAL",VLOOKUP(H13,[1]PAYDATA!$A$57:$C$63,3),0))))*$D13+($K13/T13)+($M13/T13)+($O13/T13)+($P13/T13) -> 0 | S13: =IF($E13="LEADER",VLOOKUP(I13,[1]!LEADERSHIP,5),IF($E13="TEACHER",VLOOKUP(I13,[1]!TEACHER,5),IF($E13="ADVANCED",VLOOKUP(I13,[1]PAYDATA!$A$141:$E$159,5),IF($E13="UNQUAL",VLOOKUP(I13,[1]!UNQUALIFIED_TEACHER,5),0))))*$D13+($K13/T13)+($M13/T13)+($O13/T13)+($P13/T13) -> 0 | T13: 12 | U13: 0 | V13: 0 | W13: 0 | X13: 0 | Y13: 0 | Z13: 0 | AA13: 0 | AB13: 0 | AC13: 0 | AD13: 0 | AE13: 0 | AF13: 0 | AG13: 0 | AH13: =IF($Q13="N",IF(U13>[1]!NIUPPLIMA,((U13-[1]!NIUPPLIMA)*[1]!NIUPPERA)+([1]!NIUPPLIMA-[1]!NILOWLIMA)*[1]!NILOWA,IF(U13>[1]!NILOWLIMA,(U13-[1]!NILOWLIMA)*[1]!NILOWA,0)))+IF($Q13="Y",IF(U13>[1]!NIUPPLIMA,((U13-[1]!NIUPPLIMA)*[1]!NIUPPERA)+(([1]!NIUPPLIMA-[1]!NILOWLIMA)*[1]!NISUPNA),IF(U13>[1]!NILOWLIMA,(U13-[1]!NILOWLIMA)*[1]!NISUPNA,0)))+IF(U13>[1]!NILOWLIMA,-[1]!NICREBATEA,0) -> 0 | AI13: =IF($Q13="N",IF(V13>[1]!NIUPPLIMA,((V13-[1]!NIUPPLIMA)*[1]!NIUPPERA)+([1]!NIUPPLIMA-[1]!NILOWLIMA)*[1]!NILOWA,IF(V13>[1]!NILOWLIMA,(V13-[1]!NILOWLIMA)*[1]!NILOWA,0)))+IF($Q13="Y",IF(V13>[1]!NIUPPLIMA,((V13-[1]!NIUPPLIMA)*[1]!NIUPPERA)+(([1]!NIUPPLIMA-[1]!NILOWLIMA)*[1]!NISUPNA),IF(V13>[1]!NILOWLIMA,(V13-[1]!NILOWLIMA)*[1]!NISUPNA,0)))+IF(V13>[1]!NILOWLIMA,-[1]!NICREBATEA,0) -> 0 | AJ13: =IF($Q13="N",IF(W13>[1]!NIUPPLIMA,((W13-[1]!NIUPPLIMA)*[1]!NIUPPERA)+([1]!NIUPPLIMA-[1]!NILOWLIMA)*[1]!NILOWA,IF(W13>[1]!NILOWLIMA,(W13-[1]!NILOWLIMA)*[1]!NILOWA,0)))+IF($Q13="Y",IF(W13>[1]!NIUPPLIMA,((W13-[1]!NIUPPLIMA)*[1]!NIUPPERA)+(([1]!NIUPPLIMA-[1]!NILOWLIMA)*[1]!NISUPNA),IF(W13>[1]!NILOWLIMA,(W13-[1]!NILOWLIMA)*[1]!NISUPNA,0)))+IF(W13>[1]!NILOWLIMA,-[1]!NICREBATEA,0) -> 0 | AK13: =IF($Q13="N",IF(X13>[1]!NIUPPLIMA,((X13-[1]!NIUPPLIMA)*[1]!NIUPPERA)+([1]!NIUPPLIMA-[1]!NILOWLIMA)*[1]!NILOWA,IF(X13>[1]!NILOWLIMA,(X13-[1]!NILOWLIMA)*[1]!NILOWA,0)))+IF($Q13="Y",IF(X13>[1]!NIUPPLIMA,((X13-[1]!NIUPPLIMA)*[1]!NIUPPERA)+(([1]!NIUPPLIMA-[1]!NILOWLIMA)*[1]!NISUPNA),IF(X13>[1]!NILOWLIMA,(X13-[1]!NILOWLIMA)*[1]!NISUPNA,0)))+IF(X13>[1]!NILOWLIMA,-[1]!NICREBATEA,0) -> 0 | AL13: =IF($Q13="N",IF(Y13>[1]!NIUPPLIMA,((Y13-[1]!NIUPPLIMA)*[1]!NIUPPERA)+([1]!NIUPPLIMA-[1]!NILOWLIMA)*[1]!NILOWA,IF(Y13>[1]!NILOWLIMA,(Y13-[1]!NILOWLIMA)*[1]!NILOWA,0)))+IF($Q13="Y",IF(Y13>[1]!NIUPPLIMA,((Y13-[1]!NIUPPLIMA)*[1]!NIUPPERA)+(([1]!NIUPPLIMA-[1]!NILOWLIMA)*[1]!NISUPNA),IF(Y13>[1]!NILOWLIMA,(Y13-[1]!NILOWLIMA)*[1]!NISUPNA,0)))+IF(Y13>[1]!NILOWLIMA,-[1]!NICREBATEA,0) -> 0 | AM13: =IF($Q13="N",IF(Z13>[1]!NIUPPLIMA,((Z13-[1]!NIUPPLIMA)*[1]!NIUPPERA)+([1]!NIUPPLIMA-[1]!NILOWLIMA)*[1]!NILOWA,IF(Z13>[1]!NILOWLIMA,(Z13-[1]!NILOWLIMA)*[1]!NILOWA,0)))+IF($Q13="Y",IF(Z13>[1]!NIUPPLIMA,((Z13-[1]!NIUPPLIMA)*[1]!NIUPPERA)+(([1]!NIUPPLIMA-[1]!NILOWLIMA)*[1]!NISUPNA),IF(Z13>[1]!NILOWLIMA,(Z13-[1]!NILOWLIMA)*[1]!NISUPNA,0)))+IF(Z13>[1]!NILOWLIMA,-[1]!NICREBATEA,0) -> 0 | AN13: =IF($Q13="N",IF(AA13>[1]!NIUPPLIMA,((AA13-[1]!NIUPPLIMA)*[1]!NIUPPERA)+([1]!NIUPPLIMA-[1]!NILOWLIMA)*[1]!NILOWA,IF(AA13>[1]!NILOWLIMA,(AA13-[1]!NILOWLIMA)*[1]!NILOWA,0)))+IF($Q13="Y",IF(AA13>[1]!NIUPPLIMA,((AA13-[1]!NIUPPLIMA)*[1]!NIUPPERA)+(([1]!NIUPPLIMA-[1]!NILOWLIMA)*[1]!NISUPNA),IF(AA13>[1]!NILOWLIMA,(AA13-[1]!NILOWLIMA)*[1]!NISUPNA,0)))+IF(AA13>[1]!NILOWLIMA,-[1]!NICREBATEA,0) -> 0 | AO13: =IF($Q13="N",IF(AB13>[1]!NIUPPLIMA,((AB13-[1]!NIUPPLIMA)*[1]!NIUPPERA)+([1]!NIUPPLIMA-[1]!NILOWLIMA)*[1]!NILOWA,IF(AB13>[1]!NILOWLIMA,(AB13-[1]!NILOWLIMA)*[1]!NILOWA,0)))+IF($Q13="Y",IF(AB13>[1]!NIUPPLIMA,((AB13-[1]!NIUPPLIMA)*[1]!NIUPPERA)+(([1]!NIUPPLIMA-[1]!NILOWLIMA)*[1]!NISUPNA),IF(AB13>[1]!NILOWLIMA,(AB13-[1]!NILOWLIMA)*[1]!NISUPNA,0)))+IF(AB13>[1]!NILOWLIMA,-[1]!NICREBATEA,0) -> 0 | AP13: =IF($Q13="N",IF(AC13>[1]!NIUPPLIMA,((AC13-[1]!NIUPPLIMA)*[1]!NIUPPERA)+([1]!NIUPPLIMA-[1]!NILOWLIMA)*[1]!NILOWA,IF(AC13>[1]!NILOWLIMA,(AC13-[1]!NILOWLIMA)*[1]!NILOWA,0)))+IF($Q13="Y",IF(AC13>[1]!NIUPPLIMA,((AC13-[1]!NIUPPLIMA)*[1]!NIUPPERA)+(([1]!NIUPPLIMA-[1]!NILOWLIMA)*[1]!NISUPNA),IF(AC13>[1]!NILOWLIMA,(AC13-[1]!NILOWLIMA)*[1]!NISUPNA,0)))+IF(AC13>[1]!NILOWLIMA,-[1]!NICREBATEA,0) -> 0 | AQ13: =IF($Q13="N",IF(AD13>[1]!NIUPPLIMA,((AD13-[1]!NIUPPLIMA)*[1]!NIUPPERA)+([1]!NIUPPLIMA-[1]!NILOWLIMA)*[1]!NILOWA,IF(AD13>[1]!NILOWLIMA,(AD13-[1]!NILOWLIMA)*[1]!NILOWA,0)))+IF($Q13="Y",IF(AD13>[1]!NIUPPLIMA,((AD13-[1]!NIUPPLIMA)*[1]!NIUPPERA)+(([1]!NIUPPLIMA-[1]!NILOWLIMA)*[1]!NISUPNA),IF(AD13>[1]!NILOWLIMA,(AD13-[1]!NILOWLIMA)*[1]!NISUPNA,0)))+IF(AD13>[1]!NILOWLIMA,-[1]!NICREBATEA,0) -> 0 | AR13: =IF($Q13="N",IF(AE13>[1]!NIUPPLIMA,((AE13-[1]!NIUPPLIMA)*[1]!NIUPPERA)+([1]!NIUPPLIMA-[1]!NILOWLIMA)*[1]!NILOWA,IF(AE13>[1]!NILOWLIMA,(AE13-[1]!NILOWLIMA)*[1]!NILOWA,0)))+IF($Q13="Y",IF(AE13>[1]!NIUPPLIMA,((AE13-[1]!NIUPPLIMA)*[1]!NIUPPERA)+(([1]!NIUPPLIMA-[1]!NILOWLIMA)*[1]!NISUPNA),IF(AE13>[1]!NILOWLIMA,(AE13-[1]!NILOWLIMA)*[1]!NISUPNA,0)))+IF(AE13>[1]!NILOWLIMA,-[1]!NICREBATEA,0) -> 0 | AS13: =IF($Q13="N",IF(AF13>[1]!NIUPPLIMA,((AF13-[1]!NIUPPLIMA)*[1]!NIUPPERA)+([1]!NIUPPLIMA-[1]!NILOWLIMA)*[1]!NILOWA,IF(AF13>[1]!NILOWLIMA,(AF13-[1]!NILOWLIMA)*[1]!NILOWA,0)))+IF($Q13="Y",IF(AF13>[1]!NIUPPLIMA,((AF13-[1]!NIUPPLIMA)*[1]!NIUPPERA)+(([1]!NIUPPLIMA-[1]!NILOWLIMA)*[1]!NISUPNA),IF(AF13>[1]!NILOWLIMA,(AF13-[1]!NILOWLIMA)*[1]!NISUPNA,0)))+IF(AF13>[1]!NILOWLIMA,-[1]!NICREBATEA,0) -> 0 | AT13: 0 | AU13: 0 | AV13: 0 | AW13: 5 | AX13: 0 | AY13: =IF($E13="LEADER",VLOOKUP(AW13,[1]!LEADERSHIP,5),IF($E13="TEACHER",VLOOKUP(AW13,[1]!TEACHER,5),IF($E13="ADVANCED",VLOOKUP($AW13,[1]!ADVANCED_SKILLS_TEACHERS,5),IF($E13="UNQUAL",VLOOKUP($AW13,[1]!UNQUALIFIED_TEACHER,5),0))))*D13*(1+BA$4)*(1+BA$5)+(AX13/AZ13) -> 0 | AZ13: 12 | BA13: 0 | BD13: =(IF($Q13="N",IF(AY13>[1]!NIUPPLIMB,((AY13-[1]!NIUPPLIMB)*[1]!NIUPPERB)+([1]!NIUPPLIMB-[1]!NILOWLIMB)*[1]!NILOWB,IF(AY13>[1]!NILOWLIMB,(AY13-[1]!NILOWLIMB)*[1]!NILOWB,0)))+IF($Q13="Y",IF(AY13>[1]!NIUPPLIMB,((AY13-[1]!NIUPPLIMB)*[1]!NIUPPERB)+(([1]!NIUPPLIMB-[1]!NILOWLIMB)*[1]!NISUPNB),IF(AY13>[1]!NILOWLIMB,(AY13-[1]!NILOWLIMB)*[1]!NISUPNB,0))))*((NumberOfDaysWorked($F13,$G13,BD$1,BF$1)*5)+(NumberOfDaysWorked($F13,$G13,BD$1,BF$1)*7)) -> 0 | BE13: 0 | BF13: 0 | BG13: 5 | BH13: 0 | BI13: =IF($E13="LEADER",VLOOKUP(BG13,[1]!LEADERSHIP,5),IF($E13="TEACHER",VLOOKUP(BG13,[1]!TEACHER,5),IF($E13="ADVANCED",VLOOKUP($AW13,[1]!ADVANCED_SKILLS_TEACHERS,5),IF($E13="UNQUAL",VLOOKUP($AW13,[1]!UNQUALIFIED_TEACHER,5),0))))*D13*(1+BA$4)*(1+BA$5)*(1+BK$4)*(1+BK$5)+(BH13/BJ13) -> 0 | BJ13: 12 | BK13: 0 | BN13: =(IF($Q13="N",IF(BI13>[1]!NIUPPLIMC,((BI13-[1]!NIUPPLIMC)*[1]!NIUPPERC)+([1]!NIUPPLIMC-[1]!NILOWLIMC)*[1]!NILOWC,IF(BI13>[1]!NILOWLIMC,(BI13-[1]!NILOWLIMC)*[1]!NILOWC,0)))+IF($Q13="Y",IF(BI13>[1]!NIUPPLIMC,((BI13-[1]!NIUPPLIMC)*[1]!NIUPPERC)+(([1]!NIUPPLIMC-[1]!NILOWLIMC)*[1]!NISUPNC),IF(BI13>[1]!NILOWLIMC,(BI13-[1]!NILOWLIMC)*[1]!NISUPNC,0))))*((NumberOfDaysWorked($F13,$G13,BN$1,BP$1)*5)+(NumberOfDaysWorked($F13,$G13,BN$1,BP$1)*7)) -> 0 | BO13: 0 | BP13: 0
A14: x | B14: TODD SOPHIE | C14: A01001 | D14: 0.8 | E14: LEADER | F14: 2026-04-01 | G14: 2029-03-31 | H14: 7 | I14: 8 | Q14: Y | R14: =IF($E14="LEADER",VLOOKUP(H14,[1]PAYDATA!$A$4:$C$54,3),IF($E14="TEACHER",VLOOKUP(H14,[1]PAYDATA!$A$70:$C$80,3),IF($E14="ADVANCED",VLOOKUP(H14,[1]PAYDATA!$A$141:$C$159,3),IF($E14="UNQUAL",VLOOKUP(H14,[1]PAYDATA!$A$57:$C$63,3),0))))*$D14+($K14/T14)+($M14/T14)+($O14/T14)+($P14/T14) -> 4009.666667 | S14: =IF($E14="LEADER",VLOOKUP(I14,[1]!LEADERSHIP,5),IF($E14="TEACHER",VLOOKUP(I14,[1]!TEACHER,5),IF($E14="ADVANCED",VLOOKUP(I14,[1]PAYDATA!$A$141:$E$159,5),IF($E14="UNQUAL",VLOOKUP(I14,[1]!UNQUALIFIED_TEACHER,5),0))))*$D14+($K14/T14)+($M14/T14)+($O14/T14)+($P14/T14) -> 4184.312 | T14: =IF(G14-F14>11.99999,12,MONTH(G14)-MONTH(F14)) -> 12 | U14: 4009.666667 | V14: 4009.666667 | W14: 4009.666667 | X14: 4009.666667 | Y14: 4009.666667 | Z14: 4184.312 | AA14: 4184.312 | AB14: 4184.312 | AC14: 4184.312 | AD14: 4184.312 | AE14: 4184.312 | AF14: 4184.312 | AG14: 49338.51733 | AH14: =IF($Q14="N",IF(U14>[1]!NIUPPLIMA,((U14-[1]!NIUPPLIMA)*[1]!NIUPPERA)+([1]!NIUPPLIMA-[1]!NILOWLIMA)*[1]!NILOWA,IF(U14>[1]!NILOWLIMA,(U14-[1]!NILOWLIMA)*[1]!NILOWA,0)))+IF($Q14="Y",IF(U14>[1]!NIUPPLIMA,((U14-[1]!NIUPPLIMA)*[1]!NIUPPERA)+(([1]!NIUPPLIMA-[1]!NILOWLIMA)*[1]!NISUPNA),IF(U14>[1]!NILOWLIMA,(U14-[1]!NILOWLIMA)*[1]!NISUPNA,0)))+IF(U14>[1]!NILOWLIMA,-[1]!NICREBATEA,0) -> 538.9 | AI14: =IF($Q14="N",IF(V14>[1]!NIUPPLIMA,((V14-[1]!NIUPPLIMA)*[1]!NIUPPERA)+([1]!NIUPPLIMA-[1]!NILOWLIMA)*[1]!NILOWA,IF(V14>[1]!NILOWLIMA,(V14-[1]!NILOWLIMA)*[1]!NILOWA,0)))+IF($Q14="Y",IF(V14>[1]!NIUPPLIMA,((V14-[1]!NIUPPLIMA)*[1]!NIUPPERA)+(([1]!NIUPPLIMA-[1]!NILOWLIMA)*[1]!NISUPNA),IF(V14>[1]!NILOWLIMA,(V14-[1]!NILOWLIMA)*[1]!NISUPNA,0)))+IF(V14>[1]!NILOWLIMA,-[1]!NICREBATEA,0) -> 538.9 | AJ14: =IF($Q14="N",IF(W14>[1]!NIUPPLIMA,((W14-[1]!NIUPPLIMA)*[1]!NIUPPERA)+([1]!NIUPPLIMA-[1]!NILOWLIMA)*[1]!NILOWA,IF(W14>[1]!NILOWLIMA,(W14-[1]!NILOWLIMA)*[1]!NILOWA,0)))+IF($Q14="Y",IF(W14>[1]!NIUPPLIMA,((W14-[1]!NIUPPLIMA)*[1]!NIUPPERA)+(([1]!NIUPPLIMA-[1]!NILOWLIMA)*[1]!NISUPNA),IF(W14>[1]!NILOWLIMA,(W14-[1]!NILOWLIMA)*[1]!NISUPNA,0)))+IF(W14>[1]!NILOWLIMA,-[1]!NICREBATEA,0) -> 538.9 | AK14: =IF($Q14="N",IF(X14>[1]!NIUPPLIMA,((X14-[1]!NIUPPLIMA)*[1]!NIUPPERA)+([1]!NIUPPLIMA-[1]!NILOWLIMA)*[1]!NILOWA,IF(X14>[1]!NILOWLIMA,(X14-[1]!NILOWLIMA)*[1]!NILOWA,0)))+IF($Q14="Y",IF(X14>[1]!NIUPPLIMA,((X14-[1]!NIUPPLIMA)*[1]!NIUPPERA)+(([1]!NIUPPLIMA-[1]!NILOWLIMA)*[1]!NISUPNA),IF(X14>[1]!NILOWLIMA,(X14-[1]!NILOWLIMA)*[1]!NISUPNA,0)))+IF(X14>[1]!NILOWLIMA,-[1]!NICREBATEA,0) -> 538.9 | AL14: =IF($Q14="N",IF(Y14>[1]!NIUPPLIMA,((Y14-[1]!NIUPPLIMA)*[1]!NIUPPERA)+([1]!NIUPPLIMA-[1]!NILOWLIMA)*[1]!NILOWA,IF(Y14>[1]!NILOWLIMA,(Y14-[1]!NILOWLIMA)*[1]!NILOWA,0)))+IF($Q14="Y",IF(Y14>[1]!NIUPPLIMA,((Y14-[1]!NIUPPLIMA)*[1]!NIUPPERA)+(([1]!NIUPPLIMA-[1]!NILOWLIMA)*[1]!NISUPNA),IF(Y14>[1]!NILOWLIMA,(Y14-[1]!NILOWLIMA)*[1]!NISUPNA,0)))+IF(Y14>[1]!NILOWLIMA,-[1]!NICREBATEA,0) -> 538.9 | AM14: =IF($Q14="N",IF(Z14>[1]!NIUPPLIMA,((Z14-[1]!NIUPPLIMA)*[1]!NIUPPERA)+([1]!NIUPPLIMA-[1]!NILOWLIMA)*[1]!NILOWA,IF(Z14>[1]!NILOWLIMA,(Z14-[1]!NILOWLIMA)*[1]!NILOWA,0)))+IF($Q14="Y",IF(Z14>[1]!NIUPPLIMA,((Z14-[1]!NIUPPLIMA)*[1]!NIUPPERA)+(([1]!NIUPPLIMA-[1]!NILOWLIMA)*[1]!NISUPNA),IF(Z14>[1]!NILOWLIMA,(Z14-[1]!NILOWLIMA)*[1]!NISUPNA,0)))+IF(Z14>[1]!NILOWLIMA,-[1]!NICREBATEA,0) -> 565.0968 | AN14: =IF($Q14="N",IF(AA14>[1]!NIUPPLIMA,((AA14-[1]!NIUPPLIMA)*[1]!NIUPPERA)+([1]!NIUPPLIMA-[1]!NILOWLIMA)*[1]!NILOWA,IF(AA14>[1]!NILOWLIMA,(AA14-[1]!NILOWLIMA)*[1]!NILOWA,0)))+IF($Q14="Y",IF(AA14>[1]!NIUPPLIMA,((AA14-[1]!NIUPPLIMA)*[1]!NIUPPERA)+(([1]!NIUPPLIMA-[1]!NILOWLIMA)*[1]!NISUPNA),IF(AA14>[1]!NILOWLIMA,(AA14-[1]!NILOWLIMA)*[1]!NISUPNA,0)))+IF(AA14>[1]!NILOWLIMA,-[1]!NICREBATEA,0) -> 565.0968 | AO14: =IF($Q14="N",IF(AB14>[1]!NIUPPLIMA,((AB14-[1]!NIUPPLIMA)*[1]!NIUPPERA)+([1]!NIUPPLIMA-[1]!NILOWLIMA)*[1]!NILOWA,IF(AB14>[1]!NILOWLIMA,(AB14-[1]!NILOWLIMA)*[1]!NILOWA,0)))+IF($Q14="Y",IF(AB14>[1]!NIUPPLIMA,((AB14-[1]!NIUPPLIMA)*[1]!NIUPPERA)+(([1]!NIUPPLIMA-[1]!NILOWLIMA)*[1]!NISUPNA),IF(AB14>[1]!NILOWLIMA,(AB14-[1]!NILOWLIMA)*[1]!NISUPNA,0)))+IF(AB14>[1]!NILOWLIMA,-[1]!NICREBATEA,0) -> 565.0968 | AP14: =IF($Q14="N",IF(AC14>[1]!NIUPPLIMA,((AC14-[1]!NIUPPLIMA)*[1]!NIUPPERA)+([1]!NIUPPLIMA-[1]!NILOWLIMA)*[1]!NILOWA,IF(AC14>[1]!NILOWLIMA,(AC14-[1]!NILOWLIMA)*[1]!NILOWA,0)))+IF($Q14="Y",IF(AC14>[1]!NIUPPLIMA,((AC14-[1]!NIUPPLIMA)*[1]!NIUPPERA)+(([1]!NIUPPLIMA-[1]!NILOWLIMA)*[1]!NISUPNA),IF(AC14>[1]!NILOWLIMA,(AC14-[1]!NILOWLIMA)*[1]!NISUPNA,0)))+IF(AC14>[1]!NILOWLIMA,-[1]!NICREBATEA,0) -> 565.0968 | AQ14: =IF($Q14="N",IF(AD14>[1]!NIUPPLIMA,((AD14-[1]!NIUPPLIMA)*[1]!NIUPPERA)+([1]!NIUPPLIMA-[1]!NILOWLIMA)*[1]!NILOWA,IF(AD14>[1]!NILOWLIMA,(AD14-[1]!NILOWLIMA)*[1]!NILOWA,0)))+IF($Q14="Y",IF(AD14>[1]!NIUPPLIMA,((AD14-[1]!NIUPPLIMA)*[1]!NIUPPERA)+(([1]!NIUPPLIMA-[1]!NILOWLIMA)*[1]!NISUPNA),IF(AD14>[1]!NILOWLIMA,(AD14-[1]!NILOWLIMA)*[1]!NISUPNA,0)))+IF(AD14>[1]!NILOWLIMA,-[1]!NICREBATEA,0) -> 565.0968 | AR14: =IF($Q14="N",IF(AE14>[1]!NIUPPLIMA,((AE14-[1]!NIUPPLIMA)*[1]!NIUPPERA)+([1]!NIUPPLIMA-[1]!NILOWLIMA)*[1]!NILOWA,IF(AE14>[1]!NILOWLIMA,(AE14-[1]!NILOWLIMA)*[1]!NILOWA,0)))+IF($Q14="Y",IF(AE14>[1]!NIUPPLIMA,((AE14-[1]!NIUPPLIMA)*[1]!NIUPPERA)+(([1]!NIUPPLIMA-[1]!NILOWLIMA)*[1]!NISUPNA),IF(AE14>[1]!NILOWLIMA,(AE14-[1]!NILOWLIMA)*[1]!NISUPNA,0)))+IF(AE14>[1]!NILOWLIMA,-[1]!NICREBATEA,0) -> 565.0968 | AS14: =IF($Q14="N",IF(AF14>[1]!NIUPPLIMA,((AF14-[1]!NIUPPLIMA)*[1]!NIUPPERA)+([1]!NIUPPLIMA-[1]!NILOWLIMA)*[1]!NILOWA,IF(AF14>[1]!NILOWLIMA,(AF14-[1]!NILOWLIMA)*[1]!NILOWA,0)))+IF($Q14="Y",IF(AF14>[1]!NIUPPLIMA,((AF14-[1]!NIUPPLIMA)*[1]!NIUPPERA)+(([1]!NIUPPLIMA-[1]!NILOWLIMA)*[1]!NISUPNA),IF(AF14>[1]!NILOWLIMA,(AF14-[1]!NILOWLIMA)*[1]!NISUPNA,0)))+IF(AF14>[1]!NILOWLIMA,-[1]!NICREBATEA,0) -> 565.0968 | AT14: 6650.1776 | AU14: 14150.28677 | AV14: 70138.9817 | AW14: 8 | AX14: 0 | AY14: =IF($E14="LEADER",VLOOKUP(AW14,[1]!LEADERSHIP,5),IF($E14="TEACHER",VLOOKUP(AW14,[1]!TEACHER,5),IF($E14="ADVANCED",VLOOKUP($AW14,[1]!ADVANCED_SKILLS_TEACHERS,5),IF($E14="UNQUAL",VLOOKUP($AW14,[1]!UNQUALIFIED_TEACHER,5),0))))*D14*(1+BA$4)*(1+BA$5)+(AX14/AZ14) -> 4267.99824 | AZ14: 12 | BA14: 50797.54768 | BD14: =(IF($Q14="N",IF(AY14>[1]!NIUPPLIMB,((AY14-[1]!NIUPPLIMB)*[1]!NIUPPERB)+([1]!NIUPPLIMB-[1]!NILOWLIMB)*[1]!NILOWB,IF(AY14>[1]!NILOWLIMB,(AY14-[1]!NILOWLIMB)*[1]!NILOWB,0)))+IF($Q14="Y",IF(AY14>[1]!NIUPPLIMB,((AY14-[1]!NIUPPLIMB)*[1]!NIUPPERB)+(([1]!NIUPPLIMB-[1]!NILOWLIMB)*[1]!NISUPNB),IF(AY14>[1]!NILOWLIMB,(AY14-[1]!NILOWLIMB)*[1]!NISUPNB,0))))*((NumberOfDaysWorked($F14,$G14,BD$1,BF$1)*5)+(NumberOfDaysWorked($F14,$G14,BD$1,BF$1)*7)) -> 6931.796832 | BE14: 14568.73667 | BF14: 72298.08119 | BG14: 8 | BH14: 0 | BI14: =IF($E14="LEADER",VLOOKUP(BG14,[1]!LEADERSHIP,5),IF($E14="TEACHER",VLOOKUP(BG14,[1]!TEACHER,5),IF($E14="ADVANCED",VLOOKUP($AW14,[1]!ADVANCED_SKILLS_TEACHERS,5),IF($E14="UNQUAL",VLOOKUP($AW14,[1]!UNQUALIFIED_TEACHER,5),0))))*D14*(1+BA$4)*(1+BA$5)*(1+BK$4)*(1+BK$5)+(BH14/BJ14) -> 4353.358205 | BJ14: 12 | BK14: 51813.49863 | BN14: =(IF($Q14="N",IF(BI14>[1]!NIUPPLIMC,((BI14-[1]!NIUPPLIMC)*[1]!NIUPPERC)+([1]!NIUPPLIMC-[1]!NILOWLIMC)*[1]!NILOWC,IF(BI14>[1]!NILOWLIMC,(BI14-[1]!NILOWLIMC)*[1]!NILOWC,0)))+IF($Q14="Y",IF(BI14>[1]!NIUPPLIMC,((BI14-[1]!NIUPPLIMC)*[1]!NIUPPERC)+(([1]!NIUPPLIMC-[1]!NILOWLIMC)*[1]!NISUPNC),IF(BI14>[1]!NILOWLIMC,(BI14-[1]!NILOWLIMC)*[1]!NISUPNC,0))))*((NumberOfDaysWorked($F14,$G14,BN$1,BP$1)*5)+(NumberOfDaysWorked($F14,$G14,BN$1,BP$1)*7)) -> 7085.444769 | BO14: 14860.11141 | BP14: 73759.05481
A15: x | C15: A01001 | D15: 0 | E15: LEADER | F15: 2026-04-01 | G15: 2029-03-31 | H15: 10 | I15: 10 | Q15: Y | R15: =IF($E15="LEADER",VLOOKUP(H15,[1]PAYDATA!$A$4:$C$54,3),IF($E15="TEACHER",VLOOKUP(H15,[1]PAYDATA!$A$70:$C$80,3),IF($E15="ADVANCED",VLOOKUP(H15,[1]PAYDATA!$A$141:$C$159,3),IF($E15="UNQUAL",VLOOKUP(H15,[1]PAYDATA!$A$57:$C$63,3),0))))*$D15+($K15/T15)+($M15/T15)+($O15/T15)+($P15/T15) -> 0 | S15: =IF($E15="LEADER",VLOOKUP(I15,[1]!LEADERSHIP,5),IF($E15="TEACHER",VLOOKUP(I15,[1]!TEACHER,5),IF($E15="ADVANCED",VLOOKUP(I15,[1]PAYDATA!$A$141:$E$159,5),IF($E15="UNQUAL",VLOOKUP(I15,[1]!UNQUALIFIED_TEACHER,5),0))))*$D15+($K15/T15)+($M15/T15)+($O15/T15)+($P15/T15) -> 0 | T15: =IF(G15-F15>11.99999,12,MONTH(G15)-MONTH(F15)) -> 12 | U15: 0 | V15: 0 | W15: 0 | X15: 0 | Y15: 0 | Z15: 0 | AA15: 0 | AB15: 0 | AC15: 0 | AD15: 0 | AE15: 0 | AF15: 0 | AG15: 0 | AH15: =IF($Q15="N",IF(U15>[1]!NIUPPLIMA,((U15-[1]!NIUPPLIMA)*[1]!NIUPPERA)+([1]!NIUPPLIMA-[1]!NILOWLIMA)*[1]!NILOWA,IF(U15>[1]!NILOWLIMA,(U15-[1]!NILOWLIMA)*[1]!NILOWA,0)))+IF($Q15="Y",IF(U15>[1]!NIUPPLIMA,((U15-[1]!NIUPPLIMA)*[1]!NIUPPERA)+(([1]!NIUPPLIMA-[1]!NILOWLIMA)*[1]!NISUPNA),IF(U15>[1]!NILOWLIMA,(U15-[1]!NILOWLIMA)*[1]!NISUPNA,0)))+IF(U15>[1]!NILOWLIMA,-[1]!NICREBATEA,0) -> 0 | AI15: =IF($Q15="N",IF(V15>[1]!NIUPPLIMA,((V15-[1]!NIUPPLIMA)*[1]!NIUPPERA)+([1]!NIUPPLIMA-[1]!NILOWLIMA)*[1]!NILOWA,IF(V15>[1]!NILOWLIMA,(V15-[1]!NILOWLIMA)*[1]!NILOWA,0)))+IF($Q15="Y",IF(V15>[1]!NIUPPLIMA,((V15-[1]!NIUPPLIMA)*[1]!NIUPPERA)+(([1]!NIUPPLIMA-[1]!NILOWLIMA)*[1]!NISUPNA),IF(V15>[1]!NILOWLIMA,(V15-[1]!NILOWLIMA)*[1]!NISUPNA,0)))+IF(V15>[1]!NILOWLIMA,-[1]!NICREBATEA,0) -> 0 | AJ15: =IF($Q15="N",IF(W15>[1]!NIUPPLIMA,((W15-[1]!NIUPPLIMA)*[1]!NIUPPERA)+([1]!NIUPPLIMA-[1]!NILOWLIMA)*[1]!NILOWA,IF(W15>[1]!NILOWLIMA,(W15-[1]!NILOWLIMA)*[1]!NILOWA,0)))+IF($Q15="Y",IF(W15>[1]!NIUPPLIMA,((W15-[1]!NIUPPLIMA)*[1]!NIUPPERA)+(([1]!NIUPPLIMA-[1]!NILOWLIMA)*[1]!NISUPNA),IF(W15>[1]!NILOWLIMA,(W15-[1]!NILOWLIMA)*[1]!NISUPNA,0)))+IF(W15>[1]!NILOWLIMA,-[1]!NICREBATEA,0) -> 0 | AK15: =IF($Q15="N",IF(X15>[1]!NIUPPLIMA,((X15-[1]!NIUPPLIMA)*[1]!NIUPPERA)+([1]!NIUPPLIMA-[1]!NILOWLIMA)*[1]!NILOWA,IF(X15>[1]!NILOWLIMA,(X15-[1]!NILOWLIMA)*[1]!NILOWA,0)))+IF($Q15="Y",IF(X15>[1]!NIUPPLIMA,((X15-[1]!NIUPPLIMA)*[1]!NIUPPERA)+(([1]!NIUPPLIMA-[1]!NILOWLIMA)*[1]!NISUPNA),IF(X15>[1]!NILOWLIMA,(X15-[1]!NILOWLIMA)*[1]!NISUPNA,0)))+IF(X15>[1]!NILOWLIMA,-[1]!NICREBATEA,0) -> 0 | AL15: =IF($Q15="N",IF(Y15>[1]!NIUPPLIMA,((Y15-[1]!NIUPPLIMA)*[1]!NIUPPERA)+([1]!NIUPPLIMA-[1]!NILOWLIMA)*[1]!NILOWA,IF(Y15>[1]!NILOWLIMA,(Y15-[1]!NILOWLIMA)*[1]!NILOWA,0)))+IF($Q15="Y",IF(Y15>[1]!NIUPPLIMA,((Y15-[1]!NIUPPLIMA)*[1]!NIUPPERA)+(([1]!NIUPPLIMA-[1]!NILOWLIMA)*[1]!NISUPNA),IF(Y15>[1]!NILOWLIMA,(Y15-[1]!NILOWLIMA)*[1]!NISUPNA,0)))+IF(Y15>[1]!NILOWLIMA,-[1]!NICREBATEA,0) -> 0 | AM15: =IF($Q15="N",IF(Z15>[1]!NIUPPLIMA,((Z15-[1]!NIUPPLIMA)*[1]!NIUPPERA)+([1]!NIUPPLIMA-[1]!NILOWLIMA)*[1]!NILOWA,IF(Z15>[1]!NILOWLIMA,(Z15-[1]!NILOWLIMA)*[1]!NILOWA,0)))+IF($Q15="Y",IF(Z15>[1]!NIUPPLIMA,((Z15-[1]!NIUPPLIMA)*[1]!NIUPPERA)+(([1]!NIUPPLIMA-[1]!NILOWLIMA)*[1]!NISUPNA),IF(Z15>[1]!NILOWLIMA,(Z15-[1]!NILOWLIMA)*[1]!NISUPNA,0)))+IF(Z15>[1]!NILOWLIMA,-[1]!NICREBATEA,0) -> 0 | AN15: =IF($Q15="N",IF(AA15>[1]!NIUPPLIMA,((AA15-[1]!NIUPPLIMA)*[1]!NIUPPERA)+([1]!NIUPPLIMA-[1]!NILOWLIMA)*[1]!NILOWA,IF(AA15>[1]!NILOWLIMA,(AA15-[1]!NILOWLIMA)*[1]!NILOWA,0)))+IF($Q15="Y",IF(AA15>[1]!NIUPPLIMA,((AA15-[1]!NIUPPLIMA)*[1]!NIUPPERA)+(([1]!NIUPPLIMA-[1]!NILOWLIMA)*[1]!NISUPNA),IF(AA15>[1]!NILOWLIMA,(AA15-[1]!NILOWLIMA)*[1]!NISUPNA,0)))+IF(AA15>[1]!NILOWLIMA,-[1]!NICREBATEA,0) -> 0 | AO15: =IF($Q15="N",IF(AB15>[1]!NIUPPLIMA,((AB15-[1]!NIUPPLIMA)*[1]!NIUPPERA)+([1]!NIUPPLIMA-[1]!NILOWLIMA)*[1]!NILOWA,IF(AB15>[1]!NILOWLIMA,(AB15-[1]!NILOWLIMA)*[1]!NILOWA,0)))+IF($Q15="Y",IF(AB15>[1]!NIUPPLIMA,((AB15-[1]!NIUPPLIMA)*[1]!NIUPPERA)+(([1]!NIUPPLIMA-[1]!NILOWLIMA)*[1]!NISUPNA),IF(AB15>[1]!NILOWLIMA,(AB15-[1]!NILOWLIMA)*[1]!NISUPNA,0)))+IF(AB15>[1]!NILOWLIMA,-[1]!NICREBATEA,0) -> 0 | AP15: =IF($Q15="N",IF(AC15>[1]!NIUPPLIMA,((AC15-[1]!NIUPPLIMA)*[1]!NIUPPERA)+([1]!NIUPPLIMA-[1]!NILOWLIMA)*[1]!NILOWA,IF(AC15>[1]!NILOWLIMA,(AC15-[1]!NILOWLIMA)*[1]!NILOWA,0)))+IF($Q15="Y",IF(AC15>[1]!NIUPPLIMA,((AC15-[1]!NIUPPLIMA)*[1]!NIUPPERA)+(([1]!NIUPPLIMA-[1]!NILOWLIMA)*[1]!NISUPNA),IF(AC15>[1]!NILOWLIMA,(AC15-[1]!NILOWLIMA)*[1]!NISUPNA,0)))+IF(AC15>[1]!NILOWLIMA,-[1]!NICREBATEA,0) -> 0 | AQ15: =IF($Q15="N",IF(AD15>[1]!NIUPPLIMA,((AD15-[1]!NIUPPLIMA)*[1]!NIUPPERA)+([1]!NIUPPLIMA-[1]!NILOWLIMA)*[1]!NILOWA,IF(AD15>[1]!NILOWLIMA,(AD15-[1]!NILOWLIMA)*[1]!NILOWA,0)))+IF($Q15="Y",IF(AD15>[1]!NIUPPLIMA,((AD15-[1]!NIUPPLIMA)*[1]!NIUPPERA)+(([1]!NIUPPLIMA-[1]!NILOWLIMA)*[1]!NISUPNA),IF(AD15>[1]!NILOWLIMA,(AD15-[1]!NILOWLIMA)*[1]!NISUPNA,0)))+IF(AD15>[1]!NILOWLIMA,-[1]!NICREBATEA,0) -> 0 | AR15: =IF($Q15="N",IF(AE15>[1]!NIUPPLIMA,((AE15-[1]!NIUPPLIMA)*[1]!NIUPPERA)+([1]!NIUPPLIMA-[1]!NILOWLIMA)*[1]!NILOWA,IF(AE15>[1]!NILOWLIMA,(AE15-[1]!NILOWLIMA)*[1]!NILOWA,0)))+IF($Q15="Y",IF(AE15>[1]!NIUPPLIMA,((AE15-[1]!NIUPPLIMA)*[1]!NIUPPERA)+(([1]!NIUPPLIMA-[1]!NILOWLIMA)*[1]!NISUPNA),IF(AE15>[1]!NILOWLIMA,(AE15-[1]!NILOWLIMA)*[1]!NISUPNA,0)))+IF(AE15>[1]!NILOWLIMA,-[1]!NICREBATEA,0) -> 0 | AS15: =IF($Q15="N",IF(AF15>[1]!NIUPPLIMA,((AF15-[1]!NIUPPLIMA)*[1]!NIUPPERA)+([1]!NIUPPLIMA-[1]!NILOWLIMA)*[1]!NILOWA,IF(AF15>[1]!NILOWLIMA,(AF15-[1]!NILOWLIMA)*[1]!NILOWA,0)))+IF($Q15="Y",IF(AF15>[1]!NIUPPLIMA,((AF15-[1]!NIUPPLIMA)*[1]!NIUPPERA)+(([1]!NIUPPLIMA-[1]!NILOWLIMA)*[1]!NISUPNA),IF(AF15>[1]!NILOWLIMA,(AF15-[1]!NILOWLIMA)*[1]!NISUPNA,0)))+IF(AF15>[1]!NILOWLIMA,-[1]!NICREBATEA,0) -> 0 | AT15: 0 | AU15: 0 | AV15: 0 | AW15: =IF($E15="TEACHER",IF($I15<6,$I15+1,IF(LEFT($I15,1)="U",$I15,6)),IF($E15="LEADER",+I15,IF($E15="UNQUAL",IF($I15<10,$I15+1,10),IF($E15="ADVANCED",IF($I15<27,$I15+1,27))))) -> 10 | AX15: =(K15+M15+O15+P15) -> 0 | AY15: =IF($E15="LEADER",VLOOKUP(AW15,[1]!LEADERSHIP,5),IF($E15="TEACHER",VLOOKUP(AW15,[1]!TEACHER,5),IF($E15="ADVANCED",VLOOKUP($AW15,[1]!ADVANCED_SKILLS_TEACHERS,5),IF($E15="UNQUAL",VLOOKUP($AW15,[1]!UNQUALIFIED_TEACHER,5),0))))*D15*(1+BA$4)*(1+BA$5)+(AX15/AZ15) -> 0 | AZ15: =IF(G15-F15>11.99999,12,MONTH(G15)-MONTH(F15)) -> 12 | BA15: =NumberOfDaysWorked($F15,$G15,BD$1,BF$1)*(($S15*(1+BA$4))*5)+NumberOfDaysWorked($F15,$G15,BD$1,BF$1)*($AY15*7) -> 0 | BD15: =(IF($Q15="N",IF(AY15>[1]!NIUPPLIMB,((AY15-[1]!NIUPPLIMB)*[1]!NIUPPERB)+([1]!NIUPPLIMB-[1]!NILOWLIMB)*[1]!NILOWB,IF(AY15>[1]!NILOWLIMB,(AY15-[1]!NILOWLIMB)*[1]!NILOWB,0)))+IF($Q15="Y",IF(AY15>[1]!NIUPPLIMB,((AY15-[1]!NIUPPLIMB)*[1]!NIUPPERB)+(([1]!NIUPPLIMB-[1]!NILOWLIMB)*[1]!NISUPNB),IF(AY15>[1]!NILOWLIMB,(AY15-[1]!NILOWLIMB)*[1]!NISUPNB,0))))*((NumberOfDaysWorked($F15,$G15,BD$1,BF$1)*5)+(NumberOfDaysWorked($F15,$G15,BD$1,BF$1)*7)) -> 0 | BE15: =IF($Q15="N",0,(BA15*$BE$5)) -> 0 | BF15: =SUM(BA15:BE15) -> 0 | BG15: =IF($E15="TEACHER",IF(AW15<6,AW15+1,IF(LEFT(AW15,1)="U",AW15,6)),IF($E15="LEADER",+I15,IF($E15="UNQUAL",IF(AW15<10,AW15+1,10),IF($E15="ADVANCED",IF(AW15<27,AW15+1,27))))) -> 10 | BH15: =(K15+M15+O15+P15) -> 0 | BI15: =IF($E15="LEADER",VLOOKUP(BG15,[1]!LEADERSHIP,5),IF($E15="TEACHER",VLOOKUP(BG15,[1]!TEACHER,5),IF($E15="ADVANCED",VLOOKUP($AW15,[1]!ADVANCED_SKILLS_TEACHERS,5),IF($E15="UNQUAL",VLOOKUP($AW15,[1]!UNQUALIFIED_TEACHER,5),0))))*D15*(1+BA$4)*(1+BA$5)*(1+BK$4)*(1+BK$5)+(BH15/BJ15) -> 0 | BJ15: =IF(G15-F15>11.99999,12,MONTH(G15)-MONTH(F15)) -> 12 | BK15: =NumberOfDaysWorked($F15,$G15,BN$1,BP$1)*(($AY15*(1+BK$4))*5)+NumberOfDaysWorked($F15,$G15,BN$1,BP$1)*($BI15*7) -> 0 | BN15: =(IF($Q15="N",IF(BI15>[1]!NIUPPLIMC,((BI15-[1]!NIUPPLIMC)*[1]!NIUPPERC)+([1]!NIUPPLIMC-[1]!NILOWLIMC)*[1]!NILOWC,IF(BI15>[1]!NILOWLIMC,(BI15-[1]!NILOWLIMC)*[1]!NILOWC,0)))+IF($Q15="Y",IF(BI15>[1]!NIUPPLIMC,((BI15-[1]!NIUPPLIMC)*[1]!NIUPPERC)+(([1]!NIUPPLIMC-[1]!NILOWLIMC)*[1]!NISUPNC),IF(BI15>[1]!NILOWLIMC,(BI15-[1]!NILOWLIMC)*[1]!NISUPNC,0))))*((NumberOfDaysWorked($F15,$G15,BN$1,BP$1)*5)+(NumberOfDaysWorked($F15,$G15,BN$1,BP$1)*7)) -> 0 | BO15: =IF($Q15="N",0,(BK15*$BO$5)) -> 0 | BP15: =SUM(BK15:BO15) -> 0
A16: x | C16: A01001 | D16: 0 | E16: LEADER | F16: 2026-04-01 | G16: 2029-03-31 | H16: 5 | I16: 5 | Q16: Y | R16: =IF($E16="LEADER",VLOOKUP(H16,[1]PAYDATA!$A$4:$C$54,3),IF($E16="TEACHER",VLOOKUP(H16,[1]PAYDATA!$A$70:$C$80,3),IF($E16="ADVANCED",VLOOKUP(H16,[1]PAYDATA!$A$141:$C$159,3),IF($E16="UNQUAL",VLOOKUP(H16,[1]PAYDATA!$A$57:$C$63,3),0))))*$D16+($K16/T16)+($M16/T16)+($O16/T16)+($P16/T16) -> 0 | S16: =IF($E16="LEADER",VLOOKUP(I16,[1]!LEADERSHIP,5),IF($E16="TEACHER",VLOOKUP(I16,[1]!TEACHER,5),IF($E16="ADVANCED",VLOOKUP(I16,[1]PAYDATA!$A$141:$E$159,5),IF($E16="UNQUAL",VLOOKUP(I16,[1]!UNQUALIFIED_TEACHER,5),0))))*$D16+($K16/T16)+($M16/T16)+($O16/T16)+($P16/T16) -> 0 | T16: =IF(G16-F16>11.99999,12,MONTH(G16)-MONTH(F16)) -> 12 | U16: 0 | V16: 0 | W16: 0 | X16: 0 | Y16: 0 | Z16: 0 | AA16: 0 | AB16: 0 | AC16: 0 | AD16: 0 | AE16: 0 | AF16: 0 | AG16: 0 | AH16: =IF($Q16="N",IF(U16>[1]!NIUPPLIMA,((U16-[1]!NIUPPLIMA)*[1]!NIUPPERA)+([1]!NIUPPLIMA-[1]!NILOWLIMA)*[1]!NILOWA,IF(U16>[1]!NILOWLIMA,(U16-[1]!NILOWLIMA)*[1]!NILOWA,0)))+IF($Q16="Y",IF(U16>[1]!NIUPPLIMA,((U16-[1]!NIUPPLIMA)*[1]!NIUPPERA)+(([1]!NIUPPLIMA-[1]!NILOWLIMA)*[1]!NISUPNA),IF(U16>[1]!NILOWLIMA,(U16-[1]!NILOWLIMA)*[1]!NISUPNA,0)))+IF(U16>[1]!NILOWLIMA,-[1]!NICREBATEA,0) -> 0 | AI16: =IF($Q16="N",IF(V16>[1]!NIUPPLIMA,((V16-[1]!NIUPPLIMA)*[1]!NIUPPERA)+([1]!NIUPPLIMA-[1]!NILOWLIMA)*[1]!NILOWA,IF(V16>[1]!NILOWLIMA,(V16-[1]!NILOWLIMA)*[1]!NILOWA,0)))+IF($Q16="Y",IF(V16>[1]!NIUPPLIMA,((V16-[1]!NIUPPLIMA)*[1]!NIUPPERA)+(([1]!NIUPPLIMA-[1]!NILOWLIMA)*[1]!NISUPNA),IF(V16>[1]!NILOWLIMA,(V16-[1]!NILOWLIMA)*[1]!NISUPNA,0)))+IF(V16>[1]!NILOWLIMA,-[1]!NICREBATEA,0) -> 0 | AJ16: =IF($Q16="N",IF(W16>[1]!NIUPPLIMA,((W16-[1]!NIUPPLIMA)*[1]!NIUPPERA)+([1]!NIUPPLIMA-[1]!NILOWLIMA)*[1]!NILOWA,IF(W16>[1]!NILOWLIMA,(W16-[1]!NILOWLIMA)*[1]!NILOWA,0)))+IF($Q16="Y",IF(W16>[1]!NIUPPLIMA,((W16-[1]!NIUPPLIMA)*[1]!NIUPPERA)+(([1]!NIUPPLIMA-[1]!NILOWLIMA)*[1]!NISUPNA),IF(W16>[1]!NILOWLIMA,(W16-[1]!NILOWLIMA)*[1]!NISUPNA,0)))+IF(W16>[1]!NILOWLIMA,-[1]!NICREBATEA,0) -> 0 | AK16: =IF($Q16="N",IF(X16>[1]!NIUPPLIMA,((X16-[1]!NIUPPLIMA)*[1]!NIUPPERA)+([1]!NIUPPLIMA-[1]!NILOWLIMA)*[1]!NILOWA,IF(X16>[1]!NILOWLIMA,(X16-[1]!NILOWLIMA)*[1]!NILOWA,0)))+IF($Q16="Y",IF(X16>[1]!NIUPPLIMA,((X16-[1]!NIUPPLIMA)*[1]!NIUPPERA)+(([1]!NIUPPLIMA-[1]!NILOWLIMA)*[1]!NISUPNA),IF(X16>[1]!NILOWLIMA,(X16-[1]!NILOWLIMA)*[1]!NISUPNA,0)))+IF(X16>[1]!NILOWLIMA,-[1]!NICREBATEA,0) -> 0 | AL16: =IF($Q16="N",IF(Y16>[1]!NIUPPLIMA,((Y16-[1]!NIUPPLIMA)*[1]!NIUPPERA)+([1]!NIUPPLIMA-[1]!NILOWLIMA)*[1]!NILOWA,IF(Y16>[1]!NILOWLIMA,(Y16-[1]!NILOWLIMA)*[1]!NILOWA,0)))+IF($Q16="Y",IF(Y16>[1]!NIUPPLIMA,((Y16-[1]!NIUPPLIMA)*[1]!NIUPPERA)+(([1]!NIUPPLIMA-[1]!NILOWLIMA)*[1]!NISUPNA),IF(Y16>[1]!NILOWLIMA,(Y16-[1]!NILOWLIMA)*[1]!NISUPNA,0)))+IF(Y16>[1]!NILOWLIMA,-[1]!NICREBATEA,0) -> 0 | AM16: =IF($Q16="N",IF(Z16>[1]!NIUPPLIMA,((Z16-[1]!NIUPPLIMA)*[1]!NIUPPERA)+([1]!NIUPPLIMA-[1]!NILOWLIMA)*[1]!NILOWA,IF(Z16>[1]!NILOWLIMA,(Z16-[1]!NILOWLIMA)*[1]!NILOWA,0)))+IF($Q16="Y",IF(Z16>[1]!NIUPPLIMA,((Z16-[1]!NIUPPLIMA)*[1]!NIUPPERA)+(([1]!NIUPPLIMA-[1]!NILOWLIMA)*[1]!NISUPNA),IF(Z16>[1]!NILOWLIMA,(Z16-[1]!NILOWLIMA)*[1]!NISUPNA,0)))+IF(Z16>[1]!NILOWLIMA,-[1]!NICREBATEA,0) -> 0 | AN16: =IF($Q16="N",IF(AA16>[1]!NIUPPLIMA,((AA16-[1]!NIUPPLIMA)*[1]!NIUPPERA)+([1]!NIUPPLIMA-[1]!NILOWLIMA)*[1]!NILOWA,IF(AA16>[1]!NILOWLIMA,(AA16-[1]!NILOWLIMA)*[1]!NILOWA,0)))+IF($Q16="Y",IF(AA16>[1]!NIUPPLIMA,((AA16-[1]!NIUPPLIMA)*[1]!NIUPPERA)+(([1]!NIUPPLIMA-[1]!NILOWLIMA)*[1]!NISUPNA),IF(AA16>[1]!NILOWLIMA,(AA16-[1]!NILOWLIMA)*[1]!NISUPNA,0)))+IF(AA16>[1]!NILOWLIMA,-[1]!NICREBATEA,0) -> 0 | AO16: =IF($Q16="N",IF(AB16>[1]!NIUPPLIMA,((AB16-[1]!NIUPPLIMA)*[1]!NIUPPERA)+([1]!NIUPPLIMA-[1]!NILOWLIMA)*[1]!NILOWA,IF(AB16>[1]!NILOWLIMA,(AB16-[1]!NILOWLIMA)*[1]!NILOWA,0)))+IF($Q16="Y",IF(AB16>[1]!NIUPPLIMA,((AB16-[1]!NIUPPLIMA)*[1]!NIUPPERA)+(([1]!NIUPPLIMA-[1]!NILOWLIMA)*[1]!NISUPNA),IF(AB16>[1]!NILOWLIMA,(AB16-[1]!NILOWLIMA)*[1]!NISUPNA,0)))+IF(AB16>[1]!NILOWLIMA,-[1]!NICREBATEA,0) -> 0 | AP16: =IF($Q16="N",IF(AC16>[1]!NIUPPLIMA,((AC16-[1]!NIUPPLIMA)*[1]!NIUPPERA)+([1]!NIUPPLIMA-[1]!NILOWLIMA)*[1]!NILOWA,IF(AC16>[1]!NILOWLIMA,(AC16-[1]!NILOWLIMA)*[1]!NILOWA,0)))+IF($Q16="Y",IF(AC16>[1]!NIUPPLIMA,((AC16-[1]!NIUPPLIMA)*[1]!NIUPPERA)+(([1]!NIUPPLIMA-[1]!NILOWLIMA)*[1]!NISUPNA),IF(AC16>[1]!NILOWLIMA,(AC16-[1]!NILOWLIMA)*[1]!NISUPNA,0)))+IF(AC16>[1]!NILOWLIMA,-[1]!NICREBATEA,0) -> 0 | AQ16: =IF($Q16="N",IF(AD16>[1]!NIUPPLIMA,((AD16-[1]!NIUPPLIMA)*[1]!NIUPPERA)+([1]!NIUPPLIMA-[1]!NILOWLIMA)*[1]!NILOWA,IF(AD16>[1]!NILOWLIMA,(AD16-[1]!NILOWLIMA)*[1]!NILOWA,0)))+IF($Q16="Y",IF(AD16>[1]!NIUPPLIMA,((AD16-[1]!NIUPPLIMA)*[1]!NIUPPERA)+(([1]!NIUPPLIMA-[1]!NILOWLIMA)*[1]!NISUPNA),IF(AD16>[1]!NILOWLIMA,(AD16-[1]!NILOWLIMA)*[1]!NISUPNA,0)))+IF(AD16>[1]!NILOWLIMA,-[1]!NICREBATEA,0) -> 0 | AR16: =IF($Q16="N",IF(AE16>[1]!NIUPPLIMA,((AE16-[1]!NIUPPLIMA)*[1]!NIUPPERA)+([1]!NIUPPLIMA-[1]!NILOWLIMA)*[1]!NILOWA,IF(AE16>[1]!NILOWLIMA,(AE16-[1]!NILOWLIMA)*[1]!NILOWA,0)))+IF($Q16="Y",IF(AE16>[1]!NIUPPLIMA,((AE16-[1]!NIUPPLIMA)*[1]!NIUPPERA)+(([1]!NIUPPLIMA-[1]!NILOWLIMA)*[1]!NISUPNA),IF(AE16>[1]!NILOWLIMA,(AE16-[1]!NILOWLIMA)*[1]!NISUPNA,0)))+IF(AE16>[1]!NILOWLIMA,-[1]!NICREBATEA,0) -> 0 | AS16: =IF($Q16="N",IF(AF16>[1]!NIUPPLIMA,((AF16-[1]!NIUPPLIMA)*[1]!NIUPPERA)+([1]!NIUPPLIMA-[1]!NILOWLIMA)*[1]!NILOWA,IF(AF16>[1]!NILOWLIMA,(AF16-[1]!NILOWLIMA)*[1]!NILOWA,0)))+IF($Q16="Y",IF(AF16>[1]!NIUPPLIMA,((AF16-[1]!NIUPPLIMA)*[1]!NIUPPERA)+(([1]!NIUPPLIMA-[1]!NILOWLIMA)*[1]!NISUPNA),IF(AF16>[1]!NILOWLIMA,(AF16-[1]!NILOWLIMA)*[1]!NISUPNA,0)))+IF(AF16>[1]!NILOWLIMA,-[1]!NICREBATEA,0) -> 0 | AT16: 0 | AU16: 0 | AV16: 0 | AW16: 5 | AX16: 0 | AY16: =IF($E16="LEADER",VLOOKUP(AW16,[1]!LEADERSHIP,5),IF($E16="TEACHER",VLOOKUP(AW16,[1]!TEACHER,5),IF($E16="ADVANCED",VLOOKUP($AW16,[1]!ADVANCED_SKILLS_TEACHERS,5),IF($E16="UNQUAL",VLOOKUP($AW16,[1]!UNQUALIFIED_TEACHER,5),0))))*D16*(1+BA$4)*(1+BA$5)+(AX16/AZ16) -> 0 | AZ16: 12 | BA16: 0 | BD16: =(IF($Q16="N",IF(AY16>[1]!NIUPPLIMB,((AY16-[1]!NIUPPLIMB)*[1]!NIUPPERB)+([1]!NIUPPLIMB-[1]!NILOWLIMB)*[1]!NILOWB,IF(AY16>[1]!NILOWLIMB,(AY16-[1]!NILOWLIMB)*[1]!NILOWB,0)))+IF($Q16="Y",IF(AY16>[1]!NIUPPLIMB,((AY16-[1]!NIUPPLIMB)*[1]!NIUPPERB)+(([1]!NIUPPLIMB-[1]!NILOWLIMB)*[1]!NISUPNB),IF(AY16>[1]!NILOWLIMB,(AY16-[1]!NILOWLIMB)*[1]!NISUPNB,0))))*((NumberOfDaysWorked($F16,$G16,BD$1,BF$1)*5)+(NumberOfDaysWorked($F16,$G16,BD$1,BF$1)*7)) -> 0 | BE16: 0 | BF16: 0 | BG16: 5 | BH16: 0 | BI16: =IF($E16="LEADER",VLOOKUP(BG16,[1]!LEADERSHIP,5),IF($E16="TEACHER",VLOOKUP(BG16,[1]!TEACHER,5),IF($E16="ADVANCED",VLOOKUP($AW16,[1]!ADVANCED_SKILLS_TEACHERS,5),IF($E16="UNQUAL",VLOOKUP($AW16,[1]!UNQUALIFIED_TEACHER,5),0))))*D16*(1+BA$4)*(1+BA$5)*(1+BK$4)*(1+BK$5)+(BH16/BJ16) -> 0 | BJ16: 12 | BK16: 0 | BN16: =(IF($Q16="N",IF(BI16>[1]!NIUPPLIMC,((BI16-[1]!NIUPPLIMC)*[1]!NIUPPERC)+([1]!NIUPPLIMC-[1]!NILOWLIMC)*[1]!NILOWC,IF(BI16>[1]!NILOWLIMC,(BI16-[1]!NILOWLIMC)*[1]!NILOWC,0)))+IF($Q16="Y",IF(BI16>[1]!NIUPPLIMC,((BI16-[1]!NIUPPLIMC)*[1]!NIUPPERC)+(([1]!NIUPPLIMC-[1]!NILOWLIMC)*[1]!NISUPNC),IF(BI16>[1]!NILOWLIMC,(BI16-[1]!NILOWLIMC)*[1]!NISUPNC,0))))*((NumberOfDaysWorked($F16,$G16,BN$1,BP$1)*5)+(NumberOfDaysWorked($F16,$G16,BN$1,BP$1)*7)) -> 0 | BO16: 0 | BP16: 0
A17: x | B17: Assistant Head Teacher | C17: A01001 | D17: 0 | E17: LEADER | F17: 2026-04-01 | G17: 2029-03-31 | H17: 5 | I17: 5 | Q17: Y | R17: =IF($E17="LEADER",VLOOKUP(H17,[1]PAYDATA!$A$4:$C$54,3),IF($E17="TEACHER",VLOOKUP(H17,[1]PAYDATA!$A$70:$C$80,3),IF($E17="ADVANCED",VLOOKUP(H17,[1]PAYDATA!$A$141:$C$159,3),IF($E17="UNQUAL",VLOOKUP(H17,[1]PAYDATA!$A$57:$C$63,3),0))))*$D17+($K17/T17)+($M17/T17)+($O17/T17)+($P17/T17) -> 0 | S17: =IF($E17="LEADER",VLOOKUP(I17,[1]!LEADERSHIP,5),IF($E17="TEACHER",VLOOKUP(I17,[1]!TEACHER,5),IF($E17="ADVANCED",VLOOKUP(I17,[1]PAYDATA!$A$141:$E$159,5),IF($E17="UNQUAL",VLOOKUP(I17,[1]!UNQUALIFIED_TEACHER,5),0))))*$D17+($K17/T17)+($M17/T17)+($O17/T17)+($P17/T17) -> 0 | T17: 12 | U17: 0 | V17: 0 | W17: 0 | X17: 0 | Y17: 0 | Z17: 0 | AA17: 0 | AB17: 0 | AC17: 0 | AD17: 0 | AE17: 0 | AF17: 0 | AG17: 0 | AH17: =IF($Q17="N",IF(U17>[1]!NIUPPLIMA,((U17-[1]!NIUPPLIMA)*[1]!NIUPPERA)+([1]!NIUPPLIMA-[1]!NILOWLIMA)*[1]!NILOWA,IF(U17>[1]!NILOWLIMA,(U17-[1]!NILOWLIMA)*[1]!NILOWA,0)))+IF($Q17="Y",IF(U17>[1]!NIUPPLIMA,((U17-[1]!NIUPPLIMA)*[1]!NIUPPERA)+(([1]!NIUPPLIMA-[1]!NILOWLIMA)*[1]!NISUPNA),IF(U17>[1]!NILOWLIMA,(U17-[1]!NILOWLIMA)*[1]!NISUPNA,0)))+IF(U17>[1]!NILOWLIMA,-[1]!NICREBATEA,0) -> 0 | AI17: =IF($Q17="N",IF(V17>[1]!NIUPPLIMA,((V17-[1]!NIUPPLIMA)*[1]!NIUPPERA)+([1]!NIUPPLIMA-[1]!NILOWLIMA)*[1]!NILOWA,IF(V17>[1]!NILOWLIMA,(V17-[1]!NILOWLIMA)*[1]!NILOWA,0)))+IF($Q17="Y",IF(V17>[1]!NIUPPLIMA,((V17-[1]!NIUPPLIMA)*[1]!NIUPPERA)+(([1]!NIUPPLIMA-[1]!NILOWLIMA)*[1]!NISUPNA),IF(V17>[1]!NILOWLIMA,(V17-[1]!NILOWLIMA)*[1]!NISUPNA,0)))+IF(V17>[1]!NILOWLIMA,-[1]!NICREBATEA,0) -> 0 | AJ17: =IF($Q17="N",IF(W17>[1]!NIUPPLIMA,((W17-[1]!NIUPPLIMA)*[1]!NIUPPERA)+([1]!NIUPPLIMA-[1]!NILOWLIMA)*[1]!NILOWA,IF(W17>[1]!NILOWLIMA,(W17-[1]!NILOWLIMA)*[1]!NILOWA,0)))+IF($Q17="Y",IF(W17>[1]!NIUPPLIMA,((W17-[1]!NIUPPLIMA)*[1]!NIUPPERA)+(([1]!NIUPPLIMA-[1]!NILOWLIMA)*[1]!NISUPNA),IF(W17>[1]!NILOWLIMA,(W17-[1]!NILOWLIMA)*[1]!NISUPNA,0)))+IF(W17>[1]!NILOWLIMA,-[1]!NICREBATEA,0) -> 0 | AK17: =IF($Q17="N",IF(X17>[1]!NIUPPLIMA,((X17-[1]!NIUPPLIMA)*[1]!NIUPPERA)+([1]!NIUPPLIMA-[1]!NILOWLIMA)*[1]!NILOWA,IF(X17>[1]!NILOWLIMA,(X17-[1]!NILOWLIMA)*[1]!NILOWA,0)))+IF($Q17="Y",IF(X17>[1]!NIUPPLIMA,((X17-[1]!NIUPPLIMA)*[1]!NIUPPERA)+(([1]!NIUPPLIMA-[1]!NILOWLIMA)*[1]!NISUPNA),IF(X17>[1]!NILOWLIMA,(X17-[1]!NILOWLIMA)*[1]!NISUPNA,0)))+IF(X17>[1]!NILOWLIMA,-[1]!NICREBATEA,0) -> 0 | AL17: =IF($Q17="N",IF(Y17>[1]!NIUPPLIMA,((Y17-[1]!NIUPPLIMA)*[1]!NIUPPERA)+([1]!NIUPPLIMA-[1]!NILOWLIMA)*[1]!NILOWA,IF(Y17>[1]!NILOWLIMA,(Y17-[1]!NILOWLIMA)*[1]!NILOWA,0)))+IF($Q17="Y",IF(Y17>[1]!NIUPPLIMA,((Y17-[1]!NIUPPLIMA)*[1]!NIUPPERA)+(([1]!NIUPPLIMA-[1]!NILOWLIMA)*[1]!NISUPNA),IF(Y17>[1]!NILOWLIMA,(Y17-[1]!NILOWLIMA)*[1]!NISUPNA,0)))+IF(Y17>[1]!NILOWLIMA,-[1]!NICREBATEA,0) -> 0 | AM17: =IF($Q17="N",IF(Z17>[1]!NIUPPLIMA,((Z17-[1]!NIUPPLIMA)*[1]!NIUPPERA)+([1]!NIUPPLIMA-[1]!NILOWLIMA)*[1]!NILOWA,IF(Z17>[1]!NILOWLIMA,(Z17-[1]!NILOWLIMA)*[1]!NILOWA,0)))+IF($Q17="Y",IF(Z17>[1]!NIUPPLIMA,((Z17-[1]!NIUPPLIMA)*[1]!NIUPPERA)+(([1]!NIUPPLIMA-[1]!NILOWLIMA)*[1]!NISUPNA),IF(Z17>[1]!NILOWLIMA,(Z17-[1]!NILOWLIMA)*[1]!NISUPNA,0)))+IF(Z17>[1]!NILOWLIMA,-[1]!NICREBATEA,0) -> 0 | AN17: =IF($Q17="N",IF(AA17>[1]!NIUPPLIMA,((AA17-[1]!NIUPPLIMA)*[1]!NIUPPERA)+([1]!NIUPPLIMA-[1]!NILOWLIMA)*[1]!NILOWA,IF(AA17>[1]!NILOWLIMA,(AA17-[1]!NILOWLIMA)*[1]!NILOWA,0)))+IF($Q17="Y",IF(AA17>[1]!NIUPPLIMA,((AA17-[1]!NIUPPLIMA)*[1]!NIUPPERA)+(([1]!NIUPPLIMA-[1]!NILOWLIMA)*[1]!NISUPNA),IF(AA17>[1]!NILOWLIMA,(AA17-[1]!NILOWLIMA)*[1]!NISUPNA,0)))+IF(AA17>[1]!NILOWLIMA,-[1]!NICREBATEA,0) -> 0 | AO17: =IF($Q17="N",IF(AB17>[1]!NIUPPLIMA,((AB17-[1]!NIUPPLIMA)*[1]!NIUPPERA)+([1]!NIUPPLIMA-[1]!NILOWLIMA)*[1]!NILOWA,IF(AB17>[1]!NILOWLIMA,(AB17-[1]!NILOWLIMA)*[1]!NILOWA,0)))+IF($Q17="Y",IF(AB17>[1]!NIUPPLIMA,((AB17-[1]!NIUPPLIMA)*[1]!NIUPPERA)+(([1]!NIUPPLIMA-[1]!NILOWLIMA)*[1]!NISUPNA),IF(AB17>[1]!NILOWLIMA,(AB17-[1]!NILOWLIMA)*[1]!NISUPNA,0)))+IF(AB17>[1]!NILOWLIMA,-[1]!NICREBATEA,0) -> 0 | AP17: =IF($Q17="N",IF(AC17>[1]!NIUPPLIMA,((AC17-[1]!NIUPPLIMA)*[1]!NIUPPERA)+([1]!NIUPPLIMA-[1]!NILOWLIMA)*[1]!NILOWA,IF(AC17>[1]!NILOWLIMA,(AC17-[1]!NILOWLIMA)*[1]!NILOWA,0)))+IF($Q17="Y",IF(AC17>[1]!NIUPPLIMA,((AC17-[1]!NIUPPLIMA)*[1]!NIUPPERA)+(([1]!NIUPPLIMA-[1]!NILOWLIMA)*[1]!NISUPNA),IF(AC17>[1]!NILOWLIMA,(AC17-[1]!NILOWLIMA)*[1]!NISUPNA,0)))+IF(AC17>[1]!NILOWLIMA,-[1]!NICREBATEA,0) -> 0 | AQ17: =IF($Q17="N",IF(AD17>[1]!NIUPPLIMA,((AD17-[1]!NIUPPLIMA)*[1]!NIUPPERA)+([1]!NIUPPLIMA-[1]!NILOWLIMA)*[1]!NILOWA,IF(AD17>[1]!NILOWLIMA,(AD17-[1]!NILOWLIMA)*[1]!NILOWA,0)))+IF($Q17="Y",IF(AD17>[1]!NIUPPLIMA,((AD17-[1]!NIUPPLIMA)*[1]!NIUPPERA)+(([1]!NIUPPLIMA-[1]!NILOWLIMA)*[1]!NISUPNA),IF(AD17>[1]!NILOWLIMA,(AD17-[1]!NILOWLIMA)*[1]!NISUPNA,0)))+IF(AD17>[1]!NILOWLIMA,-[1]!NICREBATEA,0) -> 0 | AR17: =IF($Q17="N",IF(AE17>[1]!NIUPPLIMA,((AE17-[1]!NIUPPLIMA)*[1]!NIUPPERA)+([1]!NIUPPLIMA-[1]!NILOWLIMA)*[1]!NILOWA,IF(AE17>[1]!NILOWLIMA,(AE17-[1]!NILOWLIMA)*[1]!NILOWA,0)))+IF($Q17="Y",IF(AE17>[1]!NIUPPLIMA,((AE17-[1]!NIUPPLIMA)*[1]!NIUPPERA)+(([1]!NIUPPLIMA-[1]!NILOWLIMA)*[1]!NISUPNA),IF(AE17>[1]!NILOWLIMA,(AE17-[1]!NILOWLIMA)*[1]!NISUPNA,0)))+IF(AE17>[1]!NILOWLIMA,-[1]!NICREBATEA,0) -> 0 | AS17: =IF($Q17="N",IF(AF17>[1]!NIUPPLIMA,((AF17-[1]!NIUPPLIMA)*[1]!NIUPPERA)+([1]!NIUPPLIMA-[1]!NILOWLIMA)*[1]!NILOWA,IF(AF17>[1]!NILOWLIMA,(AF17-[1]!NILOWLIMA)*[1]!NILOWA,0)))+IF($Q17="Y",IF(AF17>[1]!NIUPPLIMA,((AF17-[1]!NIUPPLIMA)*[1]!NIUPPERA)+(([1]!NIUPPLIMA-[1]!NILOWLIMA)*[1]!NISUPNA),IF(AF17>[1]!NILOWLIMA,(AF17-[1]!NILOWLIMA)*[1]!NISUPNA,0)))+IF(AF17>[1]!NILOWLIMA,-[1]!NICREBATEA,0) -> 0 | AT17: 0 | AU17: 0 | AV17: 0 | AW17: 5 | AX17: 0 | AY17: =IF($E17="LEADER",VLOOKUP(AW17,[1]!LEADERSHIP,5),IF($E17="TEACHER",VLOOKUP(AW17,[1]!TEACHER,5),IF($E17="ADVANCED",VLOOKUP($AW17,[1]!ADVANCED_SKILLS_TEACHERS,5),IF($E17="UNQUAL",VLOOKUP($AW17,[1]!UNQUALIFIED_TEACHER,5),0))))*D17*(1+BA$4)*(1+BA$5)+(AX17/AZ17) -> 0 | AZ17: 12 | BA17: 0 | BD17: =(IF($Q17="N",IF(AY17>[1]!NIUPPLIMB,((AY17-[1]!NIUPPLIMB)*[1]!NIUPPERB)+([1]!NIUPPLIMB-[1]!NILOWLIMB)*[1]!NILOWB,IF(AY17>[1]!NILOWLIMB,(AY17-[1]!NILOWLIMB)*[1]!NILOWB,0)))+IF($Q17="Y",IF(AY17>[1]!NIUPPLIMB,((AY17-[1]!NIUPPLIMB)*[1]!NIUPPERB)+(([1]!NIUPPLIMB-[1]!NILOWLIMB)*[1]!NISUPNB),IF(AY17>[1]!NILOWLIMB,(AY17-[1]!NILOWLIMB)*[1]!NISUPNB,0))))*((NumberOfDaysWorked($F17,$G17,BD$1,BF$1)*5)+(NumberOfDaysWorked($F17,$G17,BD$1,BF$1)*7)) -> 0 | BE17: 0 | BF17: 0 | BG17: 5 | BH17: 0 | BI17: =IF($E17="LEADER",VLOOKUP(BG17,[1]!LEADERSHIP,5),IF($E17="TEACHER",VLOOKUP(BG17,[1]!TEACHER,5),IF($E17="ADVANCED",VLOOKUP($AW17,[1]!ADVANCED_SKILLS_TEACHERS,5),IF($E17="UNQUAL",VLOOKUP($AW17,[1]!UNQUALIFIED_TEACHER,5),0))))*D17*(1+BA$4)*(1+BA$5)*(1+BK$4)*(1+BK$5)+(BH17/BJ17) -> 0 | BJ17: 12 | BK17: 0 | BN17: =(IF($Q17="N",IF(BI17>[1]!NIUPPLIMC,((BI17-[1]!NIUPPLIMC)*[1]!NIUPPERC)+([1]!NIUPPLIMC-[1]!NILOWLIMC)*[1]!NILOWC,IF(BI17>[1]!NILOWLIMC,(BI17-[1]!NILOWLIMC)*[1]!NILOWC,0)))+IF($Q17="Y",IF(BI17>[1]!NIUPPLIMC,((BI17-[1]!NIUPPLIMC)*[1]!NIUPPERC)+(([1]!NIUPPLIMC-[1]!NILOWLIMC)*[1]!NISUPNC),IF(BI17>[1]!NILOWLIMC,(BI17-[1]!NILOWLIMC)*[1]!NISUPNC,0))))*((NumberOfDaysWorked($F17,$G17,BN$1,BP$1)*5)+(NumberOfDaysWorked($F17,$G17,BN$1,BP$1)*7)) -> 0 | BO17: 0 | BP17: 0
A18: x | C18: A01001 | D18: 0 | E18: LEADER | F18: 2026-04-01 | G18: 2029-03-31 | H18: 7 | I18: 7 | Q18: Y | R18: =IF($E18="LEADER",VLOOKUP(H18,[1]PAYDATA!$A$4:$C$54,3),IF($E18="TEACHER",VLOOKUP(H18,[1]PAYDATA!$A$70:$C$80,3),IF($E18="ADVANCED",VLOOKUP(H18,[1]PAYDATA!$A$141:$C$159,3),IF($E18="UNQUAL",VLOOKUP(H18,[1]PAYDATA!$A$57:$C$63,3),0))))*$D18+($K18/T18)+($M18/T18)+($O18/T18)+($P18/T18) -> 0 | S18: =IF($E18="LEADER",VLOOKUP(I18,[1]!LEADERSHIP,5),IF($E18="TEACHER",VLOOKUP(I18,[1]!TEACHER,5),IF($E18="ADVANCED",VLOOKUP(I18,[1]PAYDATA!$A$141:$E$159,5),IF($E18="UNQUAL",VLOOKUP(I18,[1]!UNQUALIFIED_TEACHER,5),0))))*$D18+($K18/T18)+($M18/T18)+($O18/T18)+($P18/T18) -> 0 | T18: =IF(G18-F18>11.99999,12,MONTH(G18)-MONTH(F18)) -> 12 | U18: 0 | V18: 0 | W18: 0 | X18: 0 | Y18: 0 | Z18: 0 | AA18: 0 | AB18: 0 | AC18: 0 | AD18: 0 | AE18: 0 | AF18: 0 | AG18: 0 | AH18: =IF($Q18="N",IF(U18>[1]!NIUPPLIMA,((U18-[1]!NIUPPLIMA)*[1]!NIUPPERA)+([1]!NIUPPLIMA-[1]!NILOWLIMA)*[1]!NILOWA,IF(U18>[1]!NILOWLIMA,(U18-[1]!NILOWLIMA)*[1]!NILOWA,0)))+IF($Q18="Y",IF(U18>[1]!NIUPPLIMA,((U18-[1]!NIUPPLIMA)*[1]!NIUPPERA)+(([1]!NIUPPLIMA-[1]!NILOWLIMA)*[1]!NISUPNA),IF(U18>[1]!NILOWLIMA,(U18-[1]!NILOWLIMA)*[1]!NISUPNA,0)))+IF(U18>[1]!NILOWLIMA,-[1]!NICREBATEA,0) -> 0 | AI18: =IF($Q18="N",IF(V18>[1]!NIUPPLIMA,((V18-[1]!NIUPPLIMA)*[1]!NIUPPERA)+([1]!NIUPPLIMA-[1]!NILOWLIMA)*[1]!NILOWA,IF(V18>[1]!NILOWLIMA,(V18-[1]!NILOWLIMA)*[1]!NILOWA,0)))+IF($Q18="Y",IF(V18>[1]!NIUPPLIMA,((V18-[1]!NIUPPLIMA)*[1]!NIUPPERA)+(([1]!NIUPPLIMA-[1]!NILOWLIMA)*[1]!NISUPNA),IF(V18>[1]!NILOWLIMA,(V18-[1]!NILOWLIMA)*[1]!NISUPNA,0)))+IF(V18>[1]!NILOWLIMA,-[1]!NICREBATEA,0) -> 0 | AJ18: =IF($Q18="N",IF(W18>[1]!NIUPPLIMA,((W18-[1]!NIUPPLIMA)*[1]!NIUPPERA)+([1]!NIUPPLIMA-[1]!NILOWLIMA)*[1]!NILOWA,IF(W18>[1]!NILOWLIMA,(W18-[1]!NILOWLIMA)*[1]!NILOWA,0)))+IF($Q18="Y",IF(W18>[1]!NIUPPLIMA,((W18-[1]!NIUPPLIMA)*[1]!NIUPPERA)+(([1]!NIUPPLIMA-[1]!NILOWLIMA)*[1]!NISUPNA),IF(W18>[1]!NILOWLIMA,(W18-[1]!NILOWLIMA)*[1]!NISUPNA,0)))+IF(W18>[1]!NILOWLIMA,-[1]!NICREBATEA,0) -> 0 | AK18: =IF($Q18="N",IF(X18>[1]!NIUPPLIMA,((X18-[1]!NIUPPLIMA)*[1]!NIUPPERA)+([1]!NIUPPLIMA-[1]!NILOWLIMA)*[1]!NILOWA,IF(X18>[1]!NILOWLIMA,(X18-[1]!NILOWLIMA)*[1]!NILOWA,0)))+IF($Q18="Y",IF(X18>[1]!NIUPPLIMA,((X18-[1]!NIUPPLIMA)*[1]!NIUPPERA)+(([1]!NIUPPLIMA-[1]!NILOWLIMA)*[1]!NISUPNA),IF(X18>[1]!NILOWLIMA,(X18-[1]!NILOWLIMA)*[1]!NISUPNA,0)))+IF(X18>[1]!NILOWLIMA,-[1]!NICREBATEA,0) -> 0 | AL18: =IF($Q18="N",IF(Y18>[1]!NIUPPLIMA,((Y18-[1]!NIUPPLIMA)*[1]!NIUPPERA)+([1]!NIUPPLIMA-[1]!NILOWLIMA)*[1]!NILOWA,IF(Y18>[1]!NILOWLIMA,(Y18-[1]!NILOWLIMA)*[1]!NILOWA,0)))+IF($Q18="Y",IF(Y18>[1]!NIUPPLIMA,((Y18-[1]!NIUPPLIMA)*[1]!NIUPPERA)+(([1]!NIUPPLIMA-[1]!NILOWLIMA)*[1]!NISUPNA),IF(Y18>[1]!NILOWLIMA,(Y18-[1]!NILOWLIMA)*[1]!NISUPNA,0)))+IF(Y18>[1]!NILOWLIMA,-[1]!NICREBATEA,0) -> 0 | AM18: =IF($Q18="N",IF(Z18>[1]!NIUPPLIMA,((Z18-[1]!NIUPPLIMA)*[1]!NIUPPERA)+([1]!NIUPPLIMA-[1]!NILOWLIMA)*[1]!NILOWA,IF(Z18>[1]!NILOWLIMA,(Z18-[1]!NILOWLIMA)*[1]!NILOWA,0)))+IF($Q18="Y",IF(Z18>[1]!NIUPPLIMA,((Z18-[1]!NIUPPLIMA)*[1]!NIUPPERA)+(([1]!NIUPPLIMA-[1]!NILOWLIMA)*[1]!NISUPNA),IF(Z18>[1]!NILOWLIMA,(Z18-[1]!NILOWLIMA)*[1]!NISUPNA,0)))+IF(Z18>[1]!NILOWLIMA,-[1]!NICREBATEA,0) -> 0 | AN18: =IF($Q18="N",IF(AA18>[1]!NIUPPLIMA,((AA18-[1]!NIUPPLIMA)*[1]!NIUPPERA)+([1]!NIUPPLIMA-[1]!NILOWLIMA)*[1]!NILOWA,IF(AA18>[1]!NILOWLIMA,(AA18-[1]!NILOWLIMA)*[1]!NILOWA,0)))+IF($Q18="Y",IF(AA18>[1]!NIUPPLIMA,((AA18-[1]!NIUPPLIMA)*[1]!NIUPPERA)+(([1]!NIUPPLIMA-[1]!NILOWLIMA)*[1]!NISUPNA),IF(AA18>[1]!NILOWLIMA,(AA18-[1]!NILOWLIMA)*[1]!NISUPNA,0)))+IF(AA18>[1]!NILOWLIMA,-[1]!NICREBATEA,0) -> 0 | AO18: =IF($Q18="N",IF(AB18>[1]!NIUPPLIMA,((AB18-[1]!NIUPPLIMA)*[1]!NIUPPERA)+([1]!NIUPPLIMA-[1]!NILOWLIMA)*[1]!NILOWA,IF(AB18>[1]!NILOWLIMA,(AB18-[1]!NILOWLIMA)*[1]!NILOWA,0)))+IF($Q18="Y",IF(AB18>[1]!NIUPPLIMA,((AB18-[1]!NIUPPLIMA)*[1]!NIUPPERA)+(([1]!NIUPPLIMA-[1]!NILOWLIMA)*[1]!NISUPNA),IF(AB18>[1]!NILOWLIMA,(AB18-[1]!NILOWLIMA)*[1]!NISUPNA,0)))+IF(AB18>[1]!NILOWLIMA,-[1]!NICREBATEA,0) -> 0 | AP18: =IF($Q18="N",IF(AC18>[1]!NIUPPLIMA,((AC18-[1]!NIUPPLIMA)*[1]!NIUPPERA)+([1]!NIUPPLIMA-[1]!NILOWLIMA)*[1]!NILOWA,IF(AC18>[1]!NILOWLIMA,(AC18-[1]!NILOWLIMA)*[1]!NILOWA,0)))+IF($Q18="Y",IF(AC18>[1]!NIUPPLIMA,((AC18-[1]!NIUPPLIMA)*[1]!NIUPPERA)+(([1]!NIUPPLIMA-[1]!NILOWLIMA)*[1]!NISUPNA),IF(AC18>[1]!NILOWLIMA,(AC18-[1]!NILOWLIMA)*[1]!NISUPNA,0)))+IF(AC18>[1]!NILOWLIMA,-[1]!NICREBATEA,0) -> 0 | AQ18: =IF($Q18="N",IF(AD18>[1]!NIUPPLIMA,((AD18-[1]!NIUPPLIMA)*[1]!NIUPPERA)+([1]!NIUPPLIMA-[1]!NILOWLIMA)*[1]!NILOWA,IF(AD18>[1]!NILOWLIMA,(AD18-[1]!NILOWLIMA)*[1]!NILOWA,0)))+IF($Q18="Y",IF(AD18>[1]!NIUPPLIMA,((AD18-[1]!NIUPPLIMA)*[1]!NIUPPERA)+(([1]!NIUPPLIMA-[1]!NILOWLIMA)*[1]!NISUPNA),IF(AD18>[1]!NILOWLIMA,(AD18-[1]!NILOWLIMA)*[1]!NISUPNA,0)))+IF(AD18>[1]!NILOWLIMA,-[1]!NICREBATEA,0) -> 0 | AR18: =IF($Q18="N",IF(AE18>[1]!NIUPPLIMA,((AE18-[1]!NIUPPLIMA)*[1]!NIUPPERA)+([1]!NIUPPLIMA-[1]!NILOWLIMA)*[1]!NILOWA,IF(AE18>[1]!NILOWLIMA,(AE18-[1]!NILOWLIMA)*[1]!NILOWA,0)))+IF($Q18="Y",IF(AE18>[1]!NIUPPLIMA,((AE18-[1]!NIUPPLIMA)*[1]!NIUPPERA)+(([1]!NIUPPLIMA-[1]!NILOWLIMA)*[1]!NISUPNA),IF(AE18>[1]!NILOWLIMA,(AE18-[1]!NILOWLIMA)*[1]!NISUPNA,0)))+IF(AE18>[1]!NILOWLIMA,-[1]!NICREBATEA,0) -> 0 | AS18: =IF($Q18="N",IF(AF18>[1]!NIUPPLIMA,((AF18-[1]!NIUPPLIMA)*[1]!NIUPPERA)+([1]!NIUPPLIMA-[1]!NILOWLIMA)*[1]!NILOWA,IF(AF18>[1]!NILOWLIMA,(AF18-[1]!NILOWLIMA)*[1]!NILOWA,0)))+IF($Q18="Y",IF(AF18>[1]!NIUPPLIMA,((AF18-[1]!NIUPPLIMA)*[1]!NIUPPERA)+(([1]!NIUPPLIMA-[1]!NILOWLIMA)*[1]!NISUPNA),IF(AF18>[1]!NILOWLIMA,(AF18-[1]!NILOWLIMA)*[1]!NISUPNA,0)))+IF(AF18>[1]!NILOWLIMA,-[1]!NICREBATEA,0) -> 0 | AT18: 0 | AU18: 0 | AV18: 0 | AW18: =IF($E18="TEACHER",IF($I18<6,$I18+1,IF(LEFT($I18,1)="U",$I18,6)),IF($E18="LEADER",+I18,IF($E18="UNQUAL",IF($I18<10,$I18+1,10),IF($E18="ADVANCED",IF($I18<27,$I18+1,27))))) -> 7 | AX18: =(K18+M18+O18+P18) -> 0 | AY18: =IF($E18="LEADER",VLOOKUP(AW18,[1]!LEADERSHIP,5),IF($E18="TEACHER",VLOOKUP(AW18,[1]!TEACHER,5),IF($E18="ADVANCED",VLOOKUP($AW18,[1]!ADVANCED_SKILLS_TEACHERS,5),IF($E18="UNQUAL",VLOOKUP($AW18,[1]!UNQUALIFIED_TEACHER,5),0))))*D18*(1+BA$4)*(1+BA$5)+(AX18/AZ18) -> 0 | AZ18: =IF(G18-F18>11.99999,12,MONTH(G18)-MONTH(F18)) -> 12 | BA18: =NumberOfDaysWorked($F18,$G18,BD$1,BF$1)*(($S18*(1+BA$4))*5)+NumberOfDaysWorked($F18,$G18,BD$1,BF$1)*($AY18*7) -> 0 | BD18: =(IF($Q18="N",IF(AY18>[1]!NIUPPLIMB,((AY18-[1]!NIUPPLIMB)*[1]!NIUPPERB)+([1]!NIUPPLIMB-[1]!NILOWLIMB)*[1]!NILOWB,IF(AY18>[1]!NILOWLIMB,(AY18-[1]!NILOWLIMB)*[1]!NILOWB,0)))+IF($Q18="Y",IF(AY18>[1]!NIUPPLIMB,((AY18-[1]!NIUPPLIMB)*[1]!NIUPPERB)+(([1]!NIUPPLIMB-[1]!NILOWLIMB)*[1]!NISUPNB),IF(AY18>[1]!NILOWLIMB,(AY18-[1]!NILOWLIMB)*[1]!NISUPNB,0))))*((NumberOfDaysWorked($F18,$G18,BD$1,BF$1)*5)+(NumberOfDaysWorked($F18,$G18,BD$1,BF$1)*7)) -> 0 | BE18: =IF($Q18="N",0,(BA18*$BE$5)) -> 0 | BF18: =SUM(BA18:BE18) -> 0 | BG18: =IF($E18="TEACHER",IF(AW18<6,AW18+1,IF(LEFT(AW18,1)="U",AW18,6)),IF($E18="LEADER",+I18,IF($E18="UNQUAL",IF(AW18<10,AW18+1,10),IF($E18="ADVANCED",IF(AW18<27,AW18+1,27))))) -> 7 | BH18: =(K18+M18+O18+P18) -> 0 | BI18: =IF($E18="LEADER",VLOOKUP(BG18,[1]!LEADERSHIP,5),IF($E18="TEACHER",VLOOKUP(BG18,[1]!TEACHER,5),IF($E18="ADVANCED",VLOOKUP($AW18,[1]!ADVANCED_SKILLS_TEACHERS,5),IF($E18="UNQUAL",VLOOKUP($AW18,[1]!UNQUALIFIED_TEACHER,5),0))))*D18*(1+BA$4)*(1+BA$5)*(1+BK$4)*(1+BK$5)+(BH18/BJ18) -> 0 | BJ18: =IF(G18-F18>11.99999,12,MONTH(G18)-MONTH(F18)) -> 12 | BK18: =NumberOfDaysWorked($F18,$G18,BN$1,BP$1)*(($AY18*(1+BK$4))*5)+NumberOfDaysWorked($F18,$G18,BN$1,BP$1)*($BI18*7) -> 0 | BN18: =(IF($Q18="N",IF(BI18>[1]!NIUPPLIMC,((BI18-[1]!NIUPPLIMC)*[1]!NIUPPERC)+([1]!NIUPPLIMC-[1]!NILOWLIMC)*[1]!NILOWC,IF(BI18>[1]!NILOWLIMC,(BI18-[1]!NILOWLIMC)*[1]!NILOWC,0)))+IF($Q18="Y",IF(BI18>[1]!NIUPPLIMC,((BI18-[1]!NIUPPLIMC)*[1]!NIUPPERC)+(([1]!NIUPPLIMC-[1]!NILOWLIMC)*[1]!NISUPNC),IF(BI18>[1]!NILOWLIMC,(BI18-[1]!NILOWLIMC)*[1]!NISUPNC,0))))*((NumberOfDaysWorked($F18,$G18,BN$1,BP$1)*5)+(NumberOfDaysWorked($F18,$G18,BN$1,BP$1)*7)) -> 0 | BO18: =IF($Q18="N",0,(BK18*$BO$5)) -> 0 | BP18: =SUM(BK18:BO18) -> 0
A19: x | C19: A01001 | D19: 0 | E19: LEADER | F19: 2026-04-01 | G19: 2029-03-31 | H19: 5 | I19: 5 | Q19: Y | R19: =IF($E19="LEADER",VLOOKUP(H19,[1]PAYDATA!$A$4:$C$54,3),IF($E19="TEACHER",VLOOKUP(H19,[1]PAYDATA!$A$70:$C$80,3),IF($E19="ADVANCED",VLOOKUP(H19,[1]PAYDATA!$A$141:$C$159,3),IF($E19="UNQUAL",VLOOKUP(H19,[1]PAYDATA!$A$57:$C$63,3),0))))*$D19+($K19/T19)+($M19/T19)+($O19/T19)+($P19/T19) -> 0 | S19: =IF($E19="LEADER",VLOOKUP(I19,[1]!LEADERSHIP,5),IF($E19="TEACHER",VLOOKUP(I19,[1]!TEACHER,5),IF($E19="ADVANCED",VLOOKUP(I19,[1]PAYDATA!$A$141:$E$159,5),IF($E19="UNQUAL",VLOOKUP(I19,[1]!UNQUALIFIED_TEACHER,5),0))))*$D19+($K19/T19)+($M19/T19)+($O19/T19)+($P19/T19) -> 0 | T19: 12 | U19: 0 | V19: 0 | W19: 0 | X19: 0 | Y19: 0 | Z19: 0 | AA19: 0 | AB19: 0 | AC19: 0 | AD19: 0 | AE19: 0 | AF19: 0 | AG19: 0 | AH19: =IF($Q19="N",IF(U19>[1]!NIUPPLIMA,((U19-[1]!NIUPPLIMA)*[1]!NIUPPERA)+([1]!NIUPPLIMA-[1]!NILOWLIMA)*[1]!NILOWA,IF(U19>[1]!NILOWLIMA,(U19-[1]!NILOWLIMA)*[1]!NILOWA,0)))+IF($Q19="Y",IF(U19>[1]!NIUPPLIMA,((U19-[1]!NIUPPLIMA)*[1]!NIUPPERA)+(([1]!NIUPPLIMA-[1]!NILOWLIMA)*[1]!NISUPNA),IF(U19>[1]!NILOWLIMA,(U19-[1]!NILOWLIMA)*[1]!NISUPNA,0)))+IF(U19>[1]!NILOWLIMA,-[1]!NICREBATEA,0) -> 0 | AI19: =IF($Q19="N",IF(V19>[1]!NIUPPLIMA,((V19-[1]!NIUPPLIMA)*[1]!NIUPPERA)+([1]!NIUPPLIMA-[1]!NILOWLIMA)*[1]!NILOWA,IF(V19>[1]!NILOWLIMA,(V19-[1]!NILOWLIMA)*[1]!NILOWA,0)))+IF($Q19="Y",IF(V19>[1]!NIUPPLIMA,((V19-[1]!NIUPPLIMA)*[1]!NIUPPERA)+(([1]!NIUPPLIMA-[1]!NILOWLIMA)*[1]!NISUPNA),IF(V19>[1]!NILOWLIMA,(V19-[1]!NILOWLIMA)*[1]!NISUPNA,0)))+IF(V19>[1]!NILOWLIMA,-[1]!NICREBATEA,0) -> 0 | AJ19: =IF($Q19="N",IF(W19>[1]!NIUPPLIMA,((W19-[1]!NIUPPLIMA)*[1]!NIUPPERA)+([1]!NIUPPLIMA-[1]!NILOWLIMA)*[1]!NILOWA,IF(W19>[1]!NILOWLIMA,(W19-[1]!NILOWLIMA)*[1]!NILOWA,0)))+IF($Q19="Y",IF(W19>[1]!NIUPPLIMA,((W19-[1]!NIUPPLIMA)*[1]!NIUPPERA)+(([1]!NIUPPLIMA-[1]!NILOWLIMA)*[1]!NISUPNA),IF(W19>[1]!NILOWLIMA,(W19-[1]!NILOWLIMA)*[1]!NISUPNA,0)))+IF(W19>[1]!NILOWLIMA,-[1]!NICREBATEA,0) -> 0 | AK19: =IF($Q19="N",IF(X19>[1]!NIUPPLIMA,((X19-[1]!NIUPPLIMA)*[1]!NIUPPERA)+([1]!NIUPPLIMA-[1]!NILOWLIMA)*[1]!NILOWA,IF(X19>[1]!NILOWLIMA,(X19-[1]!NILOWLIMA)*[1]!NILOWA,0)))+IF($Q19="Y",IF(X19>[1]!NIUPPLIMA,((X19-[1]!NIUPPLIMA)*[1]!NIUPPERA)+(([1]!NIUPPLIMA-[1]!NILOWLIMA)*[1]!NISUPNA),IF(X19>[1]!NILOWLIMA,(X19-[1]!NILOWLIMA)*[1]!NISUPNA,0)))+IF(X19>[1]!NILOWLIMA,-[1]!NICREBATEA,0) -> 0 | AL19: =IF($Q19="N",IF(Y19>[1]!NIUPPLIMA,((Y19-[1]!NIUPPLIMA)*[1]!NIUPPERA)+([1]!NIUPPLIMA-[1]!NILOWLIMA)*[1]!NILOWA,IF(Y19>[1]!NILOWLIMA,(Y19-[1]!NILOWLIMA)*[1]!NILOWA,0)))+IF($Q19="Y",IF(Y19>[1]!NIUPPLIMA,((Y19-[1]!NIUPPLIMA)*[1]!NIUPPERA)+(([1]!NIUPPLIMA-[1]!NILOWLIMA)*[1]!NISUPNA),IF(Y19>[1]!NILOWLIMA,(Y19-[1]!NILOWLIMA)*[1]!NISUPNA,0)))+IF(Y19>[1]!NILOWLIMA,-[1]!NICREBATEA,0) -> 0 | AM19: =IF($Q19="N",IF(Z19>[1]!NIUPPLIMA,((Z19-[1]!NIUPPLIMA)*[1]!NIUPPERA)+([1]!NIUPPLIMA-[1]!NILOWLIMA)*[1]!NILOWA,IF(Z19>[1]!NILOWLIMA,(Z19-[1]!NILOWLIMA)*[1]!NILOWA,0)))+IF($Q19="Y",IF(Z19>[1]!NIUPPLIMA,((Z19-[1]!NIUPPLIMA)*[1]!NIUPPERA)+(([1]!NIUPPLIMA-[1]!NILOWLIMA)*[1]!NISUPNA),IF(Z19>[1]!NILOWLIMA,(Z19-[1]!NILOWLIMA)*[1]!NISUPNA,0)))+IF(Z19>[1]!NILOWLIMA,-[1]!NICREBATEA,0) -> 0 | AN19: =IF($Q19="N",IF(AA19>[1]!NIUPPLIMA,((AA19-[1]!NIUPPLIMA)*[1]!NIUPPERA)+([1]!NIUPPLIMA-[1]!NILOWLIMA)*[1]!NILOWA,IF(AA19>[1]!NILOWLIMA,(AA19-[1]!NILOWLIMA)*[1]!NILOWA,0)))+IF($Q19="Y",IF(AA19>[1]!NIUPPLIMA,((AA19-[1]!NIUPPLIMA)*[1]!NIUPPERA)+(([1]!NIUPPLIMA-[1]!NILOWLIMA)*[1]!NISUPNA),IF(AA19>[1]!NILOWLIMA,(AA19-[1]!NILOWLIMA)*[1]!NISUPNA,0)))+IF(AA19>[1]!NILOWLIMA,-[1]!NICREBATEA,0) -> 0 | AO19: =IF($Q19="N",IF(AB19>[1]!NIUPPLIMA,((AB19-[1]!NIUPPLIMA)*[1]!NIUPPERA)+([1]!NIUPPLIMA-[1]!NILOWLIMA)*[1]!NILOWA,IF(AB19>[1]!NILOWLIMA,(AB19-[1]!NILOWLIMA)*[1]!NILOWA,0)))+IF($Q19="Y",IF(AB19>[1]!NIUPPLIMA,((AB19-[1]!NIUPPLIMA)*[1]!NIUPPERA)+(([1]!NIUPPLIMA-[1]!NILOWLIMA)*[1]!NISUPNA),IF(AB19>[1]!NILOWLIMA,(AB19-[1]!NILOWLIMA)*[1]!NISUPNA,0)))+IF(AB19>[1]!NILOWLIMA,-[1]!NICREBATEA,0) -> 0 | AP19: =IF($Q19="N",IF(AC19>[1]!NIUPPLIMA,((AC19-[1]!NIUPPLIMA)*[1]!NIUPPERA)+([1]!NIUPPLIMA-[1]!NILOWLIMA)*[1]!NILOWA,IF(AC19>[1]!NILOWLIMA,(AC19-[1]!NILOWLIMA)*[1]!NILOWA,0)))+IF($Q19="Y",IF(AC19>[1]!NIUPPLIMA,((AC19-[1]!NIUPPLIMA)*[1]!NIUPPERA)+(([1]!NIUPPLIMA-[1]!NILOWLIMA)*[1]!NISUPNA),IF(AC19>[1]!NILOWLIMA,(AC19-[1]!NILOWLIMA)*[1]!NISUPNA,0)))+IF(AC19>[1]!NILOWLIMA,-[1]!NICREBATEA,0) -> 0 | AQ19: =IF($Q19="N",IF(AD19>[1]!NIUPPLIMA,((AD19-[1]!NIUPPLIMA)*[1]!NIUPPERA)+([1]!NIUPPLIMA-[1]!NILOWLIMA)*[1]!NILOWA,IF(AD19>[1]!NILOWLIMA,(AD19-[1]!NILOWLIMA)*[1]!NILOWA,0)))+IF($Q19="Y",IF(AD19>[1]!NIUPPLIMA,((AD19-[1]!NIUPPLIMA)*[1]!NIUPPERA)+(([1]!NIUPPLIMA-[1]!NILOWLIMA)*[1]!NISUPNA),IF(AD19>[1]!NILOWLIMA,(AD19-[1]!NILOWLIMA)*[1]!NISUPNA,0)))+IF(AD19>[1]!NILOWLIMA,-[1]!NICREBATEA,0) -> 0 | AR19: =IF($Q19="N",IF(AE19>[1]!NIUPPLIMA,((AE19-[1]!NIUPPLIMA)*[1]!NIUPPERA)+([1]!NIUPPLIMA-[1]!NILOWLIMA)*[1]!NILOWA,IF(AE19>[1]!NILOWLIMA,(AE19-[1]!NILOWLIMA)*[1]!NILOWA,0)))+IF($Q19="Y",IF(AE19>[1]!NIUPPLIMA,((AE19-[1]!NIUPPLIMA)*[1]!NIUPPERA)+(([1]!NIUPPLIMA-[1]!NILOWLIMA)*[1]!NISUPNA),IF(AE19>[1]!NILOWLIMA,(AE19-[1]!NILOWLIMA)*[1]!NISUPNA,0)))+IF(AE19>[1]!NILOWLIMA,-[1]!NICREBATEA,0) -> 0 | AS19: =IF($Q19="N",IF(AF19>[1]!NIUPPLIMA,((AF19-[1]!NIUPPLIMA)*[1]!NIUPPERA)+([1]!NIUPPLIMA-[1]!NILOWLIMA)*[1]!NILOWA,IF(AF19>[1]!NILOWLIMA,(AF19-[1]!NILOWLIMA)*[1]!NILOWA,0)))+IF($Q19="Y",IF(AF19>[1]!NIUPPLIMA,((AF19-[1]!NIUPPLIMA)*[1]!NIUPPERA)+(([1]!NIUPPLIMA-[1]!NILOWLIMA)*[1]!NISUPNA),IF(AF19>[1]!NILOWLIMA,(AF19-[1]!NILOWLIMA)*[1]!NISUPNA,0)))+IF(AF19>[1]!NILOWLIMA,-[1]!NICREBATEA,0) -> 0 | AT19: 0 | AU19: 0 | AV19: 0 | AW19: 5 | AX19: 0 | AY19: =IF($E19="LEADER",VLOOKUP(AW19,[1]!LEADERSHIP,5),IF($E19="TEACHER",VLOOKUP(AW19,[1]!TEACHER,5),IF($E19="ADVANCED",VLOOKUP($AW19,[1]!ADVANCED_SKILLS_TEACHERS,5),IF($E19="UNQUAL",VLOOKUP($AW19,[1]!UNQUALIFIED_TEACHER,5),0))))*D19*(1+BA$4)*(1+BA$5)+(AX19/AZ19) -> 0 | AZ19: 12 | BA19: 0 | BD19: =(IF($Q19="N",IF(AY19>[1]!NIUPPLIMB,((AY19-[1]!NIUPPLIMB)*[1]!NIUPPERB)+([1]!NIUPPLIMB-[1]!NILOWLIMB)*[1]!NILOWB,IF(AY19>[1]!NILOWLIMB,(AY19-[1]!NILOWLIMB)*[1]!NILOWB,0)))+IF($Q19="Y",IF(AY19>[1]!NIUPPLIMB,((AY19-[1]!NIUPPLIMB)*[1]!NIUPPERB)+(([1]!NIUPPLIMB-[1]!NILOWLIMB)*[1]!NISUPNB),IF(AY19>[1]!NILOWLIMB,(AY19-[1]!NILOWLIMB)*[1]!NISUPNB,0))))*((NumberOfDaysWorked($F19,$G19,BD$1,BF$1)*5)+(NumberOfDaysWorked($F19,$G19,BD$1,BF$1)*7)) -> 0 | BE19: 0 | BF19: 0 | BG19: 5 | BH19: 0 | BI19: =IF($E19="LEADER",VLOOKUP(BG19,[1]!LEADERSHIP,5),IF($E19="TEACHER",VLOOKUP(BG19,[1]!TEACHER,5),IF($E19="ADVANCED",VLOOKUP($AW19,[1]!ADVANCED_SKILLS_TEACHERS,5),IF($E19="UNQUAL",VLOOKUP($AW19,[1]!UNQUALIFIED_TEACHER,5),0))))*D19*(1+BA$4)*(1+BA$5)*(1+BK$4)*(1+BK$5)+(BH19/BJ19) -> 0 | BJ19: 12 | BK19: 0 | BN19: =(IF($Q19="N",IF(BI19>[1]!NIUPPLIMC,((BI19-[1]!NIUPPLIMC)*[1]!NIUPPERC)+([1]!NIUPPLIMC-[1]!NILOWLIMC)*[1]!NILOWC,IF(BI19>[1]!NILOWLIMC,(BI19-[1]!NILOWLIMC)*[1]!NILOWC,0)))+IF($Q19="Y",IF(BI19>[1]!NIUPPLIMC,((BI19-[1]!NIUPPLIMC)*[1]!NIUPPERC)+(([1]!NIUPPLIMC-[1]!NILOWLIMC)*[1]!NISUPNC),IF(BI19>[1]!NILOWLIMC,(BI19-[1]!NILOWLIMC)*[1]!NISUPNC,0))))*((NumberOfDaysWorked($F19,$G19,BN$1,BP$1)*5)+(NumberOfDaysWorked($F19,$G19,BN$1,BP$1)*7)) -> 0 | BO19: 0 | BP19: 0
A20: x | C20: A01001 | D20: 0 | E20: LEADER | F20: 2026-04-01 | G20: 2029-03-31 | H20: 3 | I20: 3 | Q20: Y | R20: =IF($E20="LEADER",VLOOKUP(H20,[1]PAYDATA!$A$4:$C$54,3),IF($E20="TEACHER",VLOOKUP(H20,[1]PAYDATA!$A$70:$C$80,3),IF($E20="ADVANCED",VLOOKUP(H20,[1]PAYDATA!$A$141:$C$159,3),IF($E20="UNQUAL",VLOOKUP(H20,[1]PAYDATA!$A$57:$C$63,3),0))))*$D20+($K20/T20)+($M20/T20)+($O20/T20)+($P20/T20) -> 0 | S20: =IF($E20="LEADER",VLOOKUP(I20,[1]!LEADERSHIP,5),IF($E20="TEACHER",VLOOKUP(I20,[1]!TEACHER,5),IF($E20="ADVANCED",VLOOKUP(I20,[1]PAYDATA!$A$141:$E$159,5),IF($E20="UNQUAL",VLOOKUP(I20,[1]!UNQUALIFIED_TEACHER,5),0))))*$D20+($K20/T20)+($M20/T20)+($O20/T20)+($P20/T20) -> 0 | T20: 12 | U20: 0 | V20: 0 | W20: 0 | X20: 0 | Y20: 0 | Z20: 0 | AA20: 0 | AB20: 0 | AC20: 0 | AD20: 0 | AE20: 0 | AF20: 0 | AG20: 0 | AH20: =IF($Q20="N",IF(U20>[1]!NIUPPLIMA,((U20-[1]!NIUPPLIMA)*[1]!NIUPPERA)+([1]!NIUPPLIMA-[1]!NILOWLIMA)*[1]!NILOWA,IF(U20>[1]!NILOWLIMA,(U20-[1]!NILOWLIMA)*[1]!NILOWA,0)))+IF($Q20="Y",IF(U20>[1]!NIUPPLIMA,((U20-[1]!NIUPPLIMA)*[1]!NIUPPERA)+(([1]!NIUPPLIMA-[1]!NILOWLIMA)*[1]!NISUPNA),IF(U20>[1]!NILOWLIMA,(U20-[1]!NILOWLIMA)*[1]!NISUPNA,0)))+IF(U20>[1]!NILOWLIMA,-[1]!NICREBATEA,0) -> 0 | AI20: =IF($Q20="N",IF(V20>[1]!NIUPPLIMA,((V20-[1]!NIUPPLIMA)*[1]!NIUPPERA)+([1]!NIUPPLIMA-[1]!NILOWLIMA)*[1]!NILOWA,IF(V20>[1]!NILOWLIMA,(V20-[1]!NILOWLIMA)*[1]!NILOWA,0)))+IF($Q20="Y",IF(V20>[1]!NIUPPLIMA,((V20-[1]!NIUPPLIMA)*[1]!NIUPPERA)+(([1]!NIUPPLIMA-[1]!NILOWLIMA)*[1]!NISUPNA),IF(V20>[1]!NILOWLIMA,(V20-[1]!NILOWLIMA)*[1]!NISUPNA,0)))+IF(V20>[1]!NILOWLIMA,-[1]!NICREBATEA,0) -> 0 | AJ20: =IF($Q20="N",IF(W20>[1]!NIUPPLIMA,((W20-[1]!NIUPPLIMA)*[1]!NIUPPERA)+([1]!NIUPPLIMA-[1]!NILOWLIMA)*[1]!NILOWA,IF(W20>[1]!NILOWLIMA,(W20-[1]!NILOWLIMA)*[1]!NILOWA,0)))+IF($Q20="Y",IF(W20>[1]!NIUPPLIMA,((W20-[1]!NIUPPLIMA)*[1]!NIUPPERA)+(([1]!NIUPPLIMA-[1]!NILOWLIMA)*[1]!NISUPNA),IF(W20>[1]!NILOWLIMA,(W20-[1]!NILOWLIMA)*[1]!NISUPNA,0)))+IF(W20>[1]!NILOWLIMA,-[1]!NICREBATEA,0) -> 0 | AK20: =IF($Q20="N",IF(X20>[1]!NIUPPLIMA,((X20-[1]!NIUPPLIMA)*[1]!NIUPPERA)+([1]!NIUPPLIMA-[1]!NILOWLIMA)*[1]!NILOWA,IF(X20>[1]!NILOWLIMA,(X20-[1]!NILOWLIMA)*[1]!NILOWA,0)))+IF($Q20="Y",IF(X20>[1]!NIUPPLIMA,((X20-[1]!NIUPPLIMA)*[1]!NIUPPERA)+(([1]!NIUPPLIMA-[1]!NILOWLIMA)*[1]!NISUPNA),IF(X20>[1]!NILOWLIMA,(X20-[1]!NILOWLIMA)*[1]!NISUPNA,0)))+IF(X20>[1]!NILOWLIMA,-[1]!NICREBATEA,0) -> 0 | AL20: =IF($Q20="N",IF(Y20>[1]!NIUPPLIMA,((Y20-[1]!NIUPPLIMA)*[1]!NIUPPERA)+([1]!NIUPPLIMA-[1]!NILOWLIMA)*[1]!NILOWA,IF(Y20>[1]!NILOWLIMA,(Y20-[1]!NILOWLIMA)*[1]!NILOWA,0)))+IF($Q20="Y",IF(Y20>[1]!NIUPPLIMA,((Y20-[1]!NIUPPLIMA)*[1]!NIUPPERA)+(([1]!NIUPPLIMA-[1]!NILOWLIMA)*[1]!NISUPNA),IF(Y20>[1]!NILOWLIMA,(Y20-[1]!NILOWLIMA)*[1]!NISUPNA,0)))+IF(Y20>[1]!NILOWLIMA,-[1]!NICREBATEA,0) -> 0 | AM20: =IF($Q20="N",IF(Z20>[1]!NIUPPLIMA,((Z20-[1]!NIUPPLIMA)*[1]!NIUPPERA)+([1]!NIUPPLIMA-[1]!NILOWLIMA)*[1]!NILOWA,IF(Z20>[1]!NILOWLIMA,(Z20-[1]!NILOWLIMA)*[1]!NILOWA,0)))+IF($Q20="Y",IF(Z20>[1]!NIUPPLIMA,((Z20-[1]!NIUPPLIMA)*[1]!NIUPPERA)+(([1]!NIUPPLIMA-[1]!NILOWLIMA)*[1]!NISUPNA),IF(Z20>[1]!NILOWLIMA,(Z20-[1]!NILOWLIMA)*[1]!NISUPNA,0)))+IF(Z20>[1]!NILOWLIMA,-[1]!NICREBATEA,0) -> 0 | AN20: =IF($Q20="N",IF(AA20>[1]!NIUPPLIMA,((AA20-[1]!NIUPPLIMA)*[1]!NIUPPERA)+([1]!NIUPPLIMA-[1]!NILOWLIMA)*[1]!NILOWA,IF(AA20>[1]!NILOWLIMA,(AA20-[1]!NILOWLIMA)*[1]!NILOWA,0)))+IF($Q20="Y",IF(AA20>[1]!NIUPPLIMA,((AA20-[1]!NIUPPLIMA)*[1]!NIUPPERA)+(([1]!NIUPPLIMA-[1]!NILOWLIMA)*[1]!NISUPNA),IF(AA20>[1]!NILOWLIMA,(AA20-[1]!NILOWLIMA)*[1]!NISUPNA,0)))+IF(AA20>[1]!NILOWLIMA,-[1]!NICREBATEA,0) -> 0 | AO20: =IF($Q20="N",IF(AB20>[1]!NIUPPLIMA,((AB20-[1]!NIUPPLIMA)*[1]!NIUPPERA)+([1]!NIUPPLIMA-[1]!NILOWLIMA)*[1]!NILOWA,IF(AB20>[1]!NILOWLIMA,(AB20-[1]!NILOWLIMA)*[1]!NILOWA,0)))+IF($Q20="Y",IF(AB20>[1]!NIUPPLIMA,((AB20-[1]!NIUPPLIMA)*[1]!NIUPPERA)+(([1]!NIUPPLIMA-[1]!NILOWLIMA)*[1]!NISUPNA),IF(AB20>[1]!NILOWLIMA,(AB20-[1]!NILOWLIMA)*[1]!NISUPNA,0)))+IF(AB20>[1]!NILOWLIMA,-[1]!NICREBATEA,0) -> 0 | AP20: =IF($Q20="N",IF(AC20>[1]!NIUPPLIMA,((AC20-[1]!NIUPPLIMA)*[1]!NIUPPERA)+([1]!NIUPPLIMA-[1]!NILOWLIMA)*[1]!NILOWA,IF(AC20>[1]!NILOWLIMA,(AC20-[1]!NILOWLIMA)*[1]!NILOWA,0)))+IF($Q20="Y",IF(AC20>[1]!NIUPPLIMA,((AC20-[1]!NIUPPLIMA)*[1]!NIUPPERA)+(([1]!NIUPPLIMA-[1]!NILOWLIMA)*[1]!NISUPNA),IF(AC20>[1]!NILOWLIMA,(AC20-[1]!NILOWLIMA)*[1]!NISUPNA,0)))+IF(AC20>[1]!NILOWLIMA,-[1]!NICREBATEA,0) -> 0 | AQ20: =IF($Q20="N",IF(AD20>[1]!NIUPPLIMA,((AD20-[1]!NIUPPLIMA)*[1]!NIUPPERA)+([1]!NIUPPLIMA-[1]!NILOWLIMA)*[1]!NILOWA,IF(AD20>[1]!NILOWLIMA,(AD20-[1]!NILOWLIMA)*[1]!NILOWA,0)))+IF($Q20="Y",IF(AD20>[1]!NIUPPLIMA,((AD20-[1]!NIUPPLIMA)*[1]!NIUPPERA)+(([1]!NIUPPLIMA-[1]!NILOWLIMA)*[1]!NISUPNA),IF(AD20>[1]!NILOWLIMA,(AD20-[1]!NILOWLIMA)*[1]!NISUPNA,0)))+IF(AD20>[1]!NILOWLIMA,-[1]!NICREBATEA,0) -> 0 | AR20: =IF($Q20="N",IF(AE20>[1]!NIUPPLIMA,((AE20-[1]!NIUPPLIMA)*[1]!NIUPPERA)+([1]!NIUPPLIMA-[1]!NILOWLIMA)*[1]!NILOWA,IF(AE20>[1]!NILOWLIMA,(AE20-[1]!NILOWLIMA)*[1]!NILOWA,0)))+IF($Q20="Y",IF(AE20>[1]!NIUPPLIMA,((AE20-[1]!NIUPPLIMA)*[1]!NIUPPERA)+(([1]!NIUPPLIMA-[1]!NILOWLIMA)*[1]!NISUPNA),IF(AE20>[1]!NILOWLIMA,(AE20-[1]!NILOWLIMA)*[1]!NISUPNA,0)))+IF(AE20>[1]!NILOWLIMA,-[1]!NICREBATEA,0) -> 0 | AS20: =IF($Q20="N",IF(AF20>[1]!NIUPPLIMA,((AF20-[1]!NIUPPLIMA)*[1]!NIUPPERA)+([1]!NIUPPLIMA-[1]!NILOWLIMA)*[1]!NILOWA,IF(AF20>[1]!NILOWLIMA,(AF20-[1]!NILOWLIMA)*[1]!NILOWA,0)))+IF($Q20="Y",IF(AF20>[1]!NIUPPLIMA,((AF20-[1]!NIUPPLIMA)*[1]!NIUPPERA)+(([1]!NIUPPLIMA-[1]!NILOWLIMA)*[1]!NISUPNA),IF(AF20>[1]!NILOWLIMA,(AF20-[1]!NILOWLIMA)*[1]!NISUPNA,0)))+IF(AF20>[1]!NILOWLIMA,-[1]!NICREBATEA,0) -> 0 | AT20: 0 | AU20: 0 | AV20: 0 | AW20: 3 | AX20: 0 | AY20: =IF($E20="LEADER",VLOOKUP(AW20,[1]!LEADERSHIP,5),IF($E20="TEACHER",VLOOKUP(AW20,[1]!TEACHER,5),IF($E20="ADVANCED",VLOOKUP($AW20,[1]!ADVANCED_SKILLS_TEACHERS,5),IF($E20="UNQUAL",VLOOKUP($AW20,[1]!UNQUALIFIED_TEACHER,5),0))))*D20*(1+BA$4)*(1+BA$5)+(AX20/AZ20) -> 0 | AZ20: 12 | BA20: 0 | BD20: =(IF($Q20="N",IF(AY20>[1]!NIUPPLIMB,((AY20-[1]!NIUPPLIMB)*[1]!NIUPPERB)+([1]!NIUPPLIMB-[1]!NILOWLIMB)*[1]!NILOWB,IF(AY20>[1]!NILOWLIMB,(AY20-[1]!NILOWLIMB)*[1]!NILOWB,0)))+IF($Q20="Y",IF(AY20>[1]!NIUPPLIMB,((AY20-[1]!NIUPPLIMB)*[1]!NIUPPERB)+(([1]!NIUPPLIMB-[1]!NILOWLIMB)*[1]!NISUPNB),IF(AY20>[1]!NILOWLIMB,(AY20-[1]!NILOWLIMB)*[1]!NISUPNB,0))))*((NumberOfDaysWorked($F20,$G20,BD$1,BF$1)*5)+(NumberOfDaysWorked($F20,$G20,BD$1,BF$1)*7)) -> 0 | BE20: 0 | BF20: 0 | BG20: 3 | BH20: 0 | BI20: =IF($E20="LEADER",VLOOKUP(BG20,[1]!LEADERSHIP,5),IF($E20="TEACHER",VLOOKUP(BG20,[1]!TEACHER,5),IF($E20="ADVANCED",VLOOKUP($AW20,[1]!ADVANCED_SKILLS_TEACHERS,5),IF($E20="UNQUAL",VLOOKUP($AW20,[1]!UNQUALIFIED_TEACHER,5),0))))*D20*(1+BA$4)*(1+BA$5)*(1+BK$4)*(1+BK$5)+(BH20/BJ20) -> 0 | BJ20: 12 | BK20: 0 | BN20: =(IF($Q20="N",IF(BI20>[1]!NIUPPLIMC,((BI20-[1]!NIUPPLIMC)*[1]!NIUPPERC)+([1]!NIUPPLIMC-[1]!NILOWLIMC)*[1]!NILOWC,IF(BI20>[1]!NILOWLIMC,(BI20-[1]!NILOWLIMC)*[1]!NILOWC,0)))+IF($Q20="Y",IF(BI20>[1]!NIUPPLIMC,((BI20-[1]!NIUPPLIMC)*[1]!NIUPPERC)+(([1]!NIUPPLIMC-[1]!NILOWLIMC)*[1]!NISUPNC),IF(BI20>[1]!NILOWLIMC,(BI20-[1]!NILOWLIMC)*[1]!NISUPNC,0))))*((NumberOfDaysWorked($F20,$G20,BN$1,BP$1)*5)+(NumberOfDaysWorked($F20,$G20,BN$1,BP$1)*7)) -> 0 | BO20: 0 | BP20: 0
A21: x | C21: A01001 | D21: 0 | E21: LEADER | F21: 2026-04-01 | G21: 2029-03-31 | H21: 4 | I21: 4 | Q21: Y | R21: =IF($E21="LEADER",VLOOKUP(H21,[1]PAYDATA!$A$4:$C$54,3),IF($E21="TEACHER",VLOOKUP(H21,[1]PAYDATA!$A$70:$C$80,3),IF($E21="ADVANCED",VLOOKUP(H21,[1]PAYDATA!$A$141:$C$159,3),IF($E21="UNQUAL",VLOOKUP(H21,[1]PAYDATA!$A$57:$C$63,3),0))))*$D21+($K21/T21)+($M21/T21)+($O21/T21)+($P21/T21) -> 0 | S21: =IF($E21="LEADER",VLOOKUP(I21,[1]!LEADERSHIP,5),IF($E21="TEACHER",VLOOKUP(I21,[1]!TEACHER,5),IF($E21="ADVANCED",VLOOKUP(I21,[1]PAYDATA!$A$141:$E$159,5),IF($E21="UNQUAL",VLOOKUP(I21,[1]!UNQUALIFIED_TEACHER,5),0))))*$D21+($K21/T21)+($M21/T21)+($O21/T21)+($P21/T21) -> 0 | T21: =IF(G21-F21>11.99999,12,MONTH(G21)-MONTH(F21)) -> 12 | U21: 0 | V21: 0 | W21: 0 | X21: 0 | Y21: 0 | Z21: 0 | AA21: 0 | AB21: 0 | AC21: 0 | AD21: 0 | AE21: 0 | AF21: 0 | AG21: =SUM(U21:AF21) -> 0 | AH21: =IF($Q21="N",IF(U21>[1]!NIUPPLIMA,((U21-[1]!NIUPPLIMA)*[1]!NIUPPERA)+([1]!NIUPPLIMA-[1]!NILOWLIMA)*[1]!NILOWA,IF(U21>[1]!NILOWLIMA,(U21-[1]!NILOWLIMA)*[1]!NILOWA,0)))+IF($Q21="Y",IF(U21>[1]!NIUPPLIMA,((U21-[1]!NIUPPLIMA)*[1]!NIUPPERA)+(([1]!NIUPPLIMA-[1]!NILOWLIMA)*[1]!NISUPNA),IF(U21>[1]!NILOWLIMA,(U21-[1]!NILOWLIMA)*[1]!NISUPNA,0)))+IF(U21>[1]!NILOWLIMA,-[1]!NICREBATEA,0) -> 0 | AI21: =IF($Q21="N",IF(V21>[1]!NIUPPLIMA,((V21-[1]!NIUPPLIMA)*[1]!NIUPPERA)+([1]!NIUPPLIMA-[1]!NILOWLIMA)*[1]!NILOWA,IF(V21>[1]!NILOWLIMA,(V21-[1]!NILOWLIMA)*[1]!NILOWA,0)))+IF($Q21="Y",IF(V21>[1]!NIUPPLIMA,((V21-[1]!NIUPPLIMA)*[1]!NIUPPERA)+(([1]!NIUPPLIMA-[1]!NILOWLIMA)*[1]!NISUPNA),IF(V21>[1]!NILOWLIMA,(V21-[1]!NILOWLIMA)*[1]!NISUPNA,0)))+IF(V21>[1]!NILOWLIMA,-[1]!NICREBATEA,0) -> 0 | AJ21: =IF($Q21="N",IF(W21>[1]!NIUPPLIMA,((W21-[1]!NIUPPLIMA)*[1]!NIUPPERA)+([1]!NIUPPLIMA-[1]!NILOWLIMA)*[1]!NILOWA,IF(W21>[1]!NILOWLIMA,(W21-[1]!NILOWLIMA)*[1]!NILOWA,0)))+IF($Q21="Y",IF(W21>[1]!NIUPPLIMA,((W21-[1]!NIUPPLIMA)*[1]!NIUPPERA)+(([1]!NIUPPLIMA-[1]!NILOWLIMA)*[1]!NISUPNA),IF(W21>[1]!NILOWLIMA,(W21-[1]!NILOWLIMA)*[1]!NISUPNA,0)))+IF(W21>[1]!NILOWLIMA,-[1]!NICREBATEA,0) -> 0 | AK21: =IF($Q21="N",IF(X21>[1]!NIUPPLIMA,((X21-[1]!NIUPPLIMA)*[1]!NIUPPERA)+([1]!NIUPPLIMA-[1]!NILOWLIMA)*[1]!NILOWA,IF(X21>[1]!NILOWLIMA,(X21-[1]!NILOWLIMA)*[1]!NILOWA,0)))+IF($Q21="Y",IF(X21>[1]!NIUPPLIMA,((X21-[1]!NIUPPLIMA)*[1]!NIUPPERA)+(([1]!NIUPPLIMA-[1]!NILOWLIMA)*[1]!NISUPNA),IF(X21>[1]!NILOWLIMA,(X21-[1]!NILOWLIMA)*[1]!NISUPNA,0)))+IF(X21>[1]!NILOWLIMA,-[1]!NICREBATEA,0) -> 0 | AL21: =IF($Q21="N",IF(Y21>[1]!NIUPPLIMA,((Y21-[1]!NIUPPLIMA)*[1]!NIUPPERA)+([1]!NIUPPLIMA-[1]!NILOWLIMA)*[1]!NILOWA,IF(Y21>[1]!NILOWLIMA,(Y21-[1]!NILOWLIMA)*[1]!NILOWA,0)))+IF($Q21="Y",IF(Y21>[1]!NIUPPLIMA,((Y21-[1]!NIUPPLIMA)*[1]!NIUPPERA)+(([1]!NIUPPLIMA-[1]!NILOWLIMA)*[1]!NISUPNA),IF(Y21>[1]!NILOWLIMA,(Y21-[1]!NILOWLIMA)*[1]!NISUPNA,0)))+IF(Y21>[1]!NILOWLIMA,-[1]!NICREBATEA,0) -> 0 | AM21: =IF($Q21="N",IF(Z21>[1]!NIUPPLIMA,((Z21-[1]!NIUPPLIMA)*[1]!NIUPPERA)+([1]!NIUPPLIMA-[1]!NILOWLIMA)*[1]!NILOWA,IF(Z21>[1]!NILOWLIMA,(Z21-[1]!NILOWLIMA)*[1]!NILOWA,0)))+IF($Q21="Y",IF(Z21>[1]!NIUPPLIMA,((Z21-[1]!NIUPPLIMA)*[1]!NIUPPERA)+(([1]!NIUPPLIMA-[1]!NILOWLIMA)*[1]!NISUPNA),IF(Z21>[1]!NILOWLIMA,(Z21-[1]!NILOWLIMA)*[1]!NISUPNA,0)))+IF(Z21>[1]!NILOWLIMA,-[1]!NICREBATEA,0) -> 0 | AN21: =IF($Q21="N",IF(AA21>[1]!NIUPPLIMA,((AA21-[1]!NIUPPLIMA)*[1]!NIUPPERA)+([1]!NIUPPLIMA-[1]!NILOWLIMA)*[1]!NILOWA,IF(AA21>[1]!NILOWLIMA,(AA21-[1]!NILOWLIMA)*[1]!NILOWA,0)))+IF($Q21="Y",IF(AA21>[1]!NIUPPLIMA,((AA21-[1]!NIUPPLIMA)*[1]!NIUPPERA)+(([1]!NIUPPLIMA-[1]!NILOWLIMA)*[1]!NISUPNA),IF(AA21>[1]!NILOWLIMA,(AA21-[1]!NILOWLIMA)*[1]!NISUPNA,0)))+IF(AA21>[1]!NILOWLIMA,-[1]!NICREBATEA,0) -> 0 | AO21: =IF($Q21="N",IF(AB21>[1]!NIUPPLIMA,((AB21-[1]!NIUPPLIMA)*[1]!NIUPPERA)+([1]!NIUPPLIMA-[1]!NILOWLIMA)*[1]!NILOWA,IF(AB21>[1]!NILOWLIMA,(AB21-[1]!NILOWLIMA)*[1]!NILOWA,0)))+IF($Q21="Y",IF(AB21>[1]!NIUPPLIMA,((AB21-[1]!NIUPPLIMA)*[1]!NIUPPERA)+(([1]!NIUPPLIMA-[1]!NILOWLIMA)*[1]!NISUPNA),IF(AB21>[1]!NILOWLIMA,(AB21-[1]!NILOWLIMA)*[1]!NISUPNA,0)))+IF(AB21>[1]!NILOWLIMA,-[1]!NICREBATEA,0) -> 0 | AP21: =IF($Q21="N",IF(AC21>[1]!NIUPPLIMA,((AC21-[1]!NIUPPLIMA)*[1]!NIUPPERA)+([1]!NIUPPLIMA-[1]!NILOWLIMA)*[1]!NILOWA,IF(AC21>[1]!NILOWLIMA,(AC21-[1]!NILOWLIMA)*[1]!NILOWA,0)))+IF($Q21="Y",IF(AC21>[1]!NIUPPLIMA,((AC21-[1]!NIUPPLIMA)*[1]!NIUPPERA)+(([1]!NIUPPLIMA-[1]!NILOWLIMA)*[1]!NISUPNA),IF(AC21>[1]!NILOWLIMA,(AC21-[1]!NILOWLIMA)*[1]!NISUPNA,0)))+IF(AC21>[1]!NILOWLIMA,-[1]!NICREBATEA,0) -> 0 | AQ21: =IF($Q21="N",IF(AD21>[1]!NIUPPLIMA,((AD21-[1]!NIUPPLIMA)*[1]!NIUPPERA)+([1]!NIUPPLIMA-[1]!NILOWLIMA)*[1]!NILOWA,IF(AD21>[1]!NILOWLIMA,(AD21-[1]!NILOWLIMA)*[1]!NILOWA,0)))+IF($Q21="Y",IF(AD21>[1]!NIUPPLIMA,((AD21-[1]!NIUPPLIMA)*[1]!NIUPPERA)+(([1]!NIUPPLIMA-[1]!NILOWLIMA)*[1]!NISUPNA),IF(AD21>[1]!NILOWLIMA,(AD21-[1]!NILOWLIMA)*[1]!NISUPNA,0)))+IF(AD21>[1]!NILOWLIMA,-[1]!NICREBATEA,0) -> 0 | AR21: =IF($Q21="N",IF(AE21>[1]!NIUPPLIMA,((AE21-[1]!NIUPPLIMA)*[1]!NIUPPERA)+([1]!NIUPPLIMA-[1]!NILOWLIMA)*[1]!NILOWA,IF(AE21>[1]!NILOWLIMA,(AE21-[1]!NILOWLIMA)*[1]!NILOWA,0)))+IF($Q21="Y",IF(AE21>[1]!NIUPPLIMA,((AE21-[1]!NIUPPLIMA)*[1]!NIUPPERA)+(([1]!NIUPPLIMA-[1]!NILOWLIMA)*[1]!NISUPNA),IF(AE21>[1]!NILOWLIMA,(AE21-[1]!NILOWLIMA)*[1]!NISUPNA,0)))+IF(AE21>[1]!NILOWLIMA,-[1]!NICREBATEA,0) -> 0 | AS21: =IF($Q21="N",IF(AF21>[1]!NIUPPLIMA,((AF21-[1]!NIUPPLIMA)*[1]!NIUPPERA)+([1]!NIUPPLIMA-[1]!NILOWLIMA)*[1]!NILOWA,IF(AF21>[1]!NILOWLIMA,(AF21-[1]!NILOWLIMA)*[1]!NILOWA,0)))+IF($Q21="Y",IF(AF21>[1]!NIUPPLIMA,((AF21-[1]!NIUPPLIMA)*[1]!NIUPPERA)+(([1]!NIUPPLIMA-[1]!NILOWLIMA)*[1]!NISUPNA),IF(AF21>[1]!NILOWLIMA,(AF21-[1]!NILOWLIMA)*[1]!NISUPNA,0)))+IF(AF21>[1]!NILOWLIMA,-[1]!NICREBATEA,0) -> 0 | AT21: =SUM(AH21:AS21) -> 0 | AU21: =IF($Q21="N",0,((AG21*$AU$5))) -> 0 | AV21: =AG21+AT21+AU21 -> 0 | AW21: =IF($E21="TEACHER",IF($I21<6,$I21+1,IF(LEFT($I21,1)="U",$I21,6)),IF($E21="LEADER",+I21,IF($E21="UNQUAL",IF($I21<10,$I21+1,10),IF($E21="ADVANCED",IF($I21<27,$I21+1,27))))) -> 4 | AX21: =(K21+M21+O21+P21) -> 0 | AY21: =IF($E21="LEADER",VLOOKUP(AW21,[1]!LEADERSHIP,5),IF($E21="TEACHER",VLOOKUP(AW21,[1]!TEACHER,5),IF($E21="ADVANCED",VLOOKUP($AW21,[1]!ADVANCED_SKILLS_TEACHERS,5),IF($E21="UNQUAL",VLOOKUP($AW21,[1]!UNQUALIFIED_TEACHER,5),0))))*D21*(1+BA$4)*(1+BA$5)+(AX21/AZ21) -> 0 | AZ21: =IF(G21-F21>11.99999,12,MONTH(G21)-MONTH(F21)) -> 12 | BA21: =NumberOfDaysWorked($F21,$G21,BD$1,BF$1)*(($S21*(1+BA$4))*5)+NumberOfDaysWorked($F21,$G21,BD$1,BF$1)*($AY21*7) -> 0 | BD21: =(IF($Q21="N",IF(AY21>[1]!NIUPPLIMB,((AY21-[1]!NIUPPLIMB)*[1]!NIUPPERB)+([1]!NIUPPLIMB-[1]!NILOWLIMB)*[1]!NILOWB,IF(AY21>[1]!NILOWLIMB,(AY21-[1]!NILOWLIMB)*[1]!NILOWB,0)))+IF($Q21="Y",IF(AY21>[1]!NIUPPLIMB,((AY21-[1]!NIUPPLIMB)*[1]!NIUPPERB)+(([1]!NIUPPLIMB-[1]!NILOWLIMB)*[1]!NISUPNB),IF(AY21>[1]!NILOWLIMB,(AY21-[1]!NILOWLIMB)*[1]!NISUPNB,0))))*((NumberOfDaysWorked($F21,$G21,BD$1,BF$1)*5)+(NumberOfDaysWorked($F21,$G21,BD$1,BF$1)*7)) -> 0 | BE21: =IF($Q21="N",0,(BA21*$BE$5)) -> 0 | BF21: =SUM(BA21:BE21) -> 0 | BG21: =IF($E21="TEACHER",IF(AW21<6,AW21+1,IF(LEFT(AW21,1)="U",AW21,6)),IF($E21="LEADER",+I21,IF($E21="UNQUAL",IF(AW21<10,AW21+1,10),IF($E21="ADVANCED",IF(AW21<27,AW21+1,27))))) -> 4 | BH21: =(K21+M21+O21+P21) -> 0 | BI21: =IF($E21="LEADER",VLOOKUP(BG21,[1]!LEADERSHIP,5),IF($E21="TEACHER",VLOOKUP(BG21,[1]!TEACHER,5),IF($E21="ADVANCED",VLOOKUP($AW21,[1]!ADVANCED_SKILLS_TEACHERS,5),IF($E21="UNQUAL",VLOOKUP($AW21,[1]!UNQUALIFIED_TEACHER,5),0))))*D21*(1+BA$4)*(1+BA$5)*(1+BK$4)*(1+BK$5)+(BH21/BJ21) -> 0 | BJ21: =IF(G21-F21>11.99999,12,MONTH(G21)-MONTH(F21)) -> 12 | BK21: =NumberOfDaysWorked($F21,$G21,BN$1,BP$1)*(($AY21*(1+BK$4))*5)+NumberOfDaysWorked($F21,$G21,BN$1,BP$1)*($BI21*7) -> 0 | BN21: =(IF($Q21="N",IF(BI21>[1]!NIUPPLIMC,((BI21-[1]!NIUPPLIMC)*[1]!NIUPPERC)+([1]!NIUPPLIMC-[1]!NILOWLIMC)*[1]!NILOWC,IF(BI21>[1]!NILOWLIMC,(BI21-[1]!NILOWLIMC)*[1]!NILOWC,0)))+IF($Q21="Y",IF(BI21>[1]!NIUPPLIMC,((BI21-[1]!NIUPPLIMC)*[1]!NIUPPERC)+(([1]!NIUPPLIMC-[1]!NILOWLIMC)*[1]!NISUPNC),IF(BI21>[1]!NILOWLIMC,(BI21-[1]!NILOWLIMC)*[1]!NISUPNC,0))))*((NumberOfDaysWorked($F21,$G21,BN$1,BP$1)*5)+(NumberOfDaysWorked($F21,$G21,BN$1,BP$1)*7)) -> 0 | BO21: =IF($Q21="N",0,(BK21*$BO$5)) -> 0 | BP21: =SUM(BK21:BO21) -> 0
A22: x | B22: Teacher | C22: A01001 | D22: 0 | E22: TEACHER | F22: =$F$3 -> 2026-04-01 | G22: 2029-03-31 | H22: 6 | I22: 6 | J22: 0 | K22: =VLOOKUP(J22,[1]!MANAGEMENT,2)*D22 -> 0 | L22: 0 | M22: =VLOOKUP(L22,[1]!SEN_ALLOWANCES,2)*D22 -> 0 | N22: 0 | O22: =N22 -> 0 | P22: 0 | Q22: Y | R22: =IF($E22="LEADER",VLOOKUP(H22,[1]PAYDATA!$A$4:$C$54,3),IF($E22="TEACHER",VLOOKUP(H22,[1]PAYDATA!$A$70:$C$80,3),IF($E22="ADVANCED",VLOOKUP(H22,[1]PAYDATA!$A$141:$C$159,3),IF($E22="UNQUAL",VLOOKUP(H22,[1]PAYDATA!$A$57:$C$63,3),0))))*$D22+($K22/T22)+($M22/T22)+($O22/T22)+($P22/T22) -> 0 | S22: =IF($E22="LEADER",VLOOKUP(I22,[1]!LEADERSHIP,5),IF($E22="TEACHER",VLOOKUP(I22,[1]!TEACHER,5),IF($E22="ADVANCED",VLOOKUP(I22,[1]PAYDATA!$A$141:$E$159,5),IF($E22="UNQUAL",VLOOKUP(I22,[1]!UNQUALIFIED_TEACHER,5),0))))*$D22+($K22/T22)+($M22/T22)+($O22/T22)+($P22/T22) -> 0 | T22: 12 | U22: 0 | V22: 0 | W22: 0 | X22: 0 | Y22: 0 | Z22: 0 | AA22: 0 | AB22: 0 | AC22: 0 | AD22: 0 | AE22: 0 | AF22: 0 | AG22: =SUM(U22:AF22) -> 0 | AH22: =IF($Q22="N",IF(U22>[1]!NIUPPLIMA,((U22-[1]!NIUPPLIMA)*[1]!NIUPPERA)+([1]!NIUPPLIMA-[1]!NILOWLIMA)*[1]!NILOWA,IF(U22>[1]!NILOWLIMA,(U22-[1]!NILOWLIMA)*[1]!NILOWA,0)))+IF($Q22="Y",IF(U22>[1]!NIUPPLIMA,((U22-[1]!NIUPPLIMA)*[1]!NIUPPERA)+(([1]!NIUPPLIMA-[1]!NILOWLIMA)*[1]!NISUPNA),IF(U22>[1]!NILOWLIMA,(U22-[1]!NILOWLIMA)*[1]!NISUPNA,0)))+IF(U22>[1]!NILOWLIMA,-[1]!NICREBATEA,0) -> 0 | AI22: =IF($Q22="N",IF(V22>[1]!NIUPPLIMA,((V22-[1]!NIUPPLIMA)*[1]!NIUPPERA)+([1]!NIUPPLIMA-[1]!NILOWLIMA)*[1]!NILOWA,IF(V22>[1]!NILOWLIMA,(V22-[1]!NILOWLIMA)*[1]!NILOWA,0)))+IF($Q22="Y",IF(V22>[1]!NIUPPLIMA,((V22-[1]!NIUPPLIMA)*[1]!NIUPPERA)+(([1]!NIUPPLIMA-[1]!NILOWLIMA)*[1]!NISUPNA),IF(V22>[1]!NILOWLIMA,(V22-[1]!NILOWLIMA)*[1]!NISUPNA,0)))+IF(V22>[1]!NILOWLIMA,-[1]!NICREBATEA,0) -> 0 | AJ22: =IF($Q22="N",IF(W22>[1]!NIUPPLIMA,((W22-[1]!NIUPPLIMA)*[1]!NIUPPERA)+([1]!NIUPPLIMA-[1]!NILOWLIMA)*[1]!NILOWA,IF(W22>[1]!NILOWLIMA,(W22-[1]!NILOWLIMA)*[1]!NILOWA,0)))+IF($Q22="Y",IF(W22>[1]!NIUPPLIMA,((W22-[1]!NIUPPLIMA)*[1]!NIUPPERA)+(([1]!NIUPPLIMA-[1]!NILOWLIMA)*[1]!NISUPNA),IF(W22>[1]!NILOWLIMA,(W22-[1]!NILOWLIMA)*[1]!NISUPNA,0)))+IF(W22>[1]!NILOWLIMA,-[1]!NICREBATEA,0) -> 0 | AK22: =IF($Q22="N",IF(X22>[1]!NIUPPLIMA,((X22-[1]!NIUPPLIMA)*[1]!NIUPPERA)+([1]!NIUPPLIMA-[1]!NILOWLIMA)*[1]!NILOWA,IF(X22>[1]!NILOWLIMA,(X22-[1]!NILOWLIMA)*[1]!NILOWA,0)))+IF($Q22="Y",IF(X22>[1]!NIUPPLIMA,((X22-[1]!NIUPPLIMA)*[1]!NIUPPERA)+(([1]!NIUPPLIMA-[1]!NILOWLIMA)*[1]!NISUPNA),IF(X22>[1]!NILOWLIMA,(X22-[1]!NILOWLIMA)*[1]!NISUPNA,0)))+IF(X22>[1]!NILOWLIMA,-[1]!NICREBATEA,0) -> 0 | AL22: =IF($Q22="N",IF(Y22>[1]!NIUPPLIMA,((Y22-[1]!NIUPPLIMA)*[1]!NIUPPERA)+([1]!NIUPPLIMA-[1]!NILOWLIMA)*[1]!NILOWA,IF(Y22>[1]!NILOWLIMA,(Y22-[1]!NILOWLIMA)*[1]!NILOWA,0)))+IF($Q22="Y",IF(Y22>[1]!NIUPPLIMA,((Y22-[1]!NIUPPLIMA)*[1]!NIUPPERA)+(([1]!NIUPPLIMA-[1]!NILOWLIMA)*[1]!NISUPNA),IF(Y22>[1]!NILOWLIMA,(Y22-[1]!NILOWLIMA)*[1]!NISUPNA,0)))+IF(Y22>[1]!NILOWLIMA,-[1]!NICREBATEA,0) -> 0 | AM22: =IF($Q22="N",IF(Z22>[1]!NIUPPLIMA,((Z22-[1]!NIUPPLIMA)*[1]!NIUPPERA)+([1]!NIUPPLIMA-[1]!NILOWLIMA)*[1]!NILOWA,IF(Z22>[1]!NILOWLIMA,(Z22-[1]!NILOWLIMA)*[1]!NILOWA,0)))+IF($Q22="Y",IF(Z22>[1]!NIUPPLIMA,((Z22-[1]!NIUPPLIMA)*[1]!NIUPPERA)+(([1]!NIUPPLIMA-[1]!NILOWLIMA)*[1]!NISUPNA),IF(Z22>[1]!NILOWLIMA,(Z22-[1]!NILOWLIMA)*[1]!NISUPNA,0)))+IF(Z22>[1]!NILOWLIMA,-[1]!NICREBATEA,0) -> 0 | AN22: =IF($Q22="N",IF(AA22>[1]!NIUPPLIMA,((AA22-[1]!NIUPPLIMA)*[1]!NIUPPERA)+([1]!NIUPPLIMA-[1]!NILOWLIMA)*[1]!NILOWA,IF(AA22>[1]!NILOWLIMA,(AA22-[1]!NILOWLIMA)*[1]!NILOWA,0)))+IF($Q22="Y",IF(AA22>[1]!NIUPPLIMA,((AA22-[1]!NIUPPLIMA)*[1]!NIUPPERA)+(([1]!NIUPPLIMA-[1]!NILOWLIMA)*[1]!NISUPNA),IF(AA22>[1]!NILOWLIMA,(AA22-[1]!NILOWLIMA)*[1]!NISUPNA,0)))+IF(AA22>[1]!NILOWLIMA,-[1]!NICREBATEA,0) -> 0 | AO22: =IF($Q22="N",IF(AB22>[1]!NIUPPLIMA,((AB22-[1]!NIUPPLIMA)*[1]!NIUPPERA)+([1]!NIUPPLIMA-[1]!NILOWLIMA)*[1]!NILOWA,IF(AB22>[1]!NILOWLIMA,(AB22-[1]!NILOWLIMA)*[1]!NILOWA,0)))+IF($Q22="Y",IF(AB22>[1]!NIUPPLIMA,((AB22-[1]!NIUPPLIMA)*[1]!NIUPPERA)+(([1]!NIUPPLIMA-[1]!NILOWLIMA)*[1]!NISUPNA),IF(AB22>[1]!NILOWLIMA,(AB22-[1]!NILOWLIMA)*[1]!NISUPNA,0)))+IF(AB22>[1]!NILOWLIMA,-[1]!NICREBATEA,0) -> 0 | AP22: =IF($Q22="N",IF(AC22>[1]!NIUPPLIMA,((AC22-[1]!NIUPPLIMA)*[1]!NIUPPERA)+([1]!NIUPPLIMA-[1]!NILOWLIMA)*[1]!NILOWA,IF(AC22>[1]!NILOWLIMA,(AC22-[1]!NILOWLIMA)*[1]!NILOWA,0)))+IF($Q22="Y",IF(AC22>[1]!NIUPPLIMA,((AC22-[1]!NIUPPLIMA)*[1]!NIUPPERA)+(([1]!NIUPPLIMA-[1]!NILOWLIMA)*[1]!NISUPNA),IF(AC22>[1]!NILOWLIMA,(AC22-[1]!NILOWLIMA)*[1]!NISUPNA,0)))+IF(AC22>[1]!NILOWLIMA,-[1]!NICREBATEA,0) -> 0 | AQ22: =IF($Q22="N",IF(AD22>[1]!NIUPPLIMA,((AD22-[1]!NIUPPLIMA)*[1]!NIUPPERA)+([1]!NIUPPLIMA-[1]!NILOWLIMA)*[1]!NILOWA,IF(AD22>[1]!NILOWLIMA,(AD22-[1]!NILOWLIMA)*[1]!NILOWA,0)))+IF($Q22="Y",IF(AD22>[1]!NIUPPLIMA,((AD22-[1]!NIUPPLIMA)*[1]!NIUPPERA)+(([1]!NIUPPLIMA-[1]!NILOWLIMA)*[1]!NISUPNA),IF(AD22>[1]!NILOWLIMA,(AD22-[1]!NILOWLIMA)*[1]!NISUPNA,0)))+IF(AD22>[1]!NILOWLIMA,-[1]!NICREBATEA,0) -> 0 | AR22: =IF($Q22="N",IF(AE22>[1]!NIUPPLIMA,((AE22-[1]!NIUPPLIMA)*[1]!NIUPPERA)+([1]!NIUPPLIMA-[1]!NILOWLIMA)*[1]!NILOWA,IF(AE22>[1]!NILOWLIMA,(AE22-[1]!NILOWLIMA)*[1]!NILOWA,0)))+IF($Q22="Y",IF(AE22>[1]!NIUPPLIMA,((AE22-[1]!NIUPPLIMA)*[1]!NIUPPERA)+(([1]!NIUPPLIMA-[1]!NILOWLIMA)*[1]!NISUPNA),IF(AE22>[1]!NILOWLIMA,(AE22-[1]!NILOWLIMA)*[1]!NISUPNA,0)))+IF(AE22>[1]!NILOWLIMA,-[1]!NICREBATEA,0) -> 0 | AS22: =IF($Q22="N",IF(AF22>[1]!NIUPPLIMA,((AF22-[1]!NIUPPLIMA)*[1]!NIUPPERA)+([1]!NIUPPLIMA-[1]!NILOWLIMA)*[1]!NILOWA,IF(AF22>[1]!NILOWLIMA,(AF22-[1]!NILOWLIMA)*[1]!NILOWA,0)))+IF($Q22="Y",IF(AF22>[1]!NIUPPLIMA,((AF22-[1]!NIUPPLIMA)*[1]!NIUPPERA)+(([1]!NIUPPLIMA-[1]!NILOWLIMA)*[1]!NISUPNA),IF(AF22>[1]!NILOWLIMA,(AF22-[1]!NILOWLIMA)*[1]!NISUPNA,0)))+IF(AF22>[1]!NILOWLIMA,-[1]!NICREBATEA,0) -> 0 | AT22: =SUM(AH22:AS22) -> 0 | AU22: =IF($Q22="N",0,((AG22*$AU$5))) -> 0 | AV22: =AG22+AT22+AU22 -> 0 | AW22: 6 | AX22: 0 | AY22: =IF($E22="LEADER",VLOOKUP(AW22,[1]!LEADERSHIP,5),IF($E22="TEACHER",VLOOKUP(AW22,[1]!TEACHER,5),IF($E22="ADVANCED",VLOOKUP($AW22,[1]!ADVANCED_SKILLS_TEACHERS,5),IF($E22="UNQUAL",VLOOKUP($AW22,[1]!UNQUALIFIED_TEACHER,5),0))))*D22*(1+BA$4)*(1+BA$5)+(AX22/AZ22) -> 0 | AZ22: 12 | BA22: 0 | BD22: =(IF($Q22="N",IF(AY22>[1]!NIUPPLIMB,((AY22-[1]!NIUPPLIMB)*[1]!NIUPPERB)+([1]!NIUPPLIMB-[1]!NILOWLIMB)*[1]!NILOWB,IF(AY22>[1]!NILOWLIMB,(AY22-[1]!NILOWLIMB)*[1]!NILOWB,0)))+IF($Q22="Y",IF(AY22>[1]!NIUPPLIMB,((AY22-[1]!NIUPPLIMB)*[1]!NIUPPERB)+(([1]!NIUPPLIMB-[1]!NILOWLIMB)*[1]!NISUPNB),IF(AY22>[1]!NILOWLIMB,(AY22-[1]!NILOWLIMB)*[1]!NISUPNB,0))))*((NumberOfDaysWorked($F22,$G22,BD$1,BF$1)*5)+(NumberOfDaysWorked($F22,$G22,BD$1,BF$1)*7)) -> 0 | BE22: 0 | BF22: 0 | BG22: 6 | BH22: 0 | BI22: =IF($E22="LEADER",VLOOKUP(BG22,[1]!LEADERSHIP,5),IF($E22="TEACHER",VLOOKUP(BG22,[1]!TEACHER,5),IF($E22="ADVANCED",VLOOKUP($AW22,[1]!ADVANCED_SKILLS_TEACHERS,5),IF($E22="UNQUAL",VLOOKUP($AW22,[1]!UNQUALIFIED_TEACHER,5),0))))*D22*(1+BA$4)*(1+BA$5)*(1+BK$4)*(1+BK$5)+(BH22/BJ22) -> 0 | BJ22: 12 | BK22: 0 | BN22: =(IF($Q22="N",IF(BI22>[1]!NIUPPLIMC,((BI22-[1]!NIUPPLIMC)*[1]!NIUPPERC)+([1]!NIUPPLIMC-[1]!NILOWLIMC)*[1]!NILOWC,IF(BI22>[1]!NILOWLIMC,(BI22-[1]!NILOWLIMC)*[1]!NILOWC,0)))+IF($Q22="Y",IF(BI22>[1]!NIUPPLIMC,((BI22-[1]!NIUPPLIMC)*[1]!NIUPPERC)+(([1]!NIUPPLIMC-[1]!NILOWLIMC)*[1]!NISUPNC),IF(BI22>[1]!NILOWLIMC,(BI22-[1]!NILOWLIMC)*[1]!NISUPNC,0))))*((NumberOfDaysWorked($F22,$G22,BN$1,BP$1)*5)+(NumberOfDaysWorked($F22,$G22,BN$1,BP$1)*7)) -> 0 | BO22: 0 | BP22: 0
A23: x | B23: BLAIR JENNY | C23: A01001 | D23: =1012/1265 -> 0.8 | E23: TEACHER | F23: 2026-04-01 | G23: 2026-08-31 | H23: 6 | I23: 6 | J23: 0 | K23: =VLOOKUP(J23,[1]!MANAGEMENT,2)*D23 -> 0 | L23: 0 | M23: =VLOOKUP(L23,[1]!SEN_ALLOWANCES,2)*D23 -> 0 | N23: 0 | O23: =N23 -> 0 | P23: 0 | Q23: Y | R23: =IF($E23="LEADER",VLOOKUP(H23,[1]PAYDATA!$A$4:$C$54,3),IF($E23="TEACHER",VLOOKUP(H23,[1]PAYDATA!$A$70:$C$80,3),IF($E23="ADVANCED",VLOOKUP(H23,[1]PAYDATA!$A$141:$C$159,3),IF($E23="UNQUAL",VLOOKUP(H23,[1]PAYDATA!$A$57:$C$63,3),0))))*$D23+($K23/T23)+($M23/T23)+($O23/T23)+($P23/T23) -> 3023.466667 | S23: =IF($E23="LEADER",VLOOKUP(I23,[1]!LEADERSHIP,5),IF($E23="TEACHER",VLOOKUP(I23,[1]!TEACHER,5),IF($E23="ADVANCED",VLOOKUP(I23,[1]PAYDATA!$A$141:$E$159,5),IF($E23="UNQUAL",VLOOKUP(I23,[1]!UNQUALIFIED_TEACHER,5),0))))*$D23+($K23/T23)+($M23/T23)+($O23/T23)+($P23/T23) -> 3083.936 | T23: =IF(G23-F23>11.99999,12,MONTH(G23)-MONTH(F23)) -> 12 | U23: 3023.466667 | V23: 3023.466667 | W23: 3023.466667 | X23: 3023.466667 | Y23: 3023.466667 | Z23: 0 | AA23: 0 | AB23: 0 | AC23: 0 | AD23: 0 | AE23: 0 | AF23: 0 | AG23: =SUM(U23:AF23) -> 15117.33333 | AH23: =IF($Q23="N",IF(U23>[1]!NIUPPLIMA,((U23-[1]!NIUPPLIMA)*[1]!NIUPPERA)+([1]!NIUPPLIMA-[1]!NILOWLIMA)*[1]!NILOWA,IF(U23>[1]!NILOWLIMA,(U23-[1]!NILOWLIMA)*[1]!NILOWA,0)))+IF($Q23="Y",IF(U23>[1]!NIUPPLIMA,((U23-[1]!NIUPPLIMA)*[1]!NIUPPERA)+(([1]!NIUPPLIMA-[1]!NILOWLIMA)*[1]!NISUPNA),IF(U23>[1]!NILOWLIMA,(U23-[1]!NILOWLIMA)*[1]!NISUPNA,0)))+IF(U23>[1]!NILOWLIMA,-[1]!NICREBATEA,0) -> 390.97 | AI23: =IF($Q23="N",IF(V23>[1]!NIUPPLIMA,((V23-[1]!NIUPPLIMA)*[1]!NIUPPERA)+([1]!NIUPPLIMA-[1]!NILOWLIMA)*[1]!NILOWA,IF(V23>[1]!NILOWLIMA,(V23-[1]!NILOWLIMA)*[1]!NILOWA,0)))+IF($Q23="Y",IF(V23>[1]!NIUPPLIMA,((V23-[1]!NIUPPLIMA)*[1]!NIUPPERA)+(([1]!NIUPPLIMA-[1]!NILOWLIMA)*[1]!NISUPNA),IF(V23>[1]!NILOWLIMA,(V23-[1]!NILOWLIMA)*[1]!NISUPNA,0)))+IF(V23>[1]!NILOWLIMA,-[1]!NICREBATEA,0) -> 390.97 | AJ23: =IF($Q23="N",IF(W23>[1]!NIUPPLIMA,((W23-[1]!NIUPPLIMA)*[1]!NIUPPERA)+([1]!NIUPPLIMA-[1]!NILOWLIMA)*[1]!NILOWA,IF(W23>[1]!NILOWLIMA,(W23-[1]!NILOWLIMA)*[1]!NILOWA,0)))+IF($Q23="Y",IF(W23>[1]!NIUPPLIMA,((W23-[1]!NIUPPLIMA)*[1]!NIUPPERA)+(([1]!NIUPPLIMA-[1]!NILOWLIMA)*[1]!NISUPNA),IF(W23>[1]!NILOWLIMA,(W23-[1]!NILOWLIMA)*[1]!NISUPNA,0)))+IF(W23>[1]!NILOWLIMA,-[1]!NICREBATEA,0) -> 390.97 | AK23: =IF($Q23="N",IF(X23>[1]!NIUPPLIMA,((X23-[1]!NIUPPLIMA)*[1]!NIUPPERA)+([1]!NIUPPLIMA-[1]!NILOWLIMA)*[1]!NILOWA,IF(X23>[1]!NILOWLIMA,(X23-[1]!NILOWLIMA)*[1]!NILOWA,0)))+IF($Q23="Y",IF(X23>[1]!NIUPPLIMA,((X23-[1]!NIUPPLIMA)*[1]!NIUPPERA)+(([1]!NIUPPLIMA-[1]!NILOWLIMA)*[1]!NISUPNA),IF(X23>[1]!NILOWLIMA,(X23-[1]!NILOWLIMA)*[1]!NISUPNA,0)))+IF(X23>[1]!NILOWLIMA,-[1]!NICREBATEA,0) -> 390.97 | AL23: =IF($Q23="N",IF(Y23>[1]!NIUPPLIMA,((Y23-[1]!NIUPPLIMA)*[1]!NIUPPERA)+([1]!NIUPPLIMA-[1]!NILOWLIMA)*[1]!NILOWA,IF(Y23>[1]!NILOWLIMA,(Y23-[1]!NILOWLIMA)*[1]!NILOWA,0)))+IF($Q23="Y",IF(Y23>[1]!NIUPPLIMA,((Y23-[1]!NIUPPLIMA)*[1]!NIUPPERA)+(([1]!NIUPPLIMA-[1]!NILOWLIMA)*[1]!NISUPNA),IF(Y23>[1]!NILOWLIMA,(Y23-[1]!NILOWLIMA)*[1]!NISUPNA,0)))+IF(Y23>[1]!NILOWLIMA,-[1]!NICREBATEA,0) -> 390.97 | AM23: =IF($Q23="N",IF(Z23>[1]!NIUPPLIMA,((Z23-[1]!NIUPPLIMA)*[1]!NIUPPERA)+([1]!NIUPPLIMA-[1]!NILOWLIMA)*[1]!NILOWA,IF(Z23>[1]!NILOWLIMA,(Z23-[1]!NILOWLIMA)*[1]!NILOWA,0)))+IF($Q23="Y",IF(Z23>[1]!NIUPPLIMA,((Z23-[1]!NIUPPLIMA)*[1]!NIUPPERA)+(([1]!NIUPPLIMA-[1]!NILOWLIMA)*[1]!NISUPNA),IF(Z23>[1]!NILOWLIMA,(Z23-[1]!NILOWLIMA)*[1]!NISUPNA,0)))+IF(Z23>[1]!NILOWLIMA,-[1]!NICREBATEA,0) -> 0 | AN23: =IF($Q23="N",IF(AA23>[1]!NIUPPLIMA,((AA23-[1]!NIUPPLIMA)*[1]!NIUPPERA)+([1]!NIUPPLIMA-[1]!NILOWLIMA)*[1]!NILOWA,IF(AA23>[1]!NILOWLIMA,(AA23-[1]!NILOWLIMA)*[1]!NILOWA,0)))+IF($Q23="Y",IF(AA23>[1]!NIUPPLIMA,((AA23-[1]!NIUPPLIMA)*[1]!NIUPPERA)+(([1]!NIUPPLIMA-[1]!NILOWLIMA)*[1]!NISUPNA),IF(AA23>[1]!NILOWLIMA,(AA23-[1]!NILOWLIMA)*[1]!NISUPNA,0)))+IF(AA23>[1]!NILOWLIMA,-[1]!NICREBATEA,0) -> 0 | AO23: =IF($Q23="N",IF(AB23>[1]!NIUPPLIMA,((AB23-[1]!NIUPPLIMA)*[1]!NIUPPERA)+([1]!NIUPPLIMA-[1]!NILOWLIMA)*[1]!NILOWA,IF(AB23>[1]!NILOWLIMA,(AB23-[1]!NILOWLIMA)*[1]!NILOWA,0)))+IF($Q23="Y",IF(AB23>[1]!NIUPPLIMA,((AB23-[1]!NIUPPLIMA)*[1]!NIUPPERA)+(([1]!NIUPPLIMA-[1]!NILOWLIMA)*[1]!NISUPNA),IF(AB23>[1]!NILOWLIMA,(AB23-[1]!NILOWLIMA)*[1]!NISUPNA,0)))+IF(AB23>[1]!NILOWLIMA,-[1]!NICREBATEA,0) -> 0 | AP23: =IF($Q23="N",IF(AC23>[1]!NIUPPLIMA,((AC23-[1]!NIUPPLIMA)*[1]!NIUPPERA)+([1]!NIUPPLIMA-[1]!NILOWLIMA)*[1]!NILOWA,IF(AC23>[1]!NILOWLIMA,(AC23-[1]!NILOWLIMA)*[1]!NILOWA,0)))+IF($Q23="Y",IF(AC23>[1]!NIUPPLIMA,((AC23-[1]!NIUPPLIMA)*[1]!NIUPPERA)+(([1]!NIUPPLIMA-[1]!NILOWLIMA)*[1]!NISUPNA),IF(AC23>[1]!NILOWLIMA,(AC23-[1]!NILOWLIMA)*[1]!NISUPNA,0)))+IF(AC23>[1]!NILOWLIMA,-[1]!NICREBATEA,0) -> 0 | AQ23: =IF($Q23="N",IF(AD23>[1]!NIUPPLIMA,((AD23-[1]!NIUPPLIMA)*[1]!NIUPPERA)+([1]!NIUPPLIMA-[1]!NILOWLIMA)*[1]!NILOWA,IF(AD23>[1]!NILOWLIMA,(AD23-[1]!NILOWLIMA)*[1]!NILOWA,0)))+IF($Q23="Y",IF(AD23>[1]!NIUPPLIMA,((AD23-[1]!NIUPPLIMA)*[1]!NIUPPERA)+(([1]!NIUPPLIMA-[1]!NILOWLIMA)*[1]!NISUPNA),IF(AD23>[1]!NILOWLIMA,(AD23-[1]!NILOWLIMA)*[1]!NISUPNA,0)))+IF(AD23>[1]!NILOWLIMA,-[1]!NICREBATEA,0) -> 0 | AR23: =IF($Q23="N",IF(AE23>[1]!NIUPPLIMA,((AE23-[1]!NIUPPLIMA)*[1]!NIUPPERA)+([1]!NIUPPLIMA-[1]!NILOWLIMA)*[1]!NILOWA,IF(AE23>[1]!NILOWLIMA,(AE23-[1]!NILOWLIMA)*[1]!NILOWA,0)))+IF($Q23="Y",IF(AE23>[1]!NIUPPLIMA,((AE23-[1]!NIUPPLIMA)*[1]!NIUPPERA)+(([1]!NIUPPLIMA-[1]!NILOWLIMA)*[1]!NISUPNA),IF(AE23>[1]!NILOWLIMA,(AE23-[1]!NILOWLIMA)*[1]!NISUPNA,0)))+IF(AE23>[1]!NILOWLIMA,-[1]!NICREBATEA,0) -> 0 | AS23: =IF($Q23="N",IF(AF23>[1]!NIUPPLIMA,((AF23-[1]!NIUPPLIMA)*[1]!NIUPPERA)+([1]!NIUPPLIMA-[1]!NILOWLIMA)*[1]!NILOWA,IF(AF23>[1]!NILOWLIMA,(AF23-[1]!NILOWLIMA)*[1]!NILOWA,0)))+IF($Q23="Y",IF(AF23>[1]!NIUPPLIMA,((AF23-[1]!NIUPPLIMA)*[1]!NIUPPERA)+(([1]!NIUPPLIMA-[1]!NILOWLIMA)*[1]!NISUPNA),IF(AF23>[1]!NILOWLIMA,(AF23-[1]!NILOWLIMA)*[1]!NISUPNA,0)))+IF(AF23>[1]!NILOWLIMA,-[1]!NICREBATEA,0) -> 0 | AT23: =SUM(AH23:AS23) -> 1954.85 | AU23: =IF($Q23="N",0,((AG23*$AU$5))) -> 4335.6512 | AV23: =AG23+AT23+AU23 -> 21407.83453 | AW23: =IF($E23="TEACHER",IF($I23<6,$I23+1,IF(LEFT($I23,1)="U",$I23,6)),IF($E23="LEADER",+I23,IF($E23="UNQUAL",IF($I23<10,$I23+1,10),IF($E23="ADVANCED",IF($I23<27,$I23+1,27))))) -> 6 | AX23: =(K23+M23+O23+P23) -> 0 | AY23: =IF($E23="LEADER",VLOOKUP(AW23,[1]!LEADERSHIP,5),IF($E23="TEACHER",VLOOKUP(AW23,[1]!TEACHER,5),IF($E23="ADVANCED",VLOOKUP($AW23,[1]!ADVANCED_SKILLS_TEACHERS,5),IF($E23="UNQUAL",VLOOKUP($AW23,[1]!UNQUALIFIED_TEACHER,5),0))))*D23*(1+BA$4)*(1+BA$5)+(AX23/AZ23) -> 3145.61472 | AZ23: =IF(G23-F23>11.99999,12,MONTH(G23)-MONTH(F23)) -> 12 | BA23: =NumberOfDaysWorked($F23,$G23,BD$1,BF$1)*(($S23*(1+BA$4))*5)+NumberOfDaysWorked($F23,$G23,BD$1,BF$1)*($AY23*7) -> 0 | BD23: =(IF($Q23="N",IF(AY23>[1]!NIUPPLIMB,((AY23-[1]!NIUPPLIMB)*[1]!NIUPPERB)+([1]!NIUPPLIMB-[1]!NILOWLIMB)*[1]!NILOWB,IF(AY23>[1]!NILOWLIMB,(AY23-[1]!NILOWLIMB)*[1]!NILOWB,0)))+IF($Q23="Y",IF(AY23>[1]!NIUPPLIMB,((AY23-[1]!NIUPPLIMB)*[1]!NIUPPERB)+(([1]!NIUPPLIMB-[1]!NILOWLIMB)*[1]!NISUPNB),IF(AY23>[1]!NILOWLIMB,(AY23-[1]!NILOWLIMB)*[1]!NISUPNB,0))))*((NumberOfDaysWorked($F23,$G23,BD$1,BF$1)*5)+(NumberOfDaysWorked($F23,$G23,BD$1,BF$1)*7)) -> 0 | BE23: =IF($Q23="N",0,(BA23*$BE$5)) -> 0 | BF23: =SUM(BA23:BE23) -> 0 | BG23: =IF($E23="TEACHER",IF(AW23<6,AW23+1,IF(LEFT(AW23,1)="U",AW23,6)),IF($E23="LEADER",+I23,IF($E23="UNQUAL",IF(AW23<10,AW23+1,10),IF($E23="ADVANCED",IF(AW23<27,AW23+1,27))))) -> 6 | BH23: =(K23+M23+O23+P23) -> 0 | BI23: =IF($E23="LEADER",VLOOKUP(BG23,[1]!LEADERSHIP,5),IF($E23="TEACHER",VLOOKUP(BG23,[1]!TEACHER,5),IF($E23="ADVANCED",VLOOKUP($AW23,[1]!ADVANCED_SKILLS_TEACHERS,5),IF($E23="UNQUAL",VLOOKUP($AW23,[1]!UNQUALIFIED_TEACHER,5),0))))*D23*(1+BA$4)*(1+BA$5)*(1+BK$4)*(1+BK$5)+(BH23/BJ23) -> 3208.527014 | BJ23: =IF(G23-F23>11.99999,12,MONTH(G23)-MONTH(F23)) -> 12 | BK23: =NumberOfDaysWorked($F23,$G23,BN$1,BP$1)*(($AY23*(1+BK$4))*5)+NumberOfDaysWorked($F23,$G23,BN$1,BP$1)*($BI23*7) -> 0 | BN23: =(IF($Q23="N",IF(BI23>[1]!NIUPPLIMC,((BI23-[1]!NIUPPLIMC)*[1]!NIUPPERC)+([1]!NIUPPLIMC-[1]!NILOWLIMC)*[1]!NILOWC,IF(BI23>[1]!NILOWLIMC,(BI23-[1]!NILOWLIMC)*[1]!NILOWC,0)))+IF($Q23="Y",IF(BI23>[1]!NIUPPLIMC,((BI23-[1]!NIUPPLIMC)*[1]!NIUPPERC)+(([1]!NIUPPLIMC-[1]!NILOWLIMC)*[1]!NISUPNC),IF(BI23>[1]!NILOWLIMC,(BI23-[1]!NILOWLIMC)*[1]!NISUPNC,0))))*((NumberOfDaysWorked($F23,$G23,BN$1,BP$1)*5)+(NumberOfDaysWorked($F23,$G23,BN$1,BP$1)*7)) -> 0 | BO23: =IF($Q23="N",0,(BK23*$BO$5)) -> 0 | BP23: =SUM(BK23:BO23) -> 0
A24: x | B24: BOYLAN-THOMSON AMY | C24: A01001 | D24: 1 | E24: TEACHER | F24: 2026-04-01 | G24: 2029-03-31 | H24: 3 | I24: 4 | J24: 0 | K24: =VLOOKUP(J24,[1]!MANAGEMENT,2)*D24 -> 0 | L24: 0 | M24: =VLOOKUP(L24,[1]!SEN_ALLOWANCES,2)*D24 -> 0 | N24: 0 | O24: 0 | P24: 0 | Q24: Y | R24: =IF($E24="LEADER",VLOOKUP(H24,[1]PAYDATA!$A$4:$C$54,3),IF($E24="TEACHER",VLOOKUP(H24,[1]PAYDATA!$A$70:$C$80,3),IF($E24="ADVANCED",VLOOKUP(H24,[1]PAYDATA!$A$141:$C$159,3),IF($E24="UNQUAL",VLOOKUP(H24,[1]PAYDATA!$A$57:$C$63,3),0))))*$D24+($K24/T24)+($M24/T24)+($O24/T24)+($P24/T24) -> 3091.75 | S24: =IF($E24="LEADER",VLOOKUP(I24,[1]!LEADERSHIP,5),IF($E24="TEACHER",VLOOKUP(I24,[1]!TEACHER,5),IF($E24="ADVANCED",VLOOKUP(I24,[1]PAYDATA!$A$141:$E$159,5),IF($E24="UNQUAL",VLOOKUP(I24,[1]!UNQUALIFIED_TEACHER,5),0))))*$D24+($K24/T24)+($M24/T24)+($O24/T24)+($P24/T24) -> 3362.26 | T24: 12 | U24: 3091.75 | V24: 3091.75 | W24: 3091.75 | X24: 3091.75 | Y24: 3091.75 | Z24: 3362.26 | AA24: 3362.26 | AB24: 3362.26 | AC24: 3362.26 | AD24: 3362.26 | AE24: 3362.26 | AF24: 3362.26 | AG24: 38994.57 | AH24: =IF($Q24="N",IF(U24>[1]!NIUPPLIMA,((U24-[1]!NIUPPLIMA)*[1]!NIUPPERA)+([1]!NIUPPLIMA-[1]!NILOWLIMA)*[1]!NILOWA,IF(U24>[1]!NILOWLIMA,(U24-[1]!NILOWLIMA)*[1]!NILOWA,0)))+IF($Q24="Y",IF(U24>[1]!NIUPPLIMA,((U24-[1]!NIUPPLIMA)*[1]!NIUPPERA)+(([1]!NIUPPLIMA-[1]!NILOWLIMA)*[1]!NISUPNA),IF(U24>[1]!NILOWLIMA,(U24-[1]!NILOWLIMA)*[1]!NISUPNA,0)))+IF(U24>[1]!NILOWLIMA,-[1]!NICREBATEA,0) -> 401.2125 | AI24: =IF($Q24="N",IF(V24>[1]!NIUPPLIMA,((V24-[1]!NIUPPLIMA)*[1]!NIUPPERA)+([1]!NIUPPLIMA-[1]!NILOWLIMA)*[1]!NILOWA,IF(V24>[1]!NILOWLIMA,(V24-[1]!NILOWLIMA)*[1]!NILOWA,0)))+IF($Q24="Y",IF(V24>[1]!NIUPPLIMA,((V24-[1]!NIUPPLIMA)*[1]!NIUPPERA)+(([1]!NIUPPLIMA-[1]!NILOWLIMA)*[1]!NISUPNA),IF(V24>[1]!NILOWLIMA,(V24-[1]!NILOWLIMA)*[1]!NISUPNA,0)))+IF(V24>[1]!NILOWLIMA,-[1]!NICREBATEA,0) -> 401.2125 | AJ24: =IF($Q24="N",IF(W24>[1]!NIUPPLIMA,((W24-[1]!NIUPPLIMA)*[1]!NIUPPERA)+([1]!NIUPPLIMA-[1]!NILOWLIMA)*[1]!NILOWA,IF(W24>[1]!NILOWLIMA,(W24-[1]!NILOWLIMA)*[1]!NILOWA,0)))+IF($Q24="Y",IF(W24>[1]!NIUPPLIMA,((W24-[1]!NIUPPLIMA)*[1]!NIUPPERA)+(([1]!NIUPPLIMA-[1]!NILOWLIMA)*[1]!NISUPNA),IF(W24>[1]!NILOWLIMA,(W24-[1]!NILOWLIMA)*[1]!NISUPNA,0)))+IF(W24>[1]!NILOWLIMA,-[1]!NICREBATEA,0) -> 401.2125 | AK24: =IF($Q24="N",IF(X24>[1]!NIUPPLIMA,((X24-[1]!NIUPPLIMA)*[1]!NIUPPERA)+([1]!NIUPPLIMA-[1]!NILOWLIMA)*[1]!NILOWA,IF(X24>[1]!NILOWLIMA,(X24-[1]!NILOWLIMA)*[1]!NILOWA,0)))+IF($Q24="Y",IF(X24>[1]!NIUPPLIMA,((X24-[1]!NIUPPLIMA)*[1]!NIUPPERA)+(([1]!NIUPPLIMA-[1]!NILOWLIMA)*[1]!NISUPNA),IF(X24>[1]!NILOWLIMA,(X24-[1]!NILOWLIMA)*[1]!NISUPNA,0)))+IF(X24>[1]!NILOWLIMA,-[1]!NICREBATEA,0) -> 401.2125 | AL24: =IF($Q24="N",IF(Y24>[1]!NIUPPLIMA,((Y24-[1]!NIUPPLIMA)*[1]!NIUPPERA)+([1]!NIUPPLIMA-[1]!NILOWLIMA)*[1]!NILOWA,IF(Y24>[1]!NILOWLIMA,(Y24-[1]!NILOWLIMA)*[1]!NILOWA,0)))+IF($Q24="Y",IF(Y24>[1]!NIUPPLIMA,((Y24-[1]!NIUPPLIMA)*[1]!NIUPPERA)+(([1]!NIUPPLIMA-[1]!NILOWLIMA)*[1]!NISUPNA),IF(Y24>[1]!NILOWLIMA,(Y24-[1]!NILOWLIMA)*[1]!NISUPNA,0)))+IF(Y24>[1]!NILOWLIMA,-[1]!NICREBATEA,0) -> 401.2125 | AM24: =IF($Q24="N",IF(Z24>[1]!NIUPPLIMA,((Z24-[1]!NIUPPLIMA)*[1]!NIUPPERA)+([1]!NIUPPLIMA-[1]!NILOWLIMA)*[1]!NILOWA,IF(Z24>[1]!NILOWLIMA,(Z24-[1]!NILOWLIMA)*[1]!NILOWA,0)))+IF($Q24="Y",IF(Z24>[1]!NIUPPLIMA,((Z24-[1]!NIUPPLIMA)*[1]!NIUPPERA)+(([1]!NIUPPLIMA-[1]!NILOWLIMA)*[1]!NISUPNA),IF(Z24>[1]!NILOWLIMA,(Z24-[1]!NILOWLIMA)*[1]!NISUPNA,0)))+IF(Z24>[1]!NILOWLIMA,-[1]!NICREBATEA,0) -> 441.789 | AN24: =IF($Q24="N",IF(AA24>[1]!NIUPPLIMA,((AA24-[1]!NIUPPLIMA)*[1]!NIUPPERA)+([1]!NIUPPLIMA-[1]!NILOWLIMA)*[1]!NILOWA,IF(AA24>[1]!NILOWLIMA,(AA24-[1]!NILOWLIMA)*[1]!NILOWA,0)))+IF($Q24="Y",IF(AA24>[1]!NIUPPLIMA,((AA24-[1]!NIUPPLIMA)*[1]!NIUPPERA)+(([1]!NIUPPLIMA-[1]!NILOWLIMA)*[1]!NISUPNA),IF(AA24>[1]!NILOWLIMA,(AA24-[1]!NILOWLIMA)*[1]!NISUPNA,0)))+IF(AA24>[1]!NILOWLIMA,-[1]!NICREBATEA,0) -> 441.789 | AO24: =IF($Q24="N",IF(AB24>[1]!NIUPPLIMA,((AB24-[1]!NIUPPLIMA)*[1]!NIUPPERA)+([1]!NIUPPLIMA-[1]!NILOWLIMA)*[1]!NILOWA,IF(AB24>[1]!NILOWLIMA,(AB24-[1]!NILOWLIMA)*[1]!NILOWA,0)))+IF($Q24="Y",IF(AB24>[1]!NIUPPLIMA,((AB24-[1]!NIUPPLIMA)*[1]!NIUPPERA)+(([1]!NIUPPLIMA-[1]!NILOWLIMA)*[1]!NISUPNA),IF(AB24>[1]!NILOWLIMA,(AB24-[1]!NILOWLIMA)*[1]!NISUPNA,0)))+IF(AB24>[1]!NILOWLIMA,-[1]!NICREBATEA,0) -> 441.789 | AP24: =IF($Q24="N",IF(AC24>[1]!NIUPPLIMA,((AC24-[1]!NIUPPLIMA)*[1]!NIUPPERA)+([1]!NIUPPLIMA-[1]!NILOWLIMA)*[1]!NILOWA,IF(AC24>[1]!NILOWLIMA,(AC24-[1]!NILOWLIMA)*[1]!NILOWA,0)))+IF($Q24="Y",IF(AC24>[1]!NIUPPLIMA,((AC24-[1]!NIUPPLIMA)*[1]!NIUPPERA)+(([1]!NIUPPLIMA-[1]!NILOWLIMA)*[1]!NISUPNA),IF(AC24>[1]!NILOWLIMA,(AC24-[1]!NILOWLIMA)*[1]!NISUPNA,0)))+IF(AC24>[1]!NILOWLIMA,-[1]!NICREBATEA,0) -> 441.789 | AQ24: =IF($Q24="N",IF(AD24>[1]!NIUPPLIMA,((AD24-[1]!NIUPPLIMA)*[1]!NIUPPERA)+([1]!NIUPPLIMA-[1]!NILOWLIMA)*[1]!NILOWA,IF(AD24>[1]!NILOWLIMA,(AD24-[1]!NILOWLIMA)*[1]!NILOWA,0)))+IF($Q24="Y",IF(AD24>[1]!NIUPPLIMA,((AD24-[1]!NIUPPLIMA)*[1]!NIUPPERA)+(([1]!NIUPPLIMA-[1]!NILOWLIMA)*[1]!NISUPNA),IF(AD24>[1]!NILOWLIMA,(AD24-[1]!NILOWLIMA)*[1]!NISUPNA,0)))+IF(AD24>[1]!NILOWLIMA,-[1]!NICREBATEA,0) -> 441.789 | AR24: =IF($Q24="N",IF(AE24>[1]!NIUPPLIMA,((AE24-[1]!NIUPPLIMA)*[1]!NIUPPERA)+([1]!NIUPPLIMA-[1]!NILOWLIMA)*[1]!NILOWA,IF(AE24>[1]!NILOWLIMA,(AE24-[1]!NILOWLIMA)*[1]!NILOWA,0)))+IF($Q24="Y",IF(AE24>[1]!NIUPPLIMA,((AE24-[1]!NIUPPLIMA)*[1]!NIUPPERA)+(([1]!NIUPPLIMA-[1]!NILOWLIMA)*[1]!NISUPNA),IF(AE24>[1]!NILOWLIMA,(AE24-[1]!NILOWLIMA)*[1]!NISUPNA,0)))+IF(AE24>[1]!NILOWLIMA,-[1]!NICREBATEA,0) -> 441.789 | AS24: =IF($Q24="N",IF(AF24>[1]!NIUPPLIMA,((AF24-[1]!NIUPPLIMA)*[1]!NIUPPERA)+([1]!NIUPPLIMA-[1]!NILOWLIMA)*[1]!NILOWA,IF(AF24>[1]!NILOWLIMA,(AF24-[1]!NILOWLIMA)*[1]!NILOWA,0)))+IF($Q24="Y",IF(AF24>[1]!NIUPPLIMA,((AF24-[1]!NIUPPLIMA)*[1]!NIUPPERA)+(([1]!NIUPPLIMA-[1]!NILOWLIMA)*[1]!NISUPNA),IF(AF24>[1]!NILOWLIMA,(AF24-[1]!NILOWLIMA)*[1]!NISUPNA,0)))+IF(AF24>[1]!NILOWLIMA,-[1]!NICREBATEA,0) -> 441.789 | AT24: 5098.5855 | AU24: 11183.64268 | AV24: 55276.79818 | AW24: 5 | AX24: 0 | AY24: =IF($E24="LEADER",VLOOKUP(AW24,[1]!LEADERSHIP,5),IF($E24="TEACHER",VLOOKUP(AW24,[1]!TEACHER,5),IF($E24="ADVANCED",VLOOKUP($AW24,[1]!ADVANCED_SKILLS_TEACHERS,5),IF($E24="UNQUAL",VLOOKUP($AW24,[1]!UNQUALIFIED_TEACHER,5),0))))*D24*(1+BA$4)*(1+BA$5)+(AX24/AZ24) -> 3906.4419 | AZ24: 12 | BA24: 44156.3933 | BD24: =(IF($Q24="N",IF(AY24>[1]!NIUPPLIMB,((AY24-[1]!NIUPPLIMB)*[1]!NIUPPERB)+([1]!NIUPPLIMB-[1]!NILOWLIMB)*[1]!NILOWB,IF(AY24>[1]!NILOWLIMB,(AY24-[1]!NILOWLIMB)*[1]!NILOWB,0)))+IF($Q24="Y",IF(AY24>[1]!NIUPPLIMB,((AY24-[1]!NIUPPLIMB)*[1]!NIUPPERB)+(([1]!NIUPPLIMB-[1]!NILOWLIMB)*[1]!NISUPNB),IF(AY24>[1]!NILOWLIMB,(AY24-[1]!NILOWLIMB)*[1]!NISUPNB,0))))*((NumberOfDaysWorked($F24,$G24,BD$1,BF$1)*5)+(NumberOfDaysWorked($F24,$G24,BD$1,BF$1)*7)) -> 6280.99542 | BE24: 12664.0536 | BF24: 63101.44232 | BG24: 6 | BH24: 0 | BI24: =IF($E24="LEADER",VLOOKUP(BG24,[1]!LEADERSHIP,5),IF($E24="TEACHER",VLOOKUP(BG24,[1]!TEACHER,5),IF($E24="ADVANCED",VLOOKUP($AW24,[1]!ADVANCED_SKILLS_TEACHERS,5),IF($E24="UNQUAL",VLOOKUP($AW24,[1]!UNQUALIFIED_TEACHER,5),0))))*D24*(1+BA$4)*(1+BA$5)*(1+BK$4)*(1+BK$5)+(BH24/BJ24) -> 4010.658768 | BJ24: 12 | BK24: 47606.82088 | BN24: =(IF($Q24="N",IF(BI24>[1]!NIUPPLIMC,((BI24-[1]!NIUPPLIMC)*[1]!NIUPPERC)+([1]!NIUPPLIMC-[1]!NILOWLIMC)*[1]!NILOWC,IF(BI24>[1]!NILOWLIMC,(BI24-[1]!NILOWLIMC)*[1]!NILOWC,0)))+IF($Q24="Y",IF(BI24>[1]!NIUPPLIMC,((BI24-[1]!NIUPPLIMC)*[1]!NIUPPERC)+(([1]!NIUPPLIMC-[1]!NILOWLIMC)*[1]!NISUPNC),IF(BI24>[1]!NILOWLIMC,(BI24-[1]!NILOWLIMC)*[1]!NISUPNC,0))))*((NumberOfDaysWorked($F24,$G24,BN$1,BP$1)*5)+(NumberOfDaysWorked($F24,$G24,BN$1,BP$1)*7)) -> 6468.585782 | BO24: 13653.63623 | BP24: 67729.04289
A25: x | B25: CRAIG AMY | C25: A01001 | D25: 1 | E25: TEACHER | F25: 2026-04-01 | G25: 2029-03-31 | H25: U3 | I25: U3 | J25: 0 | K25: =VLOOKUP(J25,[1]!MANAGEMENT,2)*D25 -> 0 | L25: 0 | M25: =VLOOKUP(L25,[1]!SEN_ALLOWANCES,2)*D25 -> 0 | N25: 0 | O25: 0 | P25: 3527 | Q25: Y | R25: =IF($E25="LEADER",VLOOKUP(H25,[1]PAYDATA!$A$4:$C$54,3),IF($E25="TEACHER",VLOOKUP(H25,[1]PAYDATA!$A$70:$C$80,3),IF($E25="ADVANCED",VLOOKUP(H25,[1]PAYDATA!$A$141:$C$159,3),IF($E25="UNQUAL",VLOOKUP(H25,[1]PAYDATA!$A$57:$C$63,3),0))))*$D25+($K25/T25)+($M25/T25)+($O25/T25)+($P25/T25) -> 4547.916667 | S25: =IF($E25="LEADER",VLOOKUP(I25,[1]!LEADERSHIP,5),IF($E25="TEACHER",VLOOKUP(I25,[1]!TEACHER,5),IF($E25="ADVANCED",VLOOKUP(I25,[1]PAYDATA!$A$141:$E$159,5),IF($E25="UNQUAL",VLOOKUP(I25,[1]!UNQUALIFIED_TEACHER,5),0))))*$D25+($K25/T25)+($M25/T25)+($O25/T25)+($P25/T25) -> 4632.996667 | T25: =IF(G25-F25>11.99999,12,MONTH(G25)-MONTH(F25)) -> 12 | U25: =NumberOfDaysWorked($F25,$G25,U$3,U$4)*$R25 -> 4547.916667 | V25: 4547.916667 | W25: 4547.916667 | X25: 4547.916667 | Y25: 4547.916667 | Z25: =NumberOfDaysWorked($F25,$G25,Z$3,Z$4)*$S25 -> 4632.996667 | AA25: 4632.996667 | AB25: 4632.996667 | AC25: 4632.996667 | AD25: 4632.996667 | AE25: 4632.996667 | AF25: 4632.996667 | AG25: =SUM(U25:AF25) -> 55170.56 | AH25: =IF($Q25="N",IF(U25>[1]!NIUPPLIMA,((U25-[1]!NIUPPLIMA)*[1]!NIUPPERA)+([1]!NIUPPLIMA-[1]!NILOWLIMA)*[1]!NILOWA,IF(U25>[1]!NILOWLIMA,(U25-[1]!NILOWLIMA)*[1]!NILOWA,0)))+IF($Q25="Y",IF(U25>[1]!NIUPPLIMA,((U25-[1]!NIUPPLIMA)*[1]!NIUPPERA)+(([1]!NIUPPLIMA-[1]!NILOWLIMA)*[1]!NISUPNA),IF(U25>[1]!NILOWLIMA,(U25-[1]!NILOWLIMA)*[1]!NISUPNA,0)))+IF(U25>[1]!NILOWLIMA,-[1]!NICREBATEA,0) -> 619.6375 | AI25: =IF($Q25="N",IF(V25>[1]!NIUPPLIMA,((V25-[1]!NIUPPLIMA)*[1]!NIUPPERA)+([1]!NIUPPLIMA-[1]!NILOWLIMA)*[1]!NILOWA,IF(V25>[1]!NILOWLIMA,(V25-[1]!NILOWLIMA)*[1]!NILOWA,0)))+IF($Q25="Y",IF(V25>[1]!NIUPPLIMA,((V25-[1]!NIUPPLIMA)*[1]!NIUPPERA)+(([1]!NIUPPLIMA-[1]!NILOWLIMA)*[1]!NISUPNA),IF(V25>[1]!NILOWLIMA,(V25-[1]!NILOWLIMA)*[1]!NISUPNA,0)))+IF(V25>[1]!NILOWLIMA,-[1]!NICREBATEA,0) -> 619.6375 | AJ25: =IF($Q25="N",IF(W25>[1]!NIUPPLIMA,((W25-[1]!NIUPPLIMA)*[1]!NIUPPERA)+([1]!NIUPPLIMA-[1]!NILOWLIMA)*[1]!NILOWA,IF(W25>[1]!NILOWLIMA,(W25-[1]!NILOWLIMA)*[1]!NILOWA,0)))+IF($Q25="Y",IF(W25>[1]!NIUPPLIMA,((W25-[1]!NIUPPLIMA)*[1]!NIUPPERA)+(([1]!NIUPPLIMA-[1]!NILOWLIMA)*[1]!NISUPNA),IF(W25>[1]!NILOWLIMA,(W25-[1]!NILOWLIMA)*[1]!NISUPNA,0)))+IF(W25>[1]!NILOWLIMA,-[1]!NICREBATEA,0) -> 619.6375 | AK25: =IF($Q25="N",IF(X25>[1]!NIUPPLIMA,((X25-[1]!NIUPPLIMA)*[1]!NIUPPERA)+([1]!NIUPPLIMA-[1]!NILOWLIMA)*[1]!NILOWA,IF(X25>[1]!NILOWLIMA,(X25-[1]!NILOWLIMA)*[1]!NILOWA,0)))+IF($Q25="Y",IF(X25>[1]!NIUPPLIMA,((X25-[1]!NIUPPLIMA)*[1]!NIUPPERA)+(([1]!NIUPPLIMA-[1]!NILOWLIMA)*[1]!NISUPNA),IF(X25>[1]!NILOWLIMA,(X25-[1]!NILOWLIMA)*[1]!NISUPNA,0)))+IF(X25>[1]!NILOWLIMA,-[1]!NICREBATEA,0) -> 619.6375 | AL25: =IF($Q25="N",IF(Y25>[1]!NIUPPLIMA,((Y25-[1]!NIUPPLIMA)*[1]!NIUPPERA)+([1]!NIUPPLIMA-[1]!NILOWLIMA)*[1]!NILOWA,IF(Y25>[1]!NILOWLIMA,(Y25-[1]!NILOWLIMA)*[1]!NILOWA,0)))+IF($Q25="Y",IF(Y25>[1]!NIUPPLIMA,((Y25-[1]!NIUPPLIMA)*[1]!NIUPPERA)+(([1]!NIUPPLIMA-[1]!NILOWLIMA)*[1]!NISUPNA),IF(Y25>[1]!NILOWLIMA,(Y25-[1]!NILOWLIMA)*[1]!NISUPNA,0)))+IF(Y25>[1]!NILOWLIMA,-[1]!NICREBATEA,0) -> 619.6375 | AM25: =IF($Q25="N",IF(Z25>[1]!NIUPPLIMA,((Z25-[1]!NIUPPLIMA)*[1]!NIUPPERA)+([1]!NIUPPLIMA-[1]!NILOWLIMA)*[1]!NILOWA,IF(Z25>[1]!NILOWLIMA,(Z25-[1]!NILOWLIMA)*[1]!NILOWA,0)))+IF($Q25="Y",IF(Z25>[1]!NIUPPLIMA,((Z25-[1]!NIUPPLIMA)*[1]!NIUPPERA)+(([1]!NIUPPLIMA-[1]!NILOWLIMA)*[1]!NISUPNA),IF(Z25>[1]!NILOWLIMA,(Z25-[1]!NILOWLIMA)*[1]!NISUPNA,0)))+IF(Z25>[1]!NILOWLIMA,-[1]!NICREBATEA,0) -> 632.3995 | AN25: =IF($Q25="N",IF(AA25>[1]!NIUPPLIMA,((AA25-[1]!NIUPPLIMA)*[1]!NIUPPERA)+([1]!NIUPPLIMA-[1]!NILOWLIMA)*[1]!NILOWA,IF(AA25>[1]!NILOWLIMA,(AA25-[1]!NILOWLIMA)*[1]!NILOWA,0)))+IF($Q25="Y",IF(AA25>[1]!NIUPPLIMA,((AA25-[1]!NIUPPLIMA)*[1]!NIUPPERA)+(([1]!NIUPPLIMA-[1]!NILOWLIMA)*[1]!NISUPNA),IF(AA25>[1]!NILOWLIMA,(AA25-[1]!NILOWLIMA)*[1]!NISUPNA,0)))+IF(AA25>[1]!NILOWLIMA,-[1]!NICREBATEA,0) -> 632.3995 | AO25: =IF($Q25="N",IF(AB25>[1]!NIUPPLIMA,((AB25-[1]!NIUPPLIMA)*[1]!NIUPPERA)+([1]!NIUPPLIMA-[1]!NILOWLIMA)*[1]!NILOWA,IF(AB25>[1]!NILOWLIMA,(AB25-[1]!NILOWLIMA)*[1]!NILOWA,0)))+IF($Q25="Y",IF(AB25>[1]!NIUPPLIMA,((AB25-[1]!NIUPPLIMA)*[1]!NIUPPERA)+(([1]!NIUPPLIMA-[1]!NILOWLIMA)*[1]!NISUPNA),IF(AB25>[1]!NILOWLIMA,(AB25-[1]!NILOWLIMA)*[1]!NISUPNA,0)))+IF(AB25>[1]!NILOWLIMA,-[1]!NICREBATEA,0) -> 632.3995 | AP25: =IF($Q25="N",IF(AC25>[1]!NIUPPLIMA,((AC25-[1]!NIUPPLIMA)*[1]!NIUPPERA)+([1]!NIUPPLIMA-[1]!NILOWLIMA)*[1]!NILOWA,IF(AC25>[1]!NILOWLIMA,(AC25-[1]!NILOWLIMA)*[1]!NILOWA,0)))+IF($Q25="Y",IF(AC25>[1]!NIUPPLIMA,((AC25-[1]!NIUPPLIMA)*[1]!NIUPPERA)+(([1]!NIUPPLIMA-[1]!NILOWLIMA)*[1]!NISUPNA),IF(AC25>[1]!NILOWLIMA,(AC25-[1]!NILOWLIMA)*[1]!NISUPNA,0)))+IF(AC25>[1]!NILOWLIMA,-[1]!NICREBATEA,0) -> 632.3995 | AQ25: =IF($Q25="N",IF(AD25>[1]!NIUPPLIMA,((AD25-[1]!NIUPPLIMA)*[1]!NIUPPERA)+([1]!NIUPPLIMA-[1]!NILOWLIMA)*[1]!NILOWA,IF(AD25>[1]!NILOWLIMA,(AD25-[1]!NILOWLIMA)*[1]!NILOWA,0)))+IF($Q25="Y",IF(AD25>[1]!NIUPPLIMA,((AD25-[1]!NIUPPLIMA)*[1]!NIUPPERA)+(([1]!NIUPPLIMA-[1]!NILOWLIMA)*[1]!NISUPNA),IF(AD25>[1]!NILOWLIMA,(AD25-[1]!NILOWLIMA)*[1]!NISUPNA,0)))+IF(AD25>[1]!NILOWLIMA,-[1]!NICREBATEA,0) -> 632.3995 | AR25: =IF($Q25="N",IF(AE25>[1]!NIUPPLIMA,((AE25-[1]!NIUPPLIMA)*[1]!NIUPPERA)+([1]!NIUPPLIMA-[1]!NILOWLIMA)*[1]!NILOWA,IF(AE25>[1]!NILOWLIMA,(AE25-[1]!NILOWLIMA)*[1]!NILOWA,0)))+IF($Q25="Y",IF(AE25>[1]!NIUPPLIMA,((AE25-[1]!NIUPPLIMA)*[1]!NIUPPERA)+(([1]!NIUPPLIMA-[1]!NILOWLIMA)*[1]!NISUPNA),IF(AE25>[1]!NILOWLIMA,(AE25-[1]!NILOWLIMA)*[1]!NISUPNA,0)))+IF(AE25>[1]!NILOWLIMA,-[1]!NICREBATEA,0) -> 632.3995 | AS25: =IF($Q25="N",IF(AF25>[1]!NIUPPLIMA,((AF25-[1]!NIUPPLIMA)*[1]!NIUPPERA)+([1]!NIUPPLIMA-[1]!NILOWLIMA)*[1]!NILOWA,IF(AF25>[1]!NILOWLIMA,(AF25-[1]!NILOWLIMA)*[1]!NILOWA,0)))+IF($Q25="Y",IF(AF25>[1]!NIUPPLIMA,((AF25-[1]!NIUPPLIMA)*[1]!NIUPPERA)+(([1]!NIUPPLIMA-[1]!NILOWLIMA)*[1]!NISUPNA),IF(AF25>[1]!NILOWLIMA,(AF25-[1]!NILOWLIMA)*[1]!NISUPNA,0)))+IF(AF25>[1]!NILOWLIMA,-[1]!NICREBATEA,0) -> 632.3995 | AT25: =SUM(AH25:AS25) -> 7524.984 | AU25: 15822.91661 | AV25: 78518.46061 | AW25: U3 | AX25: 3527 | AY25: =IF($E25="LEADER",VLOOKUP(AW25,[1]!LEADERSHIP,5),IF($E25="TEACHER",VLOOKUP(AW25,[1]!TEACHER,5),IF($E25="ADVANCED",VLOOKUP($AW25,[1]!ADVANCED_SKILLS_TEACHERS,5),IF($E25="UNQUAL",VLOOKUP($AW25,[1]!UNQUALIFIED_TEACHER,5),0))))*D25*(1+BA$4)*(1+BA$5)+(AX25/AZ25) -> 4719.778267 | AZ25: 12 | BA25: 56203.4312 | BD25: =(IF($Q25="N",IF(AY25>[1]!NIUPPLIMB,((AY25-[1]!NIUPPLIMB)*[1]!NIUPPERB)+([1]!NIUPPLIMB-[1]!NILOWLIMB)*[1]!NILOWB,IF(AY25>[1]!NILOWLIMB,(AY25-[1]!NILOWLIMB)*[1]!NILOWB,0)))+IF($Q25="Y",IF(AY25>[1]!NIUPPLIMB,((AY25-[1]!NIUPPLIMB)*[1]!NIUPPERB)+(([1]!NIUPPLIMB-[1]!NILOWLIMB)*[1]!NISUPNB),IF(AY25>[1]!NILOWLIMB,(AY25-[1]!NILOWLIMB)*[1]!NISUPNB,0))))*((NumberOfDaysWorked($F25,$G25,BD$1,BF$1)*5)+(NumberOfDaysWorked($F25,$G25,BD$1,BF$1)*7)) -> 7745.00088 | BE25: 16119.14407 | BF25: 80067.57615 | BG25: U3 | BH25: 3527 | BI25: =IF($E25="LEADER",VLOOKUP(BG25,[1]!LEADERSHIP,5),IF($E25="TEACHER",VLOOKUP(BG25,[1]!TEACHER,5),IF($E25="ADVANCED",VLOOKUP($AW25,[1]!ADVANCED_SKILLS_TEACHERS,5),IF($E25="UNQUAL",VLOOKUP($AW25,[1]!UNQUALIFIED_TEACHER,5),0))))*D25*(1+BA$4)*(1+BA$5)*(1+BK$4)*(1+BK$5)+(BH25/BJ25) -> 4808.295499 | BJ25: 12 | BK25: 57256.95982 | BN25: =(IF($Q25="N",IF(BI25>[1]!NIUPPLIMC,((BI25-[1]!NIUPPLIMC)*[1]!NIUPPERC)+([1]!NIUPPLIMC-[1]!NILOWLIMC)*[1]!NILOWC,IF(BI25>[1]!NILOWLIMC,(BI25-[1]!NILOWLIMC)*[1]!NILOWC,0)))+IF($Q25="Y",IF(BI25>[1]!NIUPPLIMC,((BI25-[1]!NIUPPLIMC)*[1]!NIUPPERC)+(([1]!NIUPPLIMC-[1]!NILOWLIMC)*[1]!NISUPNC),IF(BI25>[1]!NILOWLIMC,(BI25-[1]!NILOWLIMC)*[1]!NISUPNC,0))))*((NumberOfDaysWorked($F25,$G25,BN$1,BP$1)*5)+(NumberOfDaysWorked($F25,$G25,BN$1,BP$1)*7)) -> 7904.331898 | BO25: 16421.29608 | BP25: 81582.5878
A26: x | B26: JULIER ESTA | C26: A01001 | D26: 1 | E26: TEACHER | F26: 2026-04-01 | G26: 2029-03-31 | H26: U2 | I26: U3 | J26: 0 | K26: =VLOOKUP(J26,[1]!MANAGEMENT,2)*D26 -> 0 | L26: 0 | M26: =VLOOKUP(L26,[1]!SEN_ALLOWANCES,2)*D26 -> 0 | N26: 0 | O26: =N26 -> 0 | P26: 0 | Q26: Y | R26: =IF($E26="LEADER",VLOOKUP(H26,[1]PAYDATA!$A$4:$C$54,3),IF($E26="TEACHER",VLOOKUP(H26,[1]PAYDATA!$A$70:$C$80,3),IF($E26="ADVANCED",VLOOKUP(H26,[1]PAYDATA!$A$141:$C$159,3),IF($E26="UNQUAL",VLOOKUP(H26,[1]PAYDATA!$A$57:$C$63,3),0))))*$D26+($K26/T26)+($M26/T26)+($O26/T26)+($P26/T26) -> 4102.666667 | S26: =IF($E26="LEADER",VLOOKUP(I26,[1]!LEADERSHIP,5),IF($E26="TEACHER",VLOOKUP(I26,[1]!TEACHER,5),IF($E26="ADVANCED",VLOOKUP(I26,[1]PAYDATA!$A$141:$E$159,5),IF($E26="UNQUAL",VLOOKUP(I26,[1]!UNQUALIFIED_TEACHER,5),0))))*$D26+($K26/T26)+($M26/T26)+($O26/T26)+($P26/T26) -> 4339.08 | T26: =IF(G26-F26>11.99999,12,MONTH(G26)-MONTH(F26)) -> 12 | U26: 4102.666667 | V26: 4102.666667 | W26: 4102.666667 | X26: 4102.666667 | Y26: 4102.666667 | Z26: 4339.08 | AA26: 4339.08 | AB26: 4339.08 | AC26: 4339.08 | AD26: 4339.08 | AE26: 4339.08 | AF26: 4339.08 | AG26: =SUM(U26:AF26) -> 50886.89333 | AH26: =IF($Q26="N",IF(U26>[1]!NIUPPLIMA,((U26-[1]!NIUPPLIMA)*[1]!NIUPPERA)+([1]!NIUPPLIMA-[1]!NILOWLIMA)*[1]!NILOWA,IF(U26>[1]!NILOWLIMA,(U26-[1]!NILOWLIMA)*[1]!NILOWA,0)))+IF($Q26="Y",IF(U26>[1]!NIUPPLIMA,((U26-[1]!NIUPPLIMA)*[1]!NIUPPERA)+(([1]!NIUPPLIMA-[1]!NILOWLIMA)*[1]!NISUPNA),IF(U26>[1]!NILOWLIMA,(U26-[1]!NILOWLIMA)*[1]!NISUPNA,0)))+IF(U26>[1]!NILOWLIMA,-[1]!NICREBATEA,0) -> 552.85 | AI26: =IF($Q26="N",IF(V26>[1]!NIUPPLIMA,((V26-[1]!NIUPPLIMA)*[1]!NIUPPERA)+([1]!NIUPPLIMA-[1]!NILOWLIMA)*[1]!NILOWA,IF(V26>[1]!NILOWLIMA,(V26-[1]!NILOWLIMA)*[1]!NILOWA,0)))+IF($Q26="Y",IF(V26>[1]!NIUPPLIMA,((V26-[1]!NIUPPLIMA)*[1]!NIUPPERA)+(([1]!NIUPPLIMA-[1]!NILOWLIMA)*[1]!NISUPNA),IF(V26>[1]!NILOWLIMA,(V26-[1]!NILOWLIMA)*[1]!NISUPNA,0)))+IF(V26>[1]!NILOWLIMA,-[1]!NICREBATEA,0) -> 552.85 | AJ26: =IF($Q26="N",IF(W26>[1]!NIUPPLIMA,((W26-[1]!NIUPPLIMA)*[1]!NIUPPERA)+([1]!NIUPPLIMA-[1]!NILOWLIMA)*[1]!NILOWA,IF(W26>[1]!NILOWLIMA,(W26-[1]!NILOWLIMA)*[1]!NILOWA,0)))+IF($Q26="Y",IF(W26>[1]!NIUPPLIMA,((W26-[1]!NIUPPLIMA)*[1]!NIUPPERA)+(([1]!NIUPPLIMA-[1]!NILOWLIMA)*[1]!NISUPNA),IF(W26>[1]!NILOWLIMA,(W26-[1]!NILOWLIMA)*[1]!NISUPNA,0)))+IF(W26>[1]!NILOWLIMA,-[1]!NICREBATEA,0) -> 552.85 | AK26: =IF($Q26="N",IF(X26>[1]!NIUPPLIMA,((X26-[1]!NIUPPLIMA)*[1]!NIUPPERA)+([1]!NIUPPLIMA-[1]!NILOWLIMA)*[1]!NILOWA,IF(X26>[1]!NILOWLIMA,(X26-[1]!NILOWLIMA)*[1]!NILOWA,0)))+IF($Q26="Y",IF(X26>[1]!NIUPPLIMA,((X26-[1]!NIUPPLIMA)*[1]!NIUPPERA)+(([1]!NIUPPLIMA-[1]!NILOWLIMA)*[1]!NISUPNA),IF(X26>[1]!NILOWLIMA,(X26-[1]!NILOWLIMA)*[1]!NISUPNA,0)))+IF(X26>[1]!NILOWLIMA,-[1]!NICREBATEA,0) -> 552.85 | AL26: =IF($Q26="N",IF(Y26>[1]!NIUPPLIMA,((Y26-[1]!NIUPPLIMA)*[1]!NIUPPERA)+([1]!NIUPPLIMA-[1]!NILOWLIMA)*[1]!NILOWA,IF(Y26>[1]!NILOWLIMA,(Y26-[1]!NILOWLIMA)*[1]!NILOWA,0)))+IF($Q26="Y",IF(Y26>[1]!NIUPPLIMA,((Y26-[1]!NIUPPLIMA)*[1]!NIUPPERA)+(([1]!NIUPPLIMA-[1]!NILOWLIMA)*[1]!NISUPNA),IF(Y26>[1]!NILOWLIMA,(Y26-[1]!NILOWLIMA)*[1]!NISUPNA,0)))+IF(Y26>[1]!NILOWLIMA,-[1]!NICREBATEA,0) -> 552.85 | AM26: =IF($Q26="N",IF(Z26>[1]!NIUPPLIMA,((Z26-[1]!NIUPPLIMA)*[1]!NIUPPERA)+([1]!NIUPPLIMA-[1]!NILOWLIMA)*[1]!NILOWA,IF(Z26>[1]!NILOWLIMA,(Z26-[1]!NILOWLIMA)*[1]!NILOWA,0)))+IF($Q26="Y",IF(Z26>[1]!NIUPPLIMA,((Z26-[1]!NIUPPLIMA)*[1]!NIUPPERA)+(([1]!NIUPPLIMA-[1]!NILOWLIMA)*[1]!NISUPNA),IF(Z26>[1]!NILOWLIMA,(Z26-[1]!NILOWLIMA)*[1]!NISUPNA,0)))+IF(Z26>[1]!NILOWLIMA,-[1]!NICREBATEA,0) -> 588.312 | AN26: =IF($Q26="N",IF(AA26>[1]!NIUPPLIMA,((AA26-[1]!NIUPPLIMA)*[1]!NIUPPERA)+([1]!NIUPPLIMA-[1]!NILOWLIMA)*[1]!NILOWA,IF(AA26>[1]!NILOWLIMA,(AA26-[1]!NILOWLIMA)*[1]!NILOWA,0)))+IF($Q26="Y",IF(AA26>[1]!NIUPPLIMA,((AA26-[1]!NIUPPLIMA)*[1]!NIUPPERA)+(([1]!NIUPPLIMA-[1]!NILOWLIMA)*[1]!NISUPNA),IF(AA26>[1]!NILOWLIMA,(AA26-[1]!NILOWLIMA)*[1]!NISUPNA,0)))+IF(AA26>[1]!NILOWLIMA,-[1]!NICREBATEA,0) -> 588.312 | AO26: =IF($Q26="N",IF(AB26>[1]!NIUPPLIMA,((AB26-[1]!NIUPPLIMA)*[1]!NIUPPERA)+([1]!NIUPPLIMA-[1]!NILOWLIMA)*[1]!NILOWA,IF(AB26>[1]!NILOWLIMA,(AB26-[1]!NILOWLIMA)*[1]!NILOWA,0)))+IF($Q26="Y",IF(AB26>[1]!NIUPPLIMA,((AB26-[1]!NIUPPLIMA)*[1]!NIUPPERA)+(([1]!NIUPPLIMA-[1]!NILOWLIMA)*[1]!NISUPNA),IF(AB26>[1]!NILOWLIMA,(AB26-[1]!NILOWLIMA)*[1]!NISUPNA,0)))+IF(AB26>[1]!NILOWLIMA,-[1]!NICREBATEA,0) -> 588.312 | AP26: =IF($Q26="N",IF(AC26>[1]!NIUPPLIMA,((AC26-[1]!NIUPPLIMA)*[1]!NIUPPERA)+([1]!NIUPPLIMA-[1]!NILOWLIMA)*[1]!NILOWA,IF(AC26>[1]!NILOWLIMA,(AC26-[1]!NILOWLIMA)*[1]!NILOWA,0)))+IF($Q26="Y",IF(AC26>[1]!NIUPPLIMA,((AC26-[1]!NIUPPLIMA)*[1]!NIUPPERA)+(([1]!NIUPPLIMA-[1]!NILOWLIMA)*[1]!NISUPNA),IF(AC26>[1]!NILOWLIMA,(AC26-[1]!NILOWLIMA)*[1]!NISUPNA,0)))+IF(AC26>[1]!NILOWLIMA,-[1]!NICREBATEA,0) -> 588.312 | AQ26: =IF($Q26="N",IF(AD26>[1]!NIUPPLIMA,((AD26-[1]!NIUPPLIMA)*[1]!NIUPPERA)+([1]!NIUPPLIMA-[1]!NILOWLIMA)*[1]!NILOWA,IF(AD26>[1]!NILOWLIMA,(AD26-[1]!NILOWLIMA)*[1]!NILOWA,0)))+IF($Q26="Y",IF(AD26>[1]!NIUPPLIMA,((AD26-[1]!NIUPPLIMA)*[1]!NIUPPERA)+(([1]!NIUPPLIMA-[1]!NILOWLIMA)*[1]!NISUPNA),IF(AD26>[1]!NILOWLIMA,(AD26-[1]!NILOWLIMA)*[1]!NISUPNA,0)))+IF(AD26>[1]!NILOWLIMA,-[1]!NICREBATEA,0) -> 588.312 | AR26: =IF($Q26="N",IF(AE26>[1]!NIUPPLIMA,((AE26-[1]!NIUPPLIMA)*[1]!NIUPPERA)+([1]!NIUPPLIMA-[1]!NILOWLIMA)*[1]!NILOWA,IF(AE26>[1]!NILOWLIMA,(AE26-[1]!NILOWLIMA)*[1]!NILOWA,0)))+IF($Q26="Y",IF(AE26>[1]!NIUPPLIMA,((AE26-[1]!NIUPPLIMA)*[1]!NIUPPERA)+(([1]!NIUPPLIMA-[1]!NILOWLIMA)*[1]!NISUPNA),IF(AE26>[1]!NILOWLIMA,(AE26-[1]!NILOWLIMA)*[1]!NISUPNA,0)))+IF(AE26>[1]!NILOWLIMA,-[1]!NICREBATEA,0) -> 588.312 | AS26: =IF($Q26="N",IF(AF26>[1]!NIUPPLIMA,((AF26-[1]!NIUPPLIMA)*[1]!NIUPPERA)+([1]!NIUPPLIMA-[1]!NILOWLIMA)*[1]!NILOWA,IF(AF26>[1]!NILOWLIMA,(AF26-[1]!NILOWLIMA)*[1]!NILOWA,0)))+IF($Q26="Y",IF(AF26>[1]!NIUPPLIMA,((AF26-[1]!NIUPPLIMA)*[1]!NIUPPERA)+(([1]!NIUPPLIMA-[1]!NILOWLIMA)*[1]!NISUPNA),IF(AF26>[1]!NILOWLIMA,(AF26-[1]!NILOWLIMA)*[1]!NISUPNA,0)))+IF(AF26>[1]!NILOWLIMA,-[1]!NICREBATEA,0) -> 588.312 | AT26: =SUM(AH26:AS26) -> 6882.434 | AU26: =IF($Q26="N",0,((AG26*$AU$5))) -> 14594.36101 | AV26: =AG26+AT26+AU26 -> 72363.68834 | AW26: =IF($E26="TEACHER",IF($I26<6,$I26+1,IF(LEFT($I26,1)="U",$I26,6)),IF($E26="LEADER",+I26,IF($E26="UNQUAL",IF($I26<10,$I26+1,10),IF($E26="ADVANCED",IF($I26<27,$I26+1,27))))) -> U3 | AX26: =(K26+M26+O26+P26) -> 0 | AY26: =IF($E26="LEADER",VLOOKUP(AW26,[1]!LEADERSHIP,5),IF($E26="TEACHER",VLOOKUP(AW26,[1]!TEACHER,5),IF($E26="ADVANCED",VLOOKUP($AW26,[1]!ADVANCED_SKILLS_TEACHERS,5),IF($E26="UNQUAL",VLOOKUP($AW26,[1]!UNQUALIFIED_TEACHER,5),0))))*D26*(1+BA$4)*(1+BA$5)+(AX26/AZ26) -> 4425.8616 | AZ26: =IF(G26-F26>11.99999,12,MONTH(G26)-MONTH(F26)) -> 12 | BA26: =NumberOfDaysWorked($F26,$G26,BD$1,BF$1)*(($S26*(1+BA$4))*5)+NumberOfDaysWorked($F26,$G26,BD$1,BF$1)*($AY26*7) -> 52676.4312 | BD26: =(IF($Q26="N",IF(AY26>[1]!NIUPPLIMB,((AY26-[1]!NIUPPLIMB)*[1]!NIUPPERB)+([1]!NIUPPLIMB-[1]!NILOWLIMB)*[1]!NILOWB,IF(AY26>[1]!NILOWLIMB,(AY26-[1]!NILOWLIMB)*[1]!NILOWB,0)))+IF($Q26="Y",IF(AY26>[1]!NIUPPLIMB,((AY26-[1]!NIUPPLIMB)*[1]!NIUPPERB)+(([1]!NIUPPLIMB-[1]!NILOWLIMB)*[1]!NISUPNB),IF(AY26>[1]!NILOWLIMB,(AY26-[1]!NILOWLIMB)*[1]!NISUPNB,0))))*((NumberOfDaysWorked($F26,$G26,BD$1,BF$1)*5)+(NumberOfDaysWorked($F26,$G26,BD$1,BF$1)*7)) -> 7215.95088 | BE26: =IF($Q26="N",0,(BA26*$BE$5)) -> 15107.60047 | BF26: =SUM(BA26:BE26) -> 74999.98255 | BG26: =IF($E26="TEACHER",IF(AW26<6,AW26+1,IF(LEFT(AW26,1)="U",AW26,6)),IF($E26="LEADER",+I26,IF($E26="UNQUAL",IF(AW26<10,AW26+1,10),IF($E26="ADVANCED",IF(AW26<27,AW26+1,27))))) -> U3 | BH26: =(K26+M26+O26+P26) -> 0 | BI26: =IF($E26="LEADER",VLOOKUP(BG26,[1]!LEADERSHIP,5),IF($E26="TEACHER",VLOOKUP(BG26,[1]!TEACHER,5),IF($E26="ADVANCED",VLOOKUP($AW26,[1]!ADVANCED_SKILLS_TEACHERS,5),IF($E26="UNQUAL",VLOOKUP($AW26,[1]!UNQUALIFIED_TEACHER,5),0))))*D26*(1+BA$4)*(1+BA$5)*(1+BK$4)*(1+BK$5)+(BH26/BJ26) -> 4514.378832 | BJ26: =IF(G26-F26>11.99999,12,MONTH(G26)-MONTH(F26)) -> 12 | BK26: =NumberOfDaysWorked($F26,$G26,BN$1,BP$1)*(($AY26*(1+BK$4))*5)+NumberOfDaysWorked($F26,$G26,BN$1,BP$1)*($BI26*7) -> 53729.95982 | BN26: =(IF($Q26="N",IF(BI26>[1]!NIUPPLIMC,((BI26-[1]!NIUPPLIMC)*[1]!NIUPPERC)+([1]!NIUPPLIMC-[1]!NILOWLIMC)*[1]!NILOWC,IF(BI26>[1]!NILOWLIMC,(BI26-[1]!NILOWLIMC)*[1]!NILOWC,0)))+IF($Q26="Y",IF(BI26>[1]!NIUPPLIMC,((BI26-[1]!NIUPPLIMC)*[1]!NIUPPERC)+(([1]!NIUPPLIMC-[1]!NILOWLIMC)*[1]!NISUPNC),IF(BI26>[1]!NILOWLIMC,(BI26-[1]!NILOWLIMC)*[1]!NISUPNC,0))))*((NumberOfDaysWorked($F26,$G26,BN$1,BP$1)*5)+(NumberOfDaysWorked($F26,$G26,BN$1,BP$1)*7)) -> 7375.281898 | BO26: =IF($Q26="N",0,(BK26*$BO$5)) -> 15409.75248 | BP26: =SUM(BK26:BO26) -> 76514.9942
A27: x | B27: MCKERRACHER ROXANNE | C27: A01001 | D27: 1 | E27: TEACHER | F27: 2026-04-01 | G27: 2026-08-31 | H27: 6 | I27: U1 | J27: 0 | K27: =VLOOKUP(J27,[1]!MANAGEMENT,2)*D27 -> 0 | L27: 0 | M27: =VLOOKUP(L27,[1]!SEN_ALLOWANCES,2)*D27 -> 0 | N27: 0 | O27: 0 | P27: 0 | Q27: Y | R27: =IF($E27="LEADER",VLOOKUP(H27,[1]PAYDATA!$A$4:$C$54,3),IF($E27="TEACHER",VLOOKUP(H27,[1]PAYDATA!$A$70:$C$80,3),IF($E27="ADVANCED",VLOOKUP(H27,[1]PAYDATA!$A$141:$C$159,3),IF($E27="UNQUAL",VLOOKUP(H27,[1]PAYDATA!$A$57:$C$63,3),0))))*$D27+($K27/T27)+($M27/T27)+($O27/T27)+($P27/T27) -> 3779.333333 | S27: =IF($E27="LEADER",VLOOKUP(I27,[1]!LEADERSHIP,5),IF($E27="TEACHER",VLOOKUP(I27,[1]!TEACHER,5),IF($E27="ADVANCED",VLOOKUP(I27,[1]PAYDATA!$A$141:$E$159,5),IF($E27="UNQUAL",VLOOKUP(I27,[1]!UNQUALIFIED_TEACHER,5),0))))*$D27+($K27/T27)+($M27/T27)+($O27/T27)+($P27/T27) -> 4035.12 | T27: 12 | U27: =NumberOfDaysWorked($F27,$G27,U$3,U$4)*$R27 -> 3779.333333 | V27: 3779.333333 | W27: 3779.333333 | X27: 3779.333333 | Y27: 3779.333333 | Z27: =NumberOfDaysWorked($F27,$G27,Z$3,Z$4)*$S27 -> 0 | AA27: 0 | AB27: 0 | AC27: 0 | AD27: 0 | AE27: 0 | AF27: 0 | AG27: =SUM(U27:AF27) -> 18896.66667 | AH27: =IF($Q27="N",IF(U27>[1]!NIUPPLIMA,((U27-[1]!NIUPPLIMA)*[1]!NIUPPERA)+([1]!NIUPPLIMA-[1]!NILOWLIMA)*[1]!NILOWA,IF(U27>[1]!NILOWLIMA,(U27-[1]!NILOWLIMA)*[1]!NILOWA,0)))+IF($Q27="Y",IF(U27>[1]!NIUPPLIMA,((U27-[1]!NIUPPLIMA)*[1]!NIUPPERA)+(([1]!NIUPPLIMA-[1]!NILOWLIMA)*[1]!NISUPNA),IF(U27>[1]!NILOWLIMA,(U27-[1]!NILOWLIMA)*[1]!NISUPNA,0)))+IF(U27>[1]!NILOWLIMA,-[1]!NICREBATEA,0) -> 504.35 | AI27: =IF($Q27="N",IF(V27>[1]!NIUPPLIMA,((V27-[1]!NIUPPLIMA)*[1]!NIUPPERA)+([1]!NIUPPLIMA-[1]!NILOWLIMA)*[1]!NILOWA,IF(V27>[1]!NILOWLIMA,(V27-[1]!NILOWLIMA)*[1]!NILOWA,0)))+IF($Q27="Y",IF(V27>[1]!NIUPPLIMA,((V27-[1]!NIUPPLIMA)*[1]!NIUPPERA)+(([1]!NIUPPLIMA-[1]!NILOWLIMA)*[1]!NISUPNA),IF(V27>[1]!NILOWLIMA,(V27-[1]!NILOWLIMA)*[1]!NISUPNA,0)))+IF(V27>[1]!NILOWLIMA,-[1]!NICREBATEA,0) -> 504.35 | AJ27: =IF($Q27="N",IF(W27>[1]!NIUPPLIMA,((W27-[1]!NIUPPLIMA)*[1]!NIUPPERA)+([1]!NIUPPLIMA-[1]!NILOWLIMA)*[1]!NILOWA,IF(W27>[1]!NILOWLIMA,(W27-[1]!NILOWLIMA)*[1]!NILOWA,0)))+IF($Q27="Y",IF(W27>[1]!NIUPPLIMA,((W27-[1]!NIUPPLIMA)*[1]!NIUPPERA)+(([1]!NIUPPLIMA-[1]!NILOWLIMA)*[1]!NISUPNA),IF(W27>[1]!NILOWLIMA,(W27-[1]!NILOWLIMA)*[1]!NISUPNA,0)))+IF(W27>[1]!NILOWLIMA,-[1]!NICREBATEA,0) -> 504.35 | AK27: =IF($Q27="N",IF(X27>[1]!NIUPPLIMA,((X27-[1]!NIUPPLIMA)*[1]!NIUPPERA)+([1]!NIUPPLIMA-[1]!NILOWLIMA)*[1]!NILOWA,IF(X27>[1]!NILOWLIMA,(X27-[1]!NILOWLIMA)*[1]!NILOWA,0)))+IF($Q27="Y",IF(X27>[1]!NIUPPLIMA,((X27-[1]!NIUPPLIMA)*[1]!NIUPPERA)+(([1]!NIUPPLIMA-[1]!NILOWLIMA)*[1]!NISUPNA),IF(X27>[1]!NILOWLIMA,(X27-[1]!NILOWLIMA)*[1]!NISUPNA,0)))+IF(X27>[1]!NILOWLIMA,-[1]!NICREBATEA,0) -> 504.35 | AL27: =IF($Q27="N",IF(Y27>[1]!NIUPPLIMA,((Y27-[1]!NIUPPLIMA)*[1]!NIUPPERA)+([1]!NIUPPLIMA-[1]!NILOWLIMA)*[1]!NILOWA,IF(Y27>[1]!NILOWLIMA,(Y27-[1]!NILOWLIMA)*[1]!NILOWA,0)))+IF($Q27="Y",IF(Y27>[1]!NIUPPLIMA,((Y27-[1]!NIUPPLIMA)*[1]!NIUPPERA)+(([1]!NIUPPLIMA-[1]!NILOWLIMA)*[1]!NISUPNA),IF(Y27>[1]!NILOWLIMA,(Y27-[1]!NILOWLIMA)*[1]!NISUPNA,0)))+IF(Y27>[1]!NILOWLIMA,-[1]!NICREBATEA,0) -> 504.35 | AM27: =IF($Q27="N",IF(Z27>[1]!NIUPPLIMA,((Z27-[1]!NIUPPLIMA)*[1]!NIUPPERA)+([1]!NIUPPLIMA-[1]!NILOWLIMA)*[1]!NILOWA,IF(Z27>[1]!NILOWLIMA,(Z27-[1]!NILOWLIMA)*[1]!NILOWA,0)))+IF($Q27="Y",IF(Z27>[1]!NIUPPLIMA,((Z27-[1]!NIUPPLIMA)*[1]!NIUPPERA)+(([1]!NIUPPLIMA-[1]!NILOWLIMA)*[1]!NISUPNA),IF(Z27>[1]!NILOWLIMA,(Z27-[1]!NILOWLIMA)*[1]!NISUPNA,0)))+IF(Z27>[1]!NILOWLIMA,-[1]!NICREBATEA,0) -> 0 | AN27: =IF($Q27="N",IF(AA27>[1]!NIUPPLIMA,((AA27-[1]!NIUPPLIMA)*[1]!NIUPPERA)+([1]!NIUPPLIMA-[1]!NILOWLIMA)*[1]!NILOWA,IF(AA27>[1]!NILOWLIMA,(AA27-[1]!NILOWLIMA)*[1]!NILOWA,0)))+IF($Q27="Y",IF(AA27>[1]!NIUPPLIMA,((AA27-[1]!NIUPPLIMA)*[1]!NIUPPERA)+(([1]!NIUPPLIMA-[1]!NILOWLIMA)*[1]!NISUPNA),IF(AA27>[1]!NILOWLIMA,(AA27-[1]!NILOWLIMA)*[1]!NISUPNA,0)))+IF(AA27>[1]!NILOWLIMA,-[1]!NICREBATEA,0) -> 0 | AO27: =IF($Q27="N",IF(AB27>[1]!NIUPPLIMA,((AB27-[1]!NIUPPLIMA)*[1]!NIUPPERA)+([1]!NIUPPLIMA-[1]!NILOWLIMA)*[1]!NILOWA,IF(AB27>[1]!NILOWLIMA,(AB27-[1]!NILOWLIMA)*[1]!NILOWA,0)))+IF($Q27="Y",IF(AB27>[1]!NIUPPLIMA,((AB27-[1]!NIUPPLIMA)*[1]!NIUPPERA)+(([1]!NIUPPLIMA-[1]!NILOWLIMA)*[1]!NISUPNA),IF(AB27>[1]!NILOWLIMA,(AB27-[1]!NILOWLIMA)*[1]!NISUPNA,0)))+IF(AB27>[1]!NILOWLIMA,-[1]!NICREBATEA,0) -> 0 | AP27: =IF($Q27="N",IF(AC27>[1]!NIUPPLIMA,((AC27-[1]!NIUPPLIMA)*[1]!NIUPPERA)+([1]!NIUPPLIMA-[1]!NILOWLIMA)*[1]!NILOWA,IF(AC27>[1]!NILOWLIMA,(AC27-[1]!NILOWLIMA)*[1]!NILOWA,0)))+IF($Q27="Y",IF(AC27>[1]!NIUPPLIMA,((AC27-[1]!NIUPPLIMA)*[1]!NIUPPERA)+(([1]!NIUPPLIMA-[1]!NILOWLIMA)*[1]!NISUPNA),IF(AC27>[1]!NILOWLIMA,(AC27-[1]!NILOWLIMA)*[1]!NISUPNA,0)))+IF(AC27>[1]!NILOWLIMA,-[1]!NICREBATEA,0) -> 0 | AQ27: =IF($Q27="N",IF(AD27>[1]!NIUPPLIMA,((AD27-[1]!NIUPPLIMA)*[1]!NIUPPERA)+([1]!NIUPPLIMA-[1]!NILOWLIMA)*[1]!NILOWA,IF(AD27>[1]!NILOWLIMA,(AD27-[1]!NILOWLIMA)*[1]!NILOWA,0)))+IF($Q27="Y",IF(AD27>[1]!NIUPPLIMA,((AD27-[1]!NIUPPLIMA)*[1]!NIUPPERA)+(([1]!NIUPPLIMA-[1]!NILOWLIMA)*[1]!NISUPNA),IF(AD27>[1]!NILOWLIMA,(AD27-[1]!NILOWLIMA)*[1]!NISUPNA,0)))+IF(AD27>[1]!NILOWLIMA,-[1]!NICREBATEA,0) -> 0 | AR27: =IF($Q27="N",IF(AE27>[1]!NIUPPLIMA,((AE27-[1]!NIUPPLIMA)*[1]!NIUPPERA)+([1]!NIUPPLIMA-[1]!NILOWLIMA)*[1]!NILOWA,IF(AE27>[1]!NILOWLIMA,(AE27-[1]!NILOWLIMA)*[1]!NILOWA,0)))+IF($Q27="Y",IF(AE27>[1]!NIUPPLIMA,((AE27-[1]!NIUPPLIMA)*[1]!NIUPPERA)+(([1]!NIUPPLIMA-[1]!NILOWLIMA)*[1]!NISUPNA),IF(AE27>[1]!NILOWLIMA,(AE27-[1]!NILOWLIMA)*[1]!NISUPNA,0)))+IF(AE27>[1]!NILOWLIMA,-[1]!NICREBATEA,0) -> 0 | AS27: =IF($Q27="N",IF(AF27>[1]!NIUPPLIMA,((AF27-[1]!NIUPPLIMA)*[1]!NIUPPERA)+([1]!NIUPPLIMA-[1]!NILOWLIMA)*[1]!NILOWA,IF(AF27>[1]!NILOWLIMA,(AF27-[1]!NILOWLIMA)*[1]!NILOWA,0)))+IF($Q27="Y",IF(AF27>[1]!NIUPPLIMA,((AF27-[1]!NIUPPLIMA)*[1]!NIUPPERA)+(([1]!NIUPPLIMA-[1]!NILOWLIMA)*[1]!NISUPNA),IF(AF27>[1]!NILOWLIMA,(AF27-[1]!NILOWLIMA)*[1]!NISUPNA,0)))+IF(AF27>[1]!NILOWLIMA,-[1]!NICREBATEA,0) -> 0 | AT27: =SUM(AH27:AS27) -> 2521.75 | AU27: =IF($Q27="N",0,((AG27*$AU$5))) -> 5419.564 | AV27: 26837.98067 | AW27: U1 | AX27: 0 | AY27: =IF($E27="LEADER",VLOOKUP(AW27,[1]!LEADERSHIP,5),IF($E27="TEACHER",VLOOKUP(AW27,[1]!TEACHER,5),IF($E27="ADVANCED",VLOOKUP($AW27,[1]!ADVANCED_SKILLS_TEACHERS,5),IF($E27="UNQUAL",VLOOKUP($AW27,[1]!UNQUALIFIED_TEACHER,5),0))))*D27*(1+BA$4)*(1+BA$5)+(AX27/AZ27) -> 4115.8224 | AZ27: 12 | BA27: =NumberOfDaysWorked($F27,$G27,BD$1,BF$1)*(($S27*(1+BA$4))*5)+NumberOfDaysWorked($F27,$G27,BD$1,BF$1)*($AY27*7) -> 0 | BD27: =(IF($Q27="N",IF(AY27>[1]!NIUPPLIMB,((AY27-[1]!NIUPPLIMB)*[1]!NIUPPERB)+([1]!NIUPPLIMB-[1]!NILOWLIMB)*[1]!NILOWB,IF(AY27>[1]!NILOWLIMB,(AY27-[1]!NILOWLIMB)*[1]!NILOWB,0)))+IF($Q27="Y",IF(AY27>[1]!NIUPPLIMB,((AY27-[1]!NIUPPLIMB)*[1]!NIUPPERB)+(([1]!NIUPPLIMB-[1]!NILOWLIMB)*[1]!NISUPNB),IF(AY27>[1]!NILOWLIMB,(AY27-[1]!NILOWLIMB)*[1]!NISUPNB,0))))*((NumberOfDaysWorked($F27,$G27,BD$1,BF$1)*5)+(NumberOfDaysWorked($F27,$G27,BD$1,BF$1)*7)) -> 0 | BE27: 0 | BF27: 0 | BG27: U1 | BH27: 0 | BI27: =IF($E27="LEADER",VLOOKUP(BG27,[1]!LEADERSHIP,5),IF($E27="TEACHER",VLOOKUP(BG27,[1]!TEACHER,5),IF($E27="ADVANCED",VLOOKUP($AW27,[1]!ADVANCED_SKILLS_TEACHERS,5),IF($E27="UNQUAL",VLOOKUP($AW27,[1]!UNQUALIFIED_TEACHER,5),0))))*D27*(1+BA$4)*(1+BA$5)*(1+BK$4)*(1+BK$5)+(BH27/BJ27) -> 4198.138848 | BJ27: 12 | BK27: 0 | BN27: =(IF($Q27="N",IF(BI27>[1]!NIUPPLIMC,((BI27-[1]!NIUPPLIMC)*[1]!NIUPPERC)+([1]!NIUPPLIMC-[1]!NILOWLIMC)*[1]!NILOWC,IF(BI27>[1]!NILOWLIMC,(BI27-[1]!NILOWLIMC)*[1]!NILOWC,0)))+IF($Q27="Y",IF(BI27>[1]!NIUPPLIMC,((BI27-[1]!NIUPPLIMC)*[1]!NIUPPERC)+(([1]!NIUPPLIMC-[1]!NILOWLIMC)*[1]!NISUPNC),IF(BI27>[1]!NILOWLIMC,(BI27-[1]!NILOWLIMC)*[1]!NISUPNC,0))))*((NumberOfDaysWorked($F27,$G27,BN$1,BP$1)*5)+(NumberOfDaysWorked($F27,$G27,BN$1,BP$1)*7)) -> 0 | BO27: 0 | BP27: 0
A28: x | B28: MCKERRACHER ROXANNE | C28: A01001 | D28: 0.6 | E28: TEACHER | F28: 2026-09-01 | G28: 2029-03-31 | H28: 6 | I28: U1 | J28: 0 | K28: =VLOOKUP(J28,[1]!MANAGEMENT,2)*D28 -> 0 | L28: 0 | M28: =VLOOKUP(L28,[1]!SEN_ALLOWANCES,2)*D28 -> 0 | N28: 0 | O28: =N28 -> 0 | P28: 0 | Q28: Y | R28: =IF($E28="LEADER",VLOOKUP(H28,[1]PAYDATA!$A$4:$C$54,3),IF($E28="TEACHER",VLOOKUP(H28,[1]PAYDATA!$A$70:$C$80,3),IF($E28="ADVANCED",VLOOKUP(H28,[1]PAYDATA!$A$141:$C$159,3),IF($E28="UNQUAL",VLOOKUP(H28,[1]PAYDATA!$A$57:$C$63,3),0))))*$D28+($K28/T28)+($M28/T28)+($O28/T28)+($P28/T28) -> 2267.6 | S28: =IF($E28="LEADER",VLOOKUP(I28,[1]!LEADERSHIP,5),IF($E28="TEACHER",VLOOKUP(I28,[1]!TEACHER,5),IF($E28="ADVANCED",VLOOKUP(I28,[1]PAYDATA!$A$141:$E$159,5),IF($E28="UNQUAL",VLOOKUP(I28,[1]!UNQUALIFIED_TEACHER,5),0))))*$D28+($K28/T28)+($M28/T28)+($O28/T28)+($P28/T28) -> 2421.072 | T28: =IF(G28-F28>11.99999,12,MONTH(G28)-MONTH(F28)) -> 12 | U28: 0 | V28: 0 | W28: 0 | X28: 0 | Y28: 0 | Z28: 2421.072 | AA28: 2421.072 | AB28: 2421.072 | AC28: 2421.072 | AD28: 2421.072 | AE28: 2421.072 | AF28: 2421.072 | AG28: =SUM(U28:AF28) -> 16947.504 | AH28: =IF($Q28="N",IF(U28>[1]!NIUPPLIMA,((U28-[1]!NIUPPLIMA)*[1]!NIUPPERA)+([1]!NIUPPLIMA-[1]!NILOWLIMA)*[1]!NILOWA,IF(U28>[1]!NILOWLIMA,(U28-[1]!NILOWLIMA)*[1]!NILOWA,0)))+IF($Q28="Y",IF(U28>[1]!NIUPPLIMA,((U28-[1]!NIUPPLIMA)*[1]!NIUPPERA)+(([1]!NIUPPLIMA-[1]!NILOWLIMA)*[1]!NISUPNA),IF(U28>[1]!NILOWLIMA,(U28-[1]!NILOWLIMA)*[1]!NISUPNA,0)))+IF(U28>[1]!NILOWLIMA,-[1]!NICREBATEA,0) -> 0 | AI28: =IF($Q28="N",IF(V28>[1]!NIUPPLIMA,((V28-[1]!NIUPPLIMA)*[1]!NIUPPERA)+([1]!NIUPPLIMA-[1]!NILOWLIMA)*[1]!NILOWA,IF(V28>[1]!NILOWLIMA,(V28-[1]!NILOWLIMA)*[1]!NILOWA,0)))+IF($Q28="Y",IF(V28>[1]!NIUPPLIMA,((V28-[1]!NIUPPLIMA)*[1]!NIUPPERA)+(([1]!NIUPPLIMA-[1]!NILOWLIMA)*[1]!NISUPNA),IF(V28>[1]!NILOWLIMA,(V28-[1]!NILOWLIMA)*[1]!NISUPNA,0)))+IF(V28>[1]!NILOWLIMA,-[1]!NICREBATEA,0) -> 0 | AJ28: =IF($Q28="N",IF(W28>[1]!NIUPPLIMA,((W28-[1]!NIUPPLIMA)*[1]!NIUPPERA)+([1]!NIUPPLIMA-[1]!NILOWLIMA)*[1]!NILOWA,IF(W28>[1]!NILOWLIMA,(W28-[1]!NILOWLIMA)*[1]!NILOWA,0)))+IF($Q28="Y",IF(W28>[1]!NIUPPLIMA,((W28-[1]!NIUPPLIMA)*[1]!NIUPPERA)+(([1]!NIUPPLIMA-[1]!NILOWLIMA)*[1]!NISUPNA),IF(W28>[1]!NILOWLIMA,(W28-[1]!NILOWLIMA)*[1]!NISUPNA,0)))+IF(W28>[1]!NILOWLIMA,-[1]!NICREBATEA,0) -> 0 | AK28: =IF($Q28="N",IF(X28>[1]!NIUPPLIMA,((X28-[1]!NIUPPLIMA)*[1]!NIUPPERA)+([1]!NIUPPLIMA-[1]!NILOWLIMA)*[1]!NILOWA,IF(X28>[1]!NILOWLIMA,(X28-[1]!NILOWLIMA)*[1]!NILOWA,0)))+IF($Q28="Y",IF(X28>[1]!NIUPPLIMA,((X28-[1]!NIUPPLIMA)*[1]!NIUPPERA)+(([1]!NIUPPLIMA-[1]!NILOWLIMA)*[1]!NISUPNA),IF(X28>[1]!NILOWLIMA,(X28-[1]!NILOWLIMA)*[1]!NISUPNA,0)))+IF(X28>[1]!NILOWLIMA,-[1]!NICREBATEA,0) -> 0 | AL28: =IF($Q28="N",IF(Y28>[1]!NIUPPLIMA,((Y28-[1]!NIUPPLIMA)*[1]!NIUPPERA)+([1]!NIUPPLIMA-[1]!NILOWLIMA)*[1]!NILOWA,IF(Y28>[1]!NILOWLIMA,(Y28-[1]!NILOWLIMA)*[1]!NILOWA,0)))+IF($Q28="Y",IF(Y28>[1]!NIUPPLIMA,((Y28-[1]!NIUPPLIMA)*[1]!NIUPPERA)+(([1]!NIUPPLIMA-[1]!NILOWLIMA)*[1]!NISUPNA),IF(Y28>[1]!NILOWLIMA,(Y28-[1]!NILOWLIMA)*[1]!NISUPNA,0)))+IF(Y28>[1]!NILOWLIMA,-[1]!NICREBATEA,0) -> 0 | AM28: =IF($Q28="N",IF(Z28>[1]!NIUPPLIMA,((Z28-[1]!NIUPPLIMA)*[1]!NIUPPERA)+([1]!NIUPPLIMA-[1]!NILOWLIMA)*[1]!NILOWA,IF(Z28>[1]!NILOWLIMA,(Z28-[1]!NILOWLIMA)*[1]!NILOWA,0)))+IF($Q28="Y",IF(Z28>[1]!NIUPPLIMA,((Z28-[1]!NIUPPLIMA)*[1]!NIUPPERA)+(([1]!NIUPPLIMA-[1]!NILOWLIMA)*[1]!NISUPNA),IF(Z28>[1]!NILOWLIMA,(Z28-[1]!NILOWLIMA)*[1]!NISUPNA,0)))+IF(Z28>[1]!NILOWLIMA,-[1]!NICREBATEA,0) -> 300.6108 | AN28: =IF($Q28="N",IF(AA28>[1]!NIUPPLIMA,((AA28-[1]!NIUPPLIMA)*[1]!NIUPPERA)+([1]!NIUPPLIMA-[1]!NILOWLIMA)*[1]!NILOWA,IF(AA28>[1]!NILOWLIMA,(AA28-[1]!NILOWLIMA)*[1]!NILOWA,0)))+IF($Q28="Y",IF(AA28>[1]!NIUPPLIMA,((AA28-[1]!NIUPPLIMA)*[1]!NIUPPERA)+(([1]!NIUPPLIMA-[1]!NILOWLIMA)*[1]!NISUPNA),IF(AA28>[1]!NILOWLIMA,(AA28-[1]!NILOWLIMA)*[1]!NISUPNA,0)))+IF(AA28>[1]!NILOWLIMA,-[1]!NICREBATEA,0) -> 300.6108 | AO28: =IF($Q28="N",IF(AB28>[1]!NIUPPLIMA,((AB28-[1]!NIUPPLIMA)*[1]!NIUPPERA)+([1]!NIUPPLIMA-[1]!NILOWLIMA)*[1]!NILOWA,IF(AB28>[1]!NILOWLIMA,(AB28-[1]!NILOWLIMA)*[1]!NILOWA,0)))+IF($Q28="Y",IF(AB28>[1]!NIUPPLIMA,((AB28-[1]!NIUPPLIMA)*[1]!NIUPPERA)+(([1]!NIUPPLIMA-[1]!NILOWLIMA)*[1]!NISUPNA),IF(AB28>[1]!NILOWLIMA,(AB28-[1]!NILOWLIMA)*[1]!NISUPNA,0)))+IF(AB28>[1]!NILOWLIMA,-[1]!NICREBATEA,0) -> 300.6108 | AP28: =IF($Q28="N",IF(AC28>[1]!NIUPPLIMA,((AC28-[1]!NIUPPLIMA)*[1]!NIUPPERA)+([1]!NIUPPLIMA-[1]!NILOWLIMA)*[1]!NILOWA,IF(AC28>[1]!NILOWLIMA,(AC28-[1]!NILOWLIMA)*[1]!NILOWA,0)))+IF($Q28="Y",IF(AC28>[1]!NIUPPLIMA,((AC28-[1]!NIUPPLIMA)*[1]!NIUPPERA)+(([1]!NIUPPLIMA-[1]!NILOWLIMA)*[1]!NISUPNA),IF(AC28>[1]!NILOWLIMA,(AC28-[1]!NILOWLIMA)*[1]!NISUPNA,0)))+IF(AC28>[1]!NILOWLIMA,-[1]!NICREBATEA,0) -> 300.6108 | AQ28: =IF($Q28="N",IF(AD28>[1]!NIUPPLIMA,((AD28-[1]!NIUPPLIMA)*[1]!NIUPPERA)+([1]!NIUPPLIMA-[1]!NILOWLIMA)*[1]!NILOWA,IF(AD28>[1]!NILOWLIMA,(AD28-[1]!NILOWLIMA)*[1]!NILOWA,0)))+IF($Q28="Y",IF(AD28>[1]!NIUPPLIMA,((AD28-[1]!NIUPPLIMA)*[1]!NIUPPERA)+(([1]!NIUPPLIMA-[1]!NILOWLIMA)*[1]!NISUPNA),IF(AD28>[1]!NILOWLIMA,(AD28-[1]!NILOWLIMA)*[1]!NISUPNA,0)))+IF(AD28>[1]!NILOWLIMA,-[1]!NICREBATEA,0) -> 300.6108 | AR28: =IF($Q28="N",IF(AE28>[1]!NIUPPLIMA,((AE28-[1]!NIUPPLIMA)*[1]!NIUPPERA)+([1]!NIUPPLIMA-[1]!NILOWLIMA)*[1]!NILOWA,IF(AE28>[1]!NILOWLIMA,(AE28-[1]!NILOWLIMA)*[1]!NILOWA,0)))+IF($Q28="Y",IF(AE28>[1]!NIUPPLIMA,((AE28-[1]!NIUPPLIMA)*[1]!NIUPPERA)+(([1]!NIUPPLIMA-[1]!NILOWLIMA)*[1]!NISUPNA),IF(AE28>[1]!NILOWLIMA,(AE28-[1]!NILOWLIMA)*[1]!NISUPNA,0)))+IF(AE28>[1]!NILOWLIMA,-[1]!NICREBATEA,0) -> 300.6108 | AS28: =IF($Q28="N",IF(AF28>[1]!NIUPPLIMA,((AF28-[1]!NIUPPLIMA)*[1]!NIUPPERA)+([1]!NIUPPLIMA-[1]!NILOWLIMA)*[1]!NILOWA,IF(AF28>[1]!NILOWLIMA,(AF28-[1]!NILOWLIMA)*[1]!NILOWA,0)))+IF($Q28="Y",IF(AF28>[1]!NIUPPLIMA,((AF28-[1]!NIUPPLIMA)*[1]!NIUPPERA)+(([1]!NIUPPLIMA-[1]!NILOWLIMA)*[1]!NISUPNA),IF(AF28>[1]!NILOWLIMA,(AF28-[1]!NILOWLIMA)*[1]!NISUPNA,0)))+IF(AF28>[1]!NILOWLIMA,-[1]!NICREBATEA,0) -> 300.6108 | AT28: =SUM(AH28:AS28) -> 2104.2756 | AU28: =IF($Q28="N",0,((AG28*$AU$5))) -> 4860.544147 | AV28: =AG28+AT28+AU28 -> 23912.32375 | AW28: =IF($E28="TEACHER",IF($I28<6,$I28+1,IF(LEFT($I28,1)="U",$I28,6)),IF($E28="LEADER",+I28,IF($E28="UNQUAL",IF($I28<10,$I28+1,10),IF($E28="ADVANCED",IF($I28<27,$I28+1,27))))) -> U1 | AX28: =(K28+M28+O28+P28) -> 0 | AY28: =IF($E28="LEADER",VLOOKUP(AW28,[1]!LEADERSHIP,5),IF($E28="TEACHER",VLOOKUP(AW28,[1]!TEACHER,5),IF($E28="ADVANCED",VLOOKUP($AW28,[1]!ADVANCED_SKILLS_TEACHERS,5),IF($E28="UNQUAL",VLOOKUP($AW28,[1]!UNQUALIFIED_TEACHER,5),0))))*D28*(1+BA$4)*(1+BA$5)+(AX28/AZ28) -> 2469.49344 | AZ28: =IF(G28-F28>11.99999,12,MONTH(G28)-MONTH(F28)) -> 12 | BA28: =NumberOfDaysWorked($F28,$G28,BD$1,BF$1)*(($S28*(1+BA$4))*5)+NumberOfDaysWorked($F28,$G28,BD$1,BF$1)*($AY28*7) -> 29391.81408 | BD28: =(IF($Q28="N",IF(AY28>[1]!NIUPPLIMB,((AY28-[1]!NIUPPLIMB)*[1]!NIUPPERB)+([1]!NIUPPLIMB-[1]!NILOWLIMB)*[1]!NILOWB,IF(AY28>[1]!NILOWLIMB,(AY28-[1]!NILOWLIMB)*[1]!NILOWB,0)))+IF($Q28="Y",IF(AY28>[1]!NIUPPLIMB,((AY28-[1]!NIUPPLIMB)*[1]!NIUPPERB)+(([1]!NIUPPLIMB-[1]!NILOWLIMB)*[1]!NISUPNB),IF(AY28>[1]!NILOWLIMB,(AY28-[1]!NILOWLIMB)*[1]!NISUPNB,0))))*((NumberOfDaysWorked($F28,$G28,BD$1,BF$1)*5)+(NumberOfDaysWorked($F28,$G28,BD$1,BF$1)*7)) -> 3694.488192 | BE28: =IF($Q28="N",0,(BA28*$BE$5)) -> 8429.572278 | BF28: =SUM(BA28:BE28) -> 41515.87455 | BG28: =IF($E28="TEACHER",IF(AW28<6,AW28+1,IF(LEFT(AW28,1)="U",AW28,6)),IF($E28="LEADER",+I28,IF($E28="UNQUAL",IF(AW28<10,AW28+1,10),IF($E28="ADVANCED",IF(AW28<27,AW28+1,27))))) -> U1 | BH28: =(K28+M28+O28+P28) -> 0 | BI28: =IF($E28="LEADER",VLOOKUP(BG28,[1]!LEADERSHIP,5),IF($E28="TEACHER",VLOOKUP(BG28,[1]!TEACHER,5),IF($E28="ADVANCED",VLOOKUP($AW28,[1]!ADVANCED_SKILLS_TEACHERS,5),IF($E28="UNQUAL",VLOOKUP($AW28,[1]!UNQUALIFIED_TEACHER,5),0))))*D28*(1+BA$4)*(1+BA$5)*(1+BK$4)*(1+BK$5)+(BH28/BJ28) -> 2518.883309 | BJ28: =IF(G28-F28>11.99999,12,MONTH(G28)-MONTH(F28)) -> 12 | BK28: =NumberOfDaysWorked($F28,$G28,BN$1,BP$1)*(($AY28*(1+BK$4))*5)+NumberOfDaysWorked($F28,$G28,BN$1,BP$1)*($BI28*7) -> 29979.65036 | BN28: =(IF($Q28="N",IF(BI28>[1]!NIUPPLIMC,((BI28-[1]!NIUPPLIMC)*[1]!NIUPPERC)+([1]!NIUPPLIMC-[1]!NILOWLIMC)*[1]!NILOWC,IF(BI28>[1]!NILOWLIMC,(BI28-[1]!NILOWLIMC)*[1]!NILOWC,0)))+IF($Q28="Y",IF(BI28>[1]!NIUPPLIMC,((BI28-[1]!NIUPPLIMC)*[1]!NIUPPERC)+(([1]!NIUPPLIMC-[1]!NILOWLIMC)*[1]!NISUPNC),IF(BI28>[1]!NILOWLIMC,(BI28-[1]!NILOWLIMC)*[1]!NISUPNC,0))))*((NumberOfDaysWorked($F28,$G28,BN$1,BP$1)*5)+(NumberOfDaysWorked($F28,$G28,BN$1,BP$1)*7)) -> 3783.389956 | BO28: =IF($Q28="N",0,(BK28*$BO$5)) -> 8598.163724 | BP28: =SUM(BK28:BO28) -> 42361.20404
A29: x | B29: NEILSON DONNA | C29: A01001 | D29: 1 | E29: TEACHER | F29: 2026-04-01 | G29: 2029-03-31 | H29: U3 | I29: U3 | J29: 0 | K29: =VLOOKUP(J29,[1]!MANAGEMENT,2)*D29 -> 0 | L29: 0 | M29: =VLOOKUP(L29,[1]!SEN_ALLOWANCES,2)*D29 -> 0 | N29: 0 | O29: =N29 -> 0 | P29: 3527 | Q29: Y | R29: =IF($E29="LEADER",VLOOKUP(H29,[1]PAYDATA!$A$4:$C$54,3),IF($E29="TEACHER",VLOOKUP(H29,[1]PAYDATA!$A$70:$C$80,3),IF($E29="ADVANCED",VLOOKUP(H29,[1]PAYDATA!$A$141:$C$159,3),IF($E29="UNQUAL",VLOOKUP(H29,[1]PAYDATA!$A$57:$C$63,3),0))))*$D29+($K29/T29)+($M29/T29)+($O29/T29)+($P29/T29) -> 4547.916667 | S29: =IF($E29="LEADER",VLOOKUP(I29,[1]!LEADERSHIP,5),IF($E29="TEACHER",VLOOKUP(I29,[1]!TEACHER,5),IF($E29="ADVANCED",VLOOKUP(I29,[1]PAYDATA!$A$141:$E$159,5),IF($E29="UNQUAL",VLOOKUP(I29,[1]!UNQUALIFIED_TEACHER,5),0))))*$D29+($K29/T29)+($M29/T29)+($O29/T29)+($P29/T29) -> 4632.996667 | T29: =IF(G29-F29>11.99999,12,MONTH(G29)-MONTH(F29)) -> 12 | U29: =NumberOfDaysWorked($F29,$G29,U$3,U$4)*$R29 -> 4547.916667 | V29: 4547.916667 | W29: 4547.916667 | X29: 4547.916667 | Y29: 4547.916667 | Z29: 4632.996667 | AA29: 4632.996667 | AB29: 4632.996667 | AC29: 4632.996667 | AD29: 4632.996667 | AE29: 4632.996667 | AF29: 4632.996667 | AG29: =SUM(U29:AF29) -> 55170.56 | AH29: =IF($Q29="N",IF(U29>[1]!NIUPPLIMA,((U29-[1]!NIUPPLIMA)*[1]!NIUPPERA)+([1]!NIUPPLIMA-[1]!NILOWLIMA)*[1]!NILOWA,IF(U29>[1]!NILOWLIMA,(U29-[1]!NILOWLIMA)*[1]!NILOWA,0)))+IF($Q29="Y",IF(U29>[1]!NIUPPLIMA,((U29-[1]!NIUPPLIMA)*[1]!NIUPPERA)+(([1]!NIUPPLIMA-[1]!NILOWLIMA)*[1]!NISUPNA),IF(U29>[1]!NILOWLIMA,(U29-[1]!NILOWLIMA)*[1]!NISUPNA,0)))+IF(U29>[1]!NILOWLIMA,-[1]!NICREBATEA,0) -> 619.6375 | AI29: =IF($Q29="N",IF(V29>[1]!NIUPPLIMA,((V29-[1]!NIUPPLIMA)*[1]!NIUPPERA)+([1]!NIUPPLIMA-[1]!NILOWLIMA)*[1]!NILOWA,IF(V29>[1]!NILOWLIMA,(V29-[1]!NILOWLIMA)*[1]!NILOWA,0)))+IF($Q29="Y",IF(V29>[1]!NIUPPLIMA,((V29-[1]!NIUPPLIMA)*[1]!NIUPPERA)+(([1]!NIUPPLIMA-[1]!NILOWLIMA)*[1]!NISUPNA),IF(V29>[1]!NILOWLIMA,(V29-[1]!NILOWLIMA)*[1]!NISUPNA,0)))+IF(V29>[1]!NILOWLIMA,-[1]!NICREBATEA,0) -> 619.6375 | AJ29: =IF($Q29="N",IF(W29>[1]!NIUPPLIMA,((W29-[1]!NIUPPLIMA)*[1]!NIUPPERA)+([1]!NIUPPLIMA-[1]!NILOWLIMA)*[1]!NILOWA,IF(W29>[1]!NILOWLIMA,(W29-[1]!NILOWLIMA)*[1]!NILOWA,0)))+IF($Q29="Y",IF(W29>[1]!NIUPPLIMA,((W29-[1]!NIUPPLIMA)*[1]!NIUPPERA)+(([1]!NIUPPLIMA-[1]!NILOWLIMA)*[1]!NISUPNA),IF(W29>[1]!NILOWLIMA,(W29-[1]!NILOWLIMA)*[1]!NISUPNA,0)))+IF(W29>[1]!NILOWLIMA,-[1]!NICREBATEA,0) -> 619.6375 | AK29: =IF($Q29="N",IF(X29>[1]!NIUPPLIMA,((X29-[1]!NIUPPLIMA)*[1]!NIUPPERA)+([1]!NIUPPLIMA-[1]!NILOWLIMA)*[1]!NILOWA,IF(X29>[1]!NILOWLIMA,(X29-[1]!NILOWLIMA)*[1]!NILOWA,0)))+IF($Q29="Y",IF(X29>[1]!NIUPPLIMA,((X29-[1]!NIUPPLIMA)*[1]!NIUPPERA)+(([1]!NIUPPLIMA-[1]!NILOWLIMA)*[1]!NISUPNA),IF(X29>[1]!NILOWLIMA,(X29-[1]!NILOWLIMA)*[1]!NISUPNA,0)))+IF(X29>[1]!NILOWLIMA,-[1]!NICREBATEA,0) -> 619.6375 | AL29: =IF($Q29="N",IF(Y29>[1]!NIUPPLIMA,((Y29-[1]!NIUPPLIMA)*[1]!NIUPPERA)+([1]!NIUPPLIMA-[1]!NILOWLIMA)*[1]!NILOWA,IF(Y29>[1]!NILOWLIMA,(Y29-[1]!NILOWLIMA)*[1]!NILOWA,0)))+IF($Q29="Y",IF(Y29>[1]!NIUPPLIMA,((Y29-[1]!NIUPPLIMA)*[1]!NIUPPERA)+(([1]!NIUPPLIMA-[1]!NILOWLIMA)*[1]!NISUPNA),IF(Y29>[1]!NILOWLIMA,(Y29-[1]!NILOWLIMA)*[1]!NISUPNA,0)))+IF(Y29>[1]!NILOWLIMA,-[1]!NICREBATEA,0) -> 619.6375 | AM29: =IF($Q29="N",IF(Z29>[1]!NIUPPLIMA,((Z29-[1]!NIUPPLIMA)*[1]!NIUPPERA)+([1]!NIUPPLIMA-[1]!NILOWLIMA)*[1]!NILOWA,IF(Z29>[1]!NILOWLIMA,(Z29-[1]!NILOWLIMA)*[1]!NILOWA,0)))+IF($Q29="Y",IF(Z29>[1]!NIUPPLIMA,((Z29-[1]!NIUPPLIMA)*[1]!NIUPPERA)+(([1]!NIUPPLIMA-[1]!NILOWLIMA)*[1]!NISUPNA),IF(Z29>[1]!NILOWLIMA,(Z29-[1]!NILOWLIMA)*[1]!NISUPNA,0)))+IF(Z29>[1]!NILOWLIMA,-[1]!NICREBATEA,0) -> 632.3995 | AN29: =IF($Q29="N",IF(AA29>[1]!NIUPPLIMA,((AA29-[1]!NIUPPLIMA)*[1]!NIUPPERA)+([1]!NIUPPLIMA-[1]!NILOWLIMA)*[1]!NILOWA,IF(AA29>[1]!NILOWLIMA,(AA29-[1]!NILOWLIMA)*[1]!NILOWA,0)))+IF($Q29="Y",IF(AA29>[1]!NIUPPLIMA,((AA29-[1]!NIUPPLIMA)*[1]!NIUPPERA)+(([1]!NIUPPLIMA-[1]!NILOWLIMA)*[1]!NISUPNA),IF(AA29>[1]!NILOWLIMA,(AA29-[1]!NILOWLIMA)*[1]!NISUPNA,0)))+IF(AA29>[1]!NILOWLIMA,-[1]!NICREBATEA,0) -> 632.3995 | AO29: =IF($Q29="N",IF(AB29>[1]!NIUPPLIMA,((AB29-[1]!NIUPPLIMA)*[1]!NIUPPERA)+([1]!NIUPPLIMA-[1]!NILOWLIMA)*[1]!NILOWA,IF(AB29>[1]!NILOWLIMA,(AB29-[1]!NILOWLIMA)*[1]!NILOWA,0)))+IF($Q29="Y",IF(AB29>[1]!NIUPPLIMA,((AB29-[1]!NIUPPLIMA)*[1]!NIUPPERA)+(([1]!NIUPPLIMA-[1]!NILOWLIMA)*[1]!NISUPNA),IF(AB29>[1]!NILOWLIMA,(AB29-[1]!NILOWLIMA)*[1]!NISUPNA,0)))+IF(AB29>[1]!NILOWLIMA,-[1]!NICREBATEA,0) -> 632.3995 | AP29: =IF($Q29="N",IF(AC29>[1]!NIUPPLIMA,((AC29-[1]!NIUPPLIMA)*[1]!NIUPPERA)+([1]!NIUPPLIMA-[1]!NILOWLIMA)*[1]!NILOWA,IF(AC29>[1]!NILOWLIMA,(AC29-[1]!NILOWLIMA)*[1]!NILOWA,0)))+IF($Q29="Y",IF(AC29>[1]!NIUPPLIMA,((AC29-[1]!NIUPPLIMA)*[1]!NIUPPERA)+(([1]!NIUPPLIMA-[1]!NILOWLIMA)*[1]!NISUPNA),IF(AC29>[1]!NILOWLIMA,(AC29-[1]!NILOWLIMA)*[1]!NISUPNA,0)))+IF(AC29>[1]!NILOWLIMA,-[1]!NICREBATEA,0) -> 632.3995 | AQ29: =IF($Q29="N",IF(AD29>[1]!NIUPPLIMA,((AD29-[1]!NIUPPLIMA)*[1]!NIUPPERA)+([1]!NIUPPLIMA-[1]!NILOWLIMA)*[1]!NILOWA,IF(AD29>[1]!NILOWLIMA,(AD29-[1]!NILOWLIMA)*[1]!NILOWA,0)))+IF($Q29="Y",IF(AD29>[1]!NIUPPLIMA,((AD29-[1]!NIUPPLIMA)*[1]!NIUPPERA)+(([1]!NIUPPLIMA-[1]!NILOWLIMA)*[1]!NISUPNA),IF(AD29>[1]!NILOWLIMA,(AD29-[1]!NILOWLIMA)*[1]!NISUPNA,0)))+IF(AD29>[1]!NILOWLIMA,-[1]!NICREBATEA,0) -> 632.3995 | AR29: =IF($Q29="N",IF(AE29>[1]!NIUPPLIMA,((AE29-[1]!NIUPPLIMA)*[1]!NIUPPERA)+([1]!NIUPPLIMA-[1]!NILOWLIMA)*[1]!NILOWA,IF(AE29>[1]!NILOWLIMA,(AE29-[1]!NILOWLIMA)*[1]!NILOWA,0)))+IF($Q29="Y",IF(AE29>[1]!NIUPPLIMA,((AE29-[1]!NIUPPLIMA)*[1]!NIUPPERA)+(([1]!NIUPPLIMA-[1]!NILOWLIMA)*[1]!NISUPNA),IF(AE29>[1]!NILOWLIMA,(AE29-[1]!NILOWLIMA)*[1]!NISUPNA,0)))+IF(AE29>[1]!NILOWLIMA,-[1]!NICREBATEA,0) -> 632.3995 | AS29: =IF($Q29="N",IF(AF29>[1]!NIUPPLIMA,((AF29-[1]!NIUPPLIMA)*[1]!NIUPPERA)+([1]!NIUPPLIMA-[1]!NILOWLIMA)*[1]!NILOWA,IF(AF29>[1]!NILOWLIMA,(AF29-[1]!NILOWLIMA)*[1]!NILOWA,0)))+IF($Q29="Y",IF(AF29>[1]!NIUPPLIMA,((AF29-[1]!NIUPPLIMA)*[1]!NIUPPERA)+(([1]!NIUPPLIMA-[1]!NILOWLIMA)*[1]!NISUPNA),IF(AF29>[1]!NILOWLIMA,(AF29-[1]!NILOWLIMA)*[1]!NISUPNA,0)))+IF(AF29>[1]!NILOWLIMA,-[1]!NICREBATEA,0) -> 632.3995 | AT29: =SUM(AH29:AS29) -> 7524.984 | AU29: =IF($Q29="N",0,((AG29*$AU$5))) -> 15822.91661 | AV29: =AG29+AT29+AU29 -> 78518.46061 | AW29: =IF($E29="TEACHER",IF($I29<6,$I29+1,IF(LEFT($I29,1)="U",$I29,6)),IF($E29="LEADER",+I29,IF($E29="UNQUAL",IF($I29<10,$I29+1,10),IF($E29="ADVANCED",IF($I29<27,$I29+1,27))))) -> U3 | AX29: =(K29+M29+O29+P29) -> 3527 | AY29: =IF($E29="LEADER",VLOOKUP(AW29,[1]!LEADERSHIP,5),IF($E29="TEACHER",VLOOKUP(AW29,[1]!TEACHER,5),IF($E29="ADVANCED",VLOOKUP($AW29,[1]!ADVANCED_SKILLS_TEACHERS,5),IF($E29="UNQUAL",VLOOKUP($AW29,[1]!UNQUALIFIED_TEACHER,5),0))))*D29*(1+BA$4)*(1+BA$5)+(AX29/AZ29) -> 4719.778267 | AZ29: =IF(G29-F29>11.99999,12,MONTH(G29)-MONTH(F29)) -> 12 | BA29: =NumberOfDaysWorked($F29,$G29,BD$1,BF$1)*(($S29*(1+BA$4))*5)+NumberOfDaysWorked($F29,$G29,BD$1,BF$1)*($AY29*7) -> 56203.4312 | BD29: =(IF($Q29="N",IF(AY29>[1]!NIUPPLIMB,((AY29-[1]!NIUPPLIMB)*[1]!NIUPPERB)+([1]!NIUPPLIMB-[1]!NILOWLIMB)*[1]!NILOWB,IF(AY29>[1]!NILOWLIMB,(AY29-[1]!NILOWLIMB)*[1]!NILOWB,0)))+IF($Q29="Y",IF(AY29>[1]!NIUPPLIMB,((AY29-[1]!NIUPPLIMB)*[1]!NIUPPERB)+(([1]!NIUPPLIMB-[1]!NILOWLIMB)*[1]!NISUPNB),IF(AY29>[1]!NILOWLIMB,(AY29-[1]!NILOWLIMB)*[1]!NISUPNB,0))))*((NumberOfDaysWorked($F29,$G29,BD$1,BF$1)*5)+(NumberOfDaysWorked($F29,$G29,BD$1,BF$1)*7)) -> 7745.00088 | BE29: =IF($Q29="N",0,(BA29*$BE$5)) -> 16119.14407 | BF29: =SUM(BA29:BE29) -> 80067.57615 | BG29: =IF($E29="TEACHER",IF(AW29<6,AW29+1,IF(LEFT(AW29,1)="U",AW29,6)),IF($E29="LEADER",+I29,IF($E29="UNQUAL",IF(AW29<10,AW29+1,10),IF($E29="ADVANCED",IF(AW29<27,AW29+1,27))))) -> U3 | BH29: =(K29+M29+O29+P29) -> 3527 | BI29: =IF($E29="LEADER",VLOOKUP(BG29,[1]!LEADERSHIP,5),IF($E29="TEACHER",VLOOKUP(BG29,[1]!TEACHER,5),IF($E29="ADVANCED",VLOOKUP($AW29,[1]!ADVANCED_SKILLS_TEACHERS,5),IF($E29="UNQUAL",VLOOKUP($AW29,[1]!UNQUALIFIED_TEACHER,5),0))))*D29*(1+BA$4)*(1+BA$5)*(1+BK$4)*(1+BK$5)+(BH29/BJ29) -> 4808.295499 | BJ29: =IF(G29-F29>11.99999,12,MONTH(G29)-MONTH(F29)) -> 12 | BK29: =NumberOfDaysWorked($F29,$G29,BN$1,BP$1)*(($AY29*(1+BK$4))*5)+NumberOfDaysWorked($F29,$G29,BN$1,BP$1)*($BI29*7) -> 57256.95982 | BN29: =(IF($Q29="N",IF(BI29>[1]!NIUPPLIMC,((BI29-[1]!NIUPPLIMC)*[1]!NIUPPERC)+([1]!NIUPPLIMC-[1]!NILOWLIMC)*[1]!NILOWC,IF(BI29>[1]!NILOWLIMC,(BI29-[1]!NILOWLIMC)*[1]!NILOWC,0)))+IF($Q29="Y",IF(BI29>[1]!NIUPPLIMC,((BI29-[1]!NIUPPLIMC)*[1]!NIUPPERC)+(([1]!NIUPPLIMC-[1]!NILOWLIMC)*[1]!NISUPNC),IF(BI29>[1]!NILOWLIMC,(BI29-[1]!NILOWLIMC)*[1]!NISUPNC,0))))*((NumberOfDaysWorked($F29,$G29,BN$1,BP$1)*5)+(NumberOfDaysWorked($F29,$G29,BN$1,BP$1)*7)) -> 7904.331898 | BO29: =IF($Q29="N",0,(BK29*$BO$5)) -> 16421.29608 | BP29: =SUM(BK29:BO29) -> 81582.5878
A30: x | B30: RYAN AIMEE (MATERNITY) | C30: A01001 | D30: 0 | E30: TEACHER | F30: 2026-04-01 | G30: 2026-07-19 | H30: U1 | I30: U1 | J30: 0 | K30: =VLOOKUP(J30,[1]!MANAGEMENT,2)*D30 -> 0 | L30: 0 | M30: =VLOOKUP(L30,[1]!SEN_ALLOWANCES,2)*D30 -> 0 | N30: 0 | O30: =N30 -> 0 | P30: 0 | Q30: Y | R30: =IF($E30="LEADER",VLOOKUP(H30,[1]PAYDATA!$A$4:$C$54,3),IF($E30="TEACHER",VLOOKUP(H30,[1]PAYDATA!$A$70:$C$80,3),IF($E30="ADVANCED",VLOOKUP(H30,[1]PAYDATA!$A$141:$C$159,3),IF($E30="UNQUAL",VLOOKUP(H30,[1]PAYDATA!$A$57:$C$63,3),0))))*$D30+($K30/T30)+($M30/T30)+($O30/T30)+($P30/T30) -> 0 | S30: =IF($E30="LEADER",VLOOKUP(I30,[1]!LEADERSHIP,5),IF($E30="TEACHER",VLOOKUP(I30,[1]!TEACHER,5),IF($E30="ADVANCED",VLOOKUP(I30,[1]PAYDATA!$A$141:$E$159,5),IF($E30="UNQUAL",VLOOKUP(I30,[1]!UNQUALIFIED_TEACHER,5),0))))*$D30+($K30/T30)+($M30/T30)+($O30/T30)+($P30/T30) -> 0 | T30: =IF(G30-F30>11.99999,12,MONTH(G30)-MONTH(F30)) -> 12 | U30: 0 | V30: 0 | W30: 0 | X30: 0 | Y30: 0 | Z30: 0 | AA30: 0 | AB30: 0 | AC30: 0 | AD30: 0 | AE30: 0 | AF30: 0 | AG30: 1000 | AH30: =IF($Q30="N",IF(U30>[1]!NIUPPLIMA,((U30-[1]!NIUPPLIMA)*[1]!NIUPPERA)+([1]!NIUPPLIMA-[1]!NILOWLIMA)*[1]!NILOWA,IF(U30>[1]!NILOWLIMA,(U30-[1]!NILOWLIMA)*[1]!NILOWA,0)))+IF($Q30="Y",IF(U30>[1]!NIUPPLIMA,((U30-[1]!NIUPPLIMA)*[1]!NIUPPERA)+(([1]!NIUPPLIMA-[1]!NILOWLIMA)*[1]!NISUPNA),IF(U30>[1]!NILOWLIMA,(U30-[1]!NILOWLIMA)*[1]!NISUPNA,0)))+IF(U30>[1]!NILOWLIMA,-[1]!NICREBATEA,0) -> 0 | AI30: =IF($Q30="N",IF(V30>[1]!NIUPPLIMA,((V30-[1]!NIUPPLIMA)*[1]!NIUPPERA)+([1]!NIUPPLIMA-[1]!NILOWLIMA)*[1]!NILOWA,IF(V30>[1]!NILOWLIMA,(V30-[1]!NILOWLIMA)*[1]!NILOWA,0)))+IF($Q30="Y",IF(V30>[1]!NIUPPLIMA,((V30-[1]!NIUPPLIMA)*[1]!NIUPPERA)+(([1]!NIUPPLIMA-[1]!NILOWLIMA)*[1]!NISUPNA),IF(V30>[1]!NILOWLIMA,(V30-[1]!NILOWLIMA)*[1]!NISUPNA,0)))+IF(V30>[1]!NILOWLIMA,-[1]!NICREBATEA,0) -> 0 | AJ30: =IF($Q30="N",IF(W30>[1]!NIUPPLIMA,((W30-[1]!NIUPPLIMA)*[1]!NIUPPERA)+([1]!NIUPPLIMA-[1]!NILOWLIMA)*[1]!NILOWA,IF(W30>[1]!NILOWLIMA,(W30-[1]!NILOWLIMA)*[1]!NILOWA,0)))+IF($Q30="Y",IF(W30>[1]!NIUPPLIMA,((W30-[1]!NIUPPLIMA)*[1]!NIUPPERA)+(([1]!NIUPPLIMA-[1]!NILOWLIMA)*[1]!NISUPNA),IF(W30>[1]!NILOWLIMA,(W30-[1]!NILOWLIMA)*[1]!NISUPNA,0)))+IF(W30>[1]!NILOWLIMA,-[1]!NICREBATEA,0) -> 0 | AK30: =IF($Q30="N",IF(X30>[1]!NIUPPLIMA,((X30-[1]!NIUPPLIMA)*[1]!NIUPPERA)+([1]!NIUPPLIMA-[1]!NILOWLIMA)*[1]!NILOWA,IF(X30>[1]!NILOWLIMA,(X30-[1]!NILOWLIMA)*[1]!NILOWA,0)))+IF($Q30="Y",IF(X30>[1]!NIUPPLIMA,((X30-[1]!NIUPPLIMA)*[1]!NIUPPERA)+(([1]!NIUPPLIMA-[1]!NILOWLIMA)*[1]!NISUPNA),IF(X30>[1]!NILOWLIMA,(X30-[1]!NILOWLIMA)*[1]!NISUPNA,0)))+IF(X30>[1]!NILOWLIMA,-[1]!NICREBATEA,0) -> 0 | AL30: =IF($Q30="N",IF(Y30>[1]!NIUPPLIMA,((Y30-[1]!NIUPPLIMA)*[1]!NIUPPERA)+([1]!NIUPPLIMA-[1]!NILOWLIMA)*[1]!NILOWA,IF(Y30>[1]!NILOWLIMA,(Y30-[1]!NILOWLIMA)*[1]!NILOWA,0)))+IF($Q30="Y",IF(Y30>[1]!NIUPPLIMA,((Y30-[1]!NIUPPLIMA)*[1]!NIUPPERA)+(([1]!NIUPPLIMA-[1]!NILOWLIMA)*[1]!NISUPNA),IF(Y30>[1]!NILOWLIMA,(Y30-[1]!NILOWLIMA)*[1]!NISUPNA,0)))+IF(Y30>[1]!NILOWLIMA,-[1]!NICREBATEA,0) -> 0 | AM30: =IF($Q30="N",IF(Z30>[1]!NIUPPLIMA,((Z30-[1]!NIUPPLIMA)*[1]!NIUPPERA)+([1]!NIUPPLIMA-[1]!NILOWLIMA)*[1]!NILOWA,IF(Z30>[1]!NILOWLIMA,(Z30-[1]!NILOWLIMA)*[1]!NILOWA,0)))+IF($Q30="Y",IF(Z30>[1]!NIUPPLIMA,((Z30-[1]!NIUPPLIMA)*[1]!NIUPPERA)+(([1]!NIUPPLIMA-[1]!NILOWLIMA)*[1]!NISUPNA),IF(Z30>[1]!NILOWLIMA,(Z30-[1]!NILOWLIMA)*[1]!NISUPNA,0)))+IF(Z30>[1]!NILOWLIMA,-[1]!NICREBATEA,0) -> 0 | AN30: =IF($Q30="N",IF(AA30>[1]!NIUPPLIMA,((AA30-[1]!NIUPPLIMA)*[1]!NIUPPERA)+([1]!NIUPPLIMA-[1]!NILOWLIMA)*[1]!NILOWA,IF(AA30>[1]!NILOWLIMA,(AA30-[1]!NILOWLIMA)*[1]!NILOWA,0)))+IF($Q30="Y",IF(AA30>[1]!NIUPPLIMA,((AA30-[1]!NIUPPLIMA)*[1]!NIUPPERA)+(([1]!NIUPPLIMA-[1]!NILOWLIMA)*[1]!NISUPNA),IF(AA30>[1]!NILOWLIMA,(AA30-[1]!NILOWLIMA)*[1]!NISUPNA,0)))+IF(AA30>[1]!NILOWLIMA,-[1]!NICREBATEA,0) -> 0 | AO30: =IF($Q30="N",IF(AB30>[1]!NIUPPLIMA,((AB30-[1]!NIUPPLIMA)*[1]!NIUPPERA)+([1]!NIUPPLIMA-[1]!NILOWLIMA)*[1]!NILOWA,IF(AB30>[1]!NILOWLIMA,(AB30-[1]!NILOWLIMA)*[1]!NILOWA,0)))+IF($Q30="Y",IF(AB30>[1]!NIUPPLIMA,((AB30-[1]!NIUPPLIMA)*[1]!NIUPPERA)+(([1]!NIUPPLIMA-[1]!NILOWLIMA)*[1]!NISUPNA),IF(AB30>[1]!NILOWLIMA,(AB30-[1]!NILOWLIMA)*[1]!NISUPNA,0)))+IF(AB30>[1]!NILOWLIMA,-[1]!NICREBATEA,0) -> 0 | AP30: =IF($Q30="N",IF(AC30>[1]!NIUPPLIMA,((AC30-[1]!NIUPPLIMA)*[1]!NIUPPERA)+([1]!NIUPPLIMA-[1]!NILOWLIMA)*[1]!NILOWA,IF(AC30>[1]!NILOWLIMA,(AC30-[1]!NILOWLIMA)*[1]!NILOWA,0)))+IF($Q30="Y",IF(AC30>[1]!NIUPPLIMA,((AC30-[1]!NIUPPLIMA)*[1]!NIUPPERA)+(([1]!NIUPPLIMA-[1]!NILOWLIMA)*[1]!NISUPNA),IF(AC30>[1]!NILOWLIMA,(AC30-[1]!NILOWLIMA)*[1]!NISUPNA,0)))+IF(AC30>[1]!NILOWLIMA,-[1]!NICREBATEA,0) -> 0 | AQ30: =IF($Q30="N",IF(AD30>[1]!NIUPPLIMA,((AD30-[1]!NIUPPLIMA)*[1]!NIUPPERA)+([1]!NIUPPLIMA-[1]!NILOWLIMA)*[1]!NILOWA,IF(AD30>[1]!NILOWLIMA,(AD30-[1]!NILOWLIMA)*[1]!NILOWA,0)))+IF($Q30="Y",IF(AD30>[1]!NIUPPLIMA,((AD30-[1]!NIUPPLIMA)*[1]!NIUPPERA)+(([1]!NIUPPLIMA-[1]!NILOWLIMA)*[1]!NISUPNA),IF(AD30>[1]!NILOWLIMA,(AD30-[1]!NILOWLIMA)*[1]!NISUPNA,0)))+IF(AD30>[1]!NILOWLIMA,-[1]!NICREBATEA,0) -> 0 | AR30: =IF($Q30="N",IF(AE30>[1]!NIUPPLIMA,((AE30-[1]!NIUPPLIMA)*[1]!NIUPPERA)+([1]!NIUPPLIMA-[1]!NILOWLIMA)*[1]!NILOWA,IF(AE30>[1]!NILOWLIMA,(AE30-[1]!NILOWLIMA)*[1]!NILOWA,0)))+IF($Q30="Y",IF(AE30>[1]!NIUPPLIMA,((AE30-[1]!NIUPPLIMA)*[1]!NIUPPERA)+(([1]!NIUPPLIMA-[1]!NILOWLIMA)*[1]!NISUPNA),IF(AE30>[1]!NILOWLIMA,(AE30-[1]!NILOWLIMA)*[1]!NISUPNA,0)))+IF(AE30>[1]!NILOWLIMA,-[1]!NICREBATEA,0) -> 0 | AS30: =IF($Q30="N",IF(AF30>[1]!NIUPPLIMA,((AF30-[1]!NIUPPLIMA)*[1]!NIUPPERA)+([1]!NIUPPLIMA-[1]!NILOWLIMA)*[1]!NILOWA,IF(AF30>[1]!NILOWLIMA,(AF30-[1]!NILOWLIMA)*[1]!NILOWA,0)))+IF($Q30="Y",IF(AF30>[1]!NIUPPLIMA,((AF30-[1]!NIUPPLIMA)*[1]!NIUPPERA)+(([1]!NIUPPLIMA-[1]!NILOWLIMA)*[1]!NISUPNA),IF(AF30>[1]!NILOWLIMA,(AF30-[1]!NILOWLIMA)*[1]!NISUPNA,0)))+IF(AF30>[1]!NILOWLIMA,-[1]!NICREBATEA,0) -> 0 | AT30: =SUM(AH30:AS30) -> 0 | AU30: =IF($Q30="N",0,((AG30*$AU$5))) -> 286.8 | AV30: =AG30+AT30+AU30 -> 1286.8 | AW30: =IF($E30="TEACHER",IF($I30<6,$I30+1,IF(LEFT($I30,1)="U",$I30,6)),IF($E30="LEADER",+I30,IF($E30="UNQUAL",IF($I30<10,$I30+1,10),IF($E30="ADVANCED",IF($I30<27,$I30+1,27))))) -> U1 | AX30: =(K30+M30+O30+P30) -> 0 | AY30: =IF($E30="LEADER",VLOOKUP(AW30,[1]!LEADERSHIP,5),IF($E30="TEACHER",VLOOKUP(AW30,[1]!TEACHER,5),IF($E30="ADVANCED",VLOOKUP($AW30,[1]!ADVANCED_SKILLS_TEACHERS,5),IF($E30="UNQUAL",VLOOKUP($AW30,[1]!UNQUALIFIED_TEACHER,5),0))))*D30*(1+BA$4)*(1+BA$5)+(AX30/AZ30) -> 0 | AZ30: =IF(G30-F30>11.99999,12,MONTH(G30)-MONTH(F30)) -> 12 | BA30: =NumberOfDaysWorked($F30,$G30,BD$1,BF$1)*(($S30*(1+BA$4))*5)+NumberOfDaysWorked($F30,$G30,BD$1,BF$1)*($AY30*7) -> 0 | BD30: =(IF($Q30="N",IF(AY30>[1]!NIUPPLIMB,((AY30-[1]!NIUPPLIMB)*[1]!NIUPPERB)+([1]!NIUPPLIMB-[1]!NILOWLIMB)*[1]!NILOWB,IF(AY30>[1]!NILOWLIMB,(AY30-[1]!NILOWLIMB)*[1]!NILOWB,0)))+IF($Q30="Y",IF(AY30>[1]!NIUPPLIMB,((AY30-[1]!NIUPPLIMB)*[1]!NIUPPERB)+(([1]!NIUPPLIMB-[1]!NILOWLIMB)*[1]!NISUPNB),IF(AY30>[1]!NILOWLIMB,(AY30-[1]!NILOWLIMB)*[1]!NISUPNB,0))))*((NumberOfDaysWorked($F30,$G30,BD$1,BF$1)*5)+(NumberOfDaysWorked($F30,$G30,BD$1,BF$1)*7)) -> 0 | BE30: =IF($Q30="N",0,(BA30*$BE$5)) -> 0 | BF30: =SUM(BA30:BE30) -> 0 | BG30: =IF($E30="TEACHER",IF(AW30<6,AW30+1,IF(LEFT(AW30,1)="U",AW30,6)),IF($E30="LEADER",+I30,IF($E30="UNQUAL",IF(AW30<10,AW30+1,10),IF($E30="ADVANCED",IF(AW30<27,AW30+1,27))))) -> U1 | BH30: =(K30+M30+O30+P30) -> 0 | BI30: =IF($E30="LEADER",VLOOKUP(BG30,[1]!LEADERSHIP,5),IF($E30="TEACHER",VLOOKUP(BG30,[1]!TEACHER,5),IF($E30="ADVANCED",VLOOKUP($AW30,[1]!ADVANCED_SKILLS_TEACHERS,5),IF($E30="UNQUAL",VLOOKUP($AW30,[1]!UNQUALIFIED_TEACHER,5),0))))*D30*(1+BA$4)*(1+BA$5)*(1+BK$4)*(1+BK$5)+(BH30/BJ30) -> 0 | BJ30: =IF(G30-F30>11.99999,12,MONTH(G30)-MONTH(F30)) -> 12 | BK30: =NumberOfDaysWorked($F30,$G30,BN$1,BP$1)*(($AY30*(1+BK$4))*5)+NumberOfDaysWorked($F30,$G30,BN$1,BP$1)*($BI30*7) -> 0 | BN30: =(IF($Q30="N",IF(BI30>[1]!NIUPPLIMC,((BI30-[1]!NIUPPLIMC)*[1]!NIUPPERC)+([1]!NIUPPLIMC-[1]!NILOWLIMC)*[1]!NILOWC,IF(BI30>[1]!NILOWLIMC,(BI30-[1]!NILOWLIMC)*[1]!NILOWC,0)))+IF($Q30="Y",IF(BI30>[1]!NIUPPLIMC,((BI30-[1]!NIUPPLIMC)*[1]!NIUPPERC)+(([1]!NIUPPLIMC-[1]!NILOWLIMC)*[1]!NISUPNC),IF(BI30>[1]!NILOWLIMC,(BI30-[1]!NILOWLIMC)*[1]!NISUPNC,0))))*((NumberOfDaysWorked($F30,$G30,BN$1,BP$1)*5)+(NumberOfDaysWorked($F30,$G30,BN$1,BP$1)*7)) -> 0 | BO30: =IF($Q30="N",0,(BK30*$BO$5)) -> 0 | BP30: =SUM(BK30:BO30) -> 0
A31: x | B31: RYAN AIMEE | C31: A01001 | D31: =759/1265 -> 0.6 | E31: TEACHER | F31: 2026-07-20 | G31: 2029-03-31 | H31: U1 | I31: U1 | J31: 0 | K31: =VLOOKUP(J31,[1]!MANAGEMENT,2)*D31 -> 0 | L31: 0 | M31: =VLOOKUP(L31,[1]!SEN_ALLOWANCES,2)*D31 -> 0 | N31: 0 | O31: =N31 -> 0 | P31: 0 | Q31: Y | R31: =IF($E31="LEADER",VLOOKUP(H31,[1]PAYDATA!$A$4:$C$54,3),IF($E31="TEACHER",VLOOKUP(H31,[1]PAYDATA!$A$70:$C$80,3),IF($E31="ADVANCED",VLOOKUP(H31,[1]PAYDATA!$A$141:$C$159,3),IF($E31="UNQUAL",VLOOKUP(H31,[1]PAYDATA!$A$57:$C$63,3),0))))*$D31+($K31/T31)+($M31/T31)+($O31/T31)+($P31/T31) -> 2373.6 | S31: =IF($E31="LEADER",VLOOKUP(I31,[1]!LEADERSHIP,5),IF($E31="TEACHER",VLOOKUP(I31,[1]!TEACHER,5),IF($E31="ADVANCED",VLOOKUP(I31,[1]PAYDATA!$A$141:$E$159,5),IF($E31="UNQUAL",VLOOKUP(I31,[1]!UNQUALIFIED_TEACHER,5),0))))*$D31+($K31/T31)+($M31/T31)+($O31/T31)+($P31/T31) -> 2421.072 | T31: 12 | U31: 0 | V31: 0 | W31: 0 | X31: 918.8129032 | Y31: 2373.6 | Z31: 2421.072 | AA31: 2421.072 | AB31: 2421.072 | AC31: 2421.072 | AD31: 2421.072 | AE31: 2421.072 | AF31: 2421.072 | AG31: 20239.9169 | AH31: =IF($Q31="N",IF(U31>[1]!NIUPPLIMA,((U31-[1]!NIUPPLIMA)*[1]!NIUPPERA)+([1]!NIUPPLIMA-[1]!NILOWLIMA)*[1]!NILOWA,IF(U31>[1]!NILOWLIMA,(U31-[1]!NILOWLIMA)*[1]!NILOWA,0)))+IF($Q31="Y",IF(U31>[1]!NIUPPLIMA,((U31-[1]!NIUPPLIMA)*[1]!NIUPPERA)+(([1]!NIUPPLIMA-[1]!NILOWLIMA)*[1]!NISUPNA),IF(U31>[1]!NILOWLIMA,(U31-[1]!NILOWLIMA)*[1]!NISUPNA,0)))+IF(U31>[1]!NILOWLIMA,-[1]!NICREBATEA,0) -> 0 | AI31: =IF($Q31="N",IF(V31>[1]!NIUPPLIMA,((V31-[1]!NIUPPLIMA)*[1]!NIUPPERA)+([1]!NIUPPLIMA-[1]!NILOWLIMA)*[1]!NILOWA,IF(V31>[1]!NILOWLIMA,(V31-[1]!NILOWLIMA)*[1]!NILOWA,0)))+IF($Q31="Y",IF(V31>[1]!NIUPPLIMA,((V31-[1]!NIUPPLIMA)*[1]!NIUPPERA)+(([1]!NIUPPLIMA-[1]!NILOWLIMA)*[1]!NISUPNA),IF(V31>[1]!NILOWLIMA,(V31-[1]!NILOWLIMA)*[1]!NISUPNA,0)))+IF(V31>[1]!NILOWLIMA,-[1]!NICREBATEA,0) -> 0 | AJ31: =IF($Q31="N",IF(W31>[1]!NIUPPLIMA,((W31-[1]!NIUPPLIMA)*[1]!NIUPPERA)+([1]!NIUPPLIMA-[1]!NILOWLIMA)*[1]!NILOWA,IF(W31>[1]!NILOWLIMA,(W31-[1]!NILOWLIMA)*[1]!NILOWA,0)))+IF($Q31="Y",IF(W31>[1]!NIUPPLIMA,((W31-[1]!NIUPPLIMA)*[1]!NIUPPERA)+(([1]!NIUPPLIMA-[1]!NILOWLIMA)*[1]!NISUPNA),IF(W31>[1]!NILOWLIMA,(W31-[1]!NILOWLIMA)*[1]!NISUPNA,0)))+IF(W31>[1]!NILOWLIMA,-[1]!NICREBATEA,0) -> 0 | AK31: =IF($Q31="N",IF(X31>[1]!NIUPPLIMA,((X31-[1]!NIUPPLIMA)*[1]!NIUPPERA)+([1]!NIUPPLIMA-[1]!NILOWLIMA)*[1]!NILOWA,IF(X31>[1]!NILOWLIMA,(X31-[1]!NILOWLIMA)*[1]!NILOWA,0)))+IF($Q31="Y",IF(X31>[1]!NIUPPLIMA,((X31-[1]!NIUPPLIMA)*[1]!NIUPPERA)+(([1]!NIUPPLIMA-[1]!NILOWLIMA)*[1]!NISUPNA),IF(X31>[1]!NILOWLIMA,(X31-[1]!NILOWLIMA)*[1]!NISUPNA,0)))+IF(X31>[1]!NILOWLIMA,-[1]!NICREBATEA,0) -> 75.27193548 | AL31: =IF($Q31="N",IF(Y31>[1]!NIUPPLIMA,((Y31-[1]!NIUPPLIMA)*[1]!NIUPPERA)+([1]!NIUPPLIMA-[1]!NILOWLIMA)*[1]!NILOWA,IF(Y31>[1]!NILOWLIMA,(Y31-[1]!NILOWLIMA)*[1]!NILOWA,0)))+IF($Q31="Y",IF(Y31>[1]!NIUPPLIMA,((Y31-[1]!NIUPPLIMA)*[1]!NIUPPERA)+(([1]!NIUPPLIMA-[1]!NILOWLIMA)*[1]!NISUPNA),IF(Y31>[1]!NILOWLIMA,(Y31-[1]!NILOWLIMA)*[1]!NISUPNA,0)))+IF(Y31>[1]!NILOWLIMA,-[1]!NICREBATEA,0) -> 293.49 | AM31: =IF($Q31="N",IF(Z31>[1]!NIUPPLIMA,((Z31-[1]!NIUPPLIMA)*[1]!NIUPPERA)+([1]!NIUPPLIMA-[1]!NILOWLIMA)*[1]!NILOWA,IF(Z31>[1]!NILOWLIMA,(Z31-[1]!NILOWLIMA)*[1]!NILOWA,0)))+IF($Q31="Y",IF(Z31>[1]!NIUPPLIMA,((Z31-[1]!NIUPPLIMA)*[1]!NIUPPERA)+(([1]!NIUPPLIMA-[1]!NILOWLIMA)*[1]!NISUPNA),IF(Z31>[1]!NILOWLIMA,(Z31-[1]!NILOWLIMA)*[1]!NISUPNA,0)))+IF(Z31>[1]!NILOWLIMA,-[1]!NICREBATEA,0) -> 300.6108 | AN31: =IF($Q31="N",IF(AA31>[1]!NIUPPLIMA,((AA31-[1]!NIUPPLIMA)*[1]!NIUPPERA)+([1]!NIUPPLIMA-[1]!NILOWLIMA)*[1]!NILOWA,IF(AA31>[1]!NILOWLIMA,(AA31-[1]!NILOWLIMA)*[1]!NILOWA,0)))+IF($Q31="Y",IF(AA31>[1]!NIUPPLIMA,((AA31-[1]!NIUPPLIMA)*[1]!NIUPPERA)+(([1]!NIUPPLIMA-[1]!NILOWLIMA)*[1]!NISUPNA),IF(AA31>[1]!NILOWLIMA,(AA31-[1]!NILOWLIMA)*[1]!NISUPNA,0)))+IF(AA31>[1]!NILOWLIMA,-[1]!NICREBATEA,0) -> 300.6108 | AO31: =IF($Q31="N",IF(AB31>[1]!NIUPPLIMA,((AB31-[1]!NIUPPLIMA)*[1]!NIUPPERA)+([1]!NIUPPLIMA-[1]!NILOWLIMA)*[1]!NILOWA,IF(AB31>[1]!NILOWLIMA,(AB31-[1]!NILOWLIMA)*[1]!NILOWA,0)))+IF($Q31="Y",IF(AB31>[1]!NIUPPLIMA,((AB31-[1]!NIUPPLIMA)*[1]!NIUPPERA)+(([1]!NIUPPLIMA-[1]!NILOWLIMA)*[1]!NISUPNA),IF(AB31>[1]!NILOWLIMA,(AB31-[1]!NILOWLIMA)*[1]!NISUPNA,0)))+IF(AB31>[1]!NILOWLIMA,-[1]!NICREBATEA,0) -> 300.6108 | AP31: =IF($Q31="N",IF(AC31>[1]!NIUPPLIMA,((AC31-[1]!NIUPPLIMA)*[1]!NIUPPERA)+([1]!NIUPPLIMA-[1]!NILOWLIMA)*[1]!NILOWA,IF(AC31>[1]!NILOWLIMA,(AC31-[1]!NILOWLIMA)*[1]!NILOWA,0)))+IF($Q31="Y",IF(AC31>[1]!NIUPPLIMA,((AC31-[1]!NIUPPLIMA)*[1]!NIUPPERA)+(([1]!NIUPPLIMA-[1]!NILOWLIMA)*[1]!NISUPNA),IF(AC31>[1]!NILOWLIMA,(AC31-[1]!NILOWLIMA)*[1]!NISUPNA,0)))+IF(AC31>[1]!NILOWLIMA,-[1]!NICREBATEA,0) -> 300.6108 | AQ31: =IF($Q31="N",IF(AD31>[1]!NIUPPLIMA,((AD31-[1]!NIUPPLIMA)*[1]!NIUPPERA)+([1]!NIUPPLIMA-[1]!NILOWLIMA)*[1]!NILOWA,IF(AD31>[1]!NILOWLIMA,(AD31-[1]!NILOWLIMA)*[1]!NILOWA,0)))+IF($Q31="Y",IF(AD31>[1]!NIUPPLIMA,((AD31-[1]!NIUPPLIMA)*[1]!NIUPPERA)+(([1]!NIUPPLIMA-[1]!NILOWLIMA)*[1]!NISUPNA),IF(AD31>[1]!NILOWLIMA,(AD31-[1]!NILOWLIMA)*[1]!NISUPNA,0)))+IF(AD31>[1]!NILOWLIMA,-[1]!NICREBATEA,0) -> 300.6108 | AR31: =IF($Q31="N",IF(AE31>[1]!NIUPPLIMA,((AE31-[1]!NIUPPLIMA)*[1]!NIUPPERA)+([1]!NIUPPLIMA-[1]!NILOWLIMA)*[1]!NILOWA,IF(AE31>[1]!NILOWLIMA,(AE31-[1]!NILOWLIMA)*[1]!NILOWA,0)))+IF($Q31="Y",IF(AE31>[1]!NIUPPLIMA,((AE31-[1]!NIUPPLIMA)*[1]!NIUPPERA)+(([1]!NIUPPLIMA-[1]!NILOWLIMA)*[1]!NISUPNA),IF(AE31>[1]!NILOWLIMA,(AE31-[1]!NILOWLIMA)*[1]!NISUPNA,0)))+IF(AE31>[1]!NILOWLIMA,-[1]!NICREBATEA,0) -> 300.6108 | AS31: =IF($Q31="N",IF(AF31>[1]!NIUPPLIMA,((AF31-[1]!NIUPPLIMA)*[1]!NIUPPERA)+([1]!NIUPPLIMA-[1]!NILOWLIMA)*[1]!NILOWA,IF(AF31>[1]!NILOWLIMA,(AF31-[1]!NILOWLIMA)*[1]!NILOWA,0)))+IF($Q31="Y",IF(AF31>[1]!NIUPPLIMA,((AF31-[1]!NIUPPLIMA)*[1]!NIUPPERA)+(([1]!NIUPPLIMA-[1]!NILOWLIMA)*[1]!NISUPNA),IF(AF31>[1]!NILOWLIMA,(AF31-[1]!NILOWLIMA)*[1]!NISUPNA,0)))+IF(AF31>[1]!NILOWLIMA,-[1]!NICREBATEA,0) -> 300.6108 | AT31: 2473.037535 | AU31: 5804.808168 | AV31: 28517.76261 | AW31: U1 | AX31: 0 | AY31: =IF($E31="LEADER",VLOOKUP(AW31,[1]!LEADERSHIP,5),IF($E31="TEACHER",VLOOKUP(AW31,[1]!TEACHER,5),IF($E31="ADVANCED",VLOOKUP($AW31,[1]!ADVANCED_SKILLS_TEACHERS,5),IF($E31="UNQUAL",VLOOKUP($AW31,[1]!UNQUALIFIED_TEACHER,5),0))))*D31*(1+BA$4)*(1+BA$5)+(AX31/AZ31) -> 2469.49344 | AZ31: 12 | BA31: =NumberOfDaysWorked($F31,$G31,BD$1,BF$1)*(($S31*(1+BA$4))*5)+NumberOfDaysWorked($F31,$G31,BD$1,BF$1)*($AY31*7) -> 29391.81408 | BD31: =(IF($Q31="N",IF(AY31>[1]!NIUPPLIMB,((AY31-[1]!NIUPPLIMB)*[1]!NIUPPERB)+([1]!NIUPPLIMB-[1]!NILOWLIMB)*[1]!NILOWB,IF(AY31>[1]!NILOWLIMB,(AY31-[1]!NILOWLIMB)*[1]!NILOWB,0)))+IF($Q31="Y",IF(AY31>[1]!NIUPPLIMB,((AY31-[1]!NIUPPLIMB)*[1]!NIUPPERB)+(([1]!NIUPPLIMB-[1]!NILOWLIMB)*[1]!NISUPNB),IF(AY31>[1]!NILOWLIMB,(AY31-[1]!NILOWLIMB)*[1]!NISUPNB,0))))*((NumberOfDaysWorked($F31,$G31,BD$1,BF$1)*5)+(NumberOfDaysWorked($F31,$G31,BD$1,BF$1)*7)) -> 3694.488192 | BE31: 8429.572278 | BF31: 41515.87455 | BG31: U1 | BH31: 0 | BI31: =IF($E31="LEADER",VLOOKUP(BG31,[1]!LEADERSHIP,5),IF($E31="TEACHER",VLOOKUP(BG31,[1]!TEACHER,5),IF($E31="ADVANCED",VLOOKUP($AW31,[1]!ADVANCED_SKILLS_TEACHERS,5),IF($E31="UNQUAL",VLOOKUP($AW31,[1]!UNQUALIFIED_TEACHER,5),0))))*D31*(1+BA$4)*(1+BA$5)*(1+BK$4)*(1+BK$5)+(BH31/BJ31) -> 2518.883309 | BJ31: 12 | BK31: 29979.65036 | BN31: =(IF($Q31="N",IF(BI31>[1]!NIUPPLIMC,((BI31-[1]!NIUPPLIMC)*[1]!NIUPPERC)+([1]!NIUPPLIMC-[1]!NILOWLIMC)*[1]!NILOWC,IF(BI31>[1]!NILOWLIMC,(BI31-[1]!NILOWLIMC)*[1]!NILOWC,0)))+IF($Q31="Y",IF(BI31>[1]!NIUPPLIMC,((BI31-[1]!NIUPPLIMC)*[1]!NIUPPERC)+(([1]!NIUPPLIMC-[1]!NILOWLIMC)*[1]!NISUPNC),IF(BI31>[1]!NILOWLIMC,(BI31-[1]!NILOWLIMC)*[1]!NISUPNC,0))))*((NumberOfDaysWorked($F31,$G31,BN$1,BP$1)*5)+(NumberOfDaysWorked($F31,$G31,BN$1,BP$1)*7)) -> 3783.389956 | BO31: 8598.163724 | BP31: 42361.20404
A32: x | B32: FIRTH BETH | C32: A01001 | D32: 1 | E32: TEACHER | F32: 2026-04-01 | G32: 2029-03-31 | H32: 4 | I32: 5 | J32: 0 | K32: =VLOOKUP(J32,[1]!MANAGEMENT,2)*D32 -> 0 | L32: 0 | M32: =VLOOKUP(L32,[1]!SEN_ALLOWANCES,2)*D32 -> 0 | N32: 0 | O32: =N32 -> 0 | P32: 0 | Q32: Y | R32: =IF($E32="LEADER",VLOOKUP(H32,[1]PAYDATA!$A$4:$C$54,3),IF($E32="TEACHER",VLOOKUP(H32,[1]PAYDATA!$A$70:$C$80,3),IF($E32="ADVANCED",VLOOKUP(H32,[1]PAYDATA!$A$141:$C$159,3),IF($E32="UNQUAL",VLOOKUP(H32,[1]PAYDATA!$A$57:$C$63,3),0))))*$D32+($K32/T32)+($M32/T32)+($O32/T32)+($P32/T32) -> 3296.333333 | S32: =IF($E32="LEADER",VLOOKUP(I32,[1]!LEADERSHIP,5),IF($E32="TEACHER",VLOOKUP(I32,[1]!TEACHER,5),IF($E32="ADVANCED",VLOOKUP(I32,[1]PAYDATA!$A$141:$E$159,5),IF($E32="UNQUAL",VLOOKUP(I32,[1]!UNQUALIFIED_TEACHER,5),0))))*$D32+($K32/T32)+($M32/T32)+($O32/T32)+($P32/T32) -> 3829.845 | T32: =IF(G32-F32>11.99999,12,MONTH(G32)-MONTH(F32)) -> 12 | U32: =NumberOfDaysWorked($F32,$G32,U$3,U$4)*$R32 -> 3296.333333 | V32: 3296.333333 | W32: 3296.333333 | X32: 3296.333333 | Y32: 3296.333333 | Z32: 3829.845 | AA32: 3829.845 | AB32: 3829.845 | AC32: 3829.845 | AD32: 3829.845 | AE32: 3829.845 | AF32: 3829.845 | AG32: 43290.58167 | AH32: =IF($Q32="N",IF(U32>[1]!NIUPPLIMA,((U32-[1]!NIUPPLIMA)*[1]!NIUPPERA)+([1]!NIUPPLIMA-[1]!NILOWLIMA)*[1]!NILOWA,IF(U32>[1]!NILOWLIMA,(U32-[1]!NILOWLIMA)*[1]!NILOWA,0)))+IF($Q32="Y",IF(U32>[1]!NIUPPLIMA,((U32-[1]!NIUPPLIMA)*[1]!NIUPPERA)+(([1]!NIUPPLIMA-[1]!NILOWLIMA)*[1]!NISUPNA),IF(U32>[1]!NILOWLIMA,(U32-[1]!NILOWLIMA)*[1]!NISUPNA,0)))+IF(U32>[1]!NILOWLIMA,-[1]!NICREBATEA,0) -> 431.9 | AI32: =IF($Q32="N",IF(V32>[1]!NIUPPLIMA,((V32-[1]!NIUPPLIMA)*[1]!NIUPPERA)+([1]!NIUPPLIMA-[1]!NILOWLIMA)*[1]!NILOWA,IF(V32>[1]!NILOWLIMA,(V32-[1]!NILOWLIMA)*[1]!NILOWA,0)))+IF($Q32="Y",IF(V32>[1]!NIUPPLIMA,((V32-[1]!NIUPPLIMA)*[1]!NIUPPERA)+(([1]!NIUPPLIMA-[1]!NILOWLIMA)*[1]!NISUPNA),IF(V32>[1]!NILOWLIMA,(V32-[1]!NILOWLIMA)*[1]!NISUPNA,0)))+IF(V32>[1]!NILOWLIMA,-[1]!NICREBATEA,0) -> 431.9 | AJ32: =IF($Q32="N",IF(W32>[1]!NIUPPLIMA,((W32-[1]!NIUPPLIMA)*[1]!NIUPPERA)+([1]!NIUPPLIMA-[1]!NILOWLIMA)*[1]!NILOWA,IF(W32>[1]!NILOWLIMA,(W32-[1]!NILOWLIMA)*[1]!NILOWA,0)))+IF($Q32="Y",IF(W32>[1]!NIUPPLIMA,((W32-[1]!NIUPPLIMA)*[1]!NIUPPERA)+(([1]!NIUPPLIMA-[1]!NILOWLIMA)*[1]!NISUPNA),IF(W32>[1]!NILOWLIMA,(W32-[1]!NILOWLIMA)*[1]!NISUPNA,0)))+IF(W32>[1]!NILOWLIMA,-[1]!NICREBATEA,0) -> 431.9 | AK32: =IF($Q32="N",IF(X32>[1]!NIUPPLIMA,((X32-[1]!NIUPPLIMA)*[1]!NIUPPERA)+([1]!NIUPPLIMA-[1]!NILOWLIMA)*[1]!NILOWA,IF(X32>[1]!NILOWLIMA,(X32-[1]!NILOWLIMA)*[1]!NILOWA,0)))+IF($Q32="Y",IF(X32>[1]!NIUPPLIMA,((X32-[1]!NIUPPLIMA)*[1]!NIUPPERA)+(([1]!NIUPPLIMA-[1]!NILOWLIMA)*[1]!NISUPNA),IF(X32>[1]!NILOWLIMA,(X32-[1]!NILOWLIMA)*[1]!NISUPNA,0)))+IF(X32>[1]!NILOWLIMA,-[1]!NICREBATEA,0) -> 431.9 | AL32: =IF($Q32="N",IF(Y32>[1]!NIUPPLIMA,((Y32-[1]!NIUPPLIMA)*[1]!NIUPPERA)+([1]!NIUPPLIMA-[1]!NILOWLIMA)*[1]!NILOWA,IF(Y32>[1]!NILOWLIMA,(Y32-[1]!NILOWLIMA)*[1]!NILOWA,0)))+IF($Q32="Y",IF(Y32>[1]!NIUPPLIMA,((Y32-[1]!NIUPPLIMA)*[1]!NIUPPERA)+(([1]!NIUPPLIMA-[1]!NILOWLIMA)*[1]!NISUPNA),IF(Y32>[1]!NILOWLIMA,(Y32-[1]!NILOWLIMA)*[1]!NISUPNA,0)))+IF(Y32>[1]!NILOWLIMA,-[1]!NICREBATEA,0) -> 431.9 | AM32: =IF($Q32="N",IF(Z32>[1]!NIUPPLIMA,((Z32-[1]!NIUPPLIMA)*[1]!NIUPPERA)+([1]!NIUPPLIMA-[1]!NILOWLIMA)*[1]!NILOWA,IF(Z32>[1]!NILOWLIMA,(Z32-[1]!NILOWLIMA)*[1]!NILOWA,0)))+IF($Q32="Y",IF(Z32>[1]!NIUPPLIMA,((Z32-[1]!NIUPPLIMA)*[1]!NIUPPERA)+(([1]!NIUPPLIMA-[1]!NILOWLIMA)*[1]!NISUPNA),IF(Z32>[1]!NILOWLIMA,(Z32-[1]!NILOWLIMA)*[1]!NISUPNA,0)))+IF(Z32>[1]!NILOWLIMA,-[1]!NICREBATEA,0) -> 511.92675 | AN32: =IF($Q32="N",IF(AA32>[1]!NIUPPLIMA,((AA32-[1]!NIUPPLIMA)*[1]!NIUPPERA)+([1]!NIUPPLIMA-[1]!NILOWLIMA)*[1]!NILOWA,IF(AA32>[1]!NILOWLIMA,(AA32-[1]!NILOWLIMA)*[1]!NILOWA,0)))+IF($Q32="Y",IF(AA32>[1]!NIUPPLIMA,((AA32-[1]!NIUPPLIMA)*[1]!NIUPPERA)+(([1]!NIUPPLIMA-[1]!NILOWLIMA)*[1]!NISUPNA),IF(AA32>[1]!NILOWLIMA,(AA32-[1]!NILOWLIMA)*[1]!NISUPNA,0)))+IF(AA32>[1]!NILOWLIMA,-[1]!NICREBATEA,0) -> 511.92675 | AO32: =IF($Q32="N",IF(AB32>[1]!NIUPPLIMA,((AB32-[1]!NIUPPLIMA)*[1]!NIUPPERA)+([1]!NIUPPLIMA-[1]!NILOWLIMA)*[1]!NILOWA,IF(AB32>[1]!NILOWLIMA,(AB32-[1]!NILOWLIMA)*[1]!NILOWA,0)))+IF($Q32="Y",IF(AB32>[1]!NIUPPLIMA,((AB32-[1]!NIUPPLIMA)*[1]!NIUPPERA)+(([1]!NIUPPLIMA-[1]!NILOWLIMA)*[1]!NISUPNA),IF(AB32>[1]!NILOWLIMA,(AB32-[1]!NILOWLIMA)*[1]!NISUPNA,0)))+IF(AB32>[1]!NILOWLIMA,-[1]!NICREBATEA,0) -> 511.92675 | AP32: =IF($Q32="N",IF(AC32>[1]!NIUPPLIMA,((AC32-[1]!NIUPPLIMA)*[1]!NIUPPERA)+([1]!NIUPPLIMA-[1]!NILOWLIMA)*[1]!NILOWA,IF(AC32>[1]!NILOWLIMA,(AC32-[1]!NILOWLIMA)*[1]!NILOWA,0)))+IF($Q32="Y",IF(AC32>[1]!NIUPPLIMA,((AC32-[1]!NIUPPLIMA)*[1]!NIUPPERA)+(([1]!NIUPPLIMA-[1]!NILOWLIMA)*[1]!NISUPNA),IF(AC32>[1]!NILOWLIMA,(AC32-[1]!NILOWLIMA)*[1]!NISUPNA,0)))+IF(AC32>[1]!NILOWLIMA,-[1]!NICREBATEA,0) -> 511.92675 | AQ32: =IF($Q32="N",IF(AD32>[1]!NIUPPLIMA,((AD32-[1]!NIUPPLIMA)*[1]!NIUPPERA)+([1]!NIUPPLIMA-[1]!NILOWLIMA)*[1]!NILOWA,IF(AD32>[1]!NILOWLIMA,(AD32-[1]!NILOWLIMA)*[1]!NILOWA,0)))+IF($Q32="Y",IF(AD32>[1]!NIUPPLIMA,((AD32-[1]!NIUPPLIMA)*[1]!NIUPPERA)+(([1]!NIUPPLIMA-[1]!NILOWLIMA)*[1]!NISUPNA),IF(AD32>[1]!NILOWLIMA,(AD32-[1]!NILOWLIMA)*[1]!NISUPNA,0)))+IF(AD32>[1]!NILOWLIMA,-[1]!NICREBATEA,0) -> 511.92675 | AR32: =IF($Q32="N",IF(AE32>[1]!NIUPPLIMA,((AE32-[1]!NIUPPLIMA)*[1]!NIUPPERA)+([1]!NIUPPLIMA-[1]!NILOWLIMA)*[1]!NILOWA,IF(AE32>[1]!NILOWLIMA,(AE32-[1]!NILOWLIMA)*[1]!NILOWA,0)))+IF($Q32="Y",IF(AE32>[1]!NIUPPLIMA,((AE32-[1]!NIUPPLIMA)*[1]!NIUPPERA)+(([1]!NIUPPLIMA-[1]!NILOWLIMA)*[1]!NISUPNA),IF(AE32>[1]!NILOWLIMA,(AE32-[1]!NILOWLIMA)*[1]!NISUPNA,0)))+IF(AE32>[1]!NILOWLIMA,-[1]!NICREBATEA,0) -> 511.92675 | AS32: =IF($Q32="N",IF(AF32>[1]!NIUPPLIMA,((AF32-[1]!NIUPPLIMA)*[1]!NIUPPERA)+([1]!NIUPPLIMA-[1]!NILOWLIMA)*[1]!NILOWA,IF(AF32>[1]!NILOWLIMA,(AF32-[1]!NILOWLIMA)*[1]!NILOWA,0)))+IF($Q32="Y",IF(AF32>[1]!NIUPPLIMA,((AF32-[1]!NIUPPLIMA)*[1]!NIUPPERA)+(([1]!NIUPPLIMA-[1]!NILOWLIMA)*[1]!NISUPNA),IF(AF32>[1]!NILOWLIMA,(AF32-[1]!NILOWLIMA)*[1]!NISUPNA,0)))+IF(AF32>[1]!NILOWLIMA,-[1]!NICREBATEA,0) -> 511.92675 | AT32: 5742.98725 | AU32: 12415.73882 | AV32: 61449.30774 | AW32: 6 | AX32: 0 | AY32: =IF($E32="LEADER",VLOOKUP(AW32,[1]!LEADERSHIP,5),IF($E32="TEACHER",VLOOKUP(AW32,[1]!TEACHER,5),IF($E32="ADVANCED",VLOOKUP($AW32,[1]!ADVANCED_SKILLS_TEACHERS,5),IF($E32="UNQUAL",VLOOKUP($AW32,[1]!UNQUALIFIED_TEACHER,5),0))))*D32*(1+BA$4)*(1+BA$5)+(AX32/AZ32) -> 3932.0184 | AZ32: 12 | BA32: 46673.3538 | BD32: =(IF($Q32="N",IF(AY32>[1]!NIUPPLIMB,((AY32-[1]!NIUPPLIMB)*[1]!NIUPPERB)+([1]!NIUPPLIMB-[1]!NILOWLIMB)*[1]!NILOWB,IF(AY32>[1]!NILOWLIMB,(AY32-[1]!NILOWLIMB)*[1]!NILOWB,0)))+IF($Q32="Y",IF(AY32>[1]!NIUPPLIMB,((AY32-[1]!NIUPPLIMB)*[1]!NIUPPERB)+(([1]!NIUPPLIMB-[1]!NILOWLIMB)*[1]!NISUPNB),IF(AY32>[1]!NILOWLIMB,(AY32-[1]!NILOWLIMB)*[1]!NISUPNB,0))))*((NumberOfDaysWorked($F32,$G32,BD$1,BF$1)*5)+(NumberOfDaysWorked($F32,$G32,BD$1,BF$1)*7)) -> 6327.03312 | BE32: 13385.91787 | BF32: 66386.30479 | BG32: 6 | BH32: 0 | BI32: =IF($E32="LEADER",VLOOKUP(BG32,[1]!LEADERSHIP,5),IF($E32="TEACHER",VLOOKUP(BG32,[1]!TEACHER,5),IF($E32="ADVANCED",VLOOKUP($AW32,[1]!ADVANCED_SKILLS_TEACHERS,5),IF($E32="UNQUAL",VLOOKUP($AW32,[1]!UNQUALIFIED_TEACHER,5),0))))*D32*(1+BA$4)*(1+BA$5)*(1+BK$4)*(1+BK$5)+(BH32/BJ32) -> 4010.658768 | BJ32: 12 | BK32: 47734.70338 | BN32: =(IF($Q32="N",IF(BI32>[1]!NIUPPLIMC,((BI32-[1]!NIUPPLIMC)*[1]!NIUPPERC)+([1]!NIUPPLIMC-[1]!NILOWLIMC)*[1]!NILOWC,IF(BI32>[1]!NILOWLIMC,(BI32-[1]!NILOWLIMC)*[1]!NILOWC,0)))+IF($Q32="Y",IF(BI32>[1]!NIUPPLIMC,((BI32-[1]!NIUPPLIMC)*[1]!NIUPPERC)+(([1]!NIUPPLIMC-[1]!NILOWLIMC)*[1]!NISUPNC),IF(BI32>[1]!NILOWLIMC,(BI32-[1]!NILOWLIMC)*[1]!NISUPNC,0))))*((NumberOfDaysWorked($F32,$G32,BN$1,BP$1)*5)+(NumberOfDaysWorked($F32,$G32,BN$1,BP$1)*7)) -> 6468.585782 | BO32: 13690.31293 | BP32: 67893.60209
A33: x | B33: SNELL ELIZABETH (SENCO LEAD) | C33: A01001 | D33: 0.8 | E33: TEACHER | F33: 2026-04-01 | G33: 2029-03-31 | H33: U3 | I33: U3 | J33: 0 | K33: =VLOOKUP(J33,[1]!MANAGEMENT,2)*D33 -> 0 | L33: 0 | M33: =VLOOKUP(L33,[1]!SEN_ALLOWANCES,2)*D33 -> 0 | N33: 0 | O33: 0 | P33: 2821 | Q33: Y | R33: =IF($E33="LEADER",VLOOKUP(H33,[1]PAYDATA!$A$4:$C$54,3),IF($E33="TEACHER",VLOOKUP(H33,[1]PAYDATA!$A$70:$C$80,3),IF($E33="ADVANCED",VLOOKUP(H33,[1]PAYDATA!$A$141:$C$159,3),IF($E33="UNQUAL",VLOOKUP(H33,[1]PAYDATA!$A$57:$C$63,3),0))))*$D33+($K33/T33)+($M33/T33)+($O33/T33)+($P33/T33) -> 3638.283333 | S33: =IF($E33="LEADER",VLOOKUP(I33,[1]!LEADERSHIP,5),IF($E33="TEACHER",VLOOKUP(I33,[1]!TEACHER,5),IF($E33="ADVANCED",VLOOKUP(I33,[1]PAYDATA!$A$141:$E$159,5),IF($E33="UNQUAL",VLOOKUP(I33,[1]!UNQUALIFIED_TEACHER,5),0))))*$D33+($K33/T33)+($M33/T33)+($O33/T33)+($P33/T33) -> 3706.347333 | T33: 12 | U33: 3638.283333 | V33: 3638.283333 | W33: 3638.283333 | X33: 3638.283333 | Y33: 3638.283333 | Z33: 3706.347333 | AA33: 3706.347333 | AB33: 3706.347333 | AC33: 3706.347333 | AD33: 3706.347333 | AE33: 3706.347333 | AF33: 3706.347333 | AG33: 44135.848 | AH33: =IF($Q33="N",IF(U33>[1]!NIUPPLIMA,((U33-[1]!NIUPPLIMA)*[1]!NIUPPERA)+([1]!NIUPPLIMA-[1]!NILOWLIMA)*[1]!NILOWA,IF(U33>[1]!NILOWLIMA,(U33-[1]!NILOWLIMA)*[1]!NILOWA,0)))+IF($Q33="Y",IF(U33>[1]!NIUPPLIMA,((U33-[1]!NIUPPLIMA)*[1]!NIUPPERA)+(([1]!NIUPPLIMA-[1]!NILOWLIMA)*[1]!NISUPNA),IF(U33>[1]!NILOWLIMA,(U33-[1]!NILOWLIMA)*[1]!NISUPNA,0)))+IF(U33>[1]!NILOWLIMA,-[1]!NICREBATEA,0) -> 483.1925 | AI33: =IF($Q33="N",IF(V33>[1]!NIUPPLIMA,((V33-[1]!NIUPPLIMA)*[1]!NIUPPERA)+([1]!NIUPPLIMA-[1]!NILOWLIMA)*[1]!NILOWA,IF(V33>[1]!NILOWLIMA,(V33-[1]!NILOWLIMA)*[1]!NILOWA,0)))+IF($Q33="Y",IF(V33>[1]!NIUPPLIMA,((V33-[1]!NIUPPLIMA)*[1]!NIUPPERA)+(([1]!NIUPPLIMA-[1]!NILOWLIMA)*[1]!NISUPNA),IF(V33>[1]!NILOWLIMA,(V33-[1]!NILOWLIMA)*[1]!NISUPNA,0)))+IF(V33>[1]!NILOWLIMA,-[1]!NICREBATEA,0) -> 483.1925 | AJ33: =IF($Q33="N",IF(W33>[1]!NIUPPLIMA,((W33-[1]!NIUPPLIMA)*[1]!NIUPPERA)+([1]!NIUPPLIMA-[1]!NILOWLIMA)*[1]!NILOWA,IF(W33>[1]!NILOWLIMA,(W33-[1]!NILOWLIMA)*[1]!NILOWA,0)))+IF($Q33="Y",IF(W33>[1]!NIUPPLIMA,((W33-[1]!NIUPPLIMA)*[1]!NIUPPERA)+(([1]!NIUPPLIMA-[1]!NILOWLIMA)*[1]!NISUPNA),IF(W33>[1]!NILOWLIMA,(W33-[1]!NILOWLIMA)*[1]!NISUPNA,0)))+IF(W33>[1]!NILOWLIMA,-[1]!NICREBATEA,0) -> 483.1925 | AK33: =IF($Q33="N",IF(X33>[1]!NIUPPLIMA,((X33-[1]!NIUPPLIMA)*[1]!NIUPPERA)+([1]!NIUPPLIMA-[1]!NILOWLIMA)*[1]!NILOWA,IF(X33>[1]!NILOWLIMA,(X33-[1]!NILOWLIMA)*[1]!NILOWA,0)))+IF($Q33="Y",IF(X33>[1]!NIUPPLIMA,((X33-[1]!NIUPPLIMA)*[1]!NIUPPERA)+(([1]!NIUPPLIMA-[1]!NILOWLIMA)*[1]!NISUPNA),IF(X33>[1]!NILOWLIMA,(X33-[1]!NILOWLIMA)*[1]!NISUPNA,0)))+IF(X33>[1]!NILOWLIMA,-[1]!NICREBATEA,0) -> 483.1925 | AL33: =IF($Q33="N",IF(Y33>[1]!NIUPPLIMA,((Y33-[1]!NIUPPLIMA)*[1]!NIUPPERA)+([1]!NIUPPLIMA-[1]!NILOWLIMA)*[1]!NILOWA,IF(Y33>[1]!NILOWLIMA,(Y33-[1]!NILOWLIMA)*[1]!NILOWA,0)))+IF($Q33="Y",IF(Y33>[1]!NIUPPLIMA,((Y33-[1]!NIUPPLIMA)*[1]!NIUPPERA)+(([1]!NIUPPLIMA-[1]!NILOWLIMA)*[1]!NISUPNA),IF(Y33>[1]!NILOWLIMA,(Y33-[1]!NILOWLIMA)*[1]!NISUPNA,0)))+IF(Y33>[1]!NILOWLIMA,-[1]!NICREBATEA,0) -> 483.1925 | AM33: =IF($Q33="N",IF(Z33>[1]!NIUPPLIMA,((Z33-[1]!NIUPPLIMA)*[1]!NIUPPERA)+([1]!NIUPPLIMA-[1]!NILOWLIMA)*[1]!NILOWA,IF(Z33>[1]!NILOWLIMA,(Z33-[1]!NILOWLIMA)*[1]!NILOWA,0)))+IF($Q33="Y",IF(Z33>[1]!NIUPPLIMA,((Z33-[1]!NIUPPLIMA)*[1]!NIUPPERA)+(([1]!NIUPPLIMA-[1]!NILOWLIMA)*[1]!NISUPNA),IF(Z33>[1]!NILOWLIMA,(Z33-[1]!NILOWLIMA)*[1]!NISUPNA,0)))+IF(Z33>[1]!NILOWLIMA,-[1]!NICREBATEA,0) -> 493.4021 | AN33: =IF($Q33="N",IF(AA33>[1]!NIUPPLIMA,((AA33-[1]!NIUPPLIMA)*[1]!NIUPPERA)+([1]!NIUPPLIMA-[1]!NILOWLIMA)*[1]!NILOWA,IF(AA33>[1]!NILOWLIMA,(AA33-[1]!NILOWLIMA)*[1]!NILOWA,0)))+IF($Q33="Y",IF(AA33>[1]!NIUPPLIMA,((AA33-[1]!NIUPPLIMA)*[1]!NIUPPERA)+(([1]!NIUPPLIMA-[1]!NILOWLIMA)*[1]!NISUPNA),IF(AA33>[1]!NILOWLIMA,(AA33-[1]!NILOWLIMA)*[1]!NISUPNA,0)))+IF(AA33>[1]!NILOWLIMA,-[1]!NICREBATEA,0) -> 493.4021 | AO33: =IF($Q33="N",IF(AB33>[1]!NIUPPLIMA,((AB33-[1]!NIUPPLIMA)*[1]!NIUPPERA)+([1]!NIUPPLIMA-[1]!NILOWLIMA)*[1]!NILOWA,IF(AB33>[1]!NILOWLIMA,(AB33-[1]!NILOWLIMA)*[1]!NILOWA,0)))+IF($Q33="Y",IF(AB33>[1]!NIUPPLIMA,((AB33-[1]!NIUPPLIMA)*[1]!NIUPPERA)+(([1]!NIUPPLIMA-[1]!NILOWLIMA)*[1]!NISUPNA),IF(AB33>[1]!NILOWLIMA,(AB33-[1]!NILOWLIMA)*[1]!NISUPNA,0)))+IF(AB33>[1]!NILOWLIMA,-[1]!NICREBATEA,0) -> 493.4021 | AP33: =IF($Q33="N",IF(AC33>[1]!NIUPPLIMA,((AC33-[1]!NIUPPLIMA)*[1]!NIUPPERA)+([1]!NIUPPLIMA-[1]!NILOWLIMA)*[1]!NILOWA,IF(AC33>[1]!NILOWLIMA,(AC33-[1]!NILOWLIMA)*[1]!NILOWA,0)))+IF($Q33="Y",IF(AC33>[1]!NIUPPLIMA,((AC33-[1]!NIUPPLIMA)*[1]!NIUPPERA)+(([1]!NIUPPLIMA-[1]!NILOWLIMA)*[1]!NISUPNA),IF(AC33>[1]!NILOWLIMA,(AC33-[1]!NILOWLIMA)*[1]!NISUPNA,0)))+IF(AC33>[1]!NILOWLIMA,-[1]!NICREBATEA,0) -> 493.4021 | AQ33: =IF($Q33="N",IF(AD33>[1]!NIUPPLIMA,((AD33-[1]!NIUPPLIMA)*[1]!NIUPPERA)+([1]!NIUPPLIMA-[1]!NILOWLIMA)*[1]!NILOWA,IF(AD33>[1]!NILOWLIMA,(AD33-[1]!NILOWLIMA)*[1]!NILOWA,0)))+IF($Q33="Y",IF(AD33>[1]!NIUPPLIMA,((AD33-[1]!NIUPPLIMA)*[1]!NIUPPERA)+(([1]!NIUPPLIMA-[1]!NILOWLIMA)*[1]!NISUPNA),IF(AD33>[1]!NILOWLIMA,(AD33-[1]!NILOWLIMA)*[1]!NISUPNA,0)))+IF(AD33>[1]!NILOWLIMA,-[1]!NICREBATEA,0) -> 493.4021 | AR33: =IF($Q33="N",IF(AE33>[1]!NIUPPLIMA,((AE33-[1]!NIUPPLIMA)*[1]!NIUPPERA)+([1]!NIUPPLIMA-[1]!NILOWLIMA)*[1]!NILOWA,IF(AE33>[1]!NILOWLIMA,(AE33-[1]!NILOWLIMA)*[1]!NILOWA,0)))+IF($Q33="Y",IF(AE33>[1]!NIUPPLIMA,((AE33-[1]!NIUPPLIMA)*[1]!NIUPPERA)+(([1]!NIUPPLIMA-[1]!NILOWLIMA)*[1]!NISUPNA),IF(AE33>[1]!NILOWLIMA,(AE33-[1]!NILOWLIMA)*[1]!NISUPNA,0)))+IF(AE33>[1]!NILOWLIMA,-[1]!NICREBATEA,0) -> 493.4021 | AS33: =IF($Q33="N",IF(AF33>[1]!NIUPPLIMA,((AF33-[1]!NIUPPLIMA)*[1]!NIUPPERA)+([1]!NIUPPLIMA-[1]!NILOWLIMA)*[1]!NILOWA,IF(AF33>[1]!NILOWLIMA,(AF33-[1]!NILOWLIMA)*[1]!NILOWA,0)))+IF($Q33="Y",IF(AF33>[1]!NIUPPLIMA,((AF33-[1]!NIUPPLIMA)*[1]!NIUPPERA)+(([1]!NIUPPLIMA-[1]!NILOWLIMA)*[1]!NISUPNA),IF(AF33>[1]!NILOWLIMA,(AF33-[1]!NILOWLIMA)*[1]!NISUPNA,0)))+IF(AF33>[1]!NILOWLIMA,-[1]!NICREBATEA,0) -> 493.4021 | AT33: 5869.7772 | AU33: 12658.16121 | AV33: 62663.78641 | AW33: U3 | AX33: 2821 | AY33: =IF($E33="LEADER",VLOOKUP(AW33,[1]!LEADERSHIP,5),IF($E33="TEACHER",VLOOKUP(AW33,[1]!TEACHER,5),IF($E33="ADVANCED",VLOOKUP($AW33,[1]!ADVANCED_SKILLS_TEACHERS,5),IF($E33="UNQUAL",VLOOKUP($AW33,[1]!UNQUALIFIED_TEACHER,5),0))))*D33*(1+BA$4)*(1+BA$5)+(AX33/AZ33) -> 3775.772613 | AZ33: 12 | BA33: 44962.14496 | BD33: =(IF($Q33="N",IF(AY33>[1]!NIUPPLIMB,((AY33-[1]!NIUPPLIMB)*[1]!NIUPPERB)+([1]!NIUPPLIMB-[1]!NILOWLIMB)*[1]!NILOWB,IF(AY33>[1]!NILOWLIMB,(AY33-[1]!NILOWLIMB)*[1]!NILOWB,0)))+IF($Q33="Y",IF(AY33>[1]!NIUPPLIMB,((AY33-[1]!NIUPPLIMB)*[1]!NIUPPERB)+(([1]!NIUPPLIMB-[1]!NILOWLIMB)*[1]!NISUPNB),IF(AY33>[1]!NILOWLIMB,(AY33-[1]!NILOWLIMB)*[1]!NISUPNB,0))))*((NumberOfDaysWorked($F33,$G33,BD$1,BF$1)*5)+(NumberOfDaysWorked($F33,$G33,BD$1,BF$1)*7)) -> 6045.790704 | BE33: 12895.14317 | BF33: 63903.07884 | BG33: U3 | BH33: 2821 | BI33: =IF($E33="LEADER",VLOOKUP(BG33,[1]!LEADERSHIP,5),IF($E33="TEACHER",VLOOKUP(BG33,[1]!TEACHER,5),IF($E33="ADVANCED",VLOOKUP($AW33,[1]!ADVANCED_SKILLS_TEACHERS,5),IF($E33="UNQUAL",VLOOKUP($AW33,[1]!UNQUALIFIED_TEACHER,5),0))))*D33*(1+BA$4)*(1+BA$5)*(1+BK$4)*(1+BK$5)+(BH33/BJ33) -> 3846.586399 | BJ33: 12 | BK33: 45804.96786 | BN33: =(IF($Q33="N",IF(BI33>[1]!NIUPPLIMC,((BI33-[1]!NIUPPLIMC)*[1]!NIUPPERC)+([1]!NIUPPLIMC-[1]!NILOWLIMC)*[1]!NILOWC,IF(BI33>[1]!NILOWLIMC,(BI33-[1]!NILOWLIMC)*[1]!NILOWC,0)))+IF($Q33="Y",IF(BI33>[1]!NIUPPLIMC,((BI33-[1]!NIUPPLIMC)*[1]!NIUPPERC)+(([1]!NIUPPLIMC-[1]!NILOWLIMC)*[1]!NISUPNC),IF(BI33>[1]!NILOWLIMC,(BI33-[1]!NILOWLIMC)*[1]!NISUPNC,0))))*((NumberOfDaysWorked($F33,$G33,BN$1,BP$1)*5)+(NumberOfDaysWorked($F33,$G33,BN$1,BP$1)*7)) -> 6173.255518 | BO33: 13136.86478 | BP33: 65115.08816
A34: x | B34: SURFLEET SARAH (MATERNITY) | C34: A01001 | D34: 0 | E34: TEACHER | F34: 2026-04-01 | G34: 2026-07-20 | H34: U1 | I34: U1 | J34: 0 | K34: =VLOOKUP(J34,[1]!MANAGEMENT,2)*D34 -> 0 | L34: 0 | M34: =VLOOKUP(L34,[1]!SEN_ALLOWANCES,2)*D34 -> 0 | N34: 0 | O34: 0 | P34: 0 | Q34: Y | R34: =IF($E34="LEADER",VLOOKUP(H34,[1]PAYDATA!$A$4:$C$54,3),IF($E34="TEACHER",VLOOKUP(H34,[1]PAYDATA!$A$70:$C$80,3),IF($E34="ADVANCED",VLOOKUP(H34,[1]PAYDATA!$A$141:$C$159,3),IF($E34="UNQUAL",VLOOKUP(H34,[1]PAYDATA!$A$57:$C$63,3),0))))*$D34+($K34/T34)+($M34/T34)+($O34/T34)+($P34/T34) -> 0 | S34: =IF($E34="LEADER",VLOOKUP(I34,[1]!LEADERSHIP,5),IF($E34="TEACHER",VLOOKUP(I34,[1]!TEACHER,5),IF($E34="ADVANCED",VLOOKUP(I34,[1]PAYDATA!$A$141:$E$159,5),IF($E34="UNQUAL",VLOOKUP(I34,[1]!UNQUALIFIED_TEACHER,5),0))))*$D34+($K34/T34)+($M34/T34)+($O34/T34)+($P34/T34) -> 0 | T34: 12 | U34: =NumberOfDaysWorked($F34,$G34,U$3,U$4)*$R34 -> 0 | V34: 0 | W34: 0 | X34: 0 | Y34: 0 | Z34: 0 | AA34: 0 | AB34: 0 | AC34: 0 | AD34: 0 | AE34: 0 | AF34: 0 | AG34: 1000 | AH34: =IF($Q34="N",IF(U34>[1]!NIUPPLIMA,((U34-[1]!NIUPPLIMA)*[1]!NIUPPERA)+([1]!NIUPPLIMA-[1]!NILOWLIMA)*[1]!NILOWA,IF(U34>[1]!NILOWLIMA,(U34-[1]!NILOWLIMA)*[1]!NILOWA,0)))+IF($Q34="Y",IF(U34>[1]!NIUPPLIMA,((U34-[1]!NIUPPLIMA)*[1]!NIUPPERA)+(([1]!NIUPPLIMA-[1]!NILOWLIMA)*[1]!NISUPNA),IF(U34>[1]!NILOWLIMA,(U34-[1]!NILOWLIMA)*[1]!NISUPNA,0)))+IF(U34>[1]!NILOWLIMA,-[1]!NICREBATEA,0) -> 0 | AI34: =IF($Q34="N",IF(V34>[1]!NIUPPLIMA,((V34-[1]!NIUPPLIMA)*[1]!NIUPPERA)+([1]!NIUPPLIMA-[1]!NILOWLIMA)*[1]!NILOWA,IF(V34>[1]!NILOWLIMA,(V34-[1]!NILOWLIMA)*[1]!NILOWA,0)))+IF($Q34="Y",IF(V34>[1]!NIUPPLIMA,((V34-[1]!NIUPPLIMA)*[1]!NIUPPERA)+(([1]!NIUPPLIMA-[1]!NILOWLIMA)*[1]!NISUPNA),IF(V34>[1]!NILOWLIMA,(V34-[1]!NILOWLIMA)*[1]!NISUPNA,0)))+IF(V34>[1]!NILOWLIMA,-[1]!NICREBATEA,0) -> 0 | AJ34: =IF($Q34="N",IF(W34>[1]!NIUPPLIMA,((W34-[1]!NIUPPLIMA)*[1]!NIUPPERA)+([1]!NIUPPLIMA-[1]!NILOWLIMA)*[1]!NILOWA,IF(W34>[1]!NILOWLIMA,(W34-[1]!NILOWLIMA)*[1]!NILOWA,0)))+IF($Q34="Y",IF(W34>[1]!NIUPPLIMA,((W34-[1]!NIUPPLIMA)*[1]!NIUPPERA)+(([1]!NIUPPLIMA-[1]!NILOWLIMA)*[1]!NISUPNA),IF(W34>[1]!NILOWLIMA,(W34-[1]!NILOWLIMA)*[1]!NISUPNA,0)))+IF(W34>[1]!NILOWLIMA,-[1]!NICREBATEA,0) -> 0 | AK34: =IF($Q34="N",IF(X34>[1]!NIUPPLIMA,((X34-[1]!NIUPPLIMA)*[1]!NIUPPERA)+([1]!NIUPPLIMA-[1]!NILOWLIMA)*[1]!NILOWA,IF(X34>[1]!NILOWLIMA,(X34-[1]!NILOWLIMA)*[1]!NILOWA,0)))+IF($Q34="Y",IF(X34>[1]!NIUPPLIMA,((X34-[1]!NIUPPLIMA)*[1]!NIUPPERA)+(([1]!NIUPPLIMA-[1]!NILOWLIMA)*[1]!NISUPNA),IF(X34>[1]!NILOWLIMA,(X34-[1]!NILOWLIMA)*[1]!NISUPNA,0)))+IF(X34>[1]!NILOWLIMA,-[1]!NICREBATEA,0) -> 0 | AL34: =IF($Q34="N",IF(Y34>[1]!NIUPPLIMA,((Y34-[1]!NIUPPLIMA)*[1]!NIUPPERA)+([1]!NIUPPLIMA-[1]!NILOWLIMA)*[1]!NILOWA,IF(Y34>[1]!NILOWLIMA,(Y34-[1]!NILOWLIMA)*[1]!NILOWA,0)))+IF($Q34="Y",IF(Y34>[1]!NIUPPLIMA,((Y34-[1]!NIUPPLIMA)*[1]!NIUPPERA)+(([1]!NIUPPLIMA-[1]!NILOWLIMA)*[1]!NISUPNA),IF(Y34>[1]!NILOWLIMA,(Y34-[1]!NILOWLIMA)*[1]!NISUPNA,0)))+IF(Y34>[1]!NILOWLIMA,-[1]!NICREBATEA,0) -> 0 | AM34: =IF($Q34="N",IF(Z34>[1]!NIUPPLIMA,((Z34-[1]!NIUPPLIMA)*[1]!NIUPPERA)+([1]!NIUPPLIMA-[1]!NILOWLIMA)*[1]!NILOWA,IF(Z34>[1]!NILOWLIMA,(Z34-[1]!NILOWLIMA)*[1]!NILOWA,0)))+IF($Q34="Y",IF(Z34>[1]!NIUPPLIMA,((Z34-[1]!NIUPPLIMA)*[1]!NIUPPERA)+(([1]!NIUPPLIMA-[1]!NILOWLIMA)*[1]!NISUPNA),IF(Z34>[1]!NILOWLIMA,(Z34-[1]!NILOWLIMA)*[1]!NISUPNA,0)))+IF(Z34>[1]!NILOWLIMA,-[1]!NICREBATEA,0) -> 0 | AN34: =IF($Q34="N",IF(AA34>[1]!NIUPPLIMA,((AA34-[1]!NIUPPLIMA)*[1]!NIUPPERA)+([1]!NIUPPLIMA-[1]!NILOWLIMA)*[1]!NILOWA,IF(AA34>[1]!NILOWLIMA,(AA34-[1]!NILOWLIMA)*[1]!NILOWA,0)))+IF($Q34="Y",IF(AA34>[1]!NIUPPLIMA,((AA34-[1]!NIUPPLIMA)*[1]!NIUPPERA)+(([1]!NIUPPLIMA-[1]!NILOWLIMA)*[1]!NISUPNA),IF(AA34>[1]!NILOWLIMA,(AA34-[1]!NILOWLIMA)*[1]!NISUPNA,0)))+IF(AA34>[1]!NILOWLIMA,-[1]!NICREBATEA,0) -> 0 | AO34: =IF($Q34="N",IF(AB34>[1]!NIUPPLIMA,((AB34-[1]!NIUPPLIMA)*[1]!NIUPPERA)+([1]!NIUPPLIMA-[1]!NILOWLIMA)*[1]!NILOWA,IF(AB34>[1]!NILOWLIMA,(AB34-[1]!NILOWLIMA)*[1]!NILOWA,0)))+IF($Q34="Y",IF(AB34>[1]!NIUPPLIMA,((AB34-[1]!NIUPPLIMA)*[1]!NIUPPERA)+(([1]!NIUPPLIMA-[1]!NILOWLIMA)*[1]!NISUPNA),IF(AB34>[1]!NILOWLIMA,(AB34-[1]!NILOWLIMA)*[1]!NISUPNA,0)))+IF(AB34>[1]!NILOWLIMA,-[1]!NICREBATEA,0) -> 0 | AP34: =IF($Q34="N",IF(AC34>[1]!NIUPPLIMA,((AC34-[1]!NIUPPLIMA)*[1]!NIUPPERA)+([1]!NIUPPLIMA-[1]!NILOWLIMA)*[1]!NILOWA,IF(AC34>[1]!NILOWLIMA,(AC34-[1]!NILOWLIMA)*[1]!NILOWA,0)))+IF($Q34="Y",IF(AC34>[1]!NIUPPLIMA,((AC34-[1]!NIUPPLIMA)*[1]!NIUPPERA)+(([1]!NIUPPLIMA-[1]!NILOWLIMA)*[1]!NISUPNA),IF(AC34>[1]!NILOWLIMA,(AC34-[1]!NILOWLIMA)*[1]!NISUPNA,0)))+IF(AC34>[1]!NILOWLIMA,-[1]!NICREBATEA,0) -> 0 | AQ34: =IF($Q34="N",IF(AD34>[1]!NIUPPLIMA,((AD34-[1]!NIUPPLIMA)*[1]!NIUPPERA)+([1]!NIUPPLIMA-[1]!NILOWLIMA)*[1]!NILOWA,IF(AD34>[1]!NILOWLIMA,(AD34-[1]!NILOWLIMA)*[1]!NILOWA,0)))+IF($Q34="Y",IF(AD34>[1]!NIUPPLIMA,((AD34-[1]!NIUPPLIMA)*[1]!NIUPPERA)+(([1]!NIUPPLIMA-[1]!NILOWLIMA)*[1]!NISUPNA),IF(AD34>[1]!NILOWLIMA,(AD34-[1]!NILOWLIMA)*[1]!NISUPNA,0)))+IF(AD34>[1]!NILOWLIMA,-[1]!NICREBATEA,0) -> 0 | AR34: =IF($Q34="N",IF(AE34>[1]!NIUPPLIMA,((AE34-[1]!NIUPPLIMA)*[1]!NIUPPERA)+([1]!NIUPPLIMA-[1]!NILOWLIMA)*[1]!NILOWA,IF(AE34>[1]!NILOWLIMA,(AE34-[1]!NILOWLIMA)*[1]!NILOWA,0)))+IF($Q34="Y",IF(AE34>[1]!NIUPPLIMA,((AE34-[1]!NIUPPLIMA)*[1]!NIUPPERA)+(([1]!NIUPPLIMA-[1]!NILOWLIMA)*[1]!NISUPNA),IF(AE34>[1]!NILOWLIMA,(AE34-[1]!NILOWLIMA)*[1]!NISUPNA,0)))+IF(AE34>[1]!NILOWLIMA,-[1]!NICREBATEA,0) -> 0 | AS34: =IF($Q34="N",IF(AF34>[1]!NIUPPLIMA,((AF34-[1]!NIUPPLIMA)*[1]!NIUPPERA)+([1]!NIUPPLIMA-[1]!NILOWLIMA)*[1]!NILOWA,IF(AF34>[1]!NILOWLIMA,(AF34-[1]!NILOWLIMA)*[1]!NILOWA,0)))+IF($Q34="Y",IF(AF34>[1]!NIUPPLIMA,((AF34-[1]!NIUPPLIMA)*[1]!NIUPPERA)+(([1]!NIUPPLIMA-[1]!NILOWLIMA)*[1]!NISUPNA),IF(AF34>[1]!NILOWLIMA,(AF34-[1]!NILOWLIMA)*[1]!NISUPNA,0)))+IF(AF34>[1]!NILOWLIMA,-[1]!NICREBATEA,0) -> 0 | AT34: =SUM(AH34:AS34) -> 0 | AU34: =IF($Q34="N",0,((AG34*$AU$5))) -> 286.8 | AV34: =AG34+AT34+AU34 -> 1286.8 | AW34: =IF($E34="TEACHER",IF($I34<6,$I34+1,IF(LEFT($I34,1)="U",$I34,6)),IF($E34="LEADER",+I34,IF($E34="UNQUAL",IF($I34<10,$I34+1,10),IF($E34="ADVANCED",IF($I34<27,$I34+1,27))))) -> U1 | AX34: =(K34+M34+O34+P34) -> 0 | AY34: =IF($E34="LEADER",VLOOKUP(AW34,[1]!LEADERSHIP,5),IF($E34="TEACHER",VLOOKUP(AW34,[1]!TEACHER,5),IF($E34="ADVANCED",VLOOKUP($AW34,[1]!ADVANCED_SKILLS_TEACHERS,5),IF($E34="UNQUAL",VLOOKUP($AW34,[1]!UNQUALIFIED_TEACHER,5),0))))*D34*(1+BA$4)*(1+BA$5)+(AX34/AZ34) -> 0 | AZ34: =IF(G34-F34>11.99999,12,MONTH(G34)-MONTH(F34)) -> 12 | BA34: =NumberOfDaysWorked($F34,$G34,BD$1,BF$1)*(($S34*(1+BA$4))*5)+NumberOfDaysWorked($F34,$G34,BD$1,BF$1)*($AY34*7) -> 0 | BD34: =(IF($Q34="N",IF(AY34>[1]!NIUPPLIMB,((AY34-[1]!NIUPPLIMB)*[1]!NIUPPERB)+([1]!NIUPPLIMB-[1]!NILOWLIMB)*[1]!NILOWB,IF(AY34>[1]!NILOWLIMB,(AY34-[1]!NILOWLIMB)*[1]!NILOWB,0)))+IF($Q34="Y",IF(AY34>[1]!NIUPPLIMB,((AY34-[1]!NIUPPLIMB)*[1]!NIUPPERB)+(([1]!NIUPPLIMB-[1]!NILOWLIMB)*[1]!NISUPNB),IF(AY34>[1]!NILOWLIMB,(AY34-[1]!NILOWLIMB)*[1]!NISUPNB,0))))*((NumberOfDaysWorked($F34,$G34,BD$1,BF$1)*5)+(NumberOfDaysWorked($F34,$G34,BD$1,BF$1)*7)) -> 0 | BE34: =IF($Q34="N",0,(BA34*$BE$5)) -> 0 | BF34: =SUM(BA34:BE34) -> 0 | BG34: =IF($E34="TEACHER",IF(AW34<6,AW34+1,IF(LEFT(AW34,1)="U",AW34,6)),IF($E34="LEADER",+I34,IF($E34="UNQUAL",IF(AW34<10,AW34+1,10),IF($E34="ADVANCED",IF(AW34<27,AW34+1,27))))) -> U1 | BH34: =(K34+M34+O34+P34) -> 0 | BI34: =IF($E34="LEADER",VLOOKUP(BG34,[1]!LEADERSHIP,5),IF($E34="TEACHER",VLOOKUP(BG34,[1]!TEACHER,5),IF($E34="ADVANCED",VLOOKUP($AW34,[1]!ADVANCED_SKILLS_TEACHERS,5),IF($E34="UNQUAL",VLOOKUP($AW34,[1]!UNQUALIFIED_TEACHER,5),0))))*D34*(1+BA$4)*(1+BA$5)*(1+BK$4)*(1+BK$5)+(BH34/BJ34) -> 0 | BJ34: =IF(G34-F34>11.99999,12,MONTH(G34)-MONTH(F34)) -> 12 | BK34: =NumberOfDaysWorked($F34,$G34,BN$1,BP$1)*(($AY34*(1+BK$4))*5)+NumberOfDaysWorked($F34,$G34,BN$1,BP$1)*($BI34*7) -> 0 | BN34: =(IF($Q34="N",IF(BI34>[1]!NIUPPLIMC,((BI34-[1]!NIUPPLIMC)*[1]!NIUPPERC)+([1]!NIUPPLIMC-[1]!NILOWLIMC)*[1]!NILOWC,IF(BI34>[1]!NILOWLIMC,(BI34-[1]!NILOWLIMC)*[1]!NILOWC,0)))+IF($Q34="Y",IF(BI34>[1]!NIUPPLIMC,((BI34-[1]!NIUPPLIMC)*[1]!NIUPPERC)+(([1]!NIUPPLIMC-[1]!NILOWLIMC)*[1]!NISUPNC),IF(BI34>[1]!NILOWLIMC,(BI34-[1]!NILOWLIMC)*[1]!NISUPNC,0))))*((NumberOfDaysWorked($F34,$G34,BN$1,BP$1)*5)+(NumberOfDaysWorked($F34,$G34,BN$1,BP$1)*7)) -> 0 | BO34: =IF($Q34="N",0,(BK34*$BO$5)) -> 0 | BP34: =SUM(BK34:BO34) -> 0
A35: x | B35: SURFLEET SARAH | C35: A01001 | D35: 0.8 | E35: TEACHER | F35: 2026-07-21 | G35: 2029-03-31 | H35: U1 | I35: U1 | J35: 0 | K35: =VLOOKUP(J35,[1]!MANAGEMENT,2)*D35 -> 0 | L35: 0 | M35: =VLOOKUP(L35,[1]!SEN_ALLOWANCES,2)*D35 -> 0 | N35: 0 | O35: 0 | P35: 0 | Q35: Y | R35: =IF($E35="LEADER",VLOOKUP(H35,[1]PAYDATA!$A$4:$C$54,3),IF($E35="TEACHER",VLOOKUP(H35,[1]PAYDATA!$A$70:$C$80,3),IF($E35="ADVANCED",VLOOKUP(H35,[1]PAYDATA!$A$141:$C$159,3),IF($E35="UNQUAL",VLOOKUP(H35,[1]PAYDATA!$A$57:$C$63,3),0))))*$D35+($K35/T35)+($M35/T35)+($O35/T35)+($P35/T35) -> 3164.8 | S35: =IF($E35="LEADER",VLOOKUP(I35,[1]!LEADERSHIP,5),IF($E35="TEACHER",VLOOKUP(I35,[1]!TEACHER,5),IF($E35="ADVANCED",VLOOKUP(I35,[1]PAYDATA!$A$141:$E$159,5),IF($E35="UNQUAL",VLOOKUP(I35,[1]!UNQUALIFIED_TEACHER,5),0))))*$D35+($K35/T35)+($M35/T35)+($O35/T35)+($P35/T35) -> 3228.096 | T35: 12 | U35: 0 | V35: 0 | W35: 0 | X35: 1122.993548 | Y35: 3164.8 | Z35: 3228.096 | AA35: 3228.096 | AB35: 3228.096 | AC35: 3228.096 | AD35: 3228.096 | AE35: 3228.096 | AF35: 3228.096 | AG35: =SUM(U35:AF35) -> 26884.46555 | AH35: =IF($Q35="N",IF(U35>[1]!NIUPPLIMA,((U35-[1]!NIUPPLIMA)*[1]!NIUPPERA)+([1]!NIUPPLIMA-[1]!NILOWLIMA)*[1]!NILOWA,IF(U35>[1]!NILOWLIMA,(U35-[1]!NILOWLIMA)*[1]!NILOWA,0)))+IF($Q35="Y",IF(U35>[1]!NIUPPLIMA,((U35-[1]!NIUPPLIMA)*[1]!NIUPPERA)+(([1]!NIUPPLIMA-[1]!NILOWLIMA)*[1]!NISUPNA),IF(U35>[1]!NILOWLIMA,(U35-[1]!NILOWLIMA)*[1]!NISUPNA,0)))+IF(U35>[1]!NILOWLIMA,-[1]!NICREBATEA,0) -> 0 | AI35: =IF($Q35="N",IF(V35>[1]!NIUPPLIMA,((V35-[1]!NIUPPLIMA)*[1]!NIUPPERA)+([1]!NIUPPLIMA-[1]!NILOWLIMA)*[1]!NILOWA,IF(V35>[1]!NILOWLIMA,(V35-[1]!NILOWLIMA)*[1]!NILOWA,0)))+IF($Q35="Y",IF(V35>[1]!NIUPPLIMA,((V35-[1]!NIUPPLIMA)*[1]!NIUPPERA)+(([1]!NIUPPLIMA-[1]!NILOWLIMA)*[1]!NISUPNA),IF(V35>[1]!NILOWLIMA,(V35-[1]!NILOWLIMA)*[1]!NISUPNA,0)))+IF(V35>[1]!NILOWLIMA,-[1]!NICREBATEA,0) -> 0 | AJ35: =IF($Q35="N",IF(W35>[1]!NIUPPLIMA,((W35-[1]!NIUPPLIMA)*[1]!NIUPPERA)+([1]!NIUPPLIMA-[1]!NILOWLIMA)*[1]!NILOWA,IF(W35>[1]!NILOWLIMA,(W35-[1]!NILOWLIMA)*[1]!NILOWA,0)))+IF($Q35="Y",IF(W35>[1]!NIUPPLIMA,((W35-[1]!NIUPPLIMA)*[1]!NIUPPERA)+(([1]!NIUPPLIMA-[1]!NILOWLIMA)*[1]!NISUPNA),IF(W35>[1]!NILOWLIMA,(W35-[1]!NILOWLIMA)*[1]!NISUPNA,0)))+IF(W35>[1]!NILOWLIMA,-[1]!NICREBATEA,0) -> 0 | AK35: =IF($Q35="N",IF(X35>[1]!NIUPPLIMA,((X35-[1]!NIUPPLIMA)*[1]!NIUPPERA)+([1]!NIUPPLIMA-[1]!NILOWLIMA)*[1]!NILOWA,IF(X35>[1]!NILOWLIMA,(X35-[1]!NILOWLIMA)*[1]!NILOWA,0)))+IF($Q35="Y",IF(X35>[1]!NIUPPLIMA,((X35-[1]!NIUPPLIMA)*[1]!NIUPPERA)+(([1]!NIUPPLIMA-[1]!NILOWLIMA)*[1]!NISUPNA),IF(X35>[1]!NILOWLIMA,(X35-[1]!NILOWLIMA)*[1]!NISUPNA,0)))+IF(X35>[1]!NILOWLIMA,-[1]!NICREBATEA,0) -> 105.8990323 | AL35: =IF($Q35="N",IF(Y35>[1]!NIUPPLIMA,((Y35-[1]!NIUPPLIMA)*[1]!NIUPPERA)+([1]!NIUPPLIMA-[1]!NILOWLIMA)*[1]!NILOWA,IF(Y35>[1]!NILOWLIMA,(Y35-[1]!NILOWLIMA)*[1]!NILOWA,0)))+IF($Q35="Y",IF(Y35>[1]!NIUPPLIMA,((Y35-[1]!NIUPPLIMA)*[1]!NIUPPERA)+(([1]!NIUPPLIMA-[1]!NILOWLIMA)*[1]!NISUPNA),IF(Y35>[1]!NILOWLIMA,(Y35-[1]!NILOWLIMA)*[1]!NISUPNA,0)))+IF(Y35>[1]!NILOWLIMA,-[1]!NICREBATEA,0) -> 412.17 | AM35: =IF($Q35="N",IF(Z35>[1]!NIUPPLIMA,((Z35-[1]!NIUPPLIMA)*[1]!NIUPPERA)+([1]!NIUPPLIMA-[1]!NILOWLIMA)*[1]!NILOWA,IF(Z35>[1]!NILOWLIMA,(Z35-[1]!NILOWLIMA)*[1]!NILOWA,0)))+IF($Q35="Y",IF(Z35>[1]!NIUPPLIMA,((Z35-[1]!NIUPPLIMA)*[1]!NIUPPERA)+(([1]!NIUPPLIMA-[1]!NILOWLIMA)*[1]!NISUPNA),IF(Z35>[1]!NILOWLIMA,(Z35-[1]!NILOWLIMA)*[1]!NISUPNA,0)))+IF(Z35>[1]!NILOWLIMA,-[1]!NICREBATEA,0) -> 421.6644 | AN35: =IF($Q35="N",IF(AA35>[1]!NIUPPLIMA,((AA35-[1]!NIUPPLIMA)*[1]!NIUPPERA)+([1]!NIUPPLIMA-[1]!NILOWLIMA)*[1]!NILOWA,IF(AA35>[1]!NILOWLIMA,(AA35-[1]!NILOWLIMA)*[1]!NILOWA,0)))+IF($Q35="Y",IF(AA35>[1]!NIUPPLIMA,((AA35-[1]!NIUPPLIMA)*[1]!NIUPPERA)+(([1]!NIUPPLIMA-[1]!NILOWLIMA)*[1]!NISUPNA),IF(AA35>[1]!NILOWLIMA,(AA35-[1]!NILOWLIMA)*[1]!NISUPNA,0)))+IF(AA35>[1]!NILOWLIMA,-[1]!NICREBATEA,0) -> 421.6644 | AO35: =IF($Q35="N",IF(AB35>[1]!NIUPPLIMA,((AB35-[1]!NIUPPLIMA)*[1]!NIUPPERA)+([1]!NIUPPLIMA-[1]!NILOWLIMA)*[1]!NILOWA,IF(AB35>[1]!NILOWLIMA,(AB35-[1]!NILOWLIMA)*[1]!NILOWA,0)))+IF($Q35="Y",IF(AB35>[1]!NIUPPLIMA,((AB35-[1]!NIUPPLIMA)*[1]!NIUPPERA)+(([1]!NIUPPLIMA-[1]!NILOWLIMA)*[1]!NISUPNA),IF(AB35>[1]!NILOWLIMA,(AB35-[1]!NILOWLIMA)*[1]!NISUPNA,0)))+IF(AB35>[1]!NILOWLIMA,-[1]!NICREBATEA,0) -> 421.6644 | AP35: =IF($Q35="N",IF(AC35>[1]!NIUPPLIMA,((AC35-[1]!NIUPPLIMA)*[1]!NIUPPERA)+([1]!NIUPPLIMA-[1]!NILOWLIMA)*[1]!NILOWA,IF(AC35>[1]!NILOWLIMA,(AC35-[1]!NILOWLIMA)*[1]!NILOWA,0)))+IF($Q35="Y",IF(AC35>[1]!NIUPPLIMA,((AC35-[1]!NIUPPLIMA)*[1]!NIUPPERA)+(([1]!NIUPPLIMA-[1]!NILOWLIMA)*[1]!NISUPNA),IF(AC35>[1]!NILOWLIMA,(AC35-[1]!NILOWLIMA)*[1]!NISUPNA,0)))+IF(AC35>[1]!NILOWLIMA,-[1]!NICREBATEA,0) -> 421.6644 | AQ35: =IF($Q35="N",IF(AD35>[1]!NIUPPLIMA,((AD35-[1]!NIUPPLIMA)*[1]!NIUPPERA)+([1]!NIUPPLIMA-[1]!NILOWLIMA)*[1]!NILOWA,IF(AD35>[1]!NILOWLIMA,(AD35-[1]!NILOWLIMA)*[1]!NILOWA,0)))+IF($Q35="Y",IF(AD35>[1]!NIUPPLIMA,((AD35-[1]!NIUPPLIMA)*[1]!NIUPPERA)+(([1]!NIUPPLIMA-[1]!NILOWLIMA)*[1]!NISUPNA),IF(AD35>[1]!NILOWLIMA,(AD35-[1]!NILOWLIMA)*[1]!NISUPNA,0)))+IF(AD35>[1]!NILOWLIMA,-[1]!NICREBATEA,0) -> 421.6644 | AR35: =IF($Q35="N",IF(AE35>[1]!NIUPPLIMA,((AE35-[1]!NIUPPLIMA)*[1]!NIUPPERA)+([1]!NIUPPLIMA-[1]!NILOWLIMA)*[1]!NILOWA,IF(AE35>[1]!NILOWLIMA,(AE35-[1]!NILOWLIMA)*[1]!NILOWA,0)))+IF($Q35="Y",IF(AE35>[1]!NIUPPLIMA,((AE35-[1]!NIUPPLIMA)*[1]!NIUPPERA)+(([1]!NIUPPLIMA-[1]!NILOWLIMA)*[1]!NISUPNA),IF(AE35>[1]!NILOWLIMA,(AE35-[1]!NILOWLIMA)*[1]!NISUPNA,0)))+IF(AE35>[1]!NILOWLIMA,-[1]!NICREBATEA,0) -> 421.6644 | AS35: =IF($Q35="N",IF(AF35>[1]!NIUPPLIMA,((AF35-[1]!NIUPPLIMA)*[1]!NIUPPERA)+([1]!NIUPPLIMA-[1]!NILOWLIMA)*[1]!NILOWA,IF(AF35>[1]!NILOWLIMA,(AF35-[1]!NILOWLIMA)*[1]!NILOWA,0)))+IF($Q35="Y",IF(AF35>[1]!NIUPPLIMA,((AF35-[1]!NIUPPLIMA)*[1]!NIUPPERA)+(([1]!NIUPPLIMA-[1]!NILOWLIMA)*[1]!NISUPNA),IF(AF35>[1]!NILOWLIMA,(AF35-[1]!NILOWLIMA)*[1]!NISUPNA,0)))+IF(AF35>[1]!NILOWLIMA,-[1]!NICREBATEA,0) -> 421.6644 | AT35: =SUM(AH35:AS35) -> 3469.719832 | AU35: 7710.464719 | AV35: 38064.6501 | AW35: U1 | AX35: 0 | AY35: =IF($E35="LEADER",VLOOKUP(AW35,[1]!LEADERSHIP,5),IF($E35="TEACHER",VLOOKUP(AW35,[1]!TEACHER,5),IF($E35="ADVANCED",VLOOKUP($AW35,[1]!ADVANCED_SKILLS_TEACHERS,5),IF($E35="UNQUAL",VLOOKUP($AW35,[1]!UNQUALIFIED_TEACHER,5),0))))*D35*(1+BA$4)*(1+BA$5)+(AX35/AZ35) -> 3292.65792 | AZ35: 12 | BA35: 39189.08544 | BD35: =(IF($Q35="N",IF(AY35>[1]!NIUPPLIMB,((AY35-[1]!NIUPPLIMB)*[1]!NIUPPERB)+([1]!NIUPPLIMB-[1]!NILOWLIMB)*[1]!NILOWB,IF(AY35>[1]!NILOWLIMB,(AY35-[1]!NILOWLIMB)*[1]!NILOWB,0)))+IF($Q35="Y",IF(AY35>[1]!NIUPPLIMB,((AY35-[1]!NIUPPLIMB)*[1]!NIUPPERB)+(([1]!NIUPPLIMB-[1]!NILOWLIMB)*[1]!NISUPNB),IF(AY35>[1]!NILOWLIMB,(AY35-[1]!NILOWLIMB)*[1]!NISUPNB,0))))*((NumberOfDaysWorked($F35,$G35,BD$1,BF$1)*5)+(NumberOfDaysWorked($F35,$G35,BD$1,BF$1)*7)) -> 5176.184256 | BE35: 11239.4297 | BF35: 55604.6994 | BG35: U1 | BH35: 0 | BI35: =IF($E35="LEADER",VLOOKUP(BG35,[1]!LEADERSHIP,5),IF($E35="TEACHER",VLOOKUP(BG35,[1]!TEACHER,5),IF($E35="ADVANCED",VLOOKUP($AW35,[1]!ADVANCED_SKILLS_TEACHERS,5),IF($E35="UNQUAL",VLOOKUP($AW35,[1]!UNQUALIFIED_TEACHER,5),0))))*D35*(1+BA$4)*(1+BA$5)*(1+BK$4)*(1+BK$5)+(BH35/BJ35) -> 3358.511078 | BJ35: 12 | BK35: 39972.86715 | BN35: =(IF($Q35="N",IF(BI35>[1]!NIUPPLIMC,((BI35-[1]!NIUPPLIMC)*[1]!NIUPPERC)+([1]!NIUPPLIMC-[1]!NILOWLIMC)*[1]!NILOWC,IF(BI35>[1]!NILOWLIMC,(BI35-[1]!NILOWLIMC)*[1]!NILOWC,0)))+IF($Q35="Y",IF(BI35>[1]!NIUPPLIMC,((BI35-[1]!NIUPPLIMC)*[1]!NIUPPERC)+(([1]!NIUPPLIMC-[1]!NILOWLIMC)*[1]!NISUPNC),IF(BI35>[1]!NILOWLIMC,(BI35-[1]!NILOWLIMC)*[1]!NISUPNC,0))))*((NumberOfDaysWorked($F35,$G35,BN$1,BP$1)*5)+(NumberOfDaysWorked($F35,$G35,BN$1,BP$1)*7)) -> 5294.719941 | BO35: 11464.2183 | BP35: 56731.80539
A36: x | B36: SURFLEET SARAH (SPL) | C36: A01001 | D36: 1 | E36: TEACHER | F36: 2026-04-01 | G36: 2026-04-30 | H36: U1 | I36: U1 | J36: 0 | K36: =VLOOKUP(J36,[1]!MANAGEMENT,2)*D36 -> 0 | L36: 0 | M36: =VLOOKUP(L36,[1]!SEN_ALLOWANCES,2)*D36 -> 0 | N36: 0 | O36: =N36 -> 0 | P36: 0 | Q36: Y | R36: =IF($E36="LEADER",VLOOKUP(H36,[1]PAYDATA!$A$4:$C$54,3),IF($E36="TEACHER",VLOOKUP(H36,[1]PAYDATA!$A$70:$C$80,3),IF($E36="ADVANCED",VLOOKUP(H36,[1]PAYDATA!$A$141:$C$159,3),IF($E36="UNQUAL",VLOOKUP(H36,[1]PAYDATA!$A$57:$C$63,3),0))))*$D36+($K36/T36)+($M36/T36)+($O36/T36)+($P36/T36) -> 3956 | S36: =IF($E36="LEADER",VLOOKUP(I36,[1]!LEADERSHIP,5),IF($E36="TEACHER",VLOOKUP(I36,[1]!TEACHER,5),IF($E36="ADVANCED",VLOOKUP(I36,[1]PAYDATA!$A$141:$E$159,5),IF($E36="UNQUAL",VLOOKUP(I36,[1]!UNQUALIFIED_TEACHER,5),0))))*$D36+($K36/T36)+($M36/T36)+($O36/T36)+($P36/T36) -> 4035.12 | T36: =IF(G36-F36>11.99999,12,MONTH(G36)-MONTH(F36)) -> 12 | U36: 3956 | V36: 0 | W36: 0 | X36: 0 | Y36: 0 | Z36: 0 | AA36: 0 | AB36: 0 | AC36: 0 | AD36: 0 | AE36: 0 | AF36: 0 | AG36: =SUM(U36:AF36) -> 3956 | AH36: =IF($Q36="N",IF(U36>[1]!NIUPPLIMA,((U36-[1]!NIUPPLIMA)*[1]!NIUPPERA)+([1]!NIUPPLIMA-[1]!NILOWLIMA)*[1]!NILOWA,IF(U36>[1]!NILOWLIMA,(U36-[1]!NILOWLIMA)*[1]!NILOWA,0)))+IF($Q36="Y",IF(U36>[1]!NIUPPLIMA,((U36-[1]!NIUPPLIMA)*[1]!NIUPPERA)+(([1]!NIUPPLIMA-[1]!NILOWLIMA)*[1]!NISUPNA),IF(U36>[1]!NILOWLIMA,(U36-[1]!NILOWLIMA)*[1]!NISUPNA,0)))+IF(U36>[1]!NILOWLIMA,-[1]!NICREBATEA,0) -> 530.85 | AI36: =IF($Q36="N",IF(V36>[1]!NIUPPLIMA,((V36-[1]!NIUPPLIMA)*[1]!NIUPPERA)+([1]!NIUPPLIMA-[1]!NILOWLIMA)*[1]!NILOWA,IF(V36>[1]!NILOWLIMA,(V36-[1]!NILOWLIMA)*[1]!NILOWA,0)))+IF($Q36="Y",IF(V36>[1]!NIUPPLIMA,((V36-[1]!NIUPPLIMA)*[1]!NIUPPERA)+(([1]!NIUPPLIMA-[1]!NILOWLIMA)*[1]!NISUPNA),IF(V36>[1]!NILOWLIMA,(V36-[1]!NILOWLIMA)*[1]!NISUPNA,0)))+IF(V36>[1]!NILOWLIMA,-[1]!NICREBATEA,0) -> 0 | AJ36: =IF($Q36="N",IF(W36>[1]!NIUPPLIMA,((W36-[1]!NIUPPLIMA)*[1]!NIUPPERA)+([1]!NIUPPLIMA-[1]!NILOWLIMA)*[1]!NILOWA,IF(W36>[1]!NILOWLIMA,(W36-[1]!NILOWLIMA)*[1]!NILOWA,0)))+IF($Q36="Y",IF(W36>[1]!NIUPPLIMA,((W36-[1]!NIUPPLIMA)*[1]!NIUPPERA)+(([1]!NIUPPLIMA-[1]!NILOWLIMA)*[1]!NISUPNA),IF(W36>[1]!NILOWLIMA,(W36-[1]!NILOWLIMA)*[1]!NISUPNA,0)))+IF(W36>[1]!NILOWLIMA,-[1]!NICREBATEA,0) -> 0 | AK36: =IF($Q36="N",IF(X36>[1]!NIUPPLIMA,((X36-[1]!NIUPPLIMA)*[1]!NIUPPERA)+([1]!NIUPPLIMA-[1]!NILOWLIMA)*[1]!NILOWA,IF(X36>[1]!NILOWLIMA,(X36-[1]!NILOWLIMA)*[1]!NILOWA,0)))+IF($Q36="Y",IF(X36>[1]!NIUPPLIMA,((X36-[1]!NIUPPLIMA)*[1]!NIUPPERA)+(([1]!NIUPPLIMA-[1]!NILOWLIMA)*[1]!NISUPNA),IF(X36>[1]!NILOWLIMA,(X36-[1]!NILOWLIMA)*[1]!NISUPNA,0)))+IF(X36>[1]!NILOWLIMA,-[1]!NICREBATEA,0) -> 0 | AL36: =IF($Q36="N",IF(Y36>[1]!NIUPPLIMA,((Y36-[1]!NIUPPLIMA)*[1]!NIUPPERA)+([1]!NIUPPLIMA-[1]!NILOWLIMA)*[1]!NILOWA,IF(Y36>[1]!NILOWLIMA,(Y36-[1]!NILOWLIMA)*[1]!NILOWA,0)))+IF($Q36="Y",IF(Y36>[1]!NIUPPLIMA,((Y36-[1]!NIUPPLIMA)*[1]!NIUPPERA)+(([1]!NIUPPLIMA-[1]!NILOWLIMA)*[1]!NISUPNA),IF(Y36>[1]!NILOWLIMA,(Y36-[1]!NILOWLIMA)*[1]!NISUPNA,0)))+IF(Y36>[1]!NILOWLIMA,-[1]!NICREBATEA,0) -> 0 | AM36: =IF($Q36="N",IF(Z36>[1]!NIUPPLIMA,((Z36-[1]!NIUPPLIMA)*[1]!NIUPPERA)+([1]!NIUPPLIMA-[1]!NILOWLIMA)*[1]!NILOWA,IF(Z36>[1]!NILOWLIMA,(Z36-[1]!NILOWLIMA)*[1]!NILOWA,0)))+IF($Q36="Y",IF(Z36>[1]!NIUPPLIMA,((Z36-[1]!NIUPPLIMA)*[1]!NIUPPERA)+(([1]!NIUPPLIMA-[1]!NILOWLIMA)*[1]!NISUPNA),IF(Z36>[1]!NILOWLIMA,(Z36-[1]!NILOWLIMA)*[1]!NISUPNA,0)))+IF(Z36>[1]!NILOWLIMA,-[1]!NICREBATEA,0) -> 0 | AN36: =IF($Q36="N",IF(AA36>[1]!NIUPPLIMA,((AA36-[1]!NIUPPLIMA)*[1]!NIUPPERA)+([1]!NIUPPLIMA-[1]!NILOWLIMA)*[1]!NILOWA,IF(AA36>[1]!NILOWLIMA,(AA36-[1]!NILOWLIMA)*[1]!NILOWA,0)))+IF($Q36="Y",IF(AA36>[1]!NIUPPLIMA,((AA36-[1]!NIUPPLIMA)*[1]!NIUPPERA)+(([1]!NIUPPLIMA-[1]!NILOWLIMA)*[1]!NISUPNA),IF(AA36>[1]!NILOWLIMA,(AA36-[1]!NILOWLIMA)*[1]!NISUPNA,0)))+IF(AA36>[1]!NILOWLIMA,-[1]!NICREBATEA,0) -> 0 | AO36: =IF($Q36="N",IF(AB36>[1]!NIUPPLIMA,((AB36-[1]!NIUPPLIMA)*[1]!NIUPPERA)+([1]!NIUPPLIMA-[1]!NILOWLIMA)*[1]!NILOWA,IF(AB36>[1]!NILOWLIMA,(AB36-[1]!NILOWLIMA)*[1]!NILOWA,0)))+IF($Q36="Y",IF(AB36>[1]!NIUPPLIMA,((AB36-[1]!NIUPPLIMA)*[1]!NIUPPERA)+(([1]!NIUPPLIMA-[1]!NILOWLIMA)*[1]!NISUPNA),IF(AB36>[1]!NILOWLIMA,(AB36-[1]!NILOWLIMA)*[1]!NISUPNA,0)))+IF(AB36>[1]!NILOWLIMA,-[1]!NICREBATEA,0) -> 0 | AP36: =IF($Q36="N",IF(AC36>[1]!NIUPPLIMA,((AC36-[1]!NIUPPLIMA)*[1]!NIUPPERA)+([1]!NIUPPLIMA-[1]!NILOWLIMA)*[1]!NILOWA,IF(AC36>[1]!NILOWLIMA,(AC36-[1]!NILOWLIMA)*[1]!NILOWA,0)))+IF($Q36="Y",IF(AC36>[1]!NIUPPLIMA,((AC36-[1]!NIUPPLIMA)*[1]!NIUPPERA)+(([1]!NIUPPLIMA-[1]!NILOWLIMA)*[1]!NISUPNA),IF(AC36>[1]!NILOWLIMA,(AC36-[1]!NILOWLIMA)*[1]!NISUPNA,0)))+IF(AC36>[1]!NILOWLIMA,-[1]!NICREBATEA,0) -> 0 | AQ36: =IF($Q36="N",IF(AD36>[1]!NIUPPLIMA,((AD36-[1]!NIUPPLIMA)*[1]!NIUPPERA)+([1]!NIUPPLIMA-[1]!NILOWLIMA)*[1]!NILOWA,IF(AD36>[1]!NILOWLIMA,(AD36-[1]!NILOWLIMA)*[1]!NILOWA,0)))+IF($Q36="Y",IF(AD36>[1]!NIUPPLIMA,((AD36-[1]!NIUPPLIMA)*[1]!NIUPPERA)+(([1]!NIUPPLIMA-[1]!NILOWLIMA)*[1]!NISUPNA),IF(AD36>[1]!NILOWLIMA,(AD36-[1]!NILOWLIMA)*[1]!NISUPNA,0)))+IF(AD36>[1]!NILOWLIMA,-[1]!NICREBATEA,0) -> 0 | AR36: =IF($Q36="N",IF(AE36>[1]!NIUPPLIMA,((AE36-[1]!NIUPPLIMA)*[1]!NIUPPERA)+([1]!NIUPPLIMA-[1]!NILOWLIMA)*[1]!NILOWA,IF(AE36>[1]!NILOWLIMA,(AE36-[1]!NILOWLIMA)*[1]!NILOWA,0)))+IF($Q36="Y",IF(AE36>[1]!NIUPPLIMA,((AE36-[1]!NIUPPLIMA)*[1]!NIUPPERA)+(([1]!NIUPPLIMA-[1]!NILOWLIMA)*[1]!NISUPNA),IF(AE36>[1]!NILOWLIMA,(AE36-[1]!NILOWLIMA)*[1]!NISUPNA,0)))+IF(AE36>[1]!NILOWLIMA,-[1]!NICREBATEA,0) -> 0 | AS36: =IF($Q36="N",IF(AF36>[1]!NIUPPLIMA,((AF36-[1]!NIUPPLIMA)*[1]!NIUPPERA)+([1]!NIUPPLIMA-[1]!NILOWLIMA)*[1]!NILOWA,IF(AF36>[1]!NILOWLIMA,(AF36-[1]!NILOWLIMA)*[1]!NILOWA,0)))+IF($Q36="Y",IF(AF36>[1]!NIUPPLIMA,((AF36-[1]!NIUPPLIMA)*[1]!NIUPPERA)+(([1]!NIUPPLIMA-[1]!NILOWLIMA)*[1]!NISUPNA),IF(AF36>[1]!NILOWLIMA,(AF36-[1]!NILOWLIMA)*[1]!NISUPNA,0)))+IF(AF36>[1]!NILOWLIMA,-[1]!NICREBATEA,0) -> 0 | AT36: =SUM(AH36:AS36) -> 530.85 | AU36: 1134.5808 | AV36: 5621.4308 | AW36: U1 | AX36: 0 | AY36: =IF($E36="LEADER",VLOOKUP(AW36,[1]!LEADERSHIP,5),IF($E36="TEACHER",VLOOKUP(AW36,[1]!TEACHER,5),IF($E36="ADVANCED",VLOOKUP($AW36,[1]!ADVANCED_SKILLS_TEACHERS,5),IF($E36="UNQUAL",VLOOKUP($AW36,[1]!UNQUALIFIED_TEACHER,5),0))))*D36*(1+BA$4)*(1+BA$5)+(AX36/AZ36) -> 4115.8224 | AZ36: 12 | BA36: 0 | BD36: =(IF($Q36="N",IF(AY36>[1]!NIUPPLIMB,((AY36-[1]!NIUPPLIMB)*[1]!NIUPPERB)+([1]!NIUPPLIMB-[1]!NILOWLIMB)*[1]!NILOWB,IF(AY36>[1]!NILOWLIMB,(AY36-[1]!NILOWLIMB)*[1]!NILOWB,0)))+IF($Q36="Y",IF(AY36>[1]!NIUPPLIMB,((AY36-[1]!NIUPPLIMB)*[1]!NIUPPERB)+(([1]!NIUPPLIMB-[1]!NILOWLIMB)*[1]!NISUPNB),IF(AY36>[1]!NILOWLIMB,(AY36-[1]!NILOWLIMB)*[1]!NISUPNB,0))))*((NumberOfDaysWorked($F36,$G36,BD$1,BF$1)*5)+(NumberOfDaysWorked($F36,$G36,BD$1,BF$1)*7)) -> 0 | BE36: 0 | BF36: 0 | BG36: U1 | BH36: 0 | BI36: =IF($E36="LEADER",VLOOKUP(BG36,[1]!LEADERSHIP,5),IF($E36="TEACHER",VLOOKUP(BG36,[1]!TEACHER,5),IF($E36="ADVANCED",VLOOKUP($AW36,[1]!ADVANCED_SKILLS_TEACHERS,5),IF($E36="UNQUAL",VLOOKUP($AW36,[1]!UNQUALIFIED_TEACHER,5),0))))*D36*(1+BA$4)*(1+BA$5)*(1+BK$4)*(1+BK$5)+(BH36/BJ36) -> 4198.138848 | BJ36: 12 | BK36: 0 | BN36: =(IF($Q36="N",IF(BI36>[1]!NIUPPLIMC,((BI36-[1]!NIUPPLIMC)*[1]!NIUPPERC)+([1]!NIUPPLIMC-[1]!NILOWLIMC)*[1]!NILOWC,IF(BI36>[1]!NILOWLIMC,(BI36-[1]!NILOWLIMC)*[1]!NILOWC,0)))+IF($Q36="Y",IF(BI36>[1]!NIUPPLIMC,((BI36-[1]!NIUPPLIMC)*[1]!NIUPPERC)+(([1]!NIUPPLIMC-[1]!NILOWLIMC)*[1]!NISUPNC),IF(BI36>[1]!NILOWLIMC,(BI36-[1]!NILOWLIMC)*[1]!NISUPNC,0))))*((NumberOfDaysWorked($F36,$G36,BN$1,BP$1)*5)+(NumberOfDaysWorked($F36,$G36,BN$1,BP$1)*7)) -> 0 | BO36: 0 | BP36: 0
A37: x | B37: THOMPSON BETHANY | C37: A01001 | D37: 1 | E37: TEACHER | F37: 2026-04-01 | G37: 2029-03-31 | H37: U1 | I37: U2 | J37: 0 | K37: =VLOOKUP(J37,[1]!MANAGEMENT,2)*D37 -> 0 | L37: 0 | M37: =VLOOKUP(L37,[1]!SEN_ALLOWANCES,2)*D37 -> 0 | N37: 0 | O37: =N37 -> 0 | P37: 0 | Q37: Y | R37: =IF($E37="LEADER",VLOOKUP(H37,[1]PAYDATA!$A$4:$C$54,3),IF($E37="TEACHER",VLOOKUP(H37,[1]PAYDATA!$A$70:$C$80,3),IF($E37="ADVANCED",VLOOKUP(H37,[1]PAYDATA!$A$141:$C$159,3),IF($E37="UNQUAL",VLOOKUP(H37,[1]PAYDATA!$A$57:$C$63,3),0))))*$D37+($K37/T37)+($M37/T37)+($O37/T37)+($P37/T37) -> 3956 | S37: =IF($E37="LEADER",VLOOKUP(I37,[1]!LEADERSHIP,5),IF($E37="TEACHER",VLOOKUP(I37,[1]!TEACHER,5),IF($E37="ADVANCED",VLOOKUP(I37,[1]PAYDATA!$A$141:$E$159,5),IF($E37="UNQUAL",VLOOKUP(I37,[1]!UNQUALIFIED_TEACHER,5),0))))*$D37+($K37/T37)+($M37/T37)+($O37/T37)+($P37/T37) -> 4184.72 | T37: =IF(G37-F37>11.99999,12,MONTH(G37)-MONTH(F37)) -> 12 | U37: 3956 | V37: 3956 | W37: 3956 | X37: 3956 | Y37: 3956 | Z37: 4184.72 | AA37: 4184.72 | AB37: 4184.72 | AC37: 4184.72 | AD37: 4184.72 | AE37: 4184.72 | AF37: 4184.72 | AG37: =SUM(U37:AF37) -> 49073.04 | AH37: =IF($Q37="N",IF(U37>[1]!NIUPPLIMA,((U37-[1]!NIUPPLIMA)*[1]!NIUPPERA)+([1]!NIUPPLIMA-[1]!NILOWLIMA)*[1]!NILOWA,IF(U37>[1]!NILOWLIMA,(U37-[1]!NILOWLIMA)*[1]!NILOWA,0)))+IF($Q37="Y",IF(U37>[1]!NIUPPLIMA,((U37-[1]!NIUPPLIMA)*[1]!NIUPPERA)+(([1]!NIUPPLIMA-[1]!NILOWLIMA)*[1]!NISUPNA),IF(U37>[1]!NILOWLIMA,(U37-[1]!NILOWLIMA)*[1]!NISUPNA,0)))+IF(U37>[1]!NILOWLIMA,-[1]!NICREBATEA,0) -> 530.85 | AI37: =IF($Q37="N",IF(V37>[1]!NIUPPLIMA,((V37-[1]!NIUPPLIMA)*[1]!NIUPPERA)+([1]!NIUPPLIMA-[1]!NILOWLIMA)*[1]!NILOWA,IF(V37>[1]!NILOWLIMA,(V37-[1]!NILOWLIMA)*[1]!NILOWA,0)))+IF($Q37="Y",IF(V37>[1]!NIUPPLIMA,((V37-[1]!NIUPPLIMA)*[1]!NIUPPERA)+(([1]!NIUPPLIMA-[1]!NILOWLIMA)*[1]!NISUPNA),IF(V37>[1]!NILOWLIMA,(V37-[1]!NILOWLIMA)*[1]!NISUPNA,0)))+IF(V37>[1]!NILOWLIMA,-[1]!NICREBATEA,0) -> 530.85 | AJ37: =IF($Q37="N",IF(W37>[1]!NIUPPLIMA,((W37-[1]!NIUPPLIMA)*[1]!NIUPPERA)+([1]!NIUPPLIMA-[1]!NILOWLIMA)*[1]!NILOWA,IF(W37>[1]!NILOWLIMA,(W37-[1]!NILOWLIMA)*[1]!NILOWA,0)))+IF($Q37="Y",IF(W37>[1]!NIUPPLIMA,((W37-[1]!NIUPPLIMA)*[1]!NIUPPERA)+(([1]!NIUPPLIMA-[1]!NILOWLIMA)*[1]!NISUPNA),IF(W37>[1]!NILOWLIMA,(W37-[1]!NILOWLIMA)*[1]!NISUPNA,0)))+IF(W37>[1]!NILOWLIMA,-[1]!NICREBATEA,0) -> 530.85 | AK37: =IF($Q37="N",IF(X37>[1]!NIUPPLIMA,((X37-[1]!NIUPPLIMA)*[1]!NIUPPERA)+([1]!NIUPPLIMA-[1]!NILOWLIMA)*[1]!NILOWA,IF(X37>[1]!NILOWLIMA,(X37-[1]!NILOWLIMA)*[1]!NILOWA,0)))+IF($Q37="Y",IF(X37>[1]!NIUPPLIMA,((X37-[1]!NIUPPLIMA)*[1]!NIUPPERA)+(([1]!NIUPPLIMA-[1]!NILOWLIMA)*[1]!NISUPNA),IF(X37>[1]!NILOWLIMA,(X37-[1]!NILOWLIMA)*[1]!NISUPNA,0)))+IF(X37>[1]!NILOWLIMA,-[1]!NICREBATEA,0) -> 530.85 | AL37: =IF($Q37="N",IF(Y37>[1]!NIUPPLIMA,((Y37-[1]!NIUPPLIMA)*[1]!NIUPPERA)+([1]!NIUPPLIMA-[1]!NILOWLIMA)*[1]!NILOWA,IF(Y37>[1]!NILOWLIMA,(Y37-[1]!NILOWLIMA)*[1]!NILOWA,0)))+IF($Q37="Y",IF(Y37>[1]!NIUPPLIMA,((Y37-[1]!NIUPPLIMA)*[1]!NIUPPERA)+(([1]!NIUPPLIMA-[1]!NILOWLIMA)*[1]!NISUPNA),IF(Y37>[1]!NILOWLIMA,(Y37-[1]!NILOWLIMA)*[1]!NISUPNA,0)))+IF(Y37>[1]!NILOWLIMA,-[1]!NICREBATEA,0) -> 530.85 | AM37: =IF($Q37="N",IF(Z37>[1]!NIUPPLIMA,((Z37-[1]!NIUPPLIMA)*[1]!NIUPPERA)+([1]!NIUPPLIMA-[1]!NILOWLIMA)*[1]!NILOWA,IF(Z37>[1]!NILOWLIMA,(Z37-[1]!NILOWLIMA)*[1]!NILOWA,0)))+IF($Q37="Y",IF(Z37>[1]!NIUPPLIMA,((Z37-[1]!NIUPPLIMA)*[1]!NIUPPERA)+(([1]!NIUPPLIMA-[1]!NILOWLIMA)*[1]!NISUPNA),IF(Z37>[1]!NILOWLIMA,(Z37-[1]!NILOWLIMA)*[1]!NISUPNA,0)))+IF(Z37>[1]!NILOWLIMA,-[1]!NICREBATEA,0) -> 565.158 | AN37: =IF($Q37="N",IF(AA37>[1]!NIUPPLIMA,((AA37-[1]!NIUPPLIMA)*[1]!NIUPPERA)+([1]!NIUPPLIMA-[1]!NILOWLIMA)*[1]!NILOWA,IF(AA37>[1]!NILOWLIMA,(AA37-[1]!NILOWLIMA)*[1]!NILOWA,0)))+IF($Q37="Y",IF(AA37>[1]!NIUPPLIMA,((AA37-[1]!NIUPPLIMA)*[1]!NIUPPERA)+(([1]!NIUPPLIMA-[1]!NILOWLIMA)*[1]!NISUPNA),IF(AA37>[1]!NILOWLIMA,(AA37-[1]!NILOWLIMA)*[1]!NISUPNA,0)))+IF(AA37>[1]!NILOWLIMA,-[1]!NICREBATEA,0) -> 565.158 | AO37: =IF($Q37="N",IF(AB37>[1]!NIUPPLIMA,((AB37-[1]!NIUPPLIMA)*[1]!NIUPPERA)+([1]!NIUPPLIMA-[1]!NILOWLIMA)*[1]!NILOWA,IF(AB37>[1]!NILOWLIMA,(AB37-[1]!NILOWLIMA)*[1]!NILOWA,0)))+IF($Q37="Y",IF(AB37>[1]!NIUPPLIMA,((AB37-[1]!NIUPPLIMA)*[1]!NIUPPERA)+(([1]!NIUPPLIMA-[1]!NILOWLIMA)*[1]!NISUPNA),IF(AB37>[1]!NILOWLIMA,(AB37-[1]!NILOWLIMA)*[1]!NISUPNA,0)))+IF(AB37>[1]!NILOWLIMA,-[1]!NICREBATEA,0) -> 565.158 | AP37: =IF($Q37="N",IF(AC37>[1]!NIUPPLIMA,((AC37-[1]!NIUPPLIMA)*[1]!NIUPPERA)+([1]!NIUPPLIMA-[1]!NILOWLIMA)*[1]!NILOWA,IF(AC37>[1]!NILOWLIMA,(AC37-[1]!NILOWLIMA)*[1]!NILOWA,0)))+IF($Q37="Y",IF(AC37>[1]!NIUPPLIMA,((AC37-[1]!NIUPPLIMA)*[1]!NIUPPERA)+(([1]!NIUPPLIMA-[1]!NILOWLIMA)*[1]!NISUPNA),IF(AC37>[1]!NILOWLIMA,(AC37-[1]!NILOWLIMA)*[1]!NISUPNA,0)))+IF(AC37>[1]!NILOWLIMA,-[1]!NICREBATEA,0) -> 565.158 | AQ37: =IF($Q37="N",IF(AD37>[1]!NIUPPLIMA,((AD37-[1]!NIUPPLIMA)*[1]!NIUPPERA)+([1]!NIUPPLIMA-[1]!NILOWLIMA)*[1]!NILOWA,IF(AD37>[1]!NILOWLIMA,(AD37-[1]!NILOWLIMA)*[1]!NILOWA,0)))+IF($Q37="Y",IF(AD37>[1]!NIUPPLIMA,((AD37-[1]!NIUPPLIMA)*[1]!NIUPPERA)+(([1]!NIUPPLIMA-[1]!NILOWLIMA)*[1]!NISUPNA),IF(AD37>[1]!NILOWLIMA,(AD37-[1]!NILOWLIMA)*[1]!NISUPNA,0)))+IF(AD37>[1]!NILOWLIMA,-[1]!NICREBATEA,0) -> 565.158 | AR37: =IF($Q37="N",IF(AE37>[1]!NIUPPLIMA,((AE37-[1]!NIUPPLIMA)*[1]!NIUPPERA)+([1]!NIUPPLIMA-[1]!NILOWLIMA)*[1]!NILOWA,IF(AE37>[1]!NILOWLIMA,(AE37-[1]!NILOWLIMA)*[1]!NILOWA,0)))+IF($Q37="Y",IF(AE37>[1]!NIUPPLIMA,((AE37-[1]!NIUPPLIMA)*[1]!NIUPPERA)+(([1]!NIUPPLIMA-[1]!NILOWLIMA)*[1]!NISUPNA),IF(AE37>[1]!NILOWLIMA,(AE37-[1]!NILOWLIMA)*[1]!NISUPNA,0)))+IF(AE37>[1]!NILOWLIMA,-[1]!NICREBATEA,0) -> 565.158 | AS37: =IF($Q37="N",IF(AF37>[1]!NIUPPLIMA,((AF37-[1]!NIUPPLIMA)*[1]!NIUPPERA)+([1]!NIUPPLIMA-[1]!NILOWLIMA)*[1]!NILOWA,IF(AF37>[1]!NILOWLIMA,(AF37-[1]!NILOWLIMA)*[1]!NILOWA,0)))+IF($Q37="Y",IF(AF37>[1]!NIUPPLIMA,((AF37-[1]!NIUPPLIMA)*[1]!NIUPPERA)+(([1]!NIUPPLIMA-[1]!NILOWLIMA)*[1]!NISUPNA),IF(AF37>[1]!NILOWLIMA,(AF37-[1]!NILOWLIMA)*[1]!NISUPNA,0)))+IF(AF37>[1]!NILOWLIMA,-[1]!NICREBATEA,0) -> 565.158 | AT37: =SUM(AH37:AS37) -> 6610.356 | AU37: =IF($Q37="N",0,((AG37*$AU$5))) -> 14074.14787 | AV37: =AG37+AT37+AU37 -> 69757.54387 | AW37: =IF($E37="TEACHER",IF($I37<6,$I37+1,IF(LEFT($I37,1)="U",$I37,6)),IF($E37="LEADER",+I37,IF($E37="UNQUAL",IF($I37<10,$I37+1,10),IF($E37="ADVANCED",IF($I37<27,$I37+1,27))))) -> U2 | AX37: =(K37+M37+O37+P37) -> 0 | AY37: =IF($E37="LEADER",VLOOKUP(AW37,[1]!LEADERSHIP,5),IF($E37="TEACHER",VLOOKUP(AW37,[1]!TEACHER,5),IF($E37="ADVANCED",VLOOKUP($AW37,[1]!ADVANCED_SKILLS_TEACHERS,5),IF($E37="UNQUAL",VLOOKUP($AW37,[1]!UNQUALIFIED_TEACHER,5),0))))*D37*(1+BA$4)*(1+BA$5)+(AX37/AZ37) -> 4268.4144 | AZ37: =IF(G37-F37>11.99999,12,MONTH(G37)-MONTH(F37)) -> 12 | BA37: =NumberOfDaysWorked($F37,$G37,BD$1,BF$1)*(($S37*(1+BA$4))*5)+NumberOfDaysWorked($F37,$G37,BD$1,BF$1)*($AY37*7) -> 50802.5008 | BD37: =(IF($Q37="N",IF(AY37>[1]!NIUPPLIMB,((AY37-[1]!NIUPPLIMB)*[1]!NIUPPERB)+([1]!NIUPPLIMB-[1]!NILOWLIMB)*[1]!NILOWB,IF(AY37>[1]!NILOWLIMB,(AY37-[1]!NILOWLIMB)*[1]!NILOWB,0)))+IF($Q37="Y",IF(AY37>[1]!NIUPPLIMB,((AY37-[1]!NIUPPLIMB)*[1]!NIUPPERB)+(([1]!NIUPPLIMB-[1]!NILOWLIMB)*[1]!NISUPNB),IF(AY37>[1]!NILOWLIMB,(AY37-[1]!NILOWLIMB)*[1]!NISUPNB,0))))*((NumberOfDaysWorked($F37,$G37,BD$1,BF$1)*5)+(NumberOfDaysWorked($F37,$G37,BD$1,BF$1)*7)) -> 6932.54592 | BE37: =IF($Q37="N",0,(BA37*$BE$5)) -> 14570.15723 | BF37: =SUM(BA37:BE37) -> 72305.20395 | BG37: =IF($E37="TEACHER",IF(AW37<6,AW37+1,IF(LEFT(AW37,1)="U",AW37,6)),IF($E37="LEADER",+I37,IF($E37="UNQUAL",IF(AW37<10,AW37+1,10),IF($E37="ADVANCED",IF(AW37<27,AW37+1,27))))) -> U2 | BH37: =(K37+M37+O37+P37) -> 0 | BI37: =IF($E37="LEADER",VLOOKUP(BG37,[1]!LEADERSHIP,5),IF($E37="TEACHER",VLOOKUP(BG37,[1]!TEACHER,5),IF($E37="ADVANCED",VLOOKUP($AW37,[1]!ADVANCED_SKILLS_TEACHERS,5),IF($E37="UNQUAL",VLOOKUP($AW37,[1]!UNQUALIFIED_TEACHER,5),0))))*D37*(1+BA$4)*(1+BA$5)*(1+BK$4)*(1+BK$5)+(BH37/BJ37) -> 4353.782688 | BJ37: =IF(G37-F37>11.99999,12,MONTH(G37)-MONTH(F37)) -> 12 | BK37: =NumberOfDaysWorked($F37,$G37,BN$1,BP$1)*(($AY37*(1+BK$4))*5)+NumberOfDaysWorked($F37,$G37,BN$1,BP$1)*($BI37*7) -> 51818.55082 | BN37: =(IF($Q37="N",IF(BI37>[1]!NIUPPLIMC,((BI37-[1]!NIUPPLIMC)*[1]!NIUPPERC)+([1]!NIUPPLIMC-[1]!NILOWLIMC)*[1]!NILOWC,IF(BI37>[1]!NILOWLIMC,(BI37-[1]!NILOWLIMC)*[1]!NILOWC,0)))+IF($Q37="Y",IF(BI37>[1]!NIUPPLIMC,((BI37-[1]!NIUPPLIMC)*[1]!NIUPPERC)+(([1]!NIUPPLIMC-[1]!NILOWLIMC)*[1]!NISUPNC),IF(BI37>[1]!NILOWLIMC,(BI37-[1]!NILOWLIMC)*[1]!NISUPNC,0))))*((NumberOfDaysWorked($F37,$G37,BN$1,BP$1)*5)+(NumberOfDaysWorked($F37,$G37,BN$1,BP$1)*7)) -> 7086.208838 | BO37: =IF($Q37="N",0,(BK37*$BO$5)) -> 14861.56037 | BP37: =SUM(BK37:BO37) -> 73766.32003
A38: x | C38: A01001 | D38: 0 | E38: TEACHER | F38: 2026-04-01 | G38: 2029-03-31 | H38: 1 | I38: 1 | J38: 0 | K38: =VLOOKUP(J38,[1]!MANAGEMENT,2)*D38 -> 0 | L38: 0 | M38: =VLOOKUP(L38,[1]!SEN_ALLOWANCES,2)*D38 -> 0 | N38: 0 | O38: 0 | P38: 0 | Q38: Y | R38: =IF($E38="LEADER",VLOOKUP(H38,[1]PAYDATA!$A$4:$C$54,3),IF($E38="TEACHER",VLOOKUP(H38,[1]PAYDATA!$A$70:$C$80,3),IF($E38="ADVANCED",VLOOKUP(H38,[1]PAYDATA!$A$141:$C$159,3),IF($E38="UNQUAL",VLOOKUP(H38,[1]PAYDATA!$A$57:$C$63,3),0))))*$D38+($K38/T38)+($M38/T38)+($O38/T38)+($P38/T38) -> 0 | S38: =IF($E38="LEADER",VLOOKUP(I38,[1]!LEADERSHIP,5),IF($E38="TEACHER",VLOOKUP(I38,[1]!TEACHER,5),IF($E38="ADVANCED",VLOOKUP(I38,[1]PAYDATA!$A$141:$E$159,5),IF($E38="UNQUAL",VLOOKUP(I38,[1]!UNQUALIFIED_TEACHER,5),0))))*$D38+($K38/T38)+($M38/T38)+($O38/T38)+($P38/T38) -> 0 | T38: 12 | U38: 0 | V38: 0 | W38: 0 | X38: 0 | Y38: 0 | Z38: 0 | AA38: 0 | AB38: 0 | AC38: 0 | AD38: 0 | AE38: 0 | AF38: 0 | AG38: =SUM(U38:AF38) -> 0 | AH38: =IF($Q38="N",IF(U38>[1]!NIUPPLIMA,((U38-[1]!NIUPPLIMA)*[1]!NIUPPERA)+([1]!NIUPPLIMA-[1]!NILOWLIMA)*[1]!NILOWA,IF(U38>[1]!NILOWLIMA,(U38-[1]!NILOWLIMA)*[1]!NILOWA,0)))+IF($Q38="Y",IF(U38>[1]!NIUPPLIMA,((U38-[1]!NIUPPLIMA)*[1]!NIUPPERA)+(([1]!NIUPPLIMA-[1]!NILOWLIMA)*[1]!NISUPNA),IF(U38>[1]!NILOWLIMA,(U38-[1]!NILOWLIMA)*[1]!NISUPNA,0)))+IF(U38>[1]!NILOWLIMA,-[1]!NICREBATEA,0) -> 0 | AI38: =IF($Q38="N",IF(V38>[1]!NIUPPLIMA,((V38-[1]!NIUPPLIMA)*[1]!NIUPPERA)+([1]!NIUPPLIMA-[1]!NILOWLIMA)*[1]!NILOWA,IF(V38>[1]!NILOWLIMA,(V38-[1]!NILOWLIMA)*[1]!NILOWA,0)))+IF($Q38="Y",IF(V38>[1]!NIUPPLIMA,((V38-[1]!NIUPPLIMA)*[1]!NIUPPERA)+(([1]!NIUPPLIMA-[1]!NILOWLIMA)*[1]!NISUPNA),IF(V38>[1]!NILOWLIMA,(V38-[1]!NILOWLIMA)*[1]!NISUPNA,0)))+IF(V38>[1]!NILOWLIMA,-[1]!NICREBATEA,0) -> 0 | AJ38: =IF($Q38="N",IF(W38>[1]!NIUPPLIMA,((W38-[1]!NIUPPLIMA)*[1]!NIUPPERA)+([1]!NIUPPLIMA-[1]!NILOWLIMA)*[1]!NILOWA,IF(W38>[1]!NILOWLIMA,(W38-[1]!NILOWLIMA)*[1]!NILOWA,0)))+IF($Q38="Y",IF(W38>[1]!NIUPPLIMA,((W38-[1]!NIUPPLIMA)*[1]!NIUPPERA)+(([1]!NIUPPLIMA-[1]!NILOWLIMA)*[1]!NISUPNA),IF(W38>[1]!NILOWLIMA,(W38-[1]!NILOWLIMA)*[1]!NISUPNA,0)))+IF(W38>[1]!NILOWLIMA,-[1]!NICREBATEA,0) -> 0 | AK38: =IF($Q38="N",IF(X38>[1]!NIUPPLIMA,((X38-[1]!NIUPPLIMA)*[1]!NIUPPERA)+([1]!NIUPPLIMA-[1]!NILOWLIMA)*[1]!NILOWA,IF(X38>[1]!NILOWLIMA,(X38-[1]!NILOWLIMA)*[1]!NILOWA,0)))+IF($Q38="Y",IF(X38>[1]!NIUPPLIMA,((X38-[1]!NIUPPLIMA)*[1]!NIUPPERA)+(([1]!NIUPPLIMA-[1]!NILOWLIMA)*[1]!NISUPNA),IF(X38>[1]!NILOWLIMA,(X38-[1]!NILOWLIMA)*[1]!NISUPNA,0)))+IF(X38>[1]!NILOWLIMA,-[1]!NICREBATEA,0) -> 0 | AL38: =IF($Q38="N",IF(Y38>[1]!NIUPPLIMA,((Y38-[1]!NIUPPLIMA)*[1]!NIUPPERA)+([1]!NIUPPLIMA-[1]!NILOWLIMA)*[1]!NILOWA,IF(Y38>[1]!NILOWLIMA,(Y38-[1]!NILOWLIMA)*[1]!NILOWA,0)))+IF($Q38="Y",IF(Y38>[1]!NIUPPLIMA,((Y38-[1]!NIUPPLIMA)*[1]!NIUPPERA)+(([1]!NIUPPLIMA-[1]!NILOWLIMA)*[1]!NISUPNA),IF(Y38>[1]!NILOWLIMA,(Y38-[1]!NILOWLIMA)*[1]!NISUPNA,0)))+IF(Y38>[1]!NILOWLIMA,-[1]!NICREBATEA,0) -> 0 | AM38: =IF($Q38="N",IF(Z38>[1]!NIUPPLIMA,((Z38-[1]!NIUPPLIMA)*[1]!NIUPPERA)+([1]!NIUPPLIMA-[1]!NILOWLIMA)*[1]!NILOWA,IF(Z38>[1]!NILOWLIMA,(Z38-[1]!NILOWLIMA)*[1]!NILOWA,0)))+IF($Q38="Y",IF(Z38>[1]!NIUPPLIMA,((Z38-[1]!NIUPPLIMA)*[1]!NIUPPERA)+(([1]!NIUPPLIMA-[1]!NILOWLIMA)*[1]!NISUPNA),IF(Z38>[1]!NILOWLIMA,(Z38-[1]!NILOWLIMA)*[1]!NISUPNA,0)))+IF(Z38>[1]!NILOWLIMA,-[1]!NICREBATEA,0) -> 0 | AN38: =IF($Q38="N",IF(AA38>[1]!NIUPPLIMA,((AA38-[1]!NIUPPLIMA)*[1]!NIUPPERA)+([1]!NIUPPLIMA-[1]!NILOWLIMA)*[1]!NILOWA,IF(AA38>[1]!NILOWLIMA,(AA38-[1]!NILOWLIMA)*[1]!NILOWA,0)))+IF($Q38="Y",IF(AA38>[1]!NIUPPLIMA,((AA38-[1]!NIUPPLIMA)*[1]!NIUPPERA)+(([1]!NIUPPLIMA-[1]!NILOWLIMA)*[1]!NISUPNA),IF(AA38>[1]!NILOWLIMA,(AA38-[1]!NILOWLIMA)*[1]!NISUPNA,0)))+IF(AA38>[1]!NILOWLIMA,-[1]!NICREBATEA,0) -> 0 | AO38: =IF($Q38="N",IF(AB38>[1]!NIUPPLIMA,((AB38-[1]!NIUPPLIMA)*[1]!NIUPPERA)+([1]!NIUPPLIMA-[1]!NILOWLIMA)*[1]!NILOWA,IF(AB38>[1]!NILOWLIMA,(AB38-[1]!NILOWLIMA)*[1]!NILOWA,0)))+IF($Q38="Y",IF(AB38>[1]!NIUPPLIMA,((AB38-[1]!NIUPPLIMA)*[1]!NIUPPERA)+(([1]!NIUPPLIMA-[1]!NILOWLIMA)*[1]!NISUPNA),IF(AB38>[1]!NILOWLIMA,(AB38-[1]!NILOWLIMA)*[1]!NISUPNA,0)))+IF(AB38>[1]!NILOWLIMA,-[1]!NICREBATEA,0) -> 0 | AP38: =IF($Q38="N",IF(AC38>[1]!NIUPPLIMA,((AC38-[1]!NIUPPLIMA)*[1]!NIUPPERA)+([1]!NIUPPLIMA-[1]!NILOWLIMA)*[1]!NILOWA,IF(AC38>[1]!NILOWLIMA,(AC38-[1]!NILOWLIMA)*[1]!NILOWA,0)))+IF($Q38="Y",IF(AC38>[1]!NIUPPLIMA,((AC38-[1]!NIUPPLIMA)*[1]!NIUPPERA)+(([1]!NIUPPLIMA-[1]!NILOWLIMA)*[1]!NISUPNA),IF(AC38>[1]!NILOWLIMA,(AC38-[1]!NILOWLIMA)*[1]!NISUPNA,0)))+IF(AC38>[1]!NILOWLIMA,-[1]!NICREBATEA,0) -> 0 | AQ38: =IF($Q38="N",IF(AD38>[1]!NIUPPLIMA,((AD38-[1]!NIUPPLIMA)*[1]!NIUPPERA)+([1]!NIUPPLIMA-[1]!NILOWLIMA)*[1]!NILOWA,IF(AD38>[1]!NILOWLIMA,(AD38-[1]!NILOWLIMA)*[1]!NILOWA,0)))+IF($Q38="Y",IF(AD38>[1]!NIUPPLIMA,((AD38-[1]!NIUPPLIMA)*[1]!NIUPPERA)+(([1]!NIUPPLIMA-[1]!NILOWLIMA)*[1]!NISUPNA),IF(AD38>[1]!NILOWLIMA,(AD38-[1]!NILOWLIMA)*[1]!NISUPNA,0)))+IF(AD38>[1]!NILOWLIMA,-[1]!NICREBATEA,0) -> 0 | AR38: =IF($Q38="N",IF(AE38>[1]!NIUPPLIMA,((AE38-[1]!NIUPPLIMA)*[1]!NIUPPERA)+([1]!NIUPPLIMA-[1]!NILOWLIMA)*[1]!NILOWA,IF(AE38>[1]!NILOWLIMA,(AE38-[1]!NILOWLIMA)*[1]!NILOWA,0)))+IF($Q38="Y",IF(AE38>[1]!NIUPPLIMA,((AE38-[1]!NIUPPLIMA)*[1]!NIUPPERA)+(([1]!NIUPPLIMA-[1]!NILOWLIMA)*[1]!NISUPNA),IF(AE38>[1]!NILOWLIMA,(AE38-[1]!NILOWLIMA)*[1]!NISUPNA,0)))+IF(AE38>[1]!NILOWLIMA,-[1]!NICREBATEA,0) -> 0 | AS38: =IF($Q38="N",IF(AF38>[1]!NIUPPLIMA,((AF38-[1]!NIUPPLIMA)*[1]!NIUPPERA)+([1]!NIUPPLIMA-[1]!NILOWLIMA)*[1]!NILOWA,IF(AF38>[1]!NILOWLIMA,(AF38-[1]!NILOWLIMA)*[1]!NILOWA,0)))+IF($Q38="Y",IF(AF38>[1]!NIUPPLIMA,((AF38-[1]!NIUPPLIMA)*[1]!NIUPPERA)+(([1]!NIUPPLIMA-[1]!NILOWLIMA)*[1]!NISUPNA),IF(AF38>[1]!NILOWLIMA,(AF38-[1]!NILOWLIMA)*[1]!NISUPNA,0)))+IF(AF38>[1]!NILOWLIMA,-[1]!NICREBATEA,0) -> 0 | AT38: =SUM(AH38:AS38) -> 0 | AU38: 0 | AV38: 0 | AW38: 2 | AX38: 0 | AY38: =IF($E38="LEADER",VLOOKUP(AW38,[1]!LEADERSHIP,5),IF($E38="TEACHER",VLOOKUP(AW38,[1]!TEACHER,5),IF($E38="ADVANCED",VLOOKUP($AW38,[1]!ADVANCED_SKILLS_TEACHERS,5),IF($E38="UNQUAL",VLOOKUP($AW38,[1]!UNQUALIFIED_TEACHER,5),0))))*D38*(1+BA$4)*(1+BA$5)+(AX38/AZ38) -> 0 | AZ38: 12 | BA38: 0 | BD38: =(IF($Q38="N",IF(AY38>[1]!NIUPPLIMB,((AY38-[1]!NIUPPLIMB)*[1]!NIUPPERB)+([1]!NIUPPLIMB-[1]!NILOWLIMB)*[1]!NILOWB,IF(AY38>[1]!NILOWLIMB,(AY38-[1]!NILOWLIMB)*[1]!NILOWB,0)))+IF($Q38="Y",IF(AY38>[1]!NIUPPLIMB,((AY38-[1]!NIUPPLIMB)*[1]!NIUPPERB)+(([1]!NIUPPLIMB-[1]!NILOWLIMB)*[1]!NISUPNB),IF(AY38>[1]!NILOWLIMB,(AY38-[1]!NILOWLIMB)*[1]!NISUPNB,0))))*((NumberOfDaysWorked($F38,$G38,BD$1,BF$1)*5)+(NumberOfDaysWorked($F38,$G38,BD$1,BF$1)*7)) -> 0 | BE38: 0 | BF38: 0 | BG38: 3 | BH38: 0 | BI38: =IF($E38="LEADER",VLOOKUP(BG38,[1]!LEADERSHIP,5),IF($E38="TEACHER",VLOOKUP(BG38,[1]!TEACHER,5),IF($E38="ADVANCED",VLOOKUP($AW38,[1]!ADVANCED_SKILLS_TEACHERS,5),IF($E38="UNQUAL",VLOOKUP($AW38,[1]!UNQUALIFIED_TEACHER,5),0))))*D38*(1+BA$4)*(1+BA$5)*(1+BK$4)*(1+BK$5)+(BH38/BJ38) -> 0 | BJ38: 12 | BK38: 0 | BN38: =(IF($Q38="N",IF(BI38>[1]!NIUPPLIMC,((BI38-[1]!NIUPPLIMC)*[1]!NIUPPERC)+([1]!NIUPPLIMC-[1]!NILOWLIMC)*[1]!NILOWC,IF(BI38>[1]!NILOWLIMC,(BI38-[1]!NILOWLIMC)*[1]!NILOWC,0)))+IF($Q38="Y",IF(BI38>[1]!NIUPPLIMC,((BI38-[1]!NIUPPLIMC)*[1]!NIUPPERC)+(([1]!NIUPPLIMC-[1]!NILOWLIMC)*[1]!NISUPNC),IF(BI38>[1]!NILOWLIMC,(BI38-[1]!NILOWLIMC)*[1]!NISUPNC,0))))*((NumberOfDaysWorked($F38,$G38,BN$1,BP$1)*5)+(NumberOfDaysWorked($F38,$G38,BN$1,BP$1)*7)) -> 0 | BO38: 0 | BP38: 0
A39: x | B39: BOLTON/DENNISON ELEANOR | C39: A01001 | D39: 1 | E39: TEACHER | F39: 2026-04-01 | G39: 2026-08-31 | H39: 6 | I39: 6 | J39: 0 | K39: =VLOOKUP(J39,[1]!MANAGEMENT,2)*D39 -> 0 | L39: 0 | M39: =VLOOKUP(L39,[1]!SEN_ALLOWANCES,2)*D39 -> 0 | N39: 0 | O39: 0 | P39: 0 | Q39: Y | R39: =IF($E39="LEADER",VLOOKUP(H39,[1]PAYDATA!$A$4:$C$54,3),IF($E39="TEACHER",VLOOKUP(H39,[1]PAYDATA!$A$70:$C$80,3),IF($E39="ADVANCED",VLOOKUP(H39,[1]PAYDATA!$A$141:$C$159,3),IF($E39="UNQUAL",VLOOKUP(H39,[1]PAYDATA!$A$57:$C$63,3),0))))*$D39+($K39/T39)+($M39/T39)+($O39/T39)+($P39/T39) -> 3779.333333 | S39: =IF($E39="LEADER",VLOOKUP(I39,[1]!LEADERSHIP,5),IF($E39="TEACHER",VLOOKUP(I39,[1]!TEACHER,5),IF($E39="ADVANCED",VLOOKUP(I39,[1]PAYDATA!$A$141:$E$159,5),IF($E39="UNQUAL",VLOOKUP(I39,[1]!UNQUALIFIED_TEACHER,5),0))))*$D39+($K39/T39)+($M39/T39)+($O39/T39)+($P39/T39) -> 3854.92 | T39: 12 | U39: 3779.333333 | V39: 3779.333333 | W39: 3779.333333 | X39: 3779.333333 | Y39: 3779.333333 | Z39: 0 | AA39: 0 | AB39: 0 | AC39: 0 | AD39: 0 | AE39: 0 | AF39: 0 | AG39: =SUM(U39:AF39) -> 18896.66667 | AH39: =IF($Q39="N",IF(U39>[1]!NIUPPLIMA,((U39-[1]!NIUPPLIMA)*[1]!NIUPPERA)+([1]!NIUPPLIMA-[1]!NILOWLIMA)*[1]!NILOWA,IF(U39>[1]!NILOWLIMA,(U39-[1]!NILOWLIMA)*[1]!NILOWA,0)))+IF($Q39="Y",IF(U39>[1]!NIUPPLIMA,((U39-[1]!NIUPPLIMA)*[1]!NIUPPERA)+(([1]!NIUPPLIMA-[1]!NILOWLIMA)*[1]!NISUPNA),IF(U39>[1]!NILOWLIMA,(U39-[1]!NILOWLIMA)*[1]!NISUPNA,0)))+IF(U39>[1]!NILOWLIMA,-[1]!NICREBATEA,0) -> 504.35 | AI39: =IF($Q39="N",IF(V39>[1]!NIUPPLIMA,((V39-[1]!NIUPPLIMA)*[1]!NIUPPERA)+([1]!NIUPPLIMA-[1]!NILOWLIMA)*[1]!NILOWA,IF(V39>[1]!NILOWLIMA,(V39-[1]!NILOWLIMA)*[1]!NILOWA,0)))+IF($Q39="Y",IF(V39>[1]!NIUPPLIMA,((V39-[1]!NIUPPLIMA)*[1]!NIUPPERA)+(([1]!NIUPPLIMA-[1]!NILOWLIMA)*[1]!NISUPNA),IF(V39>[1]!NILOWLIMA,(V39-[1]!NILOWLIMA)*[1]!NISUPNA,0)))+IF(V39>[1]!NILOWLIMA,-[1]!NICREBATEA,0) -> 504.35 | AJ39: =IF($Q39="N",IF(W39>[1]!NIUPPLIMA,((W39-[1]!NIUPPLIMA)*[1]!NIUPPERA)+([1]!NIUPPLIMA-[1]!NILOWLIMA)*[1]!NILOWA,IF(W39>[1]!NILOWLIMA,(W39-[1]!NILOWLIMA)*[1]!NILOWA,0)))+IF($Q39="Y",IF(W39>[1]!NIUPPLIMA,((W39-[1]!NIUPPLIMA)*[1]!NIUPPERA)+(([1]!NIUPPLIMA-[1]!NILOWLIMA)*[1]!NISUPNA),IF(W39>[1]!NILOWLIMA,(W39-[1]!NILOWLIMA)*[1]!NISUPNA,0)))+IF(W39>[1]!NILOWLIMA,-[1]!NICREBATEA,0) -> 504.35 | AK39: =IF($Q39="N",IF(X39>[1]!NIUPPLIMA,((X39-[1]!NIUPPLIMA)*[1]!NIUPPERA)+([1]!NIUPPLIMA-[1]!NILOWLIMA)*[1]!NILOWA,IF(X39>[1]!NILOWLIMA,(X39-[1]!NILOWLIMA)*[1]!NILOWA,0)))+IF($Q39="Y",IF(X39>[1]!NIUPPLIMA,((X39-[1]!NIUPPLIMA)*[1]!NIUPPERA)+(([1]!NIUPPLIMA-[1]!NILOWLIMA)*[1]!NISUPNA),IF(X39>[1]!NILOWLIMA,(X39-[1]!NILOWLIMA)*[1]!NISUPNA,0)))+IF(X39>[1]!NILOWLIMA,-[1]!NICREBATEA,0) -> 504.35 | AL39: =IF($Q39="N",IF(Y39>[1]!NIUPPLIMA,((Y39-[1]!NIUPPLIMA)*[1]!NIUPPERA)+([1]!NIUPPLIMA-[1]!NILOWLIMA)*[1]!NILOWA,IF(Y39>[1]!NILOWLIMA,(Y39-[1]!NILOWLIMA)*[1]!NILOWA,0)))+IF($Q39="Y",IF(Y39>[1]!NIUPPLIMA,((Y39-[1]!NIUPPLIMA)*[1]!NIUPPERA)+(([1]!NIUPPLIMA-[1]!NILOWLIMA)*[1]!NISUPNA),IF(Y39>[1]!NILOWLIMA,(Y39-[1]!NILOWLIMA)*[1]!NISUPNA,0)))+IF(Y39>[1]!NILOWLIMA,-[1]!NICREBATEA,0) -> 504.35 | AM39: =IF($Q39="N",IF(Z39>[1]!NIUPPLIMA,((Z39-[1]!NIUPPLIMA)*[1]!NIUPPERA)+([1]!NIUPPLIMA-[1]!NILOWLIMA)*[1]!NILOWA,IF(Z39>[1]!NILOWLIMA,(Z39-[1]!NILOWLIMA)*[1]!NILOWA,0)))+IF($Q39="Y",IF(Z39>[1]!NIUPPLIMA,((Z39-[1]!NIUPPLIMA)*[1]!NIUPPERA)+(([1]!NIUPPLIMA-[1]!NILOWLIMA)*[1]!NISUPNA),IF(Z39>[1]!NILOWLIMA,(Z39-[1]!NILOWLIMA)*[1]!NISUPNA,0)))+IF(Z39>[1]!NILOWLIMA,-[1]!NICREBATEA,0) -> 0 | AN39: =IF($Q39="N",IF(AA39>[1]!NIUPPLIMA,((AA39-[1]!NIUPPLIMA)*[1]!NIUPPERA)+([1]!NIUPPLIMA-[1]!NILOWLIMA)*[1]!NILOWA,IF(AA39>[1]!NILOWLIMA,(AA39-[1]!NILOWLIMA)*[1]!NILOWA,0)))+IF($Q39="Y",IF(AA39>[1]!NIUPPLIMA,((AA39-[1]!NIUPPLIMA)*[1]!NIUPPERA)+(([1]!NIUPPLIMA-[1]!NILOWLIMA)*[1]!NISUPNA),IF(AA39>[1]!NILOWLIMA,(AA39-[1]!NILOWLIMA)*[1]!NISUPNA,0)))+IF(AA39>[1]!NILOWLIMA,-[1]!NICREBATEA,0) -> 0 | AO39: =IF($Q39="N",IF(AB39>[1]!NIUPPLIMA,((AB39-[1]!NIUPPLIMA)*[1]!NIUPPERA)+([1]!NIUPPLIMA-[1]!NILOWLIMA)*[1]!NILOWA,IF(AB39>[1]!NILOWLIMA,(AB39-[1]!NILOWLIMA)*[1]!NILOWA,0)))+IF($Q39="Y",IF(AB39>[1]!NIUPPLIMA,((AB39-[1]!NIUPPLIMA)*[1]!NIUPPERA)+(([1]!NIUPPLIMA-[1]!NILOWLIMA)*[1]!NISUPNA),IF(AB39>[1]!NILOWLIMA,(AB39-[1]!NILOWLIMA)*[1]!NISUPNA,0)))+IF(AB39>[1]!NILOWLIMA,-[1]!NICREBATEA,0) -> 0 | AP39: =IF($Q39="N",IF(AC39>[1]!NIUPPLIMA,((AC39-[1]!NIUPPLIMA)*[1]!NIUPPERA)+([1]!NIUPPLIMA-[1]!NILOWLIMA)*[1]!NILOWA,IF(AC39>[1]!NILOWLIMA,(AC39-[1]!NILOWLIMA)*[1]!NILOWA,0)))+IF($Q39="Y",IF(AC39>[1]!NIUPPLIMA,((AC39-[1]!NIUPPLIMA)*[1]!NIUPPERA)+(([1]!NIUPPLIMA-[1]!NILOWLIMA)*[1]!NISUPNA),IF(AC39>[1]!NILOWLIMA,(AC39-[1]!NILOWLIMA)*[1]!NISUPNA,0)))+IF(AC39>[1]!NILOWLIMA,-[1]!NICREBATEA,0) -> 0 | AQ39: =IF($Q39="N",IF(AD39>[1]!NIUPPLIMA,((AD39-[1]!NIUPPLIMA)*[1]!NIUPPERA)+([1]!NIUPPLIMA-[1]!NILOWLIMA)*[1]!NILOWA,IF(AD39>[1]!NILOWLIMA,(AD39-[1]!NILOWLIMA)*[1]!NILOWA,0)))+IF($Q39="Y",IF(AD39>[1]!NIUPPLIMA,((AD39-[1]!NIUPPLIMA)*[1]!NIUPPERA)+(([1]!NIUPPLIMA-[1]!NILOWLIMA)*[1]!NISUPNA),IF(AD39>[1]!NILOWLIMA,(AD39-[1]!NILOWLIMA)*[1]!NISUPNA,0)))+IF(AD39>[1]!NILOWLIMA,-[1]!NICREBATEA,0) -> 0 | AR39: =IF($Q39="N",IF(AE39>[1]!NIUPPLIMA,((AE39-[1]!NIUPPLIMA)*[1]!NIUPPERA)+([1]!NIUPPLIMA-[1]!NILOWLIMA)*[1]!NILOWA,IF(AE39>[1]!NILOWLIMA,(AE39-[1]!NILOWLIMA)*[1]!NILOWA,0)))+IF($Q39="Y",IF(AE39>[1]!NIUPPLIMA,((AE39-[1]!NIUPPLIMA)*[1]!NIUPPERA)+(([1]!NIUPPLIMA-[1]!NILOWLIMA)*[1]!NISUPNA),IF(AE39>[1]!NILOWLIMA,(AE39-[1]!NILOWLIMA)*[1]!NISUPNA,0)))+IF(AE39>[1]!NILOWLIMA,-[1]!NICREBATEA,0) -> 0 | AS39: =IF($Q39="N",IF(AF39>[1]!NIUPPLIMA,((AF39-[1]!NIUPPLIMA)*[1]!NIUPPERA)+([1]!NIUPPLIMA-[1]!NILOWLIMA)*[1]!NILOWA,IF(AF39>[1]!NILOWLIMA,(AF39-[1]!NILOWLIMA)*[1]!NILOWA,0)))+IF($Q39="Y",IF(AF39>[1]!NIUPPLIMA,((AF39-[1]!NIUPPLIMA)*[1]!NIUPPERA)+(([1]!NIUPPLIMA-[1]!NILOWLIMA)*[1]!NISUPNA),IF(AF39>[1]!NILOWLIMA,(AF39-[1]!NILOWLIMA)*[1]!NISUPNA,0)))+IF(AF39>[1]!NILOWLIMA,-[1]!NICREBATEA,0) -> 0 | AT39: =SUM(AH39:AS39) -> 2521.75 | AU39: =IF($Q39="N",0,((AG39*$AU$5))) -> 5419.564 | AV39: =AG39+AT39+AU39 -> 26837.98067 | AW39: =IF($E39="TEACHER",IF($I39<6,$I39+1,IF(LEFT($I39,1)="U",$I39,6)),IF($E39="LEADER",+I39,IF($E39="UNQUAL",IF($I39<10,$I39+1,10),IF($E39="ADVANCED",IF($I39<27,$I39+1,27))))) -> 6 | AX39: =(K39+M39+O39+P39) -> 0 | AY39: =IF($E39="LEADER",VLOOKUP(AW39,[1]!LEADERSHIP,5),IF($E39="TEACHER",VLOOKUP(AW39,[1]!TEACHER,5),IF($E39="ADVANCED",VLOOKUP($AW39,[1]!ADVANCED_SKILLS_TEACHERS,5),IF($E39="UNQUAL",VLOOKUP($AW39,[1]!UNQUALIFIED_TEACHER,5),0))))*D39*(1+BA$4)*(1+BA$5)+(AX39/AZ39) -> 3932.0184 | AZ39: =IF(G39-F39>11.99999,12,MONTH(G39)-MONTH(F39)) -> 12 | BA39: =NumberOfDaysWorked($F39,$G39,BD$1,BF$1)*(($S39*(1+BA$4))*5)+NumberOfDaysWorked($F39,$G39,BD$1,BF$1)*($AY39*7) -> 0 | BD39: =(IF($Q39="N",IF(AY39>[1]!NIUPPLIMB,((AY39-[1]!NIUPPLIMB)*[1]!NIUPPERB)+([1]!NIUPPLIMB-[1]!NILOWLIMB)*[1]!NILOWB,IF(AY39>[1]!NILOWLIMB,(AY39-[1]!NILOWLIMB)*[1]!NILOWB,0)))+IF($Q39="Y",IF(AY39>[1]!NIUPPLIMB,((AY39-[1]!NIUPPLIMB)*[1]!NIUPPERB)+(([1]!NIUPPLIMB-[1]!NILOWLIMB)*[1]!NISUPNB),IF(AY39>[1]!NILOWLIMB,(AY39-[1]!NILOWLIMB)*[1]!NISUPNB,0))))*((NumberOfDaysWorked($F39,$G39,BD$1,BF$1)*5)+(NumberOfDaysWorked($F39,$G39,BD$1,BF$1)*7)) -> 0 | BE39: =IF($Q39="N",0,(BA39*$BE$5)) -> 0 | BF39: =SUM(BA39:BE39) -> 0 | BG39: =IF($E39="TEACHER",IF(AW39<6,AW39+1,IF(LEFT(AW39,1)="U",AW39,6)),IF($E39="LEADER",+I39,IF($E39="UNQUAL",IF(AW39<10,AW39+1,10),IF($E39="ADVANCED",IF(AW39<27,AW39+1,27))))) -> 6 | BH39: =(K39+M39+O39+P39) -> 0 | BI39: =IF($E39="LEADER",VLOOKUP(BG39,[1]!LEADERSHIP,5),IF($E39="TEACHER",VLOOKUP(BG39,[1]!TEACHER,5),IF($E39="ADVANCED",VLOOKUP($AW39,[1]!ADVANCED_SKILLS_TEACHERS,5),IF($E39="UNQUAL",VLOOKUP($AW39,[1]!UNQUALIFIED_TEACHER,5),0))))*D39*(1+BA$4)*(1+BA$5)*(1+BK$4)*(1+BK$5)+(BH39/BJ39) -> 4010.658768 | BJ39: =IF(G39-F39>11.99999,12,MONTH(G39)-MONTH(F39)) -> 12 | BK39: =NumberOfDaysWorked($F39,$G39,BN$1,BP$1)*(($AY39*(1+BK$4))*5)+NumberOfDaysWorked($F39,$G39,BN$1,BP$1)*($BI39*7) -> 0 | BN39: =(IF($Q39="N",IF(BI39>[1]!NIUPPLIMC,((BI39-[1]!NIUPPLIMC)*[1]!NIUPPERC)+([1]!NIUPPLIMC-[1]!NILOWLIMC)*[1]!NILOWC,IF(BI39>[1]!NILOWLIMC,(BI39-[1]!NILOWLIMC)*[1]!NILOWC,0)))+IF($Q39="Y",IF(BI39>[1]!NIUPPLIMC,((BI39-[1]!NIUPPLIMC)*[1]!NIUPPERC)+(([1]!NIUPPLIMC-[1]!NILOWLIMC)*[1]!NISUPNC),IF(BI39>[1]!NILOWLIMC,(BI39-[1]!NILOWLIMC)*[1]!NISUPNC,0))))*((NumberOfDaysWorked($F39,$G39,BN$1,BP$1)*5)+(NumberOfDaysWorked($F39,$G39,BN$1,BP$1)*7)) -> 0 | BO39: =IF($Q39="N",0,(BK39*$BO$5)) -> 0 | BP39: =SUM(BK39:BO39) -> 0
A40: x | C40: A01001 | D40: 0 | E40: TEACHER | F40: 2026-04-01 | G40: 2029-03-31 | H40: U1 | I40: U1 | J40: 0 | K40: =VLOOKUP(J40,[1]!MANAGEMENT,2)*D40 -> 0 | L40: 0 | M40: =VLOOKUP(L40,[1]!SEN_ALLOWANCES,2)*D40 -> 0 | N40: 0 | O40: 0 | P40: 0 | Q40: Y | R40: =IF($E40="LEADER",VLOOKUP(H40,[1]PAYDATA!$A$4:$C$54,3),IF($E40="TEACHER",VLOOKUP(H40,[1]PAYDATA!$A$70:$C$80,3),IF($E40="ADVANCED",VLOOKUP(H40,[1]PAYDATA!$A$141:$C$159,3),IF($E40="UNQUAL",VLOOKUP(H40,[1]PAYDATA!$A$57:$C$63,3),0))))*$D40+($K40/T40)+($M40/T40)+($O40/T40)+($P40/T40) -> 0 | S40: =IF($E40="LEADER",VLOOKUP(I40,[1]!LEADERSHIP,5),IF($E40="TEACHER",VLOOKUP(I40,[1]!TEACHER,5),IF($E40="ADVANCED",VLOOKUP(I40,[1]PAYDATA!$A$141:$E$159,5),IF($E40="UNQUAL",VLOOKUP(I40,[1]!UNQUALIFIED_TEACHER,5),0))))*$D40+($K40/T40)+($M40/T40)+($O40/T40)+($P40/T40) -> 0 | T40: =IF(G40-F40>11.99999,12,MONTH(G40)-MONTH(F40)) -> 12 | U40: =NumberOfDaysWorked($F40,$G40,U$3,U$4)*$R40 -> 0 | V40: 0 | W40: 0 | X40: 0 | Y40: 0 | Z40: =NumberOfDaysWorked($F40,$G40,Z$3,Z$4)*$S40 -> 0 | AA40: 0 | AB40: 0 | AC40: 0 | AD40: 0 | AE40: 0 | AF40: 0 | AG40: =SUM(U40:AF40) -> 0 | AH40: =IF($Q40="N",IF(U40>[1]!NIUPPLIMA,((U40-[1]!NIUPPLIMA)*[1]!NIUPPERA)+([1]!NIUPPLIMA-[1]!NILOWLIMA)*[1]!NILOWA,IF(U40>[1]!NILOWLIMA,(U40-[1]!NILOWLIMA)*[1]!NILOWA,0)))+IF($Q40="Y",IF(U40>[1]!NIUPPLIMA,((U40-[1]!NIUPPLIMA)*[1]!NIUPPERA)+(([1]!NIUPPLIMA-[1]!NILOWLIMA)*[1]!NISUPNA),IF(U40>[1]!NILOWLIMA,(U40-[1]!NILOWLIMA)*[1]!NISUPNA,0)))+IF(U40>[1]!NILOWLIMA,-[1]!NICREBATEA,0) -> 0 | AI40: =IF($Q40="N",IF(V40>[1]!NIUPPLIMA,((V40-[1]!NIUPPLIMA)*[1]!NIUPPERA)+([1]!NIUPPLIMA-[1]!NILOWLIMA)*[1]!NILOWA,IF(V40>[1]!NILOWLIMA,(V40-[1]!NILOWLIMA)*[1]!NILOWA,0)))+IF($Q40="Y",IF(V40>[1]!NIUPPLIMA,((V40-[1]!NIUPPLIMA)*[1]!NIUPPERA)+(([1]!NIUPPLIMA-[1]!NILOWLIMA)*[1]!NISUPNA),IF(V40>[1]!NILOWLIMA,(V40-[1]!NILOWLIMA)*[1]!NISUPNA,0)))+IF(V40>[1]!NILOWLIMA,-[1]!NICREBATEA,0) -> 0 | AJ40: =IF($Q40="N",IF(W40>[1]!NIUPPLIMA,((W40-[1]!NIUPPLIMA)*[1]!NIUPPERA)+([1]!NIUPPLIMA-[1]!NILOWLIMA)*[1]!NILOWA,IF(W40>[1]!NILOWLIMA,(W40-[1]!NILOWLIMA)*[1]!NILOWA,0)))+IF($Q40="Y",IF(W40>[1]!NIUPPLIMA,((W40-[1]!NIUPPLIMA)*[1]!NIUPPERA)+(([1]!NIUPPLIMA-[1]!NILOWLIMA)*[1]!NISUPNA),IF(W40>[1]!NILOWLIMA,(W40-[1]!NILOWLIMA)*[1]!NISUPNA,0)))+IF(W40>[1]!NILOWLIMA,-[1]!NICREBATEA,0) -> 0 | AK40: =IF($Q40="N",IF(X40>[1]!NIUPPLIMA,((X40-[1]!NIUPPLIMA)*[1]!NIUPPERA)+([1]!NIUPPLIMA-[1]!NILOWLIMA)*[1]!NILOWA,IF(X40>[1]!NILOWLIMA,(X40-[1]!NILOWLIMA)*[1]!NILOWA,0)))+IF($Q40="Y",IF(X40>[1]!NIUPPLIMA,((X40-[1]!NIUPPLIMA)*[1]!NIUPPERA)+(([1]!NIUPPLIMA-[1]!NILOWLIMA)*[1]!NISUPNA),IF(X40>[1]!NILOWLIMA,(X40-[1]!NILOWLIMA)*[1]!NISUPNA,0)))+IF(X40>[1]!NILOWLIMA,-[1]!NICREBATEA,0) -> 0 | AL40: =IF($Q40="N",IF(Y40>[1]!NIUPPLIMA,((Y40-[1]!NIUPPLIMA)*[1]!NIUPPERA)+([1]!NIUPPLIMA-[1]!NILOWLIMA)*[1]!NILOWA,IF(Y40>[1]!NILOWLIMA,(Y40-[1]!NILOWLIMA)*[1]!NILOWA,0)))+IF($Q40="Y",IF(Y40>[1]!NIUPPLIMA,((Y40-[1]!NIUPPLIMA)*[1]!NIUPPERA)+(([1]!NIUPPLIMA-[1]!NILOWLIMA)*[1]!NISUPNA),IF(Y40>[1]!NILOWLIMA,(Y40-[1]!NILOWLIMA)*[1]!NISUPNA,0)))+IF(Y40>[1]!NILOWLIMA,-[1]!NICREBATEA,0) -> 0 | AM40: =IF($Q40="N",IF(Z40>[1]!NIUPPLIMA,((Z40-[1]!NIUPPLIMA)*[1]!NIUPPERA)+([1]!NIUPPLIMA-[1]!NILOWLIMA)*[1]!NILOWA,IF(Z40>[1]!NILOWLIMA,(Z40-[1]!NILOWLIMA)*[1]!NILOWA,0)))+IF($Q40="Y",IF(Z40>[1]!NIUPPLIMA,((Z40-[1]!NIUPPLIMA)*[1]!NIUPPERA)+(([1]!NIUPPLIMA-[1]!NILOWLIMA)*[1]!NISUPNA),IF(Z40>[1]!NILOWLIMA,(Z40-[1]!NILOWLIMA)*[1]!NISUPNA,0)))+IF(Z40>[1]!NILOWLIMA,-[1]!NICREBATEA,0) -> 0 | AN40: =IF($Q40="N",IF(AA40>[1]!NIUPPLIMA,((AA40-[1]!NIUPPLIMA)*[1]!NIUPPERA)+([1]!NIUPPLIMA-[1]!NILOWLIMA)*[1]!NILOWA,IF(AA40>[1]!NILOWLIMA,(AA40-[1]!NILOWLIMA)*[1]!NILOWA,0)))+IF($Q40="Y",IF(AA40>[1]!NIUPPLIMA,((AA40-[1]!NIUPPLIMA)*[1]!NIUPPERA)+(([1]!NIUPPLIMA-[1]!NILOWLIMA)*[1]!NISUPNA),IF(AA40>[1]!NILOWLIMA,(AA40-[1]!NILOWLIMA)*[1]!NISUPNA,0)))+IF(AA40>[1]!NILOWLIMA,-[1]!NICREBATEA,0) -> 0 | AO40: =IF($Q40="N",IF(AB40>[1]!NIUPPLIMA,((AB40-[1]!NIUPPLIMA)*[1]!NIUPPERA)+([1]!NIUPPLIMA-[1]!NILOWLIMA)*[1]!NILOWA,IF(AB40>[1]!NILOWLIMA,(AB40-[1]!NILOWLIMA)*[1]!NILOWA,0)))+IF($Q40="Y",IF(AB40>[1]!NIUPPLIMA,((AB40-[1]!NIUPPLIMA)*[1]!NIUPPERA)+(([1]!NIUPPLIMA-[1]!NILOWLIMA)*[1]!NISUPNA),IF(AB40>[1]!NILOWLIMA,(AB40-[1]!NILOWLIMA)*[1]!NISUPNA,0)))+IF(AB40>[1]!NILOWLIMA,-[1]!NICREBATEA,0) -> 0 | AP40: =IF($Q40="N",IF(AC40>[1]!NIUPPLIMA,((AC40-[1]!NIUPPLIMA)*[1]!NIUPPERA)+([1]!NIUPPLIMA-[1]!NILOWLIMA)*[1]!NILOWA,IF(AC40>[1]!NILOWLIMA,(AC40-[1]!NILOWLIMA)*[1]!NILOWA,0)))+IF($Q40="Y",IF(AC40>[1]!NIUPPLIMA,((AC40-[1]!NIUPPLIMA)*[1]!NIUPPERA)+(([1]!NIUPPLIMA-[1]!NILOWLIMA)*[1]!NISUPNA),IF(AC40>[1]!NILOWLIMA,(AC40-[1]!NILOWLIMA)*[1]!NISUPNA,0)))+IF(AC40>[1]!NILOWLIMA,-[1]!NICREBATEA,0) -> 0 | AQ40: =IF($Q40="N",IF(AD40>[1]!NIUPPLIMA,((AD40-[1]!NIUPPLIMA)*[1]!NIUPPERA)+([1]!NIUPPLIMA-[1]!NILOWLIMA)*[1]!NILOWA,IF(AD40>[1]!NILOWLIMA,(AD40-[1]!NILOWLIMA)*[1]!NILOWA,0)))+IF($Q40="Y",IF(AD40>[1]!NIUPPLIMA,((AD40-[1]!NIUPPLIMA)*[1]!NIUPPERA)+(([1]!NIUPPLIMA-[1]!NILOWLIMA)*[1]!NISUPNA),IF(AD40>[1]!NILOWLIMA,(AD40-[1]!NILOWLIMA)*[1]!NISUPNA,0)))+IF(AD40>[1]!NILOWLIMA,-[1]!NICREBATEA,0) -> 0 | AR40: =IF($Q40="N",IF(AE40>[1]!NIUPPLIMA,((AE40-[1]!NIUPPLIMA)*[1]!NIUPPERA)+([1]!NIUPPLIMA-[1]!NILOWLIMA)*[1]!NILOWA,IF(AE40>[1]!NILOWLIMA,(AE40-[1]!NILOWLIMA)*[1]!NILOWA,0)))+IF($Q40="Y",IF(AE40>[1]!NIUPPLIMA,((AE40-[1]!NIUPPLIMA)*[1]!NIUPPERA)+(([1]!NIUPPLIMA-[1]!NILOWLIMA)*[1]!NISUPNA),IF(AE40>[1]!NILOWLIMA,(AE40-[1]!NILOWLIMA)*[1]!NISUPNA,0)))+IF(AE40>[1]!NILOWLIMA,-[1]!NICREBATEA,0) -> 0 | AS40: =IF($Q40="N",IF(AF40>[1]!NIUPPLIMA,((AF40-[1]!NIUPPLIMA)*[1]!NIUPPERA)+([1]!NIUPPLIMA-[1]!NILOWLIMA)*[1]!NILOWA,IF(AF40>[1]!NILOWLIMA,(AF40-[1]!NILOWLIMA)*[1]!NILOWA,0)))+IF($Q40="Y",IF(AF40>[1]!NIUPPLIMA,((AF40-[1]!NIUPPLIMA)*[1]!NIUPPERA)+(([1]!NIUPPLIMA-[1]!NILOWLIMA)*[1]!NISUPNA),IF(AF40>[1]!NILOWLIMA,(AF40-[1]!NILOWLIMA)*[1]!NISUPNA,0)))+IF(AF40>[1]!NILOWLIMA,-[1]!NICREBATEA,0) -> 0 | AT40: =SUM(AH40:AS40) -> 0 | AU40: =IF($Q40="N",0,((AG40*$AU$5))) -> 0 | AV40: =AG40+AT40+AU40 -> 0 | AW40: =IF($E40="TEACHER",IF($I40<6,$I40+1,IF(LEFT($I40,1)="U",$I40,6)),IF($E40="LEADER",+I40,IF($E40="UNQUAL",IF($I40<10,$I40+1,10),IF($E40="ADVANCED",IF($I40<27,$I40+1,27))))) -> U1 | AX40: =(K40+M40+O40+P40) -> 0 | AY40: =IF($E40="LEADER",VLOOKUP(AW40,[1]!LEADERSHIP,5),IF($E40="TEACHER",VLOOKUP(AW40,[1]!TEACHER,5),IF($E40="ADVANCED",VLOOKUP($AW40,[1]!ADVANCED_SKILLS_TEACHERS,5),IF($E40="UNQUAL",VLOOKUP($AW40,[1]!UNQUALIFIED_TEACHER,5),0))))*D40*(1+BA$4)*(1+BA$5)+(AX40/AZ40) -> 0 | AZ40: =IF(G40-F40>11.99999,12,MONTH(G40)-MONTH(F40)) -> 12 | BA40: =NumberOfDaysWorked($F40,$G40,BD$1,BF$1)*(($S40*(1+BA$4))*5)+NumberOfDaysWorked($F40,$G40,BD$1,BF$1)*($AY40*7) -> 0 | BD40: =(IF($Q40="N",IF(AY40>[1]!NIUPPLIMB,((AY40-[1]!NIUPPLIMB)*[1]!NIUPPERB)+([1]!NIUPPLIMB-[1]!NILOWLIMB)*[1]!NILOWB,IF(AY40>[1]!NILOWLIMB,(AY40-[1]!NILOWLIMB)*[1]!NILOWB,0)))+IF($Q40="Y",IF(AY40>[1]!NIUPPLIMB,((AY40-[1]!NIUPPLIMB)*[1]!NIUPPERB)+(([1]!NIUPPLIMB-[1]!NILOWLIMB)*[1]!NISUPNB),IF(AY40>[1]!NILOWLIMB,(AY40-[1]!NILOWLIMB)*[1]!NISUPNB,0))))*((NumberOfDaysWorked($F40,$G40,BD$1,BF$1)*5)+(NumberOfDaysWorked($F40,$G40,BD$1,BF$1)*7)) -> 0 | BE40: =IF($Q40="N",0,(BA40*$BE$5)) -> 0 | BF40: =SUM(BA40:BE40) -> 0 | BG40: =IF($E40="TEACHER",IF(AW40<6,AW40+1,IF(LEFT(AW40,1)="U",AW40,6)),IF($E40="LEADER",+I40,IF($E40="UNQUAL",IF(AW40<10,AW40+1,10),IF($E40="ADVANCED",IF(AW40<27,AW40+1,27))))) -> U1 | BH40: =(K40+M40+O40+P40) -> 0 | BI40: =IF($E40="LEADER",VLOOKUP(BG40,[1]!LEADERSHIP,5),IF($E40="TEACHER",VLOOKUP(BG40,[1]!TEACHER,5),IF($E40="ADVANCED",VLOOKUP($AW40,[1]!ADVANCED_SKILLS_TEACHERS,5),IF($E40="UNQUAL",VLOOKUP($AW40,[1]!UNQUALIFIED_TEACHER,5),0))))*D40*(1+BA$4)*(1+BA$5)*(1+BK$4)*(1+BK$5)+(BH40/BJ40) -> 0 | BJ40: =IF(G40-F40>11.99999,12,MONTH(G40)-MONTH(F40)) -> 12 | BK40: =NumberOfDaysWorked($F40,$G40,BN$1,BP$1)*(($AY40*(1+BK$4))*5)+NumberOfDaysWorked($F40,$G40,BN$1,BP$1)*($BI40*7) -> 0 | BN40: =(IF($Q40="N",IF(BI40>[1]!NIUPPLIMC,((BI40-[1]!NIUPPLIMC)*[1]!NIUPPERC)+([1]!NIUPPLIMC-[1]!NILOWLIMC)*[1]!NILOWC,IF(BI40>[1]!NILOWLIMC,(BI40-[1]!NILOWLIMC)*[1]!NILOWC,0)))+IF($Q40="Y",IF(BI40>[1]!NIUPPLIMC,((BI40-[1]!NIUPPLIMC)*[1]!NIUPPERC)+(([1]!NIUPPLIMC-[1]!NILOWLIMC)*[1]!NISUPNC),IF(BI40>[1]!NILOWLIMC,(BI40-[1]!NILOWLIMC)*[1]!NISUPNC,0))))*((NumberOfDaysWorked($F40,$G40,BN$1,BP$1)*5)+(NumberOfDaysWorked($F40,$G40,BN$1,BP$1)*7)) -> 0 | BO40: =IF($Q40="N",0,(BK40*$BO$5)) -> 0 | BP40: =SUM(BK40:BO40) -> 0
A41: x | C41: A01001 | D41: 0 | E41: TEACHER | F41: 2026-04-01 | G41: 2029-03-31 | H41: U1 | I41: U1 | J41: 0 | K41: =VLOOKUP(J41,[1]!MANAGEMENT,2)*D41 -> 0 | L41: 0 | M41: =VLOOKUP(L41,[1]!SEN_ALLOWANCES,2)*D41 -> 0 | N41: 0 | O41: 0 | P41: 0 | Q41: Y | R41: =IF($E41="LEADER",VLOOKUP(H41,[1]PAYDATA!$A$4:$C$54,3),IF($E41="TEACHER",VLOOKUP(H41,[1]PAYDATA!$A$70:$C$80,3),IF($E41="ADVANCED",VLOOKUP(H41,[1]PAYDATA!$A$141:$C$159,3),IF($E41="UNQUAL",VLOOKUP(H41,[1]PAYDATA!$A$57:$C$63,3),0))))*$D41+($K41/T41)+($M41/T41)+($O41/T41)+($P41/T41) -> 0 | S41: =IF($E41="LEADER",VLOOKUP(I41,[1]!LEADERSHIP,5),IF($E41="TEACHER",VLOOKUP(I41,[1]!TEACHER,5),IF($E41="ADVANCED",VLOOKUP(I41,[1]PAYDATA!$A$141:$E$159,5),IF($E41="UNQUAL",VLOOKUP(I41,[1]!UNQUALIFIED_TEACHER,5),0))))*$D41+($K41/T41)+($M41/T41)+($O41/T41)+($P41/T41) -> 0 | T41: 12 | U41: 0 | V41: 0 | W41: 0 | X41: 0 | Y41: 0 | Z41: 0 | AA41: 0 | AB41: 0 | AC41: 0 | AD41: 0 | AE41: 0 | AF41: 0 | AG41: 0 | AH41: =IF($Q41="N",IF(U41>[1]!NIUPPLIMA,((U41-[1]!NIUPPLIMA)*[1]!NIUPPERA)+([1]!NIUPPLIMA-[1]!NILOWLIMA)*[1]!NILOWA,IF(U41>[1]!NILOWLIMA,(U41-[1]!NILOWLIMA)*[1]!NILOWA,0)))+IF($Q41="Y",IF(U41>[1]!NIUPPLIMA,((U41-[1]!NIUPPLIMA)*[1]!NIUPPERA)+(([1]!NIUPPLIMA-[1]!NILOWLIMA)*[1]!NISUPNA),IF(U41>[1]!NILOWLIMA,(U41-[1]!NILOWLIMA)*[1]!NISUPNA,0)))+IF(U41>[1]!NILOWLIMA,-[1]!NICREBATEA,0) -> 0 | AI41: =IF($Q41="N",IF(V41>[1]!NIUPPLIMA,((V41-[1]!NIUPPLIMA)*[1]!NIUPPERA)+([1]!NIUPPLIMA-[1]!NILOWLIMA)*[1]!NILOWA,IF(V41>[1]!NILOWLIMA,(V41-[1]!NILOWLIMA)*[1]!NILOWA,0)))+IF($Q41="Y",IF(V41>[1]!NIUPPLIMA,((V41-[1]!NIUPPLIMA)*[1]!NIUPPERA)+(([1]!NIUPPLIMA-[1]!NILOWLIMA)*[1]!NISUPNA),IF(V41>[1]!NILOWLIMA,(V41-[1]!NILOWLIMA)*[1]!NISUPNA,0)))+IF(V41>[1]!NILOWLIMA,-[1]!NICREBATEA,0) -> 0 | AJ41: =IF($Q41="N",IF(W41>[1]!NIUPPLIMA,((W41-[1]!NIUPPLIMA)*[1]!NIUPPERA)+([1]!NIUPPLIMA-[1]!NILOWLIMA)*[1]!NILOWA,IF(W41>[1]!NILOWLIMA,(W41-[1]!NILOWLIMA)*[1]!NILOWA,0)))+IF($Q41="Y",IF(W41>[1]!NIUPPLIMA,((W41-[1]!NIUPPLIMA)*[1]!NIUPPERA)+(([1]!NIUPPLIMA-[1]!NILOWLIMA)*[1]!NISUPNA),IF(W41>[1]!NILOWLIMA,(W41-[1]!NILOWLIMA)*[1]!NISUPNA,0)))+IF(W41>[1]!NILOWLIMA,-[1]!NICREBATEA,0) -> 0 | AK41: =IF($Q41="N",IF(X41>[1]!NIUPPLIMA,((X41-[1]!NIUPPLIMA)*[1]!NIUPPERA)+([1]!NIUPPLIMA-[1]!NILOWLIMA)*[1]!NILOWA,IF(X41>[1]!NILOWLIMA,(X41-[1]!NILOWLIMA)*[1]!NILOWA,0)))+IF($Q41="Y",IF(X41>[1]!NIUPPLIMA,((X41-[1]!NIUPPLIMA)*[1]!NIUPPERA)+(([1]!NIUPPLIMA-[1]!NILOWLIMA)*[1]!NISUPNA),IF(X41>[1]!NILOWLIMA,(X41-[1]!NILOWLIMA)*[1]!NISUPNA,0)))+IF(X41>[1]!NILOWLIMA,-[1]!NICREBATEA,0) -> 0 | AL41: =IF($Q41="N",IF(Y41>[1]!NIUPPLIMA,((Y41-[1]!NIUPPLIMA)*[1]!NIUPPERA)+([1]!NIUPPLIMA-[1]!NILOWLIMA)*[1]!NILOWA,IF(Y41>[1]!NILOWLIMA,(Y41-[1]!NILOWLIMA)*[1]!NILOWA,0)))+IF($Q41="Y",IF(Y41>[1]!NIUPPLIMA,((Y41-[1]!NIUPPLIMA)*[1]!NIUPPERA)+(([1]!NIUPPLIMA-[1]!NILOWLIMA)*[1]!NISUPNA),IF(Y41>[1]!NILOWLIMA,(Y41-[1]!NILOWLIMA)*[1]!NISUPNA,0)))+IF(Y41>[1]!NILOWLIMA,-[1]!NICREBATEA,0) -> 0 | AM41: =IF($Q41="N",IF(Z41>[1]!NIUPPLIMA,((Z41-[1]!NIUPPLIMA)*[1]!NIUPPERA)+([1]!NIUPPLIMA-[1]!NILOWLIMA)*[1]!NILOWA,IF(Z41>[1]!NILOWLIMA,(Z41-[1]!NILOWLIMA)*[1]!NILOWA,0)))+IF($Q41="Y",IF(Z41>[1]!NIUPPLIMA,((Z41-[1]!NIUPPLIMA)*[1]!NIUPPERA)+(([1]!NIUPPLIMA-[1]!NILOWLIMA)*[1]!NISUPNA),IF(Z41>[1]!NILOWLIMA,(Z41-[1]!NILOWLIMA)*[1]!NISUPNA,0)))+IF(Z41>[1]!NILOWLIMA,-[1]!NICREBATEA,0) -> 0 | AN41: =IF($Q41="N",IF(AA41>[1]!NIUPPLIMA,((AA41-[1]!NIUPPLIMA)*[1]!NIUPPERA)+([1]!NIUPPLIMA-[1]!NILOWLIMA)*[1]!NILOWA,IF(AA41>[1]!NILOWLIMA,(AA41-[1]!NILOWLIMA)*[1]!NILOWA,0)))+IF($Q41="Y",IF(AA41>[1]!NIUPPLIMA,((AA41-[1]!NIUPPLIMA)*[1]!NIUPPERA)+(([1]!NIUPPLIMA-[1]!NILOWLIMA)*[1]!NISUPNA),IF(AA41>[1]!NILOWLIMA,(AA41-[1]!NILOWLIMA)*[1]!NISUPNA,0)))+IF(AA41>[1]!NILOWLIMA,-[1]!NICREBATEA,0) -> 0 | AO41: =IF($Q41="N",IF(AB41>[1]!NIUPPLIMA,((AB41-[1]!NIUPPLIMA)*[1]!NIUPPERA)+([1]!NIUPPLIMA-[1]!NILOWLIMA)*[1]!NILOWA,IF(AB41>[1]!NILOWLIMA,(AB41-[1]!NILOWLIMA)*[1]!NILOWA,0)))+IF($Q41="Y",IF(AB41>[1]!NIUPPLIMA,((AB41-[1]!NIUPPLIMA)*[1]!NIUPPERA)+(([1]!NIUPPLIMA-[1]!NILOWLIMA)*[1]!NISUPNA),IF(AB41>[1]!NILOWLIMA,(AB41-[1]!NILOWLIMA)*[1]!NISUPNA,0)))+IF(AB41>[1]!NILOWLIMA,-[1]!NICREBATEA,0) -> 0 | AP41: =IF($Q41="N",IF(AC41>[1]!NIUPPLIMA,((AC41-[1]!NIUPPLIMA)*[1]!NIUPPERA)+([1]!NIUPPLIMA-[1]!NILOWLIMA)*[1]!NILOWA,IF(AC41>[1]!NILOWLIMA,(AC41-[1]!NILOWLIMA)*[1]!NILOWA,0)))+IF($Q41="Y",IF(AC41>[1]!NIUPPLIMA,((AC41-[1]!NIUPPLIMA)*[1]!NIUPPERA)+(([1]!NIUPPLIMA-[1]!NILOWLIMA)*[1]!NISUPNA),IF(AC41>[1]!NILOWLIMA,(AC41-[1]!NILOWLIMA)*[1]!NISUPNA,0)))+IF(AC41>[1]!NILOWLIMA,-[1]!NICREBATEA,0) -> 0 | AQ41: =IF($Q41="N",IF(AD41>[1]!NIUPPLIMA,((AD41-[1]!NIUPPLIMA)*[1]!NIUPPERA)+([1]!NIUPPLIMA-[1]!NILOWLIMA)*[1]!NILOWA,IF(AD41>[1]!NILOWLIMA,(AD41-[1]!NILOWLIMA)*[1]!NILOWA,0)))+IF($Q41="Y",IF(AD41>[1]!NIUPPLIMA,((AD41-[1]!NIUPPLIMA)*[1]!NIUPPERA)+(([1]!NIUPPLIMA-[1]!NILOWLIMA)*[1]!NISUPNA),IF(AD41>[1]!NILOWLIMA,(AD41-[1]!NILOWLIMA)*[1]!NISUPNA,0)))+IF(AD41>[1]!NILOWLIMA,-[1]!NICREBATEA,0) -> 0 | AR41: =IF($Q41="N",IF(AE41>[1]!NIUPPLIMA,((AE41-[1]!NIUPPLIMA)*[1]!NIUPPERA)+([1]!NIUPPLIMA-[1]!NILOWLIMA)*[1]!NILOWA,IF(AE41>[1]!NILOWLIMA,(AE41-[1]!NILOWLIMA)*[1]!NILOWA,0)))+IF($Q41="Y",IF(AE41>[1]!NIUPPLIMA,((AE41-[1]!NIUPPLIMA)*[1]!NIUPPERA)+(([1]!NIUPPLIMA-[1]!NILOWLIMA)*[1]!NISUPNA),IF(AE41>[1]!NILOWLIMA,(AE41-[1]!NILOWLIMA)*[1]!NISUPNA,0)))+IF(AE41>[1]!NILOWLIMA,-[1]!NICREBATEA,0) -> 0 | AS41: =IF($Q41="N",IF(AF41>[1]!NIUPPLIMA,((AF41-[1]!NIUPPLIMA)*[1]!NIUPPERA)+([1]!NIUPPLIMA-[1]!NILOWLIMA)*[1]!NILOWA,IF(AF41>[1]!NILOWLIMA,(AF41-[1]!NILOWLIMA)*[1]!NILOWA,0)))+IF($Q41="Y",IF(AF41>[1]!NIUPPLIMA,((AF41-[1]!NIUPPLIMA)*[1]!NIUPPERA)+(([1]!NIUPPLIMA-[1]!NILOWLIMA)*[1]!NISUPNA),IF(AF41>[1]!NILOWLIMA,(AF41-[1]!NILOWLIMA)*[1]!NISUPNA,0)))+IF(AF41>[1]!NILOWLIMA,-[1]!NICREBATEA,0) -> 0 | AT41: 0 | AU41: 0 | AV41: 0 | AW41: U1 | AX41: 0 | AY41: =IF($E41="LEADER",VLOOKUP(AW41,[1]!LEADERSHIP,5),IF($E41="TEACHER",VLOOKUP(AW41,[1]!TEACHER,5),IF($E41="ADVANCED",VLOOKUP($AW41,[1]!ADVANCED_SKILLS_TEACHERS,5),IF($E41="UNQUAL",VLOOKUP($AW41,[1]!UNQUALIFIED_TEACHER,5),0))))*D41*(1+BA$4)*(1+BA$5)+(AX41/AZ41) -> 0 | AZ41: 12 | BA41: 0 | BD41: =(IF($Q41="N",IF(AY41>[1]!NIUPPLIMB,((AY41-[1]!NIUPPLIMB)*[1]!NIUPPERB)+([1]!NIUPPLIMB-[1]!NILOWLIMB)*[1]!NILOWB,IF(AY41>[1]!NILOWLIMB,(AY41-[1]!NILOWLIMB)*[1]!NILOWB,0)))+IF($Q41="Y",IF(AY41>[1]!NIUPPLIMB,((AY41-[1]!NIUPPLIMB)*[1]!NIUPPERB)+(([1]!NIUPPLIMB-[1]!NILOWLIMB)*[1]!NISUPNB),IF(AY41>[1]!NILOWLIMB,(AY41-[1]!NILOWLIMB)*[1]!NISUPNB,0))))*((NumberOfDaysWorked($F41,$G41,BD$1,BF$1)*5)+(NumberOfDaysWorked($F41,$G41,BD$1,BF$1)*7)) -> 0 | BE41: 0 | BF41: 0 | BG41: U1 | BH41: 0 | BI41: =IF($E41="LEADER",VLOOKUP(BG41,[1]!LEADERSHIP,5),IF($E41="TEACHER",VLOOKUP(BG41,[1]!TEACHER,5),IF($E41="ADVANCED",VLOOKUP($AW41,[1]!ADVANCED_SKILLS_TEACHERS,5),IF($E41="UNQUAL",VLOOKUP($AW41,[1]!UNQUALIFIED_TEACHER,5),0))))*D41*(1+BA$4)*(1+BA$5)*(1+BK$4)*(1+BK$5)+(BH41/BJ41) -> 0 | BJ41: 12 | BK41: 0 | BN41: =(IF($Q41="N",IF(BI41>[1]!NIUPPLIMC,((BI41-[1]!NIUPPLIMC)*[1]!NIUPPERC)+([1]!NIUPPLIMC-[1]!NILOWLIMC)*[1]!NILOWC,IF(BI41>[1]!NILOWLIMC,(BI41-[1]!NILOWLIMC)*[1]!NILOWC,0)))+IF($Q41="Y",IF(BI41>[1]!NIUPPLIMC,((BI41-[1]!NIUPPLIMC)*[1]!NIUPPERC)+(([1]!NIUPPLIMC-[1]!NILOWLIMC)*[1]!NISUPNC),IF(BI41>[1]!NILOWLIMC,(BI41-[1]!NILOWLIMC)*[1]!NISUPNC,0))))*((NumberOfDaysWorked($F41,$G41,BN$1,BP$1)*5)+(NumberOfDaysWorked($F41,$G41,BN$1,BP$1)*7)) -> 0 | BO41: 0 | BP41: 0
